Workbook

Sheet Calendrier
B1: sem. scol. | C1: sem. civile | E1: Année | K1: =Variables!J3 -> 2014 | U1: =WEEKDAY(K2,2) -> 3
K2: =DATE(K1,1,1) -> 2014-01-01
D3: Lundi | E3: Travaillé | G3: Maths | H3: Maths | I3: Grammaire | J3: Grammaire | K3: Mardi | L3: Travaillé | N3: Maths | O3: Maths | P3: Grammaire | Q3: Grammaire | R3: Mercredi | U3: Jeudi | V3: Travaillé | X3: Maths | Y3: Maths | Z3: Grammaire | AA3: Grammaire | AB3: Vendredi | AC3: Travaillé | AE3: Maths | AF3: Maths | AG3: Grammaire | AH3: Grammaire | AI3: Samedi | AL3: Dimanche
C4: 1 | D4: =IF($U$1=1,K2,"") ->  | E4: 0 | K4: =IF($U$1=2,IF(D4="",$K$2,"")) -> FALSE | L4: 0 | R4: =IF($U$1=3,IF(K4<>"",$K$2,""),K4+1) -> 2014-01-01 | S4: 0 | U4: =IF($U$1=4,IF(R4<>"",$K$2,""),R4+1) -> 2014-01-02 | V4: 0 | AB4: =IF($U$1=5,IF(U4<>"",$K$2,""),U4+1) -> 2014-01-03 | AC4: 0 | AI4: =IF($U$1=6,IF(AB4<>"",$K$2,""),AB4+1) -> 2014-01-04 | AJ4: 0 | AL4: =IF($U$1=7,IF(AI4<>"",$K$2,""),AI4+1) -> 2014-01-05 | AM4: 0
C5: =C4+1 -> 2 | D5: =AL4+1 -> 2014-01-06 | E5: 0 | K5: =D5+1 -> 2014-01-07 | L5: 0 | R5: =K5+1 -> 2014-01-08 | S5: 0 | U5: =R5+1 -> 2014-01-09 | V5: 0 | AB5: =U5+1 -> 2014-01-10 | AC5: 0 | AI5: =AB5+1 -> 2014-01-11 | AJ5: 0 | AL5: =AI5+1 -> 2014-01-12 | AM5: 0
C6: =C5+1 -> 3 | D6: =AL5+1 -> 2014-01-13 | E6: 0 | K6: =D6+1 -> 2014-01-14 | L6: 0 | R6: =K6+1 -> 2014-01-15 | S6: 0 | U6: =R6+1 -> 2014-01-16 | V6: 0 | AB6: =U6+1 -> 2014-01-17 | AC6: 0 | AI6: =AB6+1 -> 2014-01-18 | AJ6: 0 | AL6: =AI6+1 -> 2014-01-19 | AM6: 0
C7: 4 | D7: 2014-01-20 | E7: 0 | K7: 2014-01-21 | L7: 0 | R7: 2014-01-22 | S7: 0 | U7: 2014-01-23 | V7: 0 | AB7: 2014-01-24 | AC7: 0 | AI7: 2014-01-25 | AL7: 2014-01-26
C8: 5 | D8: 2014-01-27 | E8: 0 | K8: 2014-01-28 | L8: 0 | R8: 2014-01-29 | S8: 0 | U8: 2014-01-30 | V8: 0 | AB8: 2014-01-31 | AC8: 0 | AI8: 2014-02-01 | AL8: 2014-02-02
C9: 6 | D9: 2014-02-03 | E9: 0 | K9: 2014-02-04 | L9: 0 | R9: 2014-02-05 | S9: 0 | U9: 2014-02-06 | V9: 0 | AB9: 2014-02-07 | AC9: 0 | AI9: 2014-02-08 | AL9: 2014-02-09
C10: 7 | D10: 2014-02-10 | E10: 0 | K10: 2014-02-11 | L10: 0 | R10: 2014-02-12 | S10: 0 | U10: 2014-02-13 | V10: 0 | AB10: 2014-02-14 | AC10: 0 | AI10: 2014-02-15 | AL10: 2014-02-16
C11: 8 | D11: 2014-02-17 | E11: 0 | K11: 2014-02-18 | L11: 0 | R11: 2014-02-19 | S11: 0 | U11: 2014-02-20 | V11: 0 | AB11: 2014-02-21 | AC11: 0 | AI11: 2014-02-22 | AL11: 2014-02-23
C12: 9 | D12: 2014-02-24 | E12: 0 | K12: 2014-02-25 | L12: 0 | R12: 2014-02-26 | S12: 0 | U12: 2014-02-27 | V12: 0 | AB12: 2014-02-28 | AC12: 0 | AI12: 2014-03-01 | AL12: 2014-03-02
C13: 10 | D13: 2014-03-03 | E13: 0 | K13: 2014-03-04 | L13: 0 | R13: 2014-03-05 | S13: 0 | U13: 2014-03-06 | V13: 0 | AB13: 2014-03-07 | AC13: 0 | AI13: 2014-03-08 | AL13: 2014-03-09
C14: 11 | D14: 2014-03-10 | E14: 0 | K14: 2014-03-11 | L14: 0 | R14: 2014-03-12 | S14: 0 | U14: 2014-03-13 | V14: 0 | AB14: 2014-03-14 | AC14: 0 | AI14: 2014-03-15 | AL14: 2014-03-16
C15: 12 | D15: 2014-03-17 | E15: 0 | K15: 2014-03-18 | L15: 0 | R15: 2014-03-19 | S15: 0 | U15: 2014-03-20 | V15: 0 | AB15: 2014-03-21 | AC15: 0 | AI15: 2014-03-22 | AL15: 2014-03-23
C16: 13 | D16: 2014-03-24 | E16: 0 | K16: 2014-03-25 | L16: 0 | R16: 2014-03-26 | S16: 0 | U16: 2014-03-27 | V16: 0 | AB16: 2014-03-28 | AC16: 0 | AI16: 2014-03-29 | AL16: 2014-03-30
C17: 14 | D17: 2014-03-31 | E17: 0 | K17: 2014-04-01 | L17: 0 | R17: 2014-04-02 | S17: 0 | U17: 2014-04-03 | V17: 0 | AB17: 2014-04-04 | AC17: 0 | AI17: 2014-04-05 | AL17: 2014-04-06
C18: 15 | D18: 2014-04-07 | E18: 0 | K18: 2014-04-08 | L18: 0 | R18: 2014-04-09 | S18: 0 | U18: 2014-04-10 | V18: 0 | AB18: 2014-04-11 | AC18: 0 | AI18: 2014-04-12 | AL18: 2014-04-13
C19: 16 | D19: 2014-04-14 | E19: 0 | K19: 2014-04-15 | L19: 0 | R19: 2014-04-16 | S19: 0 | U19: 2014-04-17 | V19: 0 | AB19: 2014-04-18 | AC19: 0 | AI19: 2014-04-19 | AL19: 2014-04-20
C20: 17 | D20: 2014-04-21 | E20: 0 | K20: 2014-04-22 | L20: 0 | R20: 2014-04-23 | S20: 0 | U20: 2014-04-24 | V20: 0 | AB20: 2014-04-25 | AC20: 0 | AI20: 2014-04-26 | AL20: 2014-04-27
C21: 18 | D21: 2014-04-28 | E21: 0 | K21: 2014-04-29 | L21: 0 | R21: 2014-04-30 | S21: 0 | U21: 2014-05-01 | V21: 0 | AB21: 2014-05-02 | AC21: 0 | AI21: 2014-05-03 | AL21: 2014-05-04
C22: 19 | D22: 2014-05-05 | E22: 0 | K22: 2014-05-06 | L22: 0 | R22: 2014-05-07 | S22: 0 | U22: 2014-05-08 | V22: 0 | AB22: 2014-05-09 | AC22: 0 | AI22: 2014-05-10 | AL22: 2014-05-11
C23: 20 | D23: 2014-05-12 | E23: 0 | K23: 2014-05-13 | L23: 0 | R23: 2014-05-14 | S23: 0 | U23: 2014-05-15 | V23: 0 | AB23: 2014-05-16 | AC23: 0 | AI23: 2014-05-17 | AL23: 2014-05-18
C24: 21 | D24: 2014-05-19 | E24: 0 | K24: 2014-05-20 | L24: 0 | R24: 2014-05-21 | S24: 0 | U24: 2014-05-22 | V24: 0 | AB24: 2014-05-23 | AC24: 0 | AI24: 2014-05-24 | AL24: 2014-05-25
C25: 22 | D25: 2014-05-26 | E25: 0 | K25: 2014-05-27 | L25: 0 | R25: 2014-05-28 | S25: 0 | U25: 2014-05-29 | V25: 0 | AB25: 2014-05-30 | AC25: 0 | AI25: 2014-05-31 | AL25: 2014-06-01
C26: 23 | D26: 2014-06-02 | E26: 0 | K26: 2014-06-03 | L26: 0 | R26: 2014-06-04 | S26: 0 | U26: 2014-06-05 | V26: 0 | AB26: 2014-06-06 | AC26: 0 | AI26: 2014-06-07 | AL26: 2014-06-08
C27: 24 | D27: 2014-06-09 | E27: 0 | K27: 2014-06-10 | L27: 0 | R27: 2014-06-11 | S27: 0 | U27: 2014-06-12 | V27: 0 | AB27: 2014-06-13 | AC27: 0 | AI27: 2014-06-14 | AL27: 2014-06-15
C28: 25 | D28: 2014-06-16 | E28: 0 | K28: 2014-06-17 | L28: 0 | R28: 2014-06-18 | S28: 0 | U28: 2014-06-19 | V28: 0 | AB28: 2014-06-20 | AC28: 0 | AI28: 2014-06-21 | AL28: 2014-06-22
C29: 26 | D29: 2014-06-23 | E29: 0 | K29: 2014-06-24 | L29: 0 | R29: 2014-06-25 | S29: 0 | U29: 2014-06-26 | V29: 0 | AB29: 2014-06-27 | AC29: 0 | AI29: 2014-06-28 | AL29: 2014-06-29
C30: 27 | D30: 2014-06-30 | E30: 0 | K30: 2014-07-01 | L30: 0 | R30: 2014-07-02 | S30: 0 | U30: 2014-07-03 | V30: 0 | AB30: 2014-07-04 | AC30: 0 | AI30: 2014-07-05 | AL30: 2014-07-06
C31: 28 | D31: 2014-07-07 | E31: 0 | K31: 2014-07-08 | L31: 0 | R31: 2014-07-09 | S31: 0 | U31: 2014-07-10 | V31: 0 | AB31: 2014-07-11 | AC31: 0 | AI31: 2014-07-12 | AL31: 2014-07-13
C32: =C31+1 -> 29 | D32: 2014-07-14 | E32: 0 | K32: 2014-07-15 | L32: 0 | R32: 2014-07-16 | S32: 0 | U32: 2014-07-17 | V32: 0 | AB32: 2014-07-18 | AC32: 0 | AI32: 2014-07-19 | AL32: 2014-07-20
C33: =C32+1 -> 30 | D33: 2014-07-21 | E33: 0 | K33: 2014-07-22 | L33: 0 | R33: =K33+1 -> 2014-07-23 | S33: 0 | U33: =R33+1 -> 2014-07-24 | V33: 0 | AB33: =U33+1 -> 2014-07-25 | AC33: 0 | AI33: =AB33+1 -> 2014-07-26 | AL33: =AI33+1 -> 2014-07-27
C34: 31 | D34: 2014-07-28 | E34: 0 | K34: 2014-07-29 | L34: 0 | R34: 2014-07-30 | S34: 0 | U34: 2014-07-31 | V34: 0 | AB34: 2014-08-01 | AC34: 0 | AI34: 2014-08-02 | AL34: 2014-08-03
C35: 32 | D35: 2014-08-04 | E35: 0 | K35: 2014-08-05 | L35: 0 | R35: 2014-08-06 | S35: 0 | U35: 2014-08-07 | V35: 0 | AB35: 2014-08-08 | AC35: 0 | AI35: 2014-08-09 | AL35: 2014-08-10
C36: 33 | D36: 2014-08-11 | E36: 0 | K36: 2014-08-12 | L36: 0 | R36: 2014-08-13 | S36: 0 | U36: 2014-08-14 | V36: 0 | AB36: 2014-08-15 | AC36: 0 | AI36: 2014-08-16 | AL36: 2014-08-17
C37: 34 | D37: 2014-08-18 | E37: 0 | K37: 2014-08-19 | L37: 0 | R37: 2014-08-20 | S37: 0 | U37: 2014-08-21 | V37: 0 | AB37: 2014-08-22 | AC37: 0 | AI37: 2014-08-23 | AL37: 2014-08-24
A38: =K1 -> 2014 | B38: =IF($AP38<>0,$AP38,"") ->  | C38: 35 | D38: 2014-08-25 | E38: 0 | F38: =E38 -> 0 | G38: =IF(AND(E38<>0,H38=""),AE37+1,AE37) -> 0 | I38: =IF(AND(E38<>0,J38=""),AG37+1,AG37) -> 0 | K38: 2014-08-26 | L38: 0 | M38: =IF(L38=1,L38+F38,F38) -> 0 | N38: =IF(AND(L38<>0,O38=""),G38+1,G38) -> 0 | P38: =IF(AND(L38<>0,Q38=""),I38+1,I38) -> 0 | R38: 2014-08-27 | S38: 0 | T38: =IF(S38=1,S38+M38,M38) -> 0 | U38: 2014-08-28 | V38: 0 | W38: =IF(V38=1,V38+T38,T38) -> 0 | X38: =IF(AND(V38<>0,Y38=""),N38+1,N38) -> 0 | Z38: =IF(AND(V38<>0,AA38=""),P38+1,P38) -> 0 | AB38: 2014-08-29 | AC38: 0 | AD38: =IF(AC38=1,AC38+W38,W38) -> 0 | AE38: =IF(AND(AC38<>0,AF38=""),X38+1,X38) -> 0 | AG38: =IF(AND(AC38<>0,AH38=""),Z38+1,Z38) -> 0 | AI38: 2014-08-30 | AJ38: 0 | AK38: =IF(AJ38=1,AJ38+AD38,AD38) -> 0 | AL38: 2014-08-31 | AM38: 0 | AN38: =IF(AM38=1,AM38+AK38,AK38) -> 0 | AO38: =E38+L38+S38+V38+AC38+AJ38+AM38 -> 0 | AP38: =IF(AO38<>0,1,0) -> 0 | AQ38: =IF($AP38<>0,$AP38,"") -> 
B39: =IF($AP39<>$AP38,$AP39,"") -> 1 | C39: 36 | D39: 2014-09-01 | E39: 0 | F39: =IF(E39=1,E39+AN38,AN38) -> 0 | G39: =IF(AND(E39<>0,H39=""),AE38+1,AE38) -> 0 | I39: =IF(AND(E39<>0,J39=""),AG38+1,AG38) -> 0 | K39: 2014-09-02 | L39: 2 | M39: =IF(L39=1,L39+F39,F39) -> 0 | N39: =IF(AND(L39<>0,O39=""),G39+1,G39) -> 1 | P39: =IF(AND(L39<>0,Q39=""),I39+1,I39) -> 1 | R39: 2014-09-03 | S39: 0 | T39: =IF(S39=1,S39+M39,M39) -> 0 | U39: 2014-09-04 | V39: 1 | W39: 1 | X39: =IF(AND(V39<>0,Y39=""),N39+1,N39) -> 1 | Z39: =IF(AND(V39<>0,AA39=""),P39+1,P39) -> 1 | AA39: & | AB39: 2014-09-05 | AC39: 1 | AD39: =IF(AC39=1,AC39+W39,W39) -> 2 | AE39: =IF(AND(AC39<>0,AF39=""),X39+1,X39) -> 2 | AG39: =IF(AND(AC39<>0,AH39=""),Z39+1,Z39) -> 2 | AI39: 2014-09-06 | AJ39: 0 | AK39: =IF(AJ39=1,AJ39+AD39,AD39) -> 2 | AL39: 2014-09-07 | AM39: 0 | AN39: 2 | AO39: 4 | AP39: =IF(AO39<>0,AP38+1,AP38) -> 1 | AQ39: =IF($AP39<>$AP38,$AP39,"") -> 1
B40: =IF($AP40<>$AP39,$AP40,"") -> 2 | C40: 37 | D40: 2014-09-08 | E40: 1 | F40: 3 | G40: 3 | I40: 2 | J40: 2 | K40: 2014-09-09 | L40: 1 | M40: 4 | N40: 4 | P40: 2 | Q40: 2 | R40: 2014-09-10 | S40: 0 | T40: 4 | U40: 2014-09-11 | V40: 1 | W40: 5 | X40: 5 | Z40: 2 | AA40: 2 | AB40: 2014-09-12 | AC40: 1 | AD40: 6 | AE40: 6 | AG40: 2 | AH40: 2 | AI40: 2014-09-13 | AJ40: 0 | AK40: 6 | AL40: 2014-09-14 | AM40: 0 | AN40: 6 | AO40: 4 | AP40: =IF(AO40<>0,AP39+1,AP39) -> 2 | AQ40: =IF($AP40<>$AP39,$AP40,"") -> 2
B41: 3 | C41: 38 | D41: 2014-09-15 | E41: 1 | F41: 7 | G41: 7 | I41: 2 | J41: 2 | K41: 2014-09-16 | L41: 1 | M41: 8 | N41: 8 | P41: 2 | Q41: 2 | R41: 2014-09-17 | S41: 0 | T41: 8 | U41: 2014-09-18 | V41: 1 | W41: 9 | X41: 9 | Z41: 2 | AA41: 2 | AB41: 2014-09-19 | AC41: 1 | AD41: 10 | AE41: 10 | AG41: 2 | AH41: 2 | AI41: 2014-09-20 | AJ41: 0 | AK41: 10 | AL41: 2014-09-21 | AM41: 0 | AN41: 10 | AO41: 4 | AP41: 3 | AQ41: 3
B42: 4 | C42: 39 | D42: 2014-09-22 | E42: 1 | F42: 11 | G42: 11 | I42: 2 | J42: 2 | K42: 2014-09-23 | L42: 1 | M42: 12 | N42: 12 | P42: 2 | Q42: 2 | R42: 2014-09-24 | S42: 0 | T42: 12 | U42: 2014-09-25 | V42: 1 | W42: 13 | X42: 13 | Z42: 2 | AA42: 2 | AB42: 2014-09-26 | AC42: 1 | AD42: 14 | AE42: 14 | AG42: 2 | AH42: 2 | AI42: 2014-09-27 | AJ42: 0 | AK42: 14 | AL42: 2014-09-28 | AM42: 0 | AN42: 14 | AO42: 4 | AP42: 4 | AQ42: 4
B43: 5 | C43: 40 | D43: 2014-09-29 | E43: 1 | F43: 15 | G43: 15 | I43: 2 | J43: 2 | K43: 2014-09-30 | L43: 1 | M43: 16 | N43: 16 | P43: 2 | Q43: 2 | R43: 2014-10-01 | S43: 0 | T43: 16 | U43: 2014-10-02 | V43: 1 | W43: 17 | X43: 17 | Z43: 2 | AA43: 2 | AB43: 2014-10-03 | AC43: 1 | AD43: 18 | AE43: 18 | AG43: 2 | AH43: 2 | AI43: 2014-10-04 | AJ43: 0 | AK43: 18 | AL43: 2014-10-05 | AM43: 0 | AN43: 18 | AO43: 4 | AP43: 5 | AQ43: 5
B44: 6 | C44: 41 | D44: 2014-10-06 | E44: 1 | F44: 19 | G44: 19 | I44: 2 | J44: 2 | K44: 2014-10-07 | L44: 1 | M44: 20 | N44: 20 | P44: 2 | Q44: 2 | R44: 2014-10-08 | S44: 0 | T44: 20 | U44: 2014-10-09 | V44: 1 | W44: 21 | X44: 21 | Z44: 2 | AA44: 2 | AB44: 2014-10-10 | AC44: 1 | AD44: 22 | AE44: 22 | AG44: 2 | AH44: 2 | AI44: 2014-10-11 | AJ44: 0 | AK44: 22 | AL44: 2014-10-12 | AM44: 0 | AN44: 22 | AO44: 4 | AP44: 6 | AQ44: 6
B45: 7 | C45: 42 | D45: 2014-10-13 | E45: 1 | F45: 23 | G45: 23 | I45: 2 | J45: 2 | K45: 2014-10-14 | L45: 1 | M45: 24 | N45: 24 | P45: 2 | Q45: 25 | R45: 2014-10-15 | S45: 0 | T45: 24 | U45: 2014-10-16 | V45: 1 | W45: 25 | X45: 25 | Z45: 2 | AA45: 2 | AB45: 2014-10-17 | AC45: 1 | AD45: 26 | AE45: 26 | AG45: 2 | AH45: 2 | AI45: 2014-10-18 | AJ45: 0 | AK45: 26 | AL45: 2014-10-19 | AM45: 0 | AN45: 26 | AO45: 4 | AP45: 7 | AQ45: 7
C46: 43 | D46: 2014-10-20 | E46: 0 | F46: 26 | G46: 26 | I46: 2 | J46: 2 | K46: 2014-10-21 | L46: 0 | M46: 26 | N46: 26 | P46: 2 | Q46: 2 | R46: 2014-10-22 | S46: 0 | T46: 26 | U46: 2014-10-23 | V46: 0 | W46: 26 | X46: 26 | Z46: 2 | AA46: 22 | AB46: 2014-10-24 | AC46: 0 | AD46: 26 | AE46: 26 | AG46: 2 | AH46: 2 | AI46: 2014-10-25 | AJ46: 0 | AK46: 26 | AL46: 2014-10-26 | AM46: 0 | AN46: 26 | AO46: 0 | AP46: 7
C47: 44 | D47: 2014-10-27 | E47: 0 | F47: 26 | G47: 26 | I47: 2 | J47: 2 | K47: 2014-10-28 | L47: 0 | M47: 26 | N47: 26 | P47: 2 | Q47: 2 | R47: 2014-10-29 | S47: 0 | T47: 26 | U47: 2014-10-30 | V47: 0 | W47: 26 | X47: 26 | Z47: 2 | AB47: 2014-10-31 | AC47: 0 | AD47: 26 | AE47: 26 | AG47: 2 | AI47: 2014-11-01 | AJ47: 0 | AK47: 26 | AL47: 2014-11-02 | AM47: 0 | AN47: 26 | AO47: 0 | AP47: 7
B48: 8 | C48: 45 | D48: 2014-11-03 | E48: 1 | F48: 27 | G48: 27 | I48: 2 | J48: 2 | K48: 2014-11-04 | L48: 1 | M48: 28 | N48: 28 | P48: 2 | Q48: 2 | R48: 2014-11-05 | S48: 0 | T48: 28 | U48: 2014-11-06 | V48: 1 | W48: 29 | X48: 29 | Z48: 2 | AA48: 2 | AB48: 2014-11-07 | AC48: 1 | AD48: 30 | AE48: 30 | AG48: 2 | AH48: 2 | AI48: 2014-11-08 | AJ48: 0 | AK48: 30 | AL48: 2014-11-09 | AM48: 0 | AN48: 30 | AO48: 4 | AP48: 8 | AQ48: 8
B49: 9 | C49: 46 | D49: 2014-11-10 | E49: 0 | F49: 30 | G49: 30 | I49: 2 | J49: 2 | K49: 2014-11-11 | L49: 1 | M49: 31 | N49: 31 | P49: 2 | Q49: 2 | R49: 2014-11-12 | S49: 0 | T49: 31 | U49: 2014-11-13 | V49: 1 | W49: 32 | X49: 32 | Z49: 2 | AA49: 2 | AB49: 2014-11-14 | AC49: 1 | AD49: 33 | AE49: 33 | AG49: 2 | AH49: 22 | AI49: 2014-11-15 | AJ49: 0 | AK49: 33 | AL49: 2014-11-16 | AM49: 0 | AN49: 33 | AO49: 3 | AP49: 9 | AQ49: 9
B50: 10 | C50: 47 | D50: 2014-11-17 | E50: 1 | F50: 34 | G50: 34 | I50: 2 | J50: 2 | K50: 2014-11-18 | L50: 1 | M50: 35 | N50: 35 | P50: 2 | Q50: 2 | R50: 2014-11-19 | S50: 0 | T50: 35 | U50: 2014-11-20 | V50: 1 | W50: 36 | X50: 36 | Z50: 2 | AA50: 2 | AB50: 2014-11-21 | AC50: 1 | AD50: 37 | AE50: 37 | AG50: 2 | AH50: 2 | AI50: 2014-11-22 | AJ50: 0 | AK50: 37 | AL50: 2014-11-23 | AM50: 0 | AN50: 37 | AO50: 4 | AP50: 10 | AQ50: 10
B51: 11 | C51: 48 | D51: 2014-11-24 | E51: 1 | F51: 38 | G51: 38 | I51: 2 | J51: 2 | K51: 2014-11-25 | L51: 1 | M51: 39 | N51: 39 | P51: 2 | Q51: 2 | R51: 2014-11-26 | S51: 0 | T51: 39 | U51: 2014-11-27 | V51: 1 | W51: 40 | X51: 40 | Z51: 2 | AA51: 2 | AB51: 2014-11-28 | AC51: 1 | AD51: 41 | AE51: 41 | AG51: 2 | AH51: 2 | AI51: 2014-11-29 | AJ51: 0 | AK51: 41 | AL51: 2014-11-30 | AM51: 0 | AN51: 41 | AO51: 4 | AP51: 11 | AQ51: 11
B52: 12 | C52: 49 | D52: 2014-12-01 | E52: 1 | F52: 42 | G52: 42 | I52: 2 | J52: 2 | K52: 2014-12-02 | L52: 1 | M52: 43 | N52: 43 | P52: 2 | Q52: 2 | R52: 2014-12-03 | S52: 0 | T52: 43 | U52: 2014-12-04 | V52: 1 | W52: 44 | X52: 44 | Z52: 2 | AA52: 2 | AB52: 2014-12-05 | AC52: 1 | AD52: 45 | AE52: 45 | AG52: 2 | AH52: 2 | AI52: 2014-12-06 | AJ52: 0 | AK52: 45 | AL52: 2014-12-07 | AM52: 0 | AN52: 45 | AO52: 4 | AP52: 12 | AQ52: 12
B53: 13 | C53: 50 | D53: 2014-12-08 | E53: 1 | F53: 46 | G53: 46 | I53: 2 | J53: 2 | K53: 2014-12-09 | L53: 1 | M53: 47 | N53: 47 | P53: 2 | Q53: 2 | R53: 2014-12-10 | S53: 0 | T53: 47 | U53: 2014-12-11 | V53: 1 | W53: 48 | X53: 48 | Z53: 2 | AA53: 2 | AB53: 2014-12-12 | AC53: 1 | AD53: 49 | AE53: 49 | AG53: 2 | AH53: 2 | AI53: 2014-12-13 | AJ53: 0 | AK53: 49 | AL53: 2014-12-14 | AM53: 0 | AN53: 49 | AO53: 4 | AP53: 13 | AQ53: 13
B54: 14 | C54: =C53+1 -> 51 | D54: 2014-12-15 | E54: 1 | F54: 50 | G54: 50 | I54: 2 | J54: 2 | K54: 2014-12-16 | L54: 1 | M54: 51 | N54: 51 | P54: 2 | Q54: 2 | R54: 2014-12-17 | S54: 0 | T54: 51 | U54: 2014-12-18 | V54: 1 | W54: 52 | X54: 52 | Z54: 2 | AA54: 2 | AB54: 2014-12-19 | AC54: 1 | AD54: 53 | AE54: 53 | AG54: 2 | AH54: 2 | AI54: 2014-12-20 | AJ54: 0 | AK54: 53 | AL54: 2014-12-21 | AM54: 0 | AN54: 53 | AO54: 4 | AP54: 14 | AQ54: 14
C55: =C54+1 -> 52 | D55: 2014-12-22 | E55: 0 | F55: 53 | G55: 53 | I55: 2 | K55: 2014-12-23 | L55: 0 | M55: 53 | N55: 53 | P55: 2 | R55: 2014-12-24 | S55: 0 | T55: 53 | U55: 2014-12-25 | V55: 0 | W55: 53 | X55: 53 | Z55: 2 | AB55: 2014-12-26 | AC55: 0 | AD55: 53 | AE55: 53 | AG55: 2 | AI55: 2014-12-27 | AJ55: 0 | AK55: 53 | AL55: 2014-12-28 | AM55: 0 | AN55: 53 | AO55: 0 | AP55: 14
A56: =A38+1 -> 2015 | C56: 1 | D56: 2014-12-29 | E56: 0 | F56: 53 | G56: 53 | I56: 2 | K56: 2014-12-30 | L56: 0 | M56: 53 | N56: 53 | P56: 2 | R56: 2014-12-31 | S56: 0 | T56: 53 | U56: 2015-01-01 | V56: 0 | W56: 53 | X56: 53 | Z56: 2 | AB56: 2015-01-02 | AC56: 0 | AD56: 53 | AE56: 53 | AG56: 2 | AI56: 2015-01-03 | AJ56: 0 | AK56: 53 | AL56: 2015-01-04 | AM56: 0 | AN56: 53 | AO56: 0 | AP56: 14
B57: 15 | C57: 2 | D57: 2015-01-05 | E57: 1 | F57: 54 | G57: 54 | I57: 3 | K57: 2015-01-06 | L57: 1 | M57: 55 | N57: 55 | P57: 3 | Q57: 2 | R57: =K57+1 -> 2015-01-07 | S57: 0 | T57: 55 | U57: =R57+1 -> 2015-01-08 | V57: 1 | W57: 56 | X57: 56 | Z57: 3 | AA57: 2 | AB57: =U57+1 -> 2015-01-09 | AC57: 1 | AD57: 57 | AE57: 57 | AG57: 3 | AH57: 2 | AI57: =AB57+1 -> 2015-01-10 | AJ57: 0 | AK57: 57 | AL57: =AI57+1 -> 2015-01-11 | AM57: 0 | AN57: 57 | AO57: 4 | AP57: 15 | AQ57: 15
B58: 16 | C58: 3 | D58: 2015-01-12 | E58: 1 | F58: 58 | G58: 58 | I58: 4 | K58: 2015-01-13 | L58: 1 | M58: 59 | N58: 59 | P58: 5 | R58: 2015-01-14 | S58: 0 | T58: 59 | U58: 2015-01-15 | V58: 1 | W58: 60 | X58: 60 | Z58: 6 | AB58: 2015-01-16 | AC58: 1 | AD58: 61 | AE58: 61 | AG58: 7 | AI58: 2015-01-17 | AJ58: 0 | AK58: 61 | AL58: 2015-01-18 | AM58: 0 | AN58: 61 | AO58: 4 | AP58: 16 | AQ58: 16
B59: 17 | C59: 4 | D59: 2015-01-19 | E59: 1 | F59: 62 | G59: 62 | I59: 8 | K59: 2015-01-20 | L59: 1 | M59: 63 | N59: 63 | P59: 9 | R59: 2015-01-21 | S59: 0 | T59: 63 | U59: 2015-01-22 | V59: 1 | W59: 64 | X59: 64 | Z59: 10 | AB59: 2015-01-23 | AC59: 1 | AD59: 65 | AE59: 65 | AG59: 11 | AI59: 2015-01-24 | AJ59: 0 | AK59: 65 | AL59: 2015-01-25 | AM59: 0 | AN59: 65 | AO59: 4 | AP59: 17 | AQ59: 17
B60: 18 | C60: 5 | D60: 2015-01-26 | E60: 1 | F60: 66 | G60: 66 | I60: 12 | K60: 2015-01-27 | L60: 1 | M60: 67 | N60: 67 | P60: 13 | R60: 2015-01-28 | S60: 0 | T60: 67 | U60: 2015-01-29 | V60: 1 | W60: 68 | X60: 68 | Z60: 14 | AB60: 2015-01-30 | AC60: 1 | AD60: 69 | AE60: 69 | AG60: 15 | AI60: 2015-01-31 | AJ60: 0 | AK60: 69 | AL60: 2015-02-01 | AM60: 0 | AN60: 69 | AO60: 4 | AP60: 18 | AQ60: 18
B61: 19 | C61: 6 | D61: 2015-02-02 | E61: 1 | F61: 70 | G61: 70 | I61: 16 | K61: 2015-02-03 | L61: 1 | M61: 71 | N61: 71 | P61: 17 | R61: 2015-02-04 | S61: 0 | T61: 71 | U61: 2015-02-05 | V61: 1 | W61: 72 | X61: 72 | Z61: 18 | AB61: 2015-02-06 | AC61: 1 | AD61: 73 | AE61: 73 | AG61: 19 | AI61: 2015-02-07 | AJ61: 0 | AK61: 73 | AL61: 2015-02-08 | AM61: 0 | AN61: 73 | AO61: 4 | AP61: 19 | AQ61: 19
B62: 20 | C62: 7 | D62: 2015-02-09 | E62: 1 | F62: 74 | G62: 74 | I62: 20 | K62: 2015-02-10 | L62: 1 | M62: 75 | N62: 75 | P62: 21 | R62: 2015-02-11 | S62: 0 | T62: 75 | U62: 2015-02-12 | V62: 1 | W62: 76 | X62: 76 | Z62: 22 | AB62: 2015-02-13 | AC62: 1 | AD62: 77 | AE62: 77 | AG62: 23 | AI62: 2015-02-14 | AJ62: 0 | AK62: 77 | AL62: 2015-02-15 | AM62: 0 | AN62: 77 | AO62: 4 | AP62: 20 | AQ62: 20
C63: 8 | D63: 2015-02-16 | E63: 0 | F63: 77 | G63: 77 | I63: 23 | K63: 2015-02-17 | L63: 0 | M63: 77 | N63: 77 | P63: 23 | R63: 2015-02-18 | S63: 0 | T63: 77 | U63: 2015-02-19 | V63: 0 | W63: 77 | X63: 77 | Z63: 23 | AB63: 2015-02-20 | AC63: 0 | AD63: 77 | AE63: 77 | AG63: 23 | AI63: 2015-02-21 | AJ63: 0 | AK63: 77 | AL63: 2015-02-22 | AM63: 0 | AN63: 77 | AO63: 0 | AP63: 20
C64: 9 | D64: 2015-02-23 | E64: 0 | F64: 77 | G64: 77 | I64: 23 | K64: 2015-02-24 | L64: 0 | M64: 77 | N64: 77 | P64: 23 | R64: 2015-02-25 | S64: 0 | T64: 77 | U64: 2015-02-26 | V64: 0 | W64: 77 | X64: 77 | Z64: 23 | AB64: 2015-02-27 | AC64: 0 | AD64: 77 | AE64: 77 | AG64: 23 | AI64: 2015-02-28 | AJ64: 0 | AK64: 77 | AL64: 2015-03-01 | AM64: 0 | AN64: 77 | AO64: 0 | AP64: 20
B65: 21 | C65: 10 | D65: 2015-03-02 | E65: 1 | F65: 78 | G65: 78 | I65: 24 | K65: 2015-03-03 | L65: 1 | M65: 79 | N65: 79 | P65: 25 | R65: 2015-03-04 | S65: 0 | T65: 79 | U65: 2015-03-05 | V65: 1 | W65: 80 | X65: 80 | Z65: 26 | AB65: 2015-03-06 | AC65: 1 | AD65: 81 | AE65: 81 | AG65: 27 | AI65: 2015-03-07 | AJ65: 0 | AK65: 81 | AL65: 2015-03-08 | AM65: 0 | AN65: 81 | AO65: 4 | AP65: 21 | AQ65: 21
B66: 22 | C66: 11 | D66: 2015-03-09 | E66: 1 | F66: 82 | G66: 81 | H66: 0 | I66: 28 | K66: 2015-03-10 | L66: 1 | M66: 83 | N66: 82 | P66: 29 | R66: 2015-03-11 | S66: 0 | T66: 83 | U66: 2015-03-12 | V66: 1 | W66: 84 | X66: 83 | Z66: 30 | AB66: 2015-03-13 | AC66: 1 | AD66: 85 | AE66: 84 | AG66: 31 | AI66: 2015-03-14 | AJ66: 0 | AK66: 85 | AL66: 2015-03-15 | AM66: 0 | AN66: 85 | AO66: 4 | AP66: 22 | AQ66: 22
B67: 23 | C67: 12 | D67: 2015-03-16 | E67: 1 | F67: 86 | G67: 85 | I67: 32 | K67: 2015-03-17 | L67: 1 | M67: 87 | N67: 86 | P67: 33 | R67: 2015-03-18 | S67: 0 | T67: 87 | U67: 2015-03-19 | V67: 1 | W67: 88 | X67: 87 | Z67: 34 | AB67: 2015-03-20 | AC67: 1 | AD67: 89 | AE67: 88 | AG67: 35 | AI67: 2015-03-21 | AJ67: 0 | AK67: 89 | AL67: 2015-03-22 | AM67: 0 | AN67: 89 | AO67: 4 | AP67: 23 | AQ67: 23
B68: 24 | C68: 13 | D68: 2015-03-23 | E68: 1 | F68: 90 | G68: 89 | I68: 36 | K68: 2015-03-24 | L68: 1 | M68: 91 | N68: 90 | P68: 37 | R68: 2015-03-25 | S68: 0 | T68: 91 | U68: 2015-03-26 | V68: 1 | W68: 92 | X68: 91 | Z68: 38 | AB68: 2015-03-27 | AC68: 1 | AD68: 93 | AE68: 92 | AG68: 39 | AI68: 2015-03-28 | AJ68: 0 | AK68: 93 | AL68: 2015-03-29 | AM68: 0 | AN68: 93 | AO68: 4 | AP68: 24 | AQ68: 24
B69: 25 | C69: 14 | D69: 2015-03-30 | E69: 1 | F69: 94 | G69: 93 | I69: 40 | K69: 2015-03-31 | L69: 1 | M69: 95 | N69: 94 | P69: 41 | R69: 2015-04-01 | S69: 0 | T69: 95 | U69: 2015-04-02 | V69: 1 | W69: 96 | X69: 95 | Z69: 42 | AB69: 2015-04-03 | AC69: 1 | AD69: 97 | AE69: 96 | AG69: 43 | AI69: 2015-04-04 | AJ69: 0 | AK69: 97 | AL69: 2015-04-05 | AM69: 0 | AN69: 97 | AO69: 4 | AP69: 25 | AQ69: 25
B70: 26 | C70: 15 | D70: =AL69+1 -> 2015-04-06 | E70: 1 | F70: 98 | G70: 97 | I70: 44 | K70: =D70+1 -> 2015-04-07 | L70: 1 | M70: 99 | N70: 98 | P70: 45 | R70: 2015-04-08 | S70: 0 | T70: 99 | U70: 2015-04-09 | V70: 1 | W70: =IF(V70=1,V70+T70,T70) -> 100 | X70: 99 | Z70: 46 | AB70: 2015-04-10 | AC70: 1 | AD70: 101 | AE70: 100 | AG70: 47 | AI70: 2015-04-11 | AJ70: 0 | AK70: 101 | AL70: 2015-04-12 | AM70: 0 | AN70: =IF(AM70=1,AM70+AK70,AK70) -> 101 | AO70: =E70+L70+S70+V70+AC70+AJ70+AM70 -> 4 | AP70: 26 | AQ70: 26
C71: 16 | D71: 2015-04-13 | E71: 0 | F71: =IF(E71=1,E71+AN70,AN70) -> 101 | G71: 100 | I71: 47 | K71: 2015-04-14 | L71: 0 | M71: 101 | N71: 100 | P71: 47 | R71: 2015-04-15 | S71: 0 | T71: 101 | U71: 2015-04-16 | V71: 0 | W71: 101 | X71: 100 | Z71: 47 | AB71: 2015-04-17 | AC71: 0 | AD71: 101 | AE71: 100 | AG71: 47 | AI71: 2015-04-18 | AJ71: 0 | AK71: 101 | AL71: 2015-04-19 | AM71: 0 | AN71: 101 | AO71: 0 | AP71: 26
C72: 17 | D72: 2015-04-20 | E72: 0 | F72: 101 | G72: 100 | I72: 47 | K72: 2015-04-21 | L72: 0 | M72: 101 | N72: 100 | P72: 47 | R72: 2015-04-22 | S72: 0 | T72: 101 | U72: 2015-04-23 | V72: 0 | W72: 101 | X72: 100 | Z72: 47 | AB72: 2015-04-24 | AC72: 0 | AD72: 101 | AE72: 100 | AG72: 47 | AI72: 2015-04-25 | AJ72: 0 | AK72: 101 | AL72: 2015-04-26 | AM72: 0 | AN72: 101 | AO72: 0 | AP72: 26
B73: 27 | C73: 18 | D73: 2015-04-27 | E73: 1 | F73: 102 | G73: 101 | I73: 48 | K73: 2015-04-28 | L73: 1 | M73: 103 | N73: 102 | P73: 49 | R73: 2015-04-29 | S73: 0 | T73: 103 | U73: 2015-04-30 | V73: 0 | W73: 103 | X73: 102 | Z73: 49 | AB73: 2015-05-01 | AC73: 1 | AD73: 104 | AE73: 103 | AG73: 50 | AI73: 2015-05-02 | AJ73: 0 | AK73: 104 | AL73: 2015-05-03 | AM73: 0 | AN73: 104 | AO73: 3 | AP73: 27 | AQ73: 27
B74: 28 | C74: 19 | D74: 2015-05-04 | E74: 2 | F74: 104 | G74: 104 | I74: 51 | K74: 2015-05-05 | L74: 2 | M74: 104 | N74: 105 | P74: 52 | R74: 2015-05-06 | S74: 0 | T74: 104 | U74: 2015-05-07 | V74: 0 | W74: 104 | X74: 105 | Z74: 52 | AB74: 2015-05-08 | AC74: 2 | AD74: 104 | AE74: 106 | AG74: 53 | AI74: 2015-05-09 | AJ74: 0 | AK74: 104 | AL74: 2015-05-10 | AM74: 0 | AN74: 104 | AO74: 6 | AP74: 28 | AQ74: 28
B75: 29 | C75: 20 | D75: 2015-05-11 | E75: 1 | F75: 105 | G75: 107 | I75: 54 | K75: 2015-05-12 | L75: 1 | M75: 106 | N75: 108 | P75: 55 | R75: 2015-05-13 | S75: 0 | T75: 106 | U75: 2015-05-14 | V75: 1 | W75: 107 | X75: 109 | Z75: 56 | AB75: 2015-05-15 | AC75: 1 | AD75: 108 | AE75: 110 | AG75: 57 | AI75: 2015-05-16 | AJ75: 0 | AK75: 108 | AL75: 2015-05-17 | AM75: 0 | AN75: 108 | AO75: 4 | AP75: 29 | AQ75: 29
B76: 30 | C76: 21 | D76: 2015-05-18 | E76: 2 | F76: 108 | G76: 111 | I76: 58 | K76: 2015-05-19 | L76: 2 | M76: 108 | N76: 112 | P76: 59 | R76: 2015-05-20 | S76: 0 | T76: 108 | U76: 2015-05-21 | V76: 2 | W76: 108 | X76: 113 | Z76: 60 | AB76: 2015-05-22 | AC76: 2 | AD76: 108 | AE76: 114 | AG76: 61 | AI76: 2015-05-23 | AJ76: 0 | AK76: 108 | AL76: 2015-05-24 | AM76: 0 | AN76: 108 | AO76: 8 | AP76: 30 | AQ76: 30
B77: 31 | C77: 22 | D77: 2015-05-25 | E77: 1 | F77: 109 | G77: 115 | I77: 62 | K77: 2015-05-26 | L77: 1 | M77: 110 | N77: 116 | P77: 63 | R77: 2015-05-27 | S77: 0 | T77: 110 | U77: 2015-05-28 | V77: 0 | W77: 110 | X77: 116 | Z77: 63 | AB77: 2015-05-29 | AC77: 1 | AD77: 111 | AE77: 117 | AG77: 64 | AI77: 2015-05-30 | AJ77: 0 | AK77: 111 | AL77: 2015-05-31 | AM77: 0 | AN77: 111 | AO77: 3 | AP77: 31 | AQ77: 31
B78: 32 | C78: 23 | D78: 2015-06-01 | E78: 2 | F78: 111 | G78: 118 | I78: 65 | K78: 2015-06-02 | L78: 1 | M78: 112 | N78: 119 | P78: 66 | R78: 2015-06-03 | S78: 0 | T78: 112 | U78: 2015-06-04 | V78: 1 | W78: 113 | X78: 120 | Z78: 67 | AB78: 2015-06-05 | AC78: 1 | AD78: 114 | AE78: 121 | AG78: 68 | AI78: 2015-06-06 | AJ78: 0 | AK78: 114 | AL78: 2015-06-07 | AM78: 0 | AN78: 114 | AO78: 5 | AP78: 32 | AQ78: 32
B79: 33 | C79: 24 | D79: 2015-06-08 | E79: 0 | F79: 114 | G79: 121 | I79: 68 | K79: 2015-06-09 | L79: 1 | M79: 115 | N79: 122 | P79: 69 | R79: 2015-06-10 | S79: 0 | T79: 115 | U79: 2015-06-11 | V79: 1 | W79: 116 | X79: 123 | Z79: 70 | AB79: 2015-06-12 | AC79: 1 | AD79: 117 | AE79: 124 | AG79: 71 | AI79: 2015-06-13 | AJ79: 0 | AK79: 117 | AL79: 2015-06-14 | AM79: 0 | AN79: 117 | AO79: 3 | AP79: 33 | AQ79: 33
B80: 34 | C80: 25 | D80: 2015-06-15 | E80: 1 | F80: 118 | G80: 125 | I80: 72 | K80: 2015-06-16 | L80: 1 | M80: 119 | N80: 126 | P80: 73 | R80: 2015-06-17 | S80: 0 | T80: 119 | U80: 2015-06-18 | V80: 1 | W80: 120 | X80: 127 | Z80: 74 | AB80: 2015-06-19 | AC80: 1 | AD80: 121 | AE80: 128 | AG80: 75 | AI80: 2015-06-20 | AJ80: 0 | AK80: 121 | AL80: 2015-06-21 | AM80: 0 | AN80: 121 | AO80: 4 | AP80: 34 | AQ80: 34
B81: 35 | C81: 26 | D81: 2015-06-22 | E81: 1 | F81: 122 | G81: 129 | I81: 76 | K81: 2015-06-23 | L81: 1 | M81: 123 | N81: 130 | P81: 77 | R81: 2015-06-24 | S81: 0 | T81: 123 | U81: 2015-06-25 | V81: 1 | W81: 124 | X81: 131 | Z81: 78 | AB81: 2015-06-26 | AC81: 1 | AD81: 125 | AE81: 132 | AG81: 79 | AI81: 2015-06-27 | AJ81: 0 | AK81: 125 | AL81: 2015-06-28 | AM81: 0 | AN81: 125 | AO81: 4 | AP81: 35 | AQ81: 35
B82: 36 | C82: 27 | D82: 2015-06-29 | E82: 1 | F82: 126 | G82: 133 | I82: 80 | K82: 2015-06-30 | L82: 1 | M82: 127 | N82: 134 | P82: 81 | R82: =K82+1 -> 2015-07-01 | S82: 0 | T82: 127 | U82: =R82+1 -> 2015-07-02 | V82: 1 | W82: 128 | X82: 135 | Z82: 82 | AB82: =U82+1 -> 2015-07-03 | AC82: 1 | AD82: 129 | AE82: 136 | AG82: 83 | AI82: =AB82+1 -> 2015-07-04 | AJ82: 0 | AK82: 129 | AL82: =AI82+1 -> 2015-07-05 | AM82: 0 | AN82: 129 | AO82: 4 | AP82: 36 | AQ82: 36
C83: 28 | D83: 2015-07-06 | E83: 0 | F83: 129 | G83: 136 | I83: 83 | K83: 2015-07-07 | L83: 0 | M83: 129 | N83: 136 | P83: 83 | R83: 2015-07-08 | S83: 0 | T83: 129 | U83: 2015-07-09 | V83: 0 | W83: 129 | X83: 136 | Z83: 83 | AB83: 2015-07-10 | AC83: 0 | AD83: 129 | AE83: 136 | AG83: 83 | AI83: 2015-07-11 | AJ83: 0 | AK83: 129 | AL83: 2015-07-12 | AM83: 0 | AN83: 129 | AO83: 0 | AP83: 36
C84: 29 | D84: 2015-07-13 | E84: 0 | F84: 129 | K84: 2015-07-14 | L84: 0 | M84: 129 | R84: 2015-07-15 | S84: 0 | T84: 129 | U84: 2015-07-16 | V84: 0 | W84: 129 | AB84: 2015-07-17 | AC84: 0 | AD84: 129 | AF84: * | AI84: 2015-07-18 | AJ84: 0 | AK84: 129 | AL84: 2015-07-19 | AN84: 129 | AO84: 0 | AP84: =IF(AO84<>0,AP83+1,0) -> 0
C85: 30 | D85: 2015-07-20 | E85: 0 | F85: 129 | K85: 2015-07-21 | L85: 0 | M85: 129 | R85: 2015-07-22 | S85: 0 | T85: 129 | U85: 2015-07-23 | V85: 0 | W85: 129 | AB85: 2015-07-24 | AC85: 0 | AD85: 129 | AF85: * | AI85: 2015-07-25 | AJ85: 0 | AK85: 129 | AL85: 2015-07-26 | AN85: 129 | AO85: 0 | AP85: 0
C86: 31 | D86: 2015-07-27 | E86: 0 | F86: 129 | K86: 2015-07-28 | L86: 0 | M86: 129 | R86: 2015-07-29 | S86: 0 | T86: 129 | U86: 2015-07-30 | V86: 0 | W86: 129 | AB86: 2015-07-31 | AC86: 0 | AD86: 129 | AF86: * | AI86: 2015-08-01 | AJ86: 0 | AK86: 129 | AL86: 2015-08-02 | AN86: 129 | AO86: 0 | AP86: 0
C87: 32 | D87: 2015-08-03 | E87: 0 | F87: 129 | K87: 2015-08-04 | L87: 0 | M87: 129 | R87: 2015-08-05 | S87: 0 | T87: 129 | U87: 2015-08-06 | V87: 0 | W87: 129 | AB87: 2015-08-07 | AC87: 0 | AD87: 129 | AF87: * | AI87: 2015-08-08 | AJ87: 0 | AK87: 129 | AL87: 2015-08-09 | AN87: 129 | AO87: 0 | AP87: 0
C88: 33 | D88: 2015-08-10 | E88: 0 | F88: 129 | K88: 2015-08-11 | L88: 0 | M88: 129 | R88: 2015-08-12 | S88: 0 | T88: 129 | U88: 2015-08-13 | V88: 0 | W88: 129 | AB88: 2015-08-14 | AC88: 0 | AD88: 129 | AF88: * | AI88: 2015-08-15 | AJ88: 0 | AK88: 129 | AL88: 2015-08-16 | AN88: 129 | AO88: 0 | AP88: 0
C89: 34 | D89: 2015-08-17 | E89: 0 | F89: 129 | K89: 2015-08-18 | L89: 0 | M89: 129 | R89: 2015-08-19 | S89: 0 | T89: 129 | U89: 2015-08-20 | V89: 0 | W89: 129 | AB89: 2015-08-21 | AC89: 0 | AD89: 129 | AF89: * | AI89: 2015-08-22 | AJ89: 0 | AK89: 129 | AL89: 2015-08-23 | AN89: 129 | AO89: 0 | AP89: 0
C90: 35 | D90: 2015-08-24 | E90: 0 | F90: 129 | K90: 2015-08-25 | L90: 0 | M90: 129 | R90: 2015-08-26 | S90: 0 | T90: 129 | U90: 2015-08-27 | V90: 0 | W90: 129 | AB90: 2015-08-28 | AC90: 0 | AD90: 129 | AF90: * | AI90: 2015-08-29 | AJ90: 0 | AK90: 129 | AL90: 2015-08-30 | AN90: 129 | AO90: 0 | AP90: 0
D91: Marquer 0 pour un jour vaqué, 1 pour un jour travaillé, 2 pour un jour sans devoir (en cas de remplacement par exemple)
A93: nbre jours | C93: =SUM(E93:AM93) -> 147 | E93: =SUM(E4:E90) -> 36 | L93: =SUM(L4:L90) -> 39 | S93: =SUM(S4:S90) -> 0 | V93: =SUM(V4:V90) -> 34 | AC93: =SUM(AC4:AC90) -> 38 | AJ93: =SUM(AJ4:AJ90) -> 0 | AM93: =SUM(AM4:AM90) -> 0
C96: =F96 -> 26 | D96: =D38 -> 2014-08-25 | E96: =VLOOKUP(D96,D$4:F$90,2) -> 0 | F96: =VLOOKUP(E96,E$4:G$90,2) -> 26 | G96: =VLOOKUP(F96,F$4:H$90,2) -> 26 | H96: =VLOOKUP(G96,G$4:I$90,2) -> 0 | I96: =VLOOKUP(H96,H$4:J$90,2) -> 28
C97: =IF(F97<>F96,F97,"") -> 0 | D97: =D96+1 -> 2014-08-26 | E97: =VLOOKUP(D97,K$4:M$90,2) -> 0 | F97: =VLOOKUP(D97,K$4:M$90,3) -> 0
C98: =IF(F98<>F97,F98,"") ->  | D98: =D97+1 -> 2014-08-27 | E98: =VLOOKUP(D98,R$4:T$90,2) -> 0 | F98: =VLOOKUP(D98,R$4:T$90,3) -> 0
D99: 2014-08-28 | E99: =VLOOKUP(D99,U$4:AC$90,2) -> 0 | F99: =VLOOKUP(D99,U$4:W$90,3) -> 0
D100: 2014-08-29 | E100: =VLOOKUP(D100,AB$4:AD$90,2) -> 0 | F100: =VLOOKUP(D100,AB$4:AD$90,3) -> 0
D101: 2014-08-30 | E101: =VLOOKUP(D101,AI$4:AK$90,2) -> 0 | F101: =VLOOKUP(D101,AI$4:AK$90,3) -> 0
D102: 2014-08-31 | E102: =VLOOKUP(D102,AL$4:AN$90,2) -> 0 | F102: =VLOOKUP(D102,AL$4:AN$90,3) -> 0
D103: 2014-09-01 | E103: =VLOOKUP(D103,D$4:F$90,2) -> 0 | F103: =VLOOKUP(D103,D$4:F$90,3) -> 0
D104: 2014-09-02 | E104: =VLOOKUP(D104,K$4:M$90,2) -> 2 | F104: =VLOOKUP(D104,K$4:M$90,3) -> 0
D105: 2014-09-03 | E105: =VLOOKUP(D105,R$4:T$90,2) -> 0 | F105: =VLOOKUP(D105,R$4:T$90,3) -> 0
C106: 1 | D106: 2014-09-04 | E106: =VLOOKUP(D106,U$4:AC$90,2) -> 1 | F106: =VLOOKUP(D106,U$4:W$90,3) -> 1
C107: 2 | D107: 2014-09-05 | E107: =VLOOKUP(D107,AB$4:AD$90,2) -> 1 | F107: =VLOOKUP(D107,AB$4:AD$90,3) -> 2
D108: 2014-09-06 | E108: =VLOOKUP(D108,AI$4:AK$90,2) -> 0 | F108: =VLOOKUP(D108,AI$4:AK$90,3) -> 2
D109: 2014-09-07 | E109: =VLOOKUP(D109,AL$4:AN$90,2) -> 0 | F109: =VLOOKUP(D109,AL$4:AN$90,3) -> 2
C110: 3 | D110: 2014-09-08 | E110: =VLOOKUP(D110,D$4:F$90,2) -> 1 | F110: =VLOOKUP(D110,D$4:F$90,3) -> 3
C111: 4 | D111: 2014-09-09 | E111: =VLOOKUP(D111,K$4:M$90,2) -> 1 | F111: =VLOOKUP(D111,K$4:M$90,3) -> 4
D112: 2014-09-10 | E112: =VLOOKUP(D112,R$4:T$90,2) -> 0 | F112: =VLOOKUP(D112,R$4:T$90,3) -> 4
C113: 5 | D113: 2014-09-11 | E113: =VLOOKUP(D113,U$4:AC$90,2) -> 1 | F113: =VLOOKUP(D113,U$4:W$90,3) -> 5
C114: 6 | D114: 2014-09-12 | E114: =VLOOKUP(D114,AB$4:AD$90,2) -> 1 | F114: =VLOOKUP(D114,AB$4:AD$90,3) -> 6
D115: 2014-09-13 | E115: =VLOOKUP(D115,AI$4:AK$90,2) -> 0 | F115: =VLOOKUP(D115,AI$4:AK$90,3) -> 6
D116: 2014-09-14 | E116: =VLOOKUP(D116,AL$4:AN$90,2) -> 0 | F116: =VLOOKUP(D116,AL$4:AN$90,3) -> 6
C117: 7 | D117: 2014-09-15 | E117: =VLOOKUP(D117,D$4:F$90,2) -> 1 | F117: =VLOOKUP(D117,D$4:F$90,3) -> 7
C118: 8 | D118: 2014-09-16 | E118: =VLOOKUP(D118,K$4:M$90,2) -> 1 | F118: =VLOOKUP(D118,K$4:M$90,3) -> 8
D119: 2014-09-17 | E119: =VLOOKUP(D119,R$4:T$90,2) -> 0 | F119: =VLOOKUP(D119,R$4:T$90,3) -> 8
C120: 9 | D120: 2014-09-18 | E120: =VLOOKUP(D120,U$4:AC$90,2) -> 1 | F120: =VLOOKUP(D120,U$4:W$90,3) -> 9
C121: 10 | D121: 2014-09-19 | E121: =VLOOKUP(D121,AB$4:AD$90,2) -> 1 | F121: =VLOOKUP(D121,AB$4:AD$90,3) -> 10
D122: 2014-09-20 | E122: =VLOOKUP(D122,AI$4:AK$90,2) -> 0 | F122: =VLOOKUP(D122,AI$4:AK$90,3) -> 10
D123: 2014-09-21 | E123: =VLOOKUP(D123,AL$4:AN$90,2) -> 0 | F123: =VLOOKUP(D123,AL$4:AN$90,3) -> 10
C124: 11 | D124: 2014-09-22 | E124: =VLOOKUP(D124,D$4:F$90,2) -> 1 | F124: =VLOOKUP(D124,D$4:F$90,3) -> 11
C125: 12 | D125: 2014-09-23 | E125: =VLOOKUP(D125,K$4:M$90,2) -> 1 | F125: =VLOOKUP(D125,K$4:M$90,3) -> 12
D126: 2014-09-24 | E126: =VLOOKUP(D126,R$4:T$90,2) -> 0 | F126: =VLOOKUP(D126,R$4:T$90,3) -> 12
C127: 13 | D127: 2014-09-25 | E127: =VLOOKUP(D127,U$4:AC$90,2) -> 1 | F127: =VLOOKUP(D127,U$4:W$90,3) -> 13
C128: 14 | D128: 2014-09-26 | E128: =VLOOKUP(D128,AB$4:AD$90,2) -> 1 | F128: =VLOOKUP(D128,AB$4:AD$90,3) -> 14
D129: 2014-09-27 | E129: =VLOOKUP(D129,AI$4:AK$90,2) -> 0 | F129: =VLOOKUP(D129,AI$4:AK$90,3) -> 14
D130: 2014-09-28 | E130: =VLOOKUP(D130,AL$4:AN$90,2) -> 0 | F130: =VLOOKUP(D130,AL$4:AN$90,3) -> 14
C131: 15 | D131: 2014-09-29 | E131: =VLOOKUP(D131,D$4:F$90,2) -> 1 | F131: =VLOOKUP(D131,D$4:F$90,3) -> 15
C132: 16 | D132: 2014-09-30 | E132: =VLOOKUP(D132,K$4:M$90,2) -> 1 | F132: =VLOOKUP(D132,K$4:M$90,3) -> 16
D133: 2014-10-01 | E133: =VLOOKUP(D133,R$4:T$90,2) -> 0 | F133: =VLOOKUP(D133,R$4:T$90,3) -> 16
C134: 17 | D134: 2014-10-02 | E134: =VLOOKUP(D134,U$4:AC$90,2) -> 1 | F134: =VLOOKUP(D134,U$4:W$90,3) -> 17
C135: 18 | D135: 2014-10-03 | E135: =VLOOKUP(D135,AB$4:AD$90,2) -> 1 | F135: =VLOOKUP(D135,AB$4:AD$90,3) -> 18
D136: 2014-10-04 | E136: =VLOOKUP(D136,AI$4:AK$90,2) -> 0 | F136: =VLOOKUP(D136,AI$4:AK$90,3) -> 18
D137: 2014-10-05 | E137: =VLOOKUP(D137,AL$4:AN$90,2) -> 0 | F137: =VLOOKUP(D137,AL$4:AN$90,3) -> 18
C138: 19 | D138: 2014-10-06 | E138: =VLOOKUP(D138,D$4:F$90,2) -> 1 | F138: =VLOOKUP(D138,D$4:F$90,3) -> 19
C139: 20 | D139: 2014-10-07 | E139: =VLOOKUP(D139,K$4:M$90,2) -> 1 | F139: =VLOOKUP(D139,K$4:M$90,3) -> 20
D140: 2014-10-08 | E140: =VLOOKUP(D140,R$4:T$90,2) -> 0 | F140: =VLOOKUP(D140,R$4:T$90,3) -> 20
C141: 21 | D141: 2014-10-09 | E141: =VLOOKUP(D141,U$4:AC$90,2) -> 1 | F141: =VLOOKUP(D141,U$4:W$90,3) -> 21
C142: 22 | D142: 2014-10-10 | E142: =VLOOKUP(D142,AB$4:AD$90,2) -> 1 | F142: =VLOOKUP(D142,AB$4:AD$90,3) -> 22
D143: 2014-10-11 | E143: =VLOOKUP(D143,AI$4:AK$90,2) -> 0 | F143: =VLOOKUP(D143,AI$4:AK$90,3) -> 22
D144: 2014-10-12 | E144: =VLOOKUP(D144,AL$4:AN$90,2) -> 0 | F144: =VLOOKUP(D144,AL$4:AN$90,3) -> 22
C145: 23 | D145: 2014-10-13 | E145: =VLOOKUP(D145,D$4:F$90,2) -> 1 | F145: =VLOOKUP(D145,D$4:F$90,3) -> 23
C146: 24 | D146: 2014-10-14 | E146: =VLOOKUP(D146,K$4:M$90,2) -> 1 | F146: =VLOOKUP(D146,K$4:M$90,3) -> 24
D147: 2014-10-15 | E147: =VLOOKUP(D147,R$4:T$90,2) -> 0 | F147: =VLOOKUP(D147,R$4:T$90,3) -> 24
C148: 25 | D148: 2014-10-16 | E148: =VLOOKUP(D148,U$4:AC$90,2) -> 1 | F148: =VLOOKUP(D148,U$4:W$90,3) -> 25
C149: 26 | D149: 2014-10-17 | E149: =VLOOKUP(D149,AB$4:AD$90,2) -> 1 | F149: =VLOOKUP(D149,AB$4:AD$90,3) -> 26
D150: 2014-10-18 | E150: =VLOOKUP(D150,AI$4:AK$90,2) -> 0 | F150: =VLOOKUP(D150,AI$4:AK$90,3) -> 26
D151: 2014-10-19 | E151: =VLOOKUP(D151,AL$4:AN$90,2) -> 0 | F151: =VLOOKUP(D151,AL$4:AN$90,3) -> 26
D152: 2014-10-20 | E152: =VLOOKUP(D152,D$4:F$90,2) -> 0 | F152: =VLOOKUP(D152,D$4:F$90,3) -> 26
D153: 2014-10-21 | E153: =VLOOKUP(D153,K$4:M$90,2) -> 0 | F153: =VLOOKUP(D153,K$4:M$90,3) -> 26
D154: 2014-10-22 | E154: =VLOOKUP(D154,R$4:T$90,2) -> 0 | F154: =VLOOKUP(D154,R$4:T$90,3) -> 26
D155: 2014-10-23 | E155: =VLOOKUP(D155,U$4:AC$90,2) -> 0 | F155: =VLOOKUP(D155,U$4:W$90,3) -> 26
D156: 2014-10-24 | E156: =VLOOKUP(D156,AB$4:AD$90,2) -> 0 | F156: =VLOOKUP(D156,AB$4:AD$90,3) -> 26
D157: 2014-10-25 | E157: =VLOOKUP(D157,AI$4:AK$90,2) -> 0 | F157: =VLOOKUP(D157,AI$4:AK$90,3) -> 26
D158: 2014-10-26 | E158: =VLOOKUP(D158,AL$4:AN$90,2) -> 0 | F158: =VLOOKUP(D158,AL$4:AN$90,3) -> 26
D159: 2014-10-27 | E159: =VLOOKUP(D159,D$4:F$90,2) -> 0 | F159: =VLOOKUP(D159,D$4:F$90,3) -> 26
D160: 2014-10-28 | E160: =VLOOKUP(D160,K$4:M$90,2) -> 0 | F160: =VLOOKUP(D160,K$4:M$90,3) -> 26
D161: 2014-10-29 | E161: =VLOOKUP(D161,R$4:T$90,2) -> 0 | F161: =VLOOKUP(D161,R$4:T$90,3) -> 26
C162: =IF(F162<>F161,F162,"") ->  | D162: =D161+1 -> 2014-10-30 | E162: =VLOOKUP(D162,U$4:AC$90,2) -> 0 | F162: =VLOOKUP(D162,U$4:W$90,3) -> 26
D163: 2014-10-31 | E163: =VLOOKUP(D163,AB$4:AD$90,2) -> 0 | F163: =VLOOKUP(D163,AB$4:AD$90,3) -> 26
D164: 2014-11-01 | E164: =VLOOKUP(D164,AI$4:AK$90,2) -> 0 | F164: =VLOOKUP(D164,AI$4:AK$90,3) -> 26
D165: 2014-11-02 | E165: =VLOOKUP(D165,AL$4:AN$90,2) -> 0 | F165: =VLOOKUP(D165,AL$4:AN$90,3) -> 26
C166: 27 | D166: 2014-11-03 | E166: =VLOOKUP(D166,D$4:F$90,2) -> 1 | F166: =VLOOKUP(D166,D$4:F$90,3) -> 27
C167: 28 | D167: 2014-11-04 | E167: =VLOOKUP(D167,K$4:M$90,2) -> 1 | F167: =VLOOKUP(D167,K$4:M$90,3) -> 28
D168: 2014-11-05 | E168: =VLOOKUP(D168,R$4:T$90,2) -> 0 | F168: =VLOOKUP(D168,R$4:T$90,3) -> 28
C169: 29 | D169: 2014-11-06 | E169: =VLOOKUP(D169,U$4:AC$90,2) -> 1 | F169: =VLOOKUP(D169,U$4:W$90,3) -> 29
C170: 30 | D170: 2014-11-07 | E170: =VLOOKUP(D170,AB$4:AD$90,2) -> 1 | F170: =VLOOKUP(D170,AB$4:AD$90,3) -> 30
D171: 2014-11-08 | E171: =VLOOKUP(D171,AI$4:AK$90,2) -> 0 | F171: =VLOOKUP(D171,AI$4:AK$90,3) -> 30
D172: 2014-11-09 | E172: =VLOOKUP(D172,AL$4:AN$90,2) -> 0 | F172: =VLOOKUP(D172,AL$4:AN$90,3) -> 30
D173: 2014-11-10 | E173: =VLOOKUP(D173,D$4:F$90,2) -> 0 | F173: =VLOOKUP(D173,D$4:F$90,3) -> 30
C174: 31 | D174: 2014-11-11 | E174: =VLOOKUP(D174,K$4:M$90,2) -> 1 | F174: =VLOOKUP(D174,K$4:M$90,3) -> 31
D175: 2014-11-12 | E175: =VLOOKUP(D175,R$4:T$90,2) -> 0 | F175: =VLOOKUP(D175,R$4:T$90,3) -> 31
C176: 32 | D176: 2014-11-13 | E176: =VLOOKUP(D176,U$4:AC$90,2) -> 1 | F176: =VLOOKUP(D176,U$4:W$90,3) -> 32
C177: 33 | D177: 2014-11-14 | E177: =VLOOKUP(D177,AB$4:AD$90,2) -> 1 | F177: =VLOOKUP(D177,AB$4:AD$90,3) -> 33
D178: 2014-11-15 | E178: =VLOOKUP(D178,AI$4:AK$90,2) -> 0 | F178: =VLOOKUP(D178,AI$4:AK$90,3) -> 33
D179: 2014-11-16 | E179: =VLOOKUP(D179,AL$4:AN$90,2) -> 0 | F179: =VLOOKUP(D179,AL$4:AN$90,3) -> 33
C180: 34 | D180: 2014-11-17 | E180: =VLOOKUP(D180,D$4:F$90,2) -> 1 | F180: =VLOOKUP(D180,D$4:F$90,3) -> 34
C181: 35 | D181: 2014-11-18 | E181: =VLOOKUP(D181,K$4:M$90,2) -> 1 | F181: =VLOOKUP(D181,K$4:M$90,3) -> 35
D182: 2014-11-19 | E182: =VLOOKUP(D182,R$4:T$90,2) -> 0 | F182: =VLOOKUP(D182,R$4:T$90,3) -> 35
C183: 36 | D183: 2014-11-20 | E183: =VLOOKUP(D183,U$4:AC$90,2) -> 1 | F183: =VLOOKUP(D183,U$4:W$90,3) -> 36
C184: 37 | D184: 2014-11-21 | E184: =VLOOKUP(D184,AB$4:AD$90,2) -> 1 | F184: =VLOOKUP(D184,AB$4:AD$90,3) -> 37
D185: 2014-11-22 | E185: =VLOOKUP(D185,AI$4:AK$90,2) -> 0 | F185: =VLOOKUP(D185,AI$4:AK$90,3) -> 37
D186: 2014-11-23 | E186: =VLOOKUP(D186,AL$4:AN$90,2) -> 0 | F186: =VLOOKUP(D186,AL$4:AN$90,3) -> 37
C187: 38 | D187: 2014-11-24 | E187: =VLOOKUP(D187,D$4:F$90,2) -> 1 | F187: =VLOOKUP(D187,D$4:F$90,3) -> 38
C188: 39 | D188: 2014-11-25 | E188: =VLOOKUP(D188,K$4:M$90,2) -> 1 | F188: =VLOOKUP(D188,K$4:M$90,3) -> 39
D189: 2014-11-26 | E189: =VLOOKUP(D189,R$4:T$90,2) -> 0 | F189: =VLOOKUP(D189,R$4:T$90,3) -> 39
C190: 40 | D190: 2014-11-27 | E190: =VLOOKUP(D190,U$4:AC$90,2) -> 1 | F190: =VLOOKUP(D190,U$4:W$90,3) -> 40
C191: 41 | D191: 2014-11-28 | E191: =VLOOKUP(D191,AB$4:AD$90,2) -> 1 | F191: =VLOOKUP(D191,AB$4:AD$90,3) -> 41
D192: 2014-11-29 | E192: =VLOOKUP(D192,AI$4:AK$90,2) -> 0 | F192: =VLOOKUP(D192,AI$4:AK$90,3) -> 41
D193: 2014-11-30 | E193: =VLOOKUP(D193,AL$4:AN$90,2) -> 0 | F193: =VLOOKUP(D193,AL$4:AN$90,3) -> 41
C194: 42 | D194: 2014-12-01 | E194: =VLOOKUP(D194,D$4:F$90,2) -> 1 | F194: =VLOOKUP(D194,D$4:F$90,3) -> 42
C195: 43 | D195: 2014-12-02 | E195: =VLOOKUP(D195,K$4:M$90,2) -> 1 | F195: =VLOOKUP(D195,K$4:M$90,3) -> 43
D196: 2014-12-03 | E196: =VLOOKUP(D196,R$4:T$90,2) -> 0 | F196: =VLOOKUP(D196,R$4:T$90,3) -> 43
C197: 44 | D197: 2014-12-04 | E197: =VLOOKUP(D197,U$4:AC$90,2) -> 1 | F197: =VLOOKUP(D197,U$4:W$90,3) -> 44
C198: 45 | D198: 2014-12-05 | E198: =VLOOKUP(D198,AB$4:AD$90,2) -> 1 | F198: =VLOOKUP(D198,AB$4:AD$90,3) -> 45
D199: 2014-12-06 | E199: =VLOOKUP(D199,AI$4:AK$90,2) -> 0 | F199: =VLOOKUP(D199,AI$4:AK$90,3) -> 45
D200: 2014-12-07 | E200: =VLOOKUP(D200,AL$4:AN$90,2) -> 0 | F200: =VLOOKUP(D200,AL$4:AN$90,3) -> 45
C201: 46 | D201: 2014-12-08 | E201: =VLOOKUP(D201,D$4:F$90,2) -> 1 | F201: =VLOOKUP(D201,D$4:F$90,3) -> 46
C202: 47 | D202: 2014-12-09 | E202: =VLOOKUP(D202,K$4:M$90,2) -> 1 | F202: =VLOOKUP(D202,K$4:M$90,3) -> 47
D203: 2014-12-10 | E203: =VLOOKUP(D203,R$4:T$90,2) -> 0 | F203: =VLOOKUP(D203,R$4:T$90,3) -> 47
... 227 more rows

Sheet Variables
E1: Récapitulatif des variables | T1: CP | U1: CE1 | V1: CE2 | W1: CM1 | X1: CM2
E2: semaine: | F2: =Devoirs!E15 -> 32
E3: Classe: | F3: CM2 | I3: Année: | J3: 2014 | K3: 2015
E4: Orthographe
E5: Nombre de mots par jour: | G5: 7 | J5: Numéro du premier mot de l'année: | K5: 1460
D7: Écrire **colonne** pour insérer le numéro de colonne et **page** pour insérer le numéro de page | F7: Revois l'orthographe de tous les mots de la colonne **colonne** de la page **page**. Écris dans ton carnet de mots, sans erreur, les mots qui suivent. Apprends à les écrire sans erreur. Recherche le(s) sens des mots que tu ne connais pas. Crée une phrase avec chacun de ces nouveaux mots.
A9: =D9 ->  | B9: =IF(C9=TRUE,D10,"") ->  | C9: =IF(VLOOKUP(F$2,Calendrier!$B$38:$AN$83,4)=1,TRUE,FALSE) -> FALSE | D9: =IF(C9=TRUE,VLOOKUP(F$2,Calendrier!$B$38:$AN$83,3),"") ->  | E9: Consigne: | F9: =Orthographe!BF15 -> Revois l'orthographe de tous les mots de la colonne de la page . Écris dans ton carnet de mots, sans erreur, les mots qui suivent. Apprends à les écrire sans erreur. Recherche le(s) sens des mots que tu ne connais pas. Crée une phrase avec chacun de ces nouveaux mots.
D10: =IF(C9=TRUE,VLOOKUP(D9,Calendrier!D$96:F$430,3),"") ->  | E10: Mots: | F10: =IF(C9=TRUE,VLOOKUP(D9,Orthographe!D$4:Q$153,2),"") ->  | O10: =IF(C17=TRUE,VLOOKUP(D9,Orthographe!D$4:Q$153,3),"") -> 
E11: Colonne | F11: =IF(C9=TRUE,IF(VLOOKUP(D9,Orthographe!D$4:Q$153,14)=INT(VLOOKUP(D9,Orthographe!D$4:Q$153,14)),1,2),"") ->  | O11: =IF(C10=TRUE,VLOOKUP(D10,Orthographe!D$4:Q$153,3),"") -> 
E12: Page à revoir: | F12: =IF(C9=TRUE,INT(VLOOKUP(D9,Orthographe!D$4:Q$153,14)),"") ->  | O12: =IF(C11=TRUE,VLOOKUP(D11,Orthographe!D$4:Q$153,3),"") -> 
A13: =D13 -> 2015-06-02 | B13: =IF(C13=TRUE,D14,"") -> 112 | C13: =IF(VLOOKUP(F$2,Calendrier!$B$38:$AN$83,11)=1,TRUE,FALSE) -> TRUE | D13: =IF(C13=TRUE,VLOOKUP(F$2,Calendrier!$B$38:$AN$83,10),"") -> 2015-06-02 | E13: Consigne: | F13: =Orthographe!BF16 -> Revois l'orthographe de tous les mots de la colonne 2 de la page 9. Écris dans ton carnet de mots, sans erreur, les mots qui suivent. Apprends à les écrire sans erreur. Recherche le(s) sens des mots que tu ne connais pas. Crée une phrase avec chacun de ces nouveaux mots. | O13: =IF(C12=TRUE,VLOOKUP(D12,Orthographe!D$4:Q$153,3),"") -> 
D14: =IF(C13=TRUE,VLOOKUP(D13,Calendrier!D$96:F$430,3),"") -> 112 | E14: Mots: | F14: =IF(C13=TRUE,VLOOKUP(D13,Orthographe!D$4:Q$153,2),"") -> 1854:quitter 131:auprès 1709:plutôt 2117:silencieux; silencieuse; silencieux; silencieuses 825:une erreur; des erreurs 500:un cordonnier; des cordonniers 1778:presser | O14: =IF(C13=TRUE,VLOOKUP(D13,Orthographe!D$4:Q$153,3),"") -> ; la chair; les chairs; celui-là; celle-là; ceux-là; celles-là; cela.
E15: Colonne | F15: =IF(C13=TRUE,IF(VLOOKUP(D13,Orthographe!D$4:Q$153,14)=INT(VLOOKUP(D13,Orthographe!D$4:Q$153,14)),1,2),"") -> 2 | O15: =IF(C14=TRUE,VLOOKUP(D14,Orthographe!D$4:Q$153,3),"") -> 
E16: Page à revoir: | F16: =IF(C13=TRUE,INT(VLOOKUP(D13,Orthographe!D$4:Q$153,14)),"") -> 9 | O16: =IF(C15=TRUE,VLOOKUP(D15,Orthographe!D$4:Q$153,3),"") -> 
A17: =D17 -> 2015-06-04 | B17: =IF(C17=TRUE,D18,"") -> 113 | C17: =IF(VLOOKUP(F$2,Calendrier!$B$38:$AN$83,21)=1,TRUE,FALSE) -> TRUE | D17: =IF(C17=TRUE,VLOOKUP(F$2,Calendrier!$B$38:$AN$83,20),"") -> 2015-06-04 | E17: Consigne: | F17: =Orthographe!BF17 -> Revois l'orthographe de tous les mots de la colonne 1 de la page 10. Écris dans ton carnet de mots, sans erreur, les mots qui suivent. Apprends à les écrire sans erreur. Recherche le(s) sens des mots que tu ne connais pas. Crée une phrase avec chacun de ces nouveaux mots. | O17: =IF(C16=TRUE,VLOOKUP(D16,Orthographe!D$4:Q$153,3),"") -> 
D18: =IF(C17=TRUE,VLOOKUP(D17,Calendrier!D$96:F$430,3),"") -> 113 | E18: Mots: | F18: =IF(C17=TRUE,VLOOKUP(D17,Orthographe!D$4:Q$153,2),"") -> 1117:ignorer 767:encadrer 1845:quatorze 670:une disparition; des disparitions 1111:une humidité; des humidités 76:ancien; ancienne; anciens; anciennes 2303:trembler | O18: =IF(C17=TRUE,VLOOKUP(D17,Orthographe!D$4:Q$153,3),"") -> ; charmer; un changement; des changements; chasser.
E19: Colonne | F19: =IF(C17=TRUE,IF(VLOOKUP(D17,Orthographe!D$4:Q$153,14)=INT(VLOOKUP(D17,Orthographe!D$4:Q$153,14)),1,2),"") -> 1 | O19: =IF(C18=TRUE,VLOOKUP(D18,Orthographe!D$4:Q$153,3),"") -> 
E20: Page à revoir: | F20: =IF(C17=TRUE,INT(VLOOKUP(D17,Orthographe!D$4:Q$153,14)),"") -> 10 | O20: =IF(C19=TRUE,VLOOKUP(D19,Orthographe!D$4:Q$153,3),"") -> 
A21: =D21 -> 2015-06-05 | B21: =IF(C21=TRUE,D22,"") -> 114 | C21: =IF(VLOOKUP(F$2,Calendrier!$B$38:$AN$83,28)=1,TRUE,FALSE) -> TRUE | D21: =IF(C21=TRUE,VLOOKUP(F$2,Calendrier!$B$38:$AN$83,27),"") -> 2015-06-05 | E21: Consigne: | F21: =Orthographe!BF18 -> Revois l'orthographe de tous les mots de la colonne 2 de la page 10. Écris dans ton carnet de mots, sans erreur, les mots qui suivent. Apprends à les écrire sans erreur. Recherche le(s) sens des mots que tu ne connais pas. Crée une phrase avec chacun de ces nouveaux mots. | O21: =IF(C20=TRUE,VLOOKUP(D20,Orthographe!D$4:Q$153,3),"") -> 
D22: =IF(C21=TRUE,VLOOKUP(D21,Calendrier!D$96:F$430,3),"") -> 114 | E22: Mots: | F22: =IF(C21=TRUE,VLOOKUP(D21,Orthographe!D$4:Q$153,2),"") -> 1959:résister 1180:une invention; des inventions 1382:la mélancolie; les mélancolies 319:une carrière; des carrières 1811:une proie; des proies 1328:la majesté; les majestés 431:un coffret; des coffrets | O22: =IF(C21=TRUE,VLOOKUP(D21,Orthographe!D$4:Q$153,3),"") -> ; la chaussée; les chaussées; un cheval; des chevaux; un chiffre; des chiffres.
E23: Colonne | F23: =IF(C21=TRUE,IF(VLOOKUP(D21,Orthographe!D$4:Q$153,14)=INT(VLOOKUP(D21,Orthographe!D$4:Q$153,14)),1,2),"") -> 2
E24: Page à revoir: | F24: =IF(C21=TRUE,INT(VLOOKUP(D21,Orthographe!D$4:Q$153,14)),"") -> 10
E27: Vocabulaire
A28: Lundi | C28: =IF(VLOOKUP(F$2,Calendrier!$B$38:$AN$83,4)=1,TRUE,FALSE) -> FALSE | D28: =IF(C28=TRUE,VLOOKUP(F$2,Calendrier!$B$38:$AN$83,3),"") ->  | E28: Consigne:
D30: =VLOOKUP(D28,Calendrier!D$96:F$430,3) -> 
A32: Mardi | C32: =IF(VLOOKUP(F$2,Calendrier!$B$38:$AN$83,7)=1,TRUE,FALSE) -> FALSE | D32: =IF(C32=TRUE,VLOOKUP(F$2,Calendrier!$B$38:$AN$83,6),"") ->  | E32: Consigne:
D34: =VLOOKUP(D32,Calendrier!D$96:F$430,3) -> 
A36: Jeudi | C36: =IF(VLOOKUP(F$2,Calendrier!$B$38:$AN$83,13)=1,TRUE,FALSE) -> FALSE | D36: =IF(C36=TRUE,VLOOKUP(F$2,Calendrier!$B$38:$AN$83,12),"") ->  | E36: Consigne:
D38: =VLOOKUP(D36,Calendrier!D$96:F$430,3) -> 
A40: Vendredi | C40: =IF(VLOOKUP(F$2,Calendrier!$B$38:$AN$83,16)=1,TRUE,FALSE) -> FALSE | D40: =IF(C40=TRUE,VLOOKUP(F$2,Calendrier!$B$38:$AN$83,15),"") ->  | E40: Consigne:
D42: =VLOOKUP(D40,Calendrier!D$96:F$430,3) -> 
E46: Grammaire (construction)
A47: =D47 ->  | B47: =IF(C47=TRUE,D48,"") ->  | C47: =IF(VLOOKUP(F$2,Calendrier!$B$38:$AN$83,4)=1,TRUE,FALSE) -> FALSE | D47: =IF(C47=TRUE,VLOOKUP(F$2,Calendrier!$B$38:$AN$83,3),"") ->  | E47: Consigne: | F47: En t'aidant du carnet de mots, construis une phrase ayant la forme grammaticale suivante:
D48: =IF(C47=TRUE,VLOOKUP(D47,Calendrier!D$96:F$430,3),"") -> 
F49: =IF(C47=TRUE,VLOOKUP(D48,Grammaire!A$3:F$152,HLOOKUP(F$3,Grammaire!B$1:F$2,2,TRUE)+1),"") -> 
A50: 2010-11-23 | B50: =IF(C50=TRUE,D51,"") -> 112 | C50: TRUE | D50: =IF(C50=TRUE,VLOOKUP(F$2,Calendrier!$B$38:$AN$83,10),"") -> 2015-06-02 | E50: Consigne: | F50: En t'aidant du carnet de mots, construis une phrase ayant la forme grammaticale suivante:
D51: =IF(C50=TRUE,VLOOKUP(D50,Calendrier!D$96:F$430,3),"") -> 112
F52: =IF(C50=TRUE,VLOOKUP(D51,Grammaire!A$3:F$152,HLOOKUP(F$3,Grammaire!B$1:F$2,2,TRUE)+1),"") -> GS masculin singulier + V présent+ COD pluriel
A53: 2010-11-25 | B53: =IF(C53=TRUE,D54,"") -> 113 | C53: TRUE | D53: =IF(C53=TRUE,VLOOKUP(F$2,Calendrier!$B$38:$AN$83,20),"") -> 2015-06-04 | E53: Consigne: | F53: En t'aidant du carnet de mots, construis une phrase ayant la forme grammaticale suivante:
D54: =IF(C53=TRUE,VLOOKUP(D53,Calendrier!D$96:F$430,3),"") -> 113
F55: =IF(C53=TRUE,VLOOKUP(D54,Grammaire!A$3:F$152,HLOOKUP(F$3,Grammaire!B$1:F$2,2,TRUE)+1),"") -> GS masculin pluriel + V présent+ COD singulier
A56: 2010-11-26 | B56: =IF(C56=TRUE,D57,"") -> 114 | C56: TRUE | D56: =IF(C56=TRUE,VLOOKUP(F$2,Calendrier!$B$38:$AN$83,27),"") -> 2015-06-05 | E56: Consigne: | F56: En t'aidant du carnet de mots, construis une phrase ayant la forme grammaticale suivante:
D57: =IF(C56=TRUE,VLOOKUP(D56,Calendrier!D$96:F$430,3),"") -> 114
F58: =IF(C56=TRUE,VLOOKUP(D57,Grammaire!A$3:F$152,HLOOKUP(F$3,Grammaire!B$1:F$2,2,TRUE)+1),"") -> GS féminin singulier + V présent+ COD pluriel
E61: Grammaire (transposition)
F63: Transpose la phrase suivante
A65: =D65 ->  | C65: =IF(VLOOKUP(F$2,Calendrier!$B$38:$AN$83,4)=1,TRUE,FALSE) -> FALSE | D65: =IF(C65=TRUE,VLOOKUP(F$2,Calendrier!$B$38:$AN$83,3),"") ->  | E65: Consigne: | F65: =HLOOKUP($F$3,Transposition!$C$1:$J$6,3) -> 
D66: =IF(C65=TRUE,VLOOKUP(D65,Calendrier!D$96:F$430,3),"") -> 
F67: =HLOOKUP(CONCATENATE($F$3,"*"),Transposition!$C$1:$J$6,3) -> 
F68: =CONCATENATE($F$63,F67,"'' : ",F65) -> 
A69: =D69 -> 2015-06-02 | B69: =IF(C69=TRUE,D70,"") -> 112 | C69: =IF(VLOOKUP(F$2,Calendrier!$B$38:$AN$83,11)=1,TRUE,FALSE) -> TRUE | D69: =IF(C69=TRUE,VLOOKUP(F$2,Calendrier!$B$38:$AN$83,10),"") -> 2015-06-02 | E69: Consigne: | F69: =HLOOKUP($F$3,Transposition!$C$1:$J$6,4) -> Il regardait le manège de la louve qui passait et repassait sa langue sur les jeunes.
D70: =IF(C69=TRUE,VLOOKUP(D69,Calendrier!D$96:F$430,3),"") -> 112
F71: =HLOOKUP(CONCATENATE($F$3,"*"),Transposition!$C$1:$J$6,4) -> Présent (Pélot et son frère)
F72: =CONCATENATE($F$63,F71,"'' : ",F69) -> Transpose la phrase suivante Présent (Pélot et son frère)'' : Il regardait le manège de la louve qui passait et repassait sa langue sur les jeunes.
A73: =D73 -> 2015-06-04 | B73: =IF(C73=TRUE,D74,"") -> 113 | C73: =IF(VLOOKUP(F$2,Calendrier!$B$38:$AN$83,21)=1,TRUE,FALSE) -> TRUE | D73: =IF(C73=TRUE,VLOOKUP(F$2,Calendrier!$B$38:$AN$83,20),"") -> 2015-06-04 | E73: Consigne: | F73: =HLOOKUP($F$3,Transposition!$C$1:$J$6,5) -> Elle prit contre elle celui qu’il avait sauvé.
D74: =IF(C73=TRUE,VLOOKUP(D73,Calendrier!D$96:F$430,3),"") -> 113
F75: =HLOOKUP(CONCATENATE($F$3,"*"),Transposition!$C$1:$J$6,5) -> Présent (Pélot et son frère)
F76: =CONCATENATE($F$63,F75,"'' : ",F73) -> Transpose la phrase suivante Présent (Pélot et son frère)'' : Elle prit contre elle celui qu’il avait sauvé.
A77: =D77 -> 2015-06-05 | B77: =IF(C77=TRUE,D78,"") -> 114 | C77: =IF(VLOOKUP(F$2,Calendrier!$B$38:$AN$83,28)=1,TRUE,FALSE) -> TRUE | D77: =IF(C77=TRUE,VLOOKUP(F$2,Calendrier!$B$38:$AN$83,27),"") -> 2015-06-05 | E77: Consigne: | F77: =HLOOKUP($F$3,Transposition!$C$1:$J$6,6) -> L’inconnu n’était pas une menace, bien au contraire.
D78: =IF(C77=TRUE,VLOOKUP(D77,Calendrier!D$96:F$430,3),"") -> 114
F79: =HLOOKUP(CONCATENATE($F$3,"*"),Transposition!$C$1:$J$6,6) -> Présent (Pélot et son frère)
F80: =CONCATENATE($F$63,F79,"'' : ",F77) -> Transpose la phrase suivante Présent (Pélot et son frère)'' : L’inconnu n’était pas une menace, bien au contraire.
E82: Conjugaison
A84: Groupe | E84: Termin. | F84: utilisation
A85: 1 | E85: er | F85: oui | H85: donner | I85: voler | J85: observer | K85: attraper | L85: marcher | M85: entrer | N85: dessiner | O85: frapper | P85: ramasser | Q85: traverser | R85: roucouler | S85: se dérouler | T85: raconter | U85: regarder | V85: transporter | W85: chercher | X85: parler | Y85: abaisser | Z85: abandonner | AA85: accorder | AB85: accoucher | AC85: agiter | AD85: approcher | AE85: bavarder | AF85: beurrer | AG85: collectionner | AH85: coulisser | AI85: danser | AJ85: emmitoufler | AK85: flatter | AL85: garder | AM85: hurler | AN85: imiter | AO85: jardiner | AP85: klaxonner | AQ85: laver | AR85: maîtriser | AS85: nouer | AT85: observer | AU85: pédaler | AV85: questionner | AW85: réaliser | AX85: souder | AY85: transporter | AZ85: utiliser | BA85: vérifier | BB85: zozoter
A86: 1 | E86: ier | F86: oui | H86: crier | I86: oublier | J86: recopier | K86: colorier | L86: clarifier | M86: associer | N86: balbutier | O86: bénéficier | P86: certifier | Q86: clarifier | R86: concilier | S86: congédier | T86: contrarier | U86: convier | V86: défier | W86: dédier | X86: dissocier | Y86: diversifier | Z86: édifier | AA86: étudier | AB86: fortifier | AC86: fructifier | AD86: gracier | AE86: humidifier | AF86: identifier | AG86: incendier | AH86: initier | AI86: lier | AJ86: lubrifier | AK86: mendier | AL86: modifier | AM86: multiplier | AN86: oublier | AO86: orthographier | AP86: parier | AQ86: pétrifier | AR86: plagier | AS86: plastifier | AT86: plannifier | AU86: photocopier | AV86: rapatrier
A87: 1 | E87: uer | F87: oui | H87: tuer | I87: continuer | J87: diminuer | K87: distribuer | L87: éternuer | M87: remuer | N87: accentuer | O87: atténuer | S87: destituer | T87: dévaluer | U87: effectuer | V87: embuer | W87: exténuer | X87: instituer | Y87: influer | Z87: suer | AA87: obstruer | AB87: remuer
A88: 1 | E88: ouer | F88: oui | H88: jouer | I88: oublier | J88: louer | K88: secouer | L88: avouer | M88: dénouer | N88: nouer | O88: secouer
A89: 1 | E89: yer | F89: oui | H89: envoyer | I89: appuyer | J89: payer | K89: ennuyer | L89: tournoyer | M89: essuyer | N89: essayer | O89: balayer | P89: débrayer | Q89: délayer | R89: effrayer | S89: égayer | T89: embrayer | U89: pagayer
A90: 1 | E90: eler | F90: oui | H90: appeler | I90: épeler | J90: chanceler | K90: renouveler | L90: atteler | M90: dételer | N90: ruisseler | O90: déficeler
A91: 1 | E91: eter | F91: oui | H91: rejeter | I91: projeter | J91: cacheter | K91: décacheter | L91: caqueter | M91: cliqueter | N91: déchiqueter | O91: dépaqueter | P91: empaqueter | Q91: épousseter | R91: jeter | S91: voleter
A92: 1 | E92: cer | F92: oui | H92: placer | I92: remplacer | J92: tracer | K92: effacer | L92: déplacer | M92: évincer | N92: percer | O92: bercer | P92: acquiescer | Q92: agacer | R92: avancer | S92: bercer | T92: coincer | U92: commencer | V92: concurrencer | W92: dédicacer | X92: défoncer | Y92: devancer | Z92: distancer | AA92: émincer | AB92: enlacer | AC92: espacer | AD92: exaucer | AE92: forcer | AF92: froncer | AG92: glacer | AH92: grincer | AI92: influencer | AJ92: lacer | AK92: menacer | AL92: manigancer | AM92: pincer | AN92: percer | AO92: renoncer | AP92: tracer | AQ92: rincer | AR92: saucer | AS92: transpercer
A93: 1 | E93: ger | F93: oui | H93: manger | I93: voltiger | J93: nager | K93: plonger | L93: échanger | M93: interroger | N93: décharger | O93: arranger | P93: changer
A94: 1 | E94: guer | F94: oui | H94: distinguer | I94: naviguer | J94: fatiguer | K94: blaguer | L94: conjuguer | M94: dialoguer | N94: divulguer | O94: élaguer | P94: endiguer | Q94: épiloguer | R94: fuguer | S94: haranguer | T94: intriguer | U94: larguer | V94: narguer | W94: promulguer
A95: 1 | E95: quer | F95: oui | H95: indiquer | I95: attaquer | J95: croquer | K95: fabriquer
A96: 1 | E96: iller | F96: oui | H96: travailler | I96: conseiller | J96: s'habiller | K96: tailler | L96: fouiller
A97: 1 | E97: gner | F97: oui | H97: gagner | I97: saigner | J97: enseigner | K97: signer | L97: se cogner
A98: 2 | E98: ir | F98: oui | H98: abolir | I98: aboutir | J98: accroupir | K98: adoucir | L98: affaiblir | M98: affranchir | N98: agir | O98: agrandir | P98: alourdir | Q98: amincir | R98: amortir | S98: anéantir | T98: anoblir | U98: apauvrir | V98: aplatir | W98: applaudir | X98: approfondir | Y98: arrondir | Z98: assagir | AA98: assainir | AB98: assombrir | AC98: assouplir | AD98: atterrir | AE98: avertir | AF98: barrir | AG98: bâtir | AH98: blanchir | AI98: blondir | AJ98: brandir | AK98: choisir | AL98: convertir | AM98: croupir | AN98: dégrossir | AO98: déguerpir | AP98: divertir | AQ98: élargir | AR98: finir | AS98: fléchir | AT98: frémir | AU98: glapir | AV98: gravir | AW98: jaillir | AX98: jaunir | AY98: obscurcir | AZ98: remplir | BA98: retentir | BB98: rougir | BC98: rugir | BD98: saisir | BE98: s'assoupir | BF98: se blottir
A99: 3 | E99: être | F99: non | H99: être
A100: 3 | E100: avoir | F100: non | H100: avoir
A101: 3 | E101: aller | F101: oui | H101: aller
A102: 3 | E102: vouloir | F102: oui | H102: vouloir
A103: 3 | E103: faire | F103: oui | H103: faire | I103: défaire | J103: refaire | K103: satisfaire
A104: 3 | E104: dire | F104: oui | H104: dire | I104: redire | J104: médire
A105: 3 | E105: voir | F105: oui | H105: voir | I105: revoir | J105: entrevoir
A106: 3 | E106: venir | F106: oui | H106: tenir | I106: abstenir | J106: advenir | K106: contenir | L106: convenir | M106: détenir | N106: devenir | O106: entretenir | P106: intervenir | Q106: maintenir | R106: obtenir | S106: parvenir | T106: prévenir | U106: redevenir | V106: retenir | W106: revenir | X106: soutenir | Y106: souvenir | Z106: survenir | AA106: venir
A107: 3 | E107: pouvoir | F107: oui | H107: pouvoir
A108: 3 | E108: vouloir | F108: oui | H108: vouloir
A109: 3 | E109: partir | F109: oui | H109: partir | I109: repartir
F111: Présent de l'indicatif | G111: oui
F112: futur simple de l'indicatif | G112: oui
F113: Imparfait de l'indicatif | G113: oui
F114: Passé composé de l'indicatif | G114: oui
F115: Passé simple de l'indicatif | G115: oui
F116: Futur antérieur de l'indicatif | G116: non
F117: Plus que parfait de l'indicatif | G117: non | I117: consigne: | J117: Conjugue à toutes les personnes, le verbe: ''***verbe***'', ***temps***.
F118: Subjonctif présent | G118: non
F119: Conditionnel présent | G119: non
F120: Impératif | G120: non
A123: =D123 ->  | B123: =IF(C123=TRUE,D124,"") ->  | C123: =IF(VLOOKUP(F$2,Calendrier!$B$38:$AN$83,4)=1,TRUE,FALSE) -> FALSE | D123: =IF(C123=TRUE,VLOOKUP(F$2,Calendrier!$B$38:$AN$83,3),"") ->  | E123: Consigne: | F123: =IF(C123=TRUE,Conjugaison!I45,"") -> 
D124: =IF(C123=TRUE,VLOOKUP(D123,Calendrier!D$96:F$430,3),"") -> 
E126: Verbe: | F126: =IF(C123=TRUE,Conjugaison!J1,"") -> 
A127: =D127 -> 2015-06-02 | B127: =IF(C127=TRUE,D128,"") -> 112 | C127: =IF(VLOOKUP(F$2,Calendrier!$B$38:$AN$83,11)=1,TRUE,FALSE) -> TRUE | D127: =IF(C127=TRUE,VLOOKUP(F$2,Calendrier!$B$38:$AN$83,10),"") -> 2015-06-02 | E127: Consigne: | F127: =IF(C127=TRUE,Conjugaison!K45,"") -> Conjugue à toutes les personnes, le verbe: ''conseiller'', au futur simple de l'indicatif.
D128: =IF(C127=TRUE,VLOOKUP(D127,Calendrier!D$96:F$430,3),"") -> 112
E130: Verbe: | F130: =IF(C127=TRUE,Conjugaison!M1,"") -> conseiller
A131: =D131 -> 2015-06-04 | B131: =IF(C131=TRUE,D132,"") -> 113 | C131: =IF(VLOOKUP(F$2,Calendrier!$B$38:$AN$83,21)=1,TRUE,FALSE) -> TRUE | D131: =IF(C131=TRUE,VLOOKUP(F$2,Calendrier!$B$38:$AN$83,20),"") -> 2015-06-04 | E131: Consigne: | F131: =IF(C131=TRUE,Conjugaison!M45,"") -> Conjugue à toutes les personnes, le verbe: ''pouvoir'', au passé simple de l'indicatif.
D132: =IF(C131=TRUE,VLOOKUP(D131,Calendrier!D$96:F$430,3),"") -> 113
E134: Verbe: | F134: =IF(C131=TRUE,Conjugaison!P1,"") -> pouvoir
A135: =D135 -> 2015-06-05 | B135: =IF(C135=TRUE,D136,"") -> 114 | C135: =IF(VLOOKUP(F$2,Calendrier!$B$38:$AN$83,28)=1,TRUE,FALSE) -> TRUE | D135: =IF(C135=TRUE,VLOOKUP(F$2,Calendrier!$B$38:$AN$83,27),"") -> 2015-06-05 | E135: Consigne: | F135: =IF(C135=TRUE,Conjugaison!O45,"") -> Conjugue à toutes les personnes, le verbe: ''repartir'', au passé composé de l'indicatif.
D136: =IF(C135=TRUE,VLOOKUP(D135,Calendrier!D$96:F$430,3),"") -> 114
E138: Verbe: | F138: =IF(C135=TRUE,Conjugaison!S1,"") -> repartir
E141: Numération
E142: Nombre mini: | F142: 100000 | I142: Nombre décimal | J142: oui
E143: Nombre maxi: | F143: 999999999999 | I143: Nombre de décimales | J143: 3
E144: Nombre de zéros | F144: 3 | I144: écriture décimale | J144: fractionnaire
A146: =D146 ->  | B146: =IF(C146=TRUE,D147,"") ->  | C146: =IF(VLOOKUP(F$2,Calendrier!$B$38:$AN$83,4)=1,TRUE,FALSE) -> FALSE | D146: =IF(C146=TRUE,VLOOKUP(F$2,Calendrier!$B$38:$AN$83,3),"") ->  | E146: Consigne: | F146: Écris en chiffres arabes le nombre suivant (n'oublie pas de mettre les espaces pour séparer les classes) puis écris les en utilisant les chiffres romains:
D147: =IF(C146=TRUE,VLOOKUP(D146,Calendrier!D$96:F$430,3),"") -> 
E149: Nombre: | F149: =IF(C146=TRUE,Numération!A28,"") ->  | O149: =Numération!B11 -> 816140000719
A150: =D150 -> 2015-06-02 | B150: =IF(C150=TRUE,D151,"") -> 112 | C150: =IF(VLOOKUP(F$2,Calendrier!$B$38:$AN$83,11)=1,TRUE,FALSE) -> TRUE | D150: =IF(C150=TRUE,VLOOKUP(F$2,Calendrier!$B$38:$AN$83,10),"") -> 2015-06-02 | E150: Consigne: | F150: Écris en chiffres arabes le nombre suivant (n'oublie pas de mettre les espaces pour séparer les classes) puis écris les en utilisant les chiffres romains:
D151: =IF(C150=TRUE,VLOOKUP(D150,Calendrier!D$96:F$430,3),"") -> 112
E153: Nombre: | F153: =IF(C150=TRUE,Numération!A30,"") -> sept cent vingt milliards quatre cent neuf millions trois cent trente mille et six cent seize millièmes | O153: =Numération!B15 -> 720409330000
A154: =D154 -> 2015-06-04 | B154: =IF(C154=TRUE,D155,"") -> 113 | C154: =IF(VLOOKUP(F$2,Calendrier!$B$38:$AN$83,21)=1,TRUE,FALSE) -> TRUE | D154: =IF(C154=TRUE,VLOOKUP(F$2,Calendrier!$B$38:$AN$83,20),"") -> 2015-06-04 | E154: Consigne: | F154: Écris en chiffres arabes le nombre suivant (n'oublie pas de mettre les espaces pour séparer les classes) puis écris les en utilisant les chiffres romains:
D155: =IF(C154=TRUE,VLOOKUP(D154,Calendrier!D$96:F$430,3),"") -> 113
E157: Nombre: | F157: =IF(C154=TRUE,Numération!A32,"") -> quatre-vingt-dix milliards sept cents millions treize mille six cent quatre-vingt-cinq et sept cent cinquante-sept millièmes | O157: =Numération!B19 -> 90700013685
A158: =D158 -> 2015-06-05 | B158: =IF(C158=TRUE,D159,"") -> 114 | C158: =IF(VLOOKUP(F$2,Calendrier!$B$38:$AN$83,28)=1,TRUE,FALSE) -> TRUE | D158: =IF(C158=TRUE,VLOOKUP(F$2,Calendrier!$B$38:$AN$83,27),"") -> 2015-06-05 | E158: Consigne: | F158: Écris en chiffres arabes le nombre suivant (n'oublie pas de mettre les espaces pour séparer les classes) puis écris les en utilisant les chiffres romains:
D159: =IF(C158=TRUE,VLOOKUP(D158,Calendrier!D$96:F$430,3),"") -> 114
E161: Nombre: | F161: =IF(C158=TRUE,Numération!A34,"") -> cinq cent quatre-vingt-dix milliards six cent dix-sept mille quarante-quatre et cent dix-sept millièmes | O161: =Numération!B23 -> 590000617044
E164: Opérations
F165: Additions | H165: Soustraction | J165: Multiplication | L165: Division
F166: Nombre 1 mini: | G166: 10000 | H166: Nombre 1 mini: | I166: 1000 | J166: quotient mini: | K166: 100 | L166: dividende mini: | M166: 10000
F167: Nombre 1 Maxi: | G167: 1000000 | H167: Nombre 1 Maxi: | I167: 1000000 | J167: quotient maxi: | K167: 1000 | L167: dividende maxi: | M167: 100000
F168: Nombre de décimales: | G168: 0 | H168: Nombre de décimales: | I168: 0 | J168: Nombre de décimales: | K168: 0 | L168: Nombre de décimales: | M168: 0
F169: Nombre 2 mini: | G169: 50000 | H169: Nombre 2 mini: | I169: 100000 | J169: multiplicateur mini: | K169: 33 | L169: diviseur mini: | M169: 3
F170: Nombre 2 Maxi: | G170: 500000 | H170: Nombre 2 Maxi: | I170: 10000000 | J170: multiplicateur maxi: | K170: 99 | L170: diviseur maxi: | M170: 9
F171: Nombre de décimales: | G171: 0 | H171: Nombre de décimales: | I171: 0 | J171: Nombre de décimales: | K171: 0 | L171: Nombre de décimales: | M171: 0
F172: troisième opérateur | G172: oui | L172: forme de réponse: | M172: division décimale
F173: Nombre 3 mini: | G173: 500 | I173: Addition | J173: Pose et effectue l'addition suivante:
F174: Nombre 3 Maxi: | G174: 10000 | I174: Soustraction | J174: Pose et effectue la soustraction suivante: Vérifie ton résultat en faisant l'addition correspondante:
F175: Nombre de décimales: | G175: 0 | I175: Multiplication | J175: Pose et effectue la multiplication suivante.
I176: Division | J176: Pose et effectue la division suivante.
A179: =D179 ->  | B179: =IF(C179=TRUE,D180,"") ->  | C179: =IF(VLOOKUP(F$2,Calendrier!$B$38:$AN$83,4)=1,TRUE,FALSE) -> FALSE | D179: =IF(C179=TRUE,VLOOKUP(F$2,Calendrier!$B$38:$AN$83,3),"") ->  | E179: Consigne: | F179: =VLOOKUP(F181,$I$173:$P$176,2,FALSE) -> Pose et effectue l'addition suivante:
D180: =IF(C179=TRUE,VLOOKUP(D179,Calendrier!D$96:F$430,3),"") -> 
E181: Opérateur: | F181: Addition | O181: =CONCATENATE("réponse ",F181) -> réponse Addition
E182: Opération: | F182: =IF(C179=TRUE,Opérations!P12,"") ->  | O182: =IF(C179=TRUE,Opérations!Q12,"") -> 
A183: =D183 -> 2015-06-02 | B183: =IF(C183=TRUE,D184,"") -> 112 | C183: =IF(VLOOKUP(F$2,Calendrier!$B$38:$AN$83,11)=1,TRUE,FALSE) -> TRUE | D183: =IF(C183=TRUE,VLOOKUP(F$2,Calendrier!$B$38:$AN$83,10),"") -> 2015-06-02 | E183: Consigne: | F183: =VLOOKUP(F185,$I$173:$P$176,2,FALSE) -> Pose et effectue la multiplication suivante.
D184: =IF(C183=TRUE,VLOOKUP(D183,Calendrier!D$96:F$430,3),"") -> 112
E185: Opérateur: | F185: Multiplication | O185: =CONCATENATE("réponse ",F185) -> réponse Multiplication
E186: Opération: | F186: =IF(C183=TRUE,Opérations!P13,"") -> 627x91 | O186: =IF(C183=TRUE,Opérations!Q13,"") -> 57057
A187: =D187 -> 2015-06-04 | B187: =IF(C187=TRUE,D188,"") -> 113 | C187: =IF(VLOOKUP(F$2,Calendrier!$B$38:$AN$83,21)=1,TRUE,FALSE) -> TRUE | D187: =IF(C187=TRUE,VLOOKUP(F$2,Calendrier!$B$38:$AN$83,20),"") -> 2015-06-04 | E187: Consigne: | F187: =VLOOKUP(F189,$I$173:$P$176,2,FALSE) -> Pose et effectue la soustraction suivante: Vérifie ton résultat en faisant l'addition correspondante:
D188: =IF(C187=TRUE,VLOOKUP(D187,Calendrier!D$96:F$430,3),"") -> 113
E189: Opérateur: | F189: Soustraction | O189: =CONCATENATE("réponse ",F189) -> réponse Soustraction
E190: Opération: | F190: =IF(C187=TRUE,Opérations!P14,"") -> 7697267-241086 | O190: =IF(C187=TRUE,Opérations!Q14,"") -> 7456181
A191: =D191 -> 2015-06-05 | B191: =IF(C191=TRUE,D192,"") -> 114 | C191: =IF(VLOOKUP(F$2,Calendrier!$B$38:$AN$83,28)=1,TRUE,FALSE) -> TRUE | D191: =IF(C191=TRUE,VLOOKUP(F$2,Calendrier!$B$38:$AN$83,27),"") -> 2015-06-05 | E191: Consigne: | F191: =VLOOKUP(F193,$I$173:$P$176,2,FALSE) -> Pose et effectue la division suivante.
D192: =IF(C191=TRUE,VLOOKUP(D191,Calendrier!D$96:F$430,3),"") -> 114
E193: Opérateur: | F193: Division | O193: =CONCATENATE("réponse ",F193) -> réponse Division
E194: Opération: | F194: =IF(C191=TRUE,Opérations!P15,"") -> 47359÷5= | O194: =IF(C191=TRUE,Opérations!Q15,"") -> q= 9471 r= 4
E196: Conversions
F197: unités de mesure: | G197: oui | L197: conversion secondes: | M197: non
F198: unités de contenance: | G198: oui | I198: unités de surface | J198: non | L198: conversion minutes | M198: non
F199: unités de poids: | G199: oui | I199: unités de volumes | J199: non | L199: conversion heures | M199: non
F200: sortir cadre: | G200: oui | I200: sens facile | J200: non | L200: conversion jours | M200: non
F201: nombre maxi de chiffres: | G201: 6 | L201: conversion semaines | M201: non
F202: décimales: | G202: oui | L202: conversion pouces | M202: non
F203: nombre maxi de décimales | G203: 3 | L203: conversion pieds | M203: non
A205: =D205 ->  | B205: =IF(C205=TRUE,D206,"") ->  | C205: =IF(VLOOKUP(F$2,Calendrier!$B$38:$AN$83,4)=1,TRUE,FALSE) -> FALSE | D205: =IF(C205=TRUE,VLOOKUP(F$2,Calendrier!$B$38:$AN$83,3),"") ->  | E205: Consigne: | F205: En t'aidant d'un tableau de conversion, convertis les deux mesures suivantes dans l'unité demandée:
D206: =IF(C205=TRUE,VLOOKUP(D205,Calendrier!D$96:F$430,3),"") -> 
F208: =IF(G202="non",CONCATENATE(Conversions!A16," - ",Conversions!A17),CONCATENATE(Conversions!A25," - ",Conversions!A26)) -> 106659,27 km (en m) - 867767,87 dg (en g) | O208: =IF(G202="non",CONCATENATE(Conversions!B16," - ",Conversions!B17),CONCATENATE(Conversions!B25," - ",Conversions!B26)) -> 106659270 m - 86776,787 g
A209: =D209 -> 2015-06-02 | B209: =IF(C209=TRUE,D210,"") -> 112 | C209: =IF(VLOOKUP(F$2,Calendrier!$B$38:$AN$83,11)=1,TRUE,FALSE) -> TRUE | D209: =IF(C209=TRUE,VLOOKUP(F$2,Calendrier!$B$38:$AN$83,10),"") -> 2015-06-02 | E209: Consigne: | F209: En t'aidant d'un tableau de conversion, convertis les deux mesures suivantes dans l'unité demandée:
D210: =IF(C209=TRUE,VLOOKUP(D209,Calendrier!D$96:F$430,3),"") -> 112
F212: =IF(G202="non",CONCATENATE(Conversions!A18," - ",Conversions!A19),CONCATENATE(Conversions!A27," - ",Conversions!A28)) -> 541203,743 m³ (en dal) - 131576,776 hm (en m) | O212: =IF($G$202="non",CONCATENATE(Conversions!B18," - ",Conversions!B19),CONCATENATE(Conversions!B27," - ",Conversions!B28)) -> 54120374,3 dal - 13157677,6 m
A213: =D213 -> 2015-06-04 | B213: =IF(C213=TRUE,D214,"") -> 113 | C213: =IF(VLOOKUP(F$2,Calendrier!$B$38:$AN$83,21)=1,TRUE,FALSE) -> TRUE | D213: =IF(C213=TRUE,VLOOKUP(F$2,Calendrier!$B$38:$AN$83,20),"") -> 2015-06-04 | E213: Consigne: | F213: En t'aidant d'un tableau de conversion, convertis les deux mesures suivantes dans l'unité demandée:
D214: =IF(C213=TRUE,VLOOKUP(D213,Calendrier!D$96:F$430,3),"") -> 113
F216: =IF(G202="non",CONCATENATE(Conversions!A20," - ",Conversions!A21),CONCATENATE(Conversions!A29," - ",Conversions!A30)) -> 318769,31 mg (en dg) - 4935,908 dg (en g) | O216: =IF($G$202="non",CONCATENATE(Conversions!B20," - ",Conversions!B21),CONCATENATE(Conversions!B29," - ",Conversions!B30)) -> 3187,6931 dg - 493,5908 g
A217: =D217 -> 2015-06-05 | B217: =IF(C217=TRUE,D218,"") -> 114 | C217: =IF(VLOOKUP(F$2,Calendrier!$B$38:$AN$83,28)=1,TRUE,FALSE) -> TRUE | D217: =IF(C217=TRUE,VLOOKUP(F$2,Calendrier!$B$38:$AN$83,27),"") -> 2015-06-05 | E217: Consigne: | F217: En t'aidant d'un tableau de conversion, convertis les deux mesures suivantes dans l'unité demandée:
D218: =IF(C217=TRUE,VLOOKUP(D217,Calendrier!D$96:F$430,3),"") -> 114
F220: =IF(G202="non",CONCATENATE(Conversions!A22," - ",Conversions!A23),CONCATENATE(Conversions!A31," - ",Conversions!A32)) -> 399876,6 dm (en m) - 774931,87 dl (en ml) | O220: =IF($G$202="non",CONCATENATE(Conversions!B22," - ",Conversions!B23),CONCATENATE(Conversions!B31," - ",Conversions!B32)) -> 39987,66 m - 77493187 ml
E223: Fractions
F224: Représentation fractionnaire | I224: Simplification fractionnaire | L224: Additions de fractions
F225: numérateur mini: | G225: 10 | I225: numérateur mini: | J225: 50 | L225: numérateur 1 mini: | M225: 2
F226: numérateur maxi: | G226: 20 | I226: numérateur maxi: | J226: 100 | L226: numérateur 1 maxi: | M226: 11
F227: dénominateur mini: | G227: 2 | I227: dénominateur mini: | J227: 2 | L227: dénominateur 1 mini: | M227: 2
F228: dénominateur maxi: | G228: 10 | I228: dénominateur maxi: | J228: 20 | L228: dénominateur 1 maxi: | M228: 11
L229: numérateur 2 mini: | M229: 2
E230: Addition | F230: Effectue l'opération fractionnaire suivante: | L230: numérateur 2 maxi: | M230: 9
E231: Simplification | F231: Simplifie la fraction suivante: | L231: dénominateur 2 mini: | M231: 2
E232: Représentation | F232: Dessine la fraction suivante: | L232: dénominateur 2 maxi: | M232: 9
L233: dénominateurs égaux | M233: non
A235: =D235 ->  | B235: =IF(C235=TRUE,D236,"") ->  | C235: =IF(VLOOKUP(F$2,Calendrier!$B$38:$AN$83,4)=1,TRUE,FALSE) -> FALSE | D235: =IF(C235=TRUE,VLOOKUP(F$2,Calendrier!$B$38:$AN$83,3),"") ->  | E235: Consigne: | F235: =VLOOKUP(F237,$E$230:$F$232,2,FALSE) -> Dessine la fraction suivante:
D236: =IF(C235=TRUE,VLOOKUP(D235,Calendrier!D$96:F$430,3),"") -> 
E237: type: | F237: Représentation
E238: Opération: | F238: =IF(C235=TRUE,HLOOKUP(F237,Fractions!H$2:L$9,2,FALSE),"") ->  | O238: =HLOOKUP(F237,Fractions!H2:J10,3,FALSE) -> 2+8/10
A239: =D239 -> 2015-06-02 | B239: =IF(C239=TRUE,D240,"") -> 112 | C239: =IF(VLOOKUP(F$2,Calendrier!$B$38:$AN$83,11)=1,TRUE,FALSE) -> TRUE | D239: =IF(C239=TRUE,VLOOKUP(F$2,Calendrier!$B$38:$AN$83,10),"") -> 2015-06-02 | E239: Consigne: | F239: =VLOOKUP(F241,$E$230:$F$232,2,FALSE) -> Dessine la fraction suivante:
D240: =IF(C239=TRUE,VLOOKUP(D239,Calendrier!D$96:F$430,3),"") -> 112
E241: type: | F241: Représentation
E242: Opération: | F242: =IF(C239=TRUE,HLOOKUP(F241,Fractions!H$2:L$9,4,FALSE),"") -> 11/3 | O242: =HLOOKUP(F241,Fractions!H2:J10,5,FALSE) -> 3+2/3
A243: =D243 -> 2015-06-04 | B243: =IF(C243=TRUE,D244,"") -> 113 | C243: =IF(VLOOKUP(F$2,Calendrier!$B$38:$AN$83,21)=1,TRUE,FALSE) -> TRUE | D243: =IF(C243=TRUE,VLOOKUP(F$2,Calendrier!$B$38:$AN$83,20),"") -> 2015-06-04 | E243: Consigne: | F243: =VLOOKUP(F245,$E$230:$F$232,2,FALSE) -> Dessine la fraction suivante:
D244: =IF(C243=TRUE,VLOOKUP(D243,Calendrier!D$96:F$430,3),"") -> 113
E245: type: | F245: Représentation
E246: Opération: | F246: =IF(C243=TRUE,HLOOKUP(F245,Fractions!H$2:L$9,6,FALSE),"") -> 13/8 | O246: =HLOOKUP(F245,Fractions!H2:J10,7,FALSE) -> 1+5/8
A247: =D247 -> 2015-06-05 | B247: =IF(C247=TRUE,D248,"") -> 114 | C247: =IF(VLOOKUP(F$2,Calendrier!$B$38:$AN$83,28)=1,TRUE,FALSE) -> TRUE | D247: =IF(C247=TRUE,VLOOKUP(F$2,Calendrier!$B$38:$AN$83,27),"") -> 2015-06-05 | E247: Consigne: | F247: =VLOOKUP(F249,$E$230:$F$232,2,FALSE) -> Dessine la fraction suivante:
... 50 more rows

Sheet Devoirs
W1: Lundi | Z1: Mardi | AC1: Jeudi | AF1: Vendredi
V2: orthographe | W2: =Variables!F9 -> Revois l'orthographe de tous les mots de la colonne de la page . Écris dans ton carnet de mots, sans erreur, les mots qui suivent. Apprends à les écrire sans erreur. Recherche le(s) sens des mots que tu ne connais pas. Crée une phrase avec chacun de ces nouveaux mots. | X2: =Variables!F10 ->  | Y2: =CONCATENATE(Variables!F10,Variables!O10) ->  | Z2: =Variables!F13 -> Revois l'orthographe de tous les mots de la colonne 2 de la page 9. Écris dans ton carnet de mots, sans erreur, les mots qui suivent. Apprends à les écrire sans erreur. Recherche le(s) sens des mots que tu ne connais pas. Crée une phrase avec chacun de ces nouveaux mots. | AA2: =Variables!F14 -> 1854:quitter 131:auprès 1709:plutôt 2117:silencieux; silencieuse; silencieux; silencieuses 825:une erreur; des erreurs 500:un cordonnier; des cordonniers 1778:presser | AB2: =CONCATENATE(Variables!F14,Variables!O14) -> 1854:quitter 131:auprès 1709:plutôt 2117:silencieux; silencieuse; silencieux; silencieuses 825:une erreur; des erreurs 500:un cordonnier; des cordonniers 1778:presser; la chair; les chairs; celui-là; celle-là; ceux-là; celles-là; cela. | AC2: =Variables!F17 -> Revois l'orthographe de tous les mots de la colonne 1 de la page 10. Écris dans ton carnet de mots, sans erreur, les mots qui suivent. Apprends à les écrire sans erreur. Recherche le(s) sens des mots que tu ne connais pas. Crée une phrase avec chacun de ces nouveaux mots. | AD2: =Variables!F18 -> 1117:ignorer 767:encadrer 1845:quatorze 670:une disparition; des disparitions 1111:une humidité; des humidités 76:ancien; ancienne; anciens; anciennes 2303:trembler | AE2: =CONCATENATE(Variables!F18,Variables!O18) -> 1117:ignorer 767:encadrer 1845:quatorze 670:une disparition; des disparitions 1111:une humidité; des humidités 76:ancien; ancienne; anciens; anciennes 2303:trembler; charmer; un changement; des changements; chasser. | AF2: =Variables!F21 -> Revois l'orthographe de tous les mots de la colonne 2 de la page 10. Écris dans ton carnet de mots, sans erreur, les mots qui suivent. Apprends à les écrire sans erreur. Recherche le(s) sens des mots que tu ne connais pas. Crée une phrase avec chacun de ces nouveaux mots. | AG2: =Variables!F22 -> 1959:résister 1180:une invention; des inventions 1382:la mélancolie; les mélancolies 319:une carrière; des carrières 1811:une proie; des proies 1328:la majesté; les majestés 431:un coffret; des coffrets | AH2: =CONCATENATE(Variables!F22,Variables!O22) -> 1959:résister 1180:une invention; des inventions 1382:la mélancolie; les mélancolies 319:une carrière; des carrières 1811:une proie; des proies 1328:la majesté; les majestés 431:un coffret; des coffrets; la chaussée; les chaussées; un cheval; des chevaux; un chiffre; des chiffres.
V3: vide | W3: ="" ->  | X3: ="" ->  | Z3: ="" ->  | AA3: ="" ->  | AC3: ="" ->  | AD3: ="" ->  | AF3: ="" ->  | AG3: ="" -> 
V4: grammaire | W4: =Variables!F47 -> En t'aidant du carnet de mots, construis une phrase ayant la forme grammaticale suivante: | X4: =Variables!F49 ->  | Z4: =Variables!F50 -> En t'aidant du carnet de mots, construis une phrase ayant la forme grammaticale suivante: | AA4: =Variables!F52 -> GS masculin singulier + V présent+ COD pluriel | AC4: =Variables!F53 -> En t'aidant du carnet de mots, construis une phrase ayant la forme grammaticale suivante: | AD4: =Variables!F55 -> GS masculin pluriel + V présent+ COD singulier | AF4: =Variables!F56 -> En t'aidant du carnet de mots, construis une phrase ayant la forme grammaticale suivante: | AG4: =Variables!F58 -> GS féminin singulier + V présent+ COD pluriel
V5: Transposition | W5: =Variables!F68 ->  | Z5: =Variables!F72 -> Transpose la phrase suivante Présent (Pélot et son frère)'' : Il regardait le manège de la louve qui passait et repassait sa langue sur les jeunes. | AC5: =Variables!F76 -> Transpose la phrase suivante Présent (Pélot et son frère)'' : Elle prit contre elle celui qu’il avait sauvé. | AF5: =Variables!F80 -> Transpose la phrase suivante Présent (Pélot et son frère)'' : L’inconnu n’était pas une menace, bien au contraire.
V6: Conjugaison | W6: =Variables!F123 ->  | Z6: =Variables!F127 -> Conjugue à toutes les personnes, le verbe: ''conseiller'', au futur simple de l'indicatif. | AC6: =Variables!F131 -> Conjugue à toutes les personnes, le verbe: ''pouvoir'', au passé simple de l'indicatif. | AF6: =Variables!F135 -> Conjugue à toutes les personnes, le verbe: ''repartir'', au passé composé de l'indicatif.
V7: numération | W7: =Variables!F146 -> Écris en chiffres arabes le nombre suivant (n'oublie pas de mettre les espaces pour séparer les classes) puis écris les en utilisant les chiffres romains: | X7: =Variables!F149 ->  | Y7: =Variables!O149 -> 816140000719 | Z7: =Variables!F150 -> Écris en chiffres arabes le nombre suivant (n'oublie pas de mettre les espaces pour séparer les classes) puis écris les en utilisant les chiffres romains: | AA7: =Variables!F153 -> sept cent vingt milliards quatre cent neuf millions trois cent trente mille et six cent seize millièmes | AB7: =Variables!O153 -> 720409330000 | AC7: =Variables!F154 -> Écris en chiffres arabes le nombre suivant (n'oublie pas de mettre les espaces pour séparer les classes) puis écris les en utilisant les chiffres romains: | AD7: =Variables!F157 -> quatre-vingt-dix milliards sept cents millions treize mille six cent quatre-vingt-cinq et sept cent cinquante-sept millièmes | AE7: =Variables!O157 -> 90700013685 | AF7: =Variables!F158 -> Écris en chiffres arabes le nombre suivant (n'oublie pas de mettre les espaces pour séparer les classes) puis écris les en utilisant les chiffres romains: | AG7: =Variables!F161 -> cinq cent quatre-vingt-dix milliards six cent dix-sept mille quarante-quatre et cent dix-sept millièmes | AH7: =Variables!O161 -> 590000617044
V8: opérations | W8: =Variables!F179 -> Pose et effectue l'addition suivante: | X8: =Variables!F182 ->  | Y8: =Variables!O182 ->  | Z8: =Variables!F183 -> Pose et effectue la multiplication suivante. | AA8: =Variables!F186 -> 627x91 | AB8: =Variables!O186 -> 57057 | AC8: =Variables!F187 -> Pose et effectue la soustraction suivante: Vérifie ton résultat en faisant l'addition correspondante: | AD8: =Variables!F190 -> 7697267-241086 | AE8: =Variables!O190 -> 7456181 | AF8: =Variables!F191 -> Pose et effectue la division suivante. | AG8: =Variables!F194 -> 47359÷5= | AH8: =Variables!O194 -> q= 9471 r= 4
V9: conversions | W9: =Variables!F205 -> En t'aidant d'un tableau de conversion, convertis les deux mesures suivantes dans l'unité demandée: | X9: =Variables!F208 -> 106659,27 km (en m) - 867767,87 dg (en g) | Y9: =Variables!O208 -> 106659270 m - 86776,787 g | Z9: =Variables!F209 -> En t'aidant d'un tableau de conversion, convertis les deux mesures suivantes dans l'unité demandée: | AA9: =Variables!F212 -> 541203,743 m³ (en dal) - 131576,776 hm (en m) | AB9: =Variables!O212 -> 54120374,3 dal - 13157677,6 m | AC9: =Variables!F213 -> En t'aidant d'un tableau de conversion, convertis les deux mesures suivantes dans l'unité demandée: | AD9: =Variables!F216 -> 318769,31 mg (en dg) - 4935,908 dg (en g) | AE9: =Variables!O216 -> 3187,6931 dg - 493,5908 g | AF9: =Variables!F217 -> En t'aidant d'un tableau de conversion, convertis les deux mesures suivantes dans l'unité demandée: | AG9: =Variables!F220 -> 399876,6 dm (en m) - 774931,87 dl (en ml) | AH9: =Variables!O220 -> 39987,66 m - 77493187 ml
V10: fractions | W10: =Variables!F235 -> Dessine la fraction suivante: | X10: =Variables!F238 ->  | Y10: =Variables!O238 -> 2+8/10 | Z10: =Variables!F239 -> Dessine la fraction suivante: | AA10: =Variables!F242 -> 11/3 | AB10: =Variables!O242 -> 3+2/3 | AC10: =Variables!F243 -> Dessine la fraction suivante: | AD10: =Variables!F246 -> 13/8 | AE10: =Variables!O246 -> 1+5/8 | AF10: =Variables!F247 -> Dessine la fraction suivante: | AG10: =Variables!F250 -> 13/6 | AH10: =Variables!O250 -> 2+1/6
V11: problèmes | W11: =Variables!F294 -> Résouds le problème suivant: | X11: =Variables!F295 -> Un salon de jardin comportant 8 chaises et une table est vendu au prix de 211€. La table vaut 101€. Quel est le prix d'une chaise? | Z11: =Variables!F298 -> Résouds le problème suivant: | AA11: =Variables!F299 -> Un pull est vendu au prix de 54€50 après une réduction de 24€75. Quel était le prix de ce pull avant la réduction? | AC11: =Variables!F302 -> Résouds le problème suivant: | AD11: =Variables!F303 -> Pour ses plateaux-repas d'un jour, une compagnie aérienne commande 3452 quarts de quiches. Combien est-ce de quiches? | AF11: =Variables!F306 -> Résouds le problème suivant: | AG11: =Variables!F307 -> On a agrandi un stade pour y mettre 3546 places suplémentaires. Maintenant, il y a 100000 places. Combien y avait-il de places avant les travaux?
AG12: ="" -> 
B14: Niveau | E14: semaine
B15: =Variables!F3 -> CM2 | E15: 32
A17: Exercices
A18: Lundi | B18: =Variables!D10 -> 
A19: =Variables!C9 -> FALSE | B19: =Variables!D9 ->  | E19: =IF(A19=TRUE,CONCATENATE(UPPER($B$15)," pour "),"") ->  | F19: =B19 ->  | I19: =E19 ->  | J19: =F19 ->  | M19: =CONCATENATE(UPPER($B$17)," pour ") -> pour | N19: =J19 -> 
A20: Orthographe | B20: =IF(AND(A19=TRUE,A20<>"vide"),CONCATENATE("● ",VLOOKUP(A20,$V$2:$AG$12,2,FALSE)),"") ->  | E20: =CONCATENATE($B20," ",$B21) ->  | I20: =E20 ->  | M20: =I20 ->  | Q20: =CONCATENATE("Dictée de mots: ",Y2) -> 
B21: =IF(AND(A19=TRUE,A20<>"vide"),Devoirs!X2,"") -> 
A23: Conjugaison | B23: =IF(AND(A19=TRUE,A23<>"vide"),CONCATENATE("● ",VLOOKUP(A23,$V$2:$AG$12,2,FALSE)," ",VLOOKUP(A23,$V$2:$AG$12,3,FALSE)),"") ->  | E23: =CONCATENATE($B23," ",$B24) ->  | I23: =E23 ->  | M23: =I23 ->  | Q23: =IF(AND(A19=TRUE,A23<>"vide"),VLOOKUP(A23,$V$2:$AG$12,4,FALSE),"") -> 
A26: Grammaire | B26: =IF(AND(A19=TRUE,A26<>"vide"),CONCATENATE("● ",VLOOKUP(A26,$V$2:$AG$12,2,FALSE)," ",VLOOKUP(A26,$V$2:$AG$12,3,FALSE)),"") ->  | E26: =CONCATENATE($B26," ",$B27) ->  | I26: =E26 ->  | M26: =I26 ->  | Q26: =IF(AND(A19=TRUE,A26<>"vide"),VLOOKUP(A26,$V$2:$AG$12,4,FALSE),"") -> 
A29: Opérations | B29: =IF(AND(A19=TRUE,A29<>"vide"),CONCATENATE("● ",VLOOKUP(A29,$V$2:$AG$12,2,FALSE)),"") ->  | E29: =CONCATENATE($B29," ",$B30) ->  | I29: =E29 ->  | M29: =I29 ->  | Q29: =IF(AND(A19=TRUE,A29<>"vide"),VLOOKUP(A29,$V$2:$AG$12,4,FALSE),"") -> 
B30: =IF(AND(A19=TRUE,A29<>"vide"),VLOOKUP(A29,$V$2:$AG$12,3,FALSE),"") -> 
A32: Fractions | B32: =IF(AND(A19=TRUE,A32<>"vide"),CONCATENATE("● ",VLOOKUP(A32,$V$2:$AG$12,2,FALSE)),"") ->  | E32: =CONCATENATE($B32," ",$B33) ->  | I32: =E32 ->  | M32: =I32 ->  | Q32: =IF(AND(A19=TRUE,A32<>"vide"),VLOOKUP(A32,$V$2:$AG$12,4,FALSE),"") -> 
B33: =IF(AND(A19=TRUE,A32<>"vide"),VLOOKUP(A32,$V$2:$AG$12,3,FALSE),"") -> 
A35: Vide | B35: =IF(AND(A19=TRUE,A35<>"vide"),CONCATENATE("● ",VLOOKUP(A35,$V$2:$AG$12,2,FALSE)),"") ->  | E35: =CONCATENATE($B35," ",$B36) ->  | I35: =E35 ->  | M35: =I35 ->  | Q35: =IF(AND(A19=TRUE,35<>"vide"),VLOOKUP(A35,$V$2:$AG$12,4,FALSE),"") -> 
B36: =IF(A19=TRUE,VLOOKUP(A35,$V$2:$AG$12,3,FALSE),"") -> 
A38: Mardi | B38: =Variables!D14 -> 112
A39: =Variables!C13 -> TRUE | B39: =Variables!D13 -> 2015-06-02 | E39: =IF(A39=TRUE,CONCATENATE(UPPER($B$15)," pour "),"") -> CM2 pour | F39: =B39 -> 2015-06-02 | I39: =E39 -> CM2 pour | J39: =F39 -> 2015-06-02 | M39: =CONCATENATE(UPPER($B$17)," pour ") -> pour | N39: =J39 -> 2015-06-02
A40: Orthographe | B40: =IF(AND(A39=TRUE,A40<>"vide"),CONCATENATE("● ",Z2),"") -> ● Revois l'orthographe de tous les mots de la colonne 2 de la page 9. Écris dans ton carnet de mots, sans erreur, les mots qui suivent. Apprends à les écrire sans erreur. Recherche le(s) sens des mots que tu ne connais pas. Crée une phrase avec chacun de ces nouveaux mots. | E40: =CONCATENATE($B40," ",$B41) -> ● Revois l'orthographe de tous les mots de la colonne 2 de la page 9. Écris dans ton carnet de mots, sans erreur, les mots qui suivent. Apprends à les écrire sans erreur. Recherche le(s) sens des mots que tu ne connais pas. Crée une phrase avec chacun de ces nouveaux mots. 1854:quitter 131:auprès 1709:plutôt 2117:silencieux; silencieuse; silencieux; silencieuses 825:une erreur; des erreurs 500:un cordonnier; des cordonniers 1778:presser | I40: =E40 -> ● Revois l'orthographe de tous les mots de la colonne 2 de la page 9. Écris dans ton carnet de mots, sans erreur, les mots qui suivent. Apprends à les écrire sans erreur. Recherche le(s) sens des mots que tu ne connais pas. Crée une phrase avec chacun de ces nouveaux mots. 1854:quitter 131:auprès 1709:plutôt 2117:silencieux; silencieuse; silencieux; silencieuses 825:une erreur; des erreurs 500:un cordonnier; des cordonniers 1778:presser | M40: =I40 -> ● Revois l'orthographe de tous les mots de la colonne 2 de la page 9. Écris dans ton carnet de mots, sans erreur, les mots qui suivent. Apprends à les écrire sans erreur. Recherche le(s) sens des mots que tu ne connais pas. Crée une phrase avec chacun de ces nouveaux mots. 1854:quitter 131:auprès 1709:plutôt 2117:silencieux; silencieuse; silencieux; silencieuses 825:une erreur; des erreurs 500:un cordonnier; des cordonniers 1778:presser | Q40: =CONCATENATE("Dictée de mots: ",AB2) -> Dictée de mots: 1854:quitter 131:auprès 1709:plutôt 2117:silencieux; silencieuse; silencieux; silencieuses 825:une erreur; des erreurs 500:un cordonnier; des cordonniers 1778:presser; la chair; les chairs; celui-là; celle-là; ceux-là; celles-là; cela.
B41: =IF(AND(A39=TRUE,A40<>"vide"),AA2,"") -> 1854:quitter 131:auprès 1709:plutôt 2117:silencieux; silencieuse; silencieux; silencieuses 825:une erreur; des erreurs 500:un cordonnier; des cordonniers 1778:presser
A43: Conjugaison | B43: =IF(AND(A39=TRUE,A43<>"vide"),CONCATENATE("● ",VLOOKUP(A43,$V$2:$AG$12,5,FALSE)," ",VLOOKUP(A43,$V$2:$AG$12,6,FALSE)),"") -> ● Conjugue à toutes les personnes, le verbe: ''conseiller'', au futur simple de l'indicatif. | E43: =CONCATENATE($B43," ",$B44) -> ● Conjugue à toutes les personnes, le verbe: ''conseiller'', au futur simple de l'indicatif. | I43: =E43 -> ● Conjugue à toutes les personnes, le verbe: ''conseiller'', au futur simple de l'indicatif. | M43: =I43 -> ● Conjugue à toutes les personnes, le verbe: ''conseiller'', au futur simple de l'indicatif. | Q43: =IF(AND(A39=TRUE,A43<>"vide"),VLOOKUP(A43,$V$2:$AG$12,7,FALSE),"") -> 0
A46: Grammaire | B46: =IF(AND(A39=TRUE,A46<>"vide"),CONCATENATE("● ",VLOOKUP(A46,$V$2:$AG$12,5,FALSE)," ",VLOOKUP(A46,$V$2:$AG$12,6,FALSE)),"") -> ● En t'aidant du carnet de mots, construis une phrase ayant la forme grammaticale suivante: GS masculin singulier + V présent+ COD pluriel | E46: =CONCATENATE($B46," ",$B47) -> ● En t'aidant du carnet de mots, construis une phrase ayant la forme grammaticale suivante: GS masculin singulier + V présent+ COD pluriel | I46: =E46 -> ● En t'aidant du carnet de mots, construis une phrase ayant la forme grammaticale suivante: GS masculin singulier + V présent+ COD pluriel | M46: =I46 -> ● En t'aidant du carnet de mots, construis une phrase ayant la forme grammaticale suivante: GS masculin singulier + V présent+ COD pluriel | Q46: =IF(AND(A39=TRUE,A46<>"vide"),VLOOKUP(A46,$V$2:$AG$12,7,FALSE),"") -> 0
A49: Opérations | B49: =IF(AND(A39=TRUE,A49<>"vide"),CONCATENATE("● ",VLOOKUP(A49,$V$2:$AG$12,5,FALSE)),"") -> ● Pose et effectue la multiplication suivante. | E49: =CONCATENATE($B49," ",$B50) -> ● Pose et effectue la multiplication suivante. 627x91 | I49: =E49 -> ● Pose et effectue la multiplication suivante. 627x91 | M49: =I49 -> ● Pose et effectue la multiplication suivante. 627x91 | Q49: =IF(AND(A39=TRUE,A49<>"vide"),VLOOKUP(A49,$V$2:$AG$12,7,FALSE),"") -> 57057
B50: =IF(AND(A39=TRUE,A49<>"vide"),VLOOKUP(A49,$V$2:$AG$12,6,FALSE),"") -> 627x91
A52: Conversions | B52: =IF(AND(A39=TRUE,A52<>"vide"),CONCATENATE("● ",VLOOKUP(A52,$V$2:$AG$12,5,FALSE)),"") -> ● En t'aidant d'un tableau de conversion, convertis les deux mesures suivantes dans l'unité demandée: | E52: =CONCATENATE($B52," ",$B53) -> ● En t'aidant d'un tableau de conversion, convertis les deux mesures suivantes dans l'unité demandée: 541203,743 m³ (en dal) - 131576,776 hm (en m) | I52: =E52 -> ● En t'aidant d'un tableau de conversion, convertis les deux mesures suivantes dans l'unité demandée: 541203,743 m³ (en dal) - 131576,776 hm (en m) | M52: =I52 -> ● En t'aidant d'un tableau de conversion, convertis les deux mesures suivantes dans l'unité demandée: 541203,743 m³ (en dal) - 131576,776 hm (en m) | Q52: =IF(AND(A39=TRUE,A52<>"vide"),VLOOKUP(A52,$V$2:$AG$12,7,FALSE),"") -> 54120374,3 dal - 13157677,6 m
B53: =IF(AND(A39=TRUE,A52<>"vide"),VLOOKUP(A52,$V$2:$AG$12,6,FALSE),"") -> 541203,743 m³ (en dal) - 131576,776 hm (en m)
A55: Vide | B55: =IF(AND(A39=TRUE,A55<>"vide"),CONCATENATE("● ",VLOOKUP(A55,$V$2:$AG$12,5,FALSE)),"") ->  | E55: =CONCATENATE($B55," ",$B56) ->  | I55: =E55 ->  | M55: =I55 ->  | Q55: =IF(AND(A39=TRUE,35<>"vide"),VLOOKUP(A55,$V$2:$AG$12,7,FALSE),"") -> 0
B56: =IF(A39=TRUE,VLOOKUP(A55,$V$2:$AG$12,6,FALSE),"") -> 
A58: Jeudi | B58: =Variables!D18 -> 113
A59: =Variables!C17 -> TRUE | B59: =Variables!D17 -> 2015-06-04 | E59: =IF(A59=TRUE,CONCATENATE(UPPER($B$15)," pour "),"") -> CM2 pour | F59: =B59 -> 2015-06-04 | I59: =E59 -> CM2 pour | J59: =F59 -> 2015-06-04 | M59: =CONCATENATE(UPPER($B$17)," pour ") -> pour | N59: =J59 -> 2015-06-04
A60: Orthographe | B60: =IF(AND(A59=TRUE,A60<>"vide"),CONCATENATE("● ",AC2),"") -> ● Revois l'orthographe de tous les mots de la colonne 1 de la page 10. Écris dans ton carnet de mots, sans erreur, les mots qui suivent. Apprends à les écrire sans erreur. Recherche le(s) sens des mots que tu ne connais pas. Crée une phrase avec chacun de ces nouveaux mots. | E60: =CONCATENATE($B60," ",$B61) -> ● Revois l'orthographe de tous les mots de la colonne 1 de la page 10. Écris dans ton carnet de mots, sans erreur, les mots qui suivent. Apprends à les écrire sans erreur. Recherche le(s) sens des mots que tu ne connais pas. Crée une phrase avec chacun de ces nouveaux mots. 1117:ignorer 767:encadrer 1845:quatorze 670:une disparition; des disparitions 1111:une humidité; des humidités 76:ancien; ancienne; anciens; anciennes 2303:trembler | I60: =E60 -> ● Revois l'orthographe de tous les mots de la colonne 1 de la page 10. Écris dans ton carnet de mots, sans erreur, les mots qui suivent. Apprends à les écrire sans erreur. Recherche le(s) sens des mots que tu ne connais pas. Crée une phrase avec chacun de ces nouveaux mots. 1117:ignorer 767:encadrer 1845:quatorze 670:une disparition; des disparitions 1111:une humidité; des humidités 76:ancien; ancienne; anciens; anciennes 2303:trembler | M60: =I60 -> ● Revois l'orthographe de tous les mots de la colonne 1 de la page 10. Écris dans ton carnet de mots, sans erreur, les mots qui suivent. Apprends à les écrire sans erreur. Recherche le(s) sens des mots que tu ne connais pas. Crée une phrase avec chacun de ces nouveaux mots. 1117:ignorer 767:encadrer 1845:quatorze 670:une disparition; des disparitions 1111:une humidité; des humidités 76:ancien; ancienne; anciens; anciennes 2303:trembler | Q60: =CONCATENATE("Dictée de mots: ",AE2) -> Dictée de mots: 1117:ignorer 767:encadrer 1845:quatorze 670:une disparition; des disparitions 1111:une humidité; des humidités 76:ancien; ancienne; anciens; anciennes 2303:trembler; charmer; un changement; des changements; chasser.
B61: =IF(AND(A59=TRUE,A60<>"vide"),AD2,"") -> 1117:ignorer 767:encadrer 1845:quatorze 670:une disparition; des disparitions 1111:une humidité; des humidités 76:ancien; ancienne; anciens; anciennes 2303:trembler
A63: Conjugaison | B63: =IF(AND(A59=TRUE,A63<>"vide"),CONCATENATE("● ",VLOOKUP(A63,$V$2:$AG$12,8,FALSE)," ",VLOOKUP(A63,$V$2:$AG$12,9,FALSE)),"") -> ● Conjugue à toutes les personnes, le verbe: ''pouvoir'', au passé simple de l'indicatif. | E63: =CONCATENATE($B63," ",$B64) -> ● Conjugue à toutes les personnes, le verbe: ''pouvoir'', au passé simple de l'indicatif. | I63: =E63 -> ● Conjugue à toutes les personnes, le verbe: ''pouvoir'', au passé simple de l'indicatif. | M63: =I63 -> ● Conjugue à toutes les personnes, le verbe: ''pouvoir'', au passé simple de l'indicatif. | Q63: =IF(AND(A59=TRUE,A63<>"vide"),VLOOKUP(A63,$V$2:$AG$12,10,FALSE),"") -> 0
A66: Grammaire | B66: =IF(AND(A59=TRUE,A66<>"vide"),CONCATENATE("● ",VLOOKUP(A66,$V$2:$AG$12,8,FALSE)," ",VLOOKUP(A66,$V$2:$AG$12,9,FALSE)),"") -> ● En t'aidant du carnet de mots, construis une phrase ayant la forme grammaticale suivante: GS masculin pluriel + V présent+ COD singulier | E66: =CONCATENATE($B66," ",$B67) -> ● En t'aidant du carnet de mots, construis une phrase ayant la forme grammaticale suivante: GS masculin pluriel + V présent+ COD singulier | I66: =E66 -> ● En t'aidant du carnet de mots, construis une phrase ayant la forme grammaticale suivante: GS masculin pluriel + V présent+ COD singulier | M66: =I66 -> ● En t'aidant du carnet de mots, construis une phrase ayant la forme grammaticale suivante: GS masculin pluriel + V présent+ COD singulier | Q66: =IF(AND(A59=TRUE,A66<>"vide"),VLOOKUP(A66,$V$2:$AG$12,10,FALSE),"") -> 0
A69: Opérations | B69: =IF(A59=TRUE,CONCATENATE("● ",VLOOKUP(A69,$V$2:$AG$12,8,FALSE)),"") -> ● Pose et effectue la soustraction suivante: Vérifie ton résultat en faisant l'addition correspondante: | E69: =CONCATENATE($B69," ",$B70) -> ● Pose et effectue la soustraction suivante: Vérifie ton résultat en faisant l'addition correspondante: 7697267-241086 | I69: =E69 -> ● Pose et effectue la soustraction suivante: Vérifie ton résultat en faisant l'addition correspondante: 7697267-241086 | M69: =I69 -> ● Pose et effectue la soustraction suivante: Vérifie ton résultat en faisant l'addition correspondante: 7697267-241086 | Q69: =IF(AND(A59=TRUE,A69<>"vide"),VLOOKUP(A69,$V$2:$AG$12,10,FALSE),"") -> 7456181
B70: =IF(A59=TRUE,VLOOKUP(A69,$V$2:$AG$12,9,FALSE),"") -> 7697267-241086
A72: Fractions | B72: =IF(AND(A59=TRUE,A72<>"vide"),CONCATENATE("● ",VLOOKUP(A72,$V$2:$AG$12,8,FALSE)),"") -> ● Dessine la fraction suivante: | E72: =CONCATENATE($B72," ",$B73) -> ● Dessine la fraction suivante: 13/8 | I72: =E72 -> ● Dessine la fraction suivante: 13/8 | M72: =I72 -> ● Dessine la fraction suivante: 13/8 | Q72: =IF(AND(A59=TRUE,A72<>"vide"),VLOOKUP(A72,$V$2:$AG$12,10,FALSE),"") -> 1+5/8
B73: =IF(AND(A59=TRUE,A72<>"vide"),VLOOKUP(A72,$V$2:$AG$12,9,FALSE),"") -> 13/8
A75: Vide | B75: =IF(AND(A59=TRUE,A75<>"vide"),CONCATENATE("● ",VLOOKUP(A75,$V$2:$AG$12,8,FALSE)),"") ->  | E75: =CONCATENATE($B75," ",$B76) ->  | I75: =E75 ->  | M75: =I75 ->  | Q75: =IF(AND(A59=TRUE,35<>"vide"),VLOOKUP(A75,$V$2:$AG$12,10,FALSE),"") -> 0
B76: =IF(A59=TRUE,VLOOKUP(A75,$V$2:$AG$12,9,FALSE),"") -> 
A78: Vendredi | B78: =Variables!D22 -> 114
A79: =Variables!C21 -> TRUE | B79: =Variables!D21 -> 2015-06-05 | E79: =IF(A79=TRUE,CONCATENATE(UPPER($B$15)," pour "),"") -> CM2 pour | F79: =B79 -> 2015-06-05 | I79: =E79 -> CM2 pour | J79: =F79 -> 2015-06-05 | M79: =CONCATENATE(UPPER($B$17)," pour ") -> pour | N79: =J79 -> 2015-06-05
A80: Orthographe | B80: =IF(AND(A79=TRUE,A80<>"vide"),CONCATENATE("● ",AF2),"") -> ● Revois l'orthographe de tous les mots de la colonne 2 de la page 10. Écris dans ton carnet de mots, sans erreur, les mots qui suivent. Apprends à les écrire sans erreur. Recherche le(s) sens des mots que tu ne connais pas. Crée une phrase avec chacun de ces nouveaux mots. | E80: =CONCATENATE($B80," ",$B81) -> ● Revois l'orthographe de tous les mots de la colonne 2 de la page 10. Écris dans ton carnet de mots, sans erreur, les mots qui suivent. Apprends à les écrire sans erreur. Recherche le(s) sens des mots que tu ne connais pas. Crée une phrase avec chacun de ces nouveaux mots. 1959:résister 1180:une invention; des inventions 1382:la mélancolie; les mélancolies 319:une carrière; des carrières 1811:une proie; des proies 1328:la majesté; les majestés 431:un coffret; des coffrets | I80: =E80 -> ● Revois l'orthographe de tous les mots de la colonne 2 de la page 10. Écris dans ton carnet de mots, sans erreur, les mots qui suivent. Apprends à les écrire sans erreur. Recherche le(s) sens des mots que tu ne connais pas. Crée une phrase avec chacun de ces nouveaux mots. 1959:résister 1180:une invention; des inventions 1382:la mélancolie; les mélancolies 319:une carrière; des carrières 1811:une proie; des proies 1328:la majesté; les majestés 431:un coffret; des coffrets | M80: =I80 -> ● Revois l'orthographe de tous les mots de la colonne 2 de la page 10. Écris dans ton carnet de mots, sans erreur, les mots qui suivent. Apprends à les écrire sans erreur. Recherche le(s) sens des mots que tu ne connais pas. Crée une phrase avec chacun de ces nouveaux mots. 1959:résister 1180:une invention; des inventions 1382:la mélancolie; les mélancolies 319:une carrière; des carrières 1811:une proie; des proies 1328:la majesté; les majestés 431:un coffret; des coffrets | Q80: =CONCATENATE("Dictée de mots: ",AH2) -> Dictée de mots: 1959:résister 1180:une invention; des inventions 1382:la mélancolie; les mélancolies 319:une carrière; des carrières 1811:une proie; des proies 1328:la majesté; les majestés 431:un coffret; des coffrets; la chaussée; les chaussées; un cheval; des chevaux; un chiffre; des chiffres.
B81: =IF(AND(A79=TRUE,A80<>"vide"),AG2,"") -> 1959:résister 1180:une invention; des inventions 1382:la mélancolie; les mélancolies 319:une carrière; des carrières 1811:une proie; des proies 1328:la majesté; les majestés 431:un coffret; des coffrets
A83: Conjugaison | B83: =IF(AND(A79=TRUE,A83<>"vide"),CONCATENATE("● ",VLOOKUP(A83,$V$2:$AG$12,11,FALSE)," ",VLOOKUP(A83,$V$2:$AG$12,12,FALSE)),"") -> ● Conjugue à toutes les personnes, le verbe: ''repartir'', au passé composé de l'indicatif. | E83: =CONCATENATE($B83," ",$B84) -> ● Conjugue à toutes les personnes, le verbe: ''repartir'', au passé composé de l'indicatif. | I83: =E83 -> ● Conjugue à toutes les personnes, le verbe: ''repartir'', au passé composé de l'indicatif. | M83: =I83 -> ● Conjugue à toutes les personnes, le verbe: ''repartir'', au passé composé de l'indicatif. | Q83: =IF(AND(A79=TRUE,A83<>"vide"),VLOOKUP(A83,$V$2:$AH$12,13,FALSE),"") -> 0
A86: Grammaire | B86: =IF(AND(A79=TRUE,A86<>"vide"),CONCATENATE("● ",VLOOKUP(A86,$V$2:$AG$12,11,FALSE)," ",VLOOKUP(A86,$V$2:$AG$12,12,FALSE)),"") -> ● En t'aidant du carnet de mots, construis une phrase ayant la forme grammaticale suivante: GS féminin singulier + V présent+ COD pluriel | E86: =CONCATENATE($B86," ",$B87) -> ● En t'aidant du carnet de mots, construis une phrase ayant la forme grammaticale suivante: GS féminin singulier + V présent+ COD pluriel | I86: =E86 -> ● En t'aidant du carnet de mots, construis une phrase ayant la forme grammaticale suivante: GS féminin singulier + V présent+ COD pluriel | M86: =I86 -> ● En t'aidant du carnet de mots, construis une phrase ayant la forme grammaticale suivante: GS féminin singulier + V présent+ COD pluriel | Q86: =IF(AND(A79=TRUE,A86<>"vide"),VLOOKUP(A86,$V$2:$AH$12,13,FALSE),"") -> 0
A89: Opérations | B89: =IF(AND(A79=TRUE,A89<>"vide"),CONCATENATE("● ",VLOOKUP(A89,$V$2:$AG$12,11,FALSE)),"") -> ● Pose et effectue la division suivante. | E89: =CONCATENATE($B89," ",$B90) -> ● Pose et effectue la division suivante. 47359÷5= | I89: =E89 -> ● Pose et effectue la division suivante. 47359÷5= | M89: =I89 -> ● Pose et effectue la division suivante. 47359÷5= | Q89: =IF(AND(A79=TRUE,A89<>"vide"),VLOOKUP(A89,$V$2:$AH$12,13,FALSE),"") -> q= 9471 r= 4
B90: =IF(AND(A79=TRUE,A89<>"vide"),VLOOKUP(A89,$V$2:$AG$12,12,FALSE),"") -> 47359÷5=
A92: Conversions | B92: =IF(AND(A79=TRUE,A92<>"vide"),CONCATENATE("● ",VLOOKUP(A92,$V$2:$AG$12,11,FALSE)),"") -> ● En t'aidant d'un tableau de conversion, convertis les deux mesures suivantes dans l'unité demandée: | E92: =CONCATENATE($B92," ",$B93) -> ● En t'aidant d'un tableau de conversion, convertis les deux mesures suivantes dans l'unité demandée: 399876,6 dm (en m) - 774931,87 dl (en ml) | I92: =E92 -> ● En t'aidant d'un tableau de conversion, convertis les deux mesures suivantes dans l'unité demandée: 399876,6 dm (en m) - 774931,87 dl (en ml) | M92: =I92 -> ● En t'aidant d'un tableau de conversion, convertis les deux mesures suivantes dans l'unité demandée: 399876,6 dm (en m) - 774931,87 dl (en ml) | Q92: =IF(AND(A79=TRUE,A92<>"vide"),VLOOKUP(A92,$V$2:$AH$12,13,FALSE),"") -> 39987,66 m - 77493187 ml
B93: =IF(AND(A79=TRUE,A92<>"vide"),VLOOKUP(A92,$V$2:$AG$12,12,FALSE),"") -> 399876,6 dm (en m) - 774931,87 dl (en ml)
A95: Vide | B95: =IF(AND(A79=TRUE,A95<>"vide"),CONCATENATE("● ",VLOOKUP(A95,$V$2:$AG$12,11,FALSE)),"") ->  | E95: =CONCATENATE($B95," ",$B96) ->  | I95: =E95 ->  | M95: =I95 ->  | Q95: =IF(AND(A79=TRUE,35<>"vide"),VLOOKUP(A95,$V$2:$AH$12,13,FALSE),"") -> 0
B96: =IF(A79=TRUE,VLOOKUP(A95,$V$2:$AG$12,12,FALSE),"") -> 

Sheet Réponses devoirs
W1: Lundi | Z1: Mardi | AC1: Jeudi | AF1: Vendredi
V2: orthographe | W2: =Variables!F9 -> Revois l'orthographe de tous les mots de la colonne de la page . Écris dans ton carnet de mots, sans erreur, les mots qui suivent. Apprends à les écrire sans erreur. Recherche le(s) sens des mots que tu ne connais pas. Crée une phrase avec chacun de ces nouveaux mots. | X2: =Variables!F10 ->  | Y2: =CONCATENATE(Variables!F10,Variables!O10) ->  | Z2: =Variables!F13 -> Revois l'orthographe de tous les mots de la colonne 2 de la page 9. Écris dans ton carnet de mots, sans erreur, les mots qui suivent. Apprends à les écrire sans erreur. Recherche le(s) sens des mots que tu ne connais pas. Crée une phrase avec chacun de ces nouveaux mots. | AA2: =Variables!F14 -> 1854:quitter 131:auprès 1709:plutôt 2117:silencieux; silencieuse; silencieux; silencieuses 825:une erreur; des erreurs 500:un cordonnier; des cordonniers 1778:presser | AB2: =CONCATENATE(Variables!F14,Variables!O14) -> 1854:quitter 131:auprès 1709:plutôt 2117:silencieux; silencieuse; silencieux; silencieuses 825:une erreur; des erreurs 500:un cordonnier; des cordonniers 1778:presser; la chair; les chairs; celui-là; celle-là; ceux-là; celles-là; cela. | AC2: =Variables!F17 -> Revois l'orthographe de tous les mots de la colonne 1 de la page 10. Écris dans ton carnet de mots, sans erreur, les mots qui suivent. Apprends à les écrire sans erreur. Recherche le(s) sens des mots que tu ne connais pas. Crée une phrase avec chacun de ces nouveaux mots. | AD2: =Variables!F18 -> 1117:ignorer 767:encadrer 1845:quatorze 670:une disparition; des disparitions 1111:une humidité; des humidités 76:ancien; ancienne; anciens; anciennes 2303:trembler | AE2: =CONCATENATE(Variables!F18,Variables!O18) -> 1117:ignorer 767:encadrer 1845:quatorze 670:une disparition; des disparitions 1111:une humidité; des humidités 76:ancien; ancienne; anciens; anciennes 2303:trembler; charmer; un changement; des changements; chasser. | AF2: =Variables!F21 -> Revois l'orthographe de tous les mots de la colonne 2 de la page 10. Écris dans ton carnet de mots, sans erreur, les mots qui suivent. Apprends à les écrire sans erreur. Recherche le(s) sens des mots que tu ne connais pas. Crée une phrase avec chacun de ces nouveaux mots. | AG2: =Variables!F22 -> 1959:résister 1180:une invention; des inventions 1382:la mélancolie; les mélancolies 319:une carrière; des carrières 1811:une proie; des proies 1328:la majesté; les majestés 431:un coffret; des coffrets | AH2: =CONCATENATE(Variables!F22,Variables!O22) -> 1959:résister 1180:une invention; des inventions 1382:la mélancolie; les mélancolies 319:une carrière; des carrières 1811:une proie; des proies 1328:la majesté; les majestés 431:un coffret; des coffrets; la chaussée; les chaussées; un cheval; des chevaux; un chiffre; des chiffres.
V3: vide | W3: ="" ->  | X3: ="" ->  | Z3: ="" ->  | AA3: ="" ->  | AC3: ="" ->  | AD3: ="" ->  | AF3: ="" ->  | AG3: ="" -> 
V4: grammaire | W4: =Variables!F47 -> En t'aidant du carnet de mots, construis une phrase ayant la forme grammaticale suivante: | X4: =Variables!F49 ->  | Z4: =Variables!F50 -> En t'aidant du carnet de mots, construis une phrase ayant la forme grammaticale suivante: | AA4: =Variables!F52 -> GS masculin singulier + V présent+ COD pluriel | AC4: =Variables!F53 -> En t'aidant du carnet de mots, construis une phrase ayant la forme grammaticale suivante: | AD4: =Variables!F55 -> GS masculin pluriel + V présent+ COD singulier | AF4: =Variables!F56 -> En t'aidant du carnet de mots, construis une phrase ayant la forme grammaticale suivante: | AG4: =Variables!F58 -> GS féminin singulier + V présent+ COD pluriel
V5: Transposition | W5: =Variables!F68 ->  | Z5: =Variables!F72 -> Transpose la phrase suivante Présent (Pélot et son frère)'' : Il regardait le manège de la louve qui passait et repassait sa langue sur les jeunes. | AC5: =Variables!F76 -> Transpose la phrase suivante Présent (Pélot et son frère)'' : Elle prit contre elle celui qu’il avait sauvé. | AF5: =Variables!F80 -> Transpose la phrase suivante Présent (Pélot et son frère)'' : L’inconnu n’était pas une menace, bien au contraire.
V6: Conjugaison | W6: =Variables!F123 ->  | Z6: =Variables!F127 -> Conjugue à toutes les personnes, le verbe: ''conseiller'', au futur simple de l'indicatif. | AC6: =Variables!F131 -> Conjugue à toutes les personnes, le verbe: ''pouvoir'', au passé simple de l'indicatif. | AF6: =Variables!F135 -> Conjugue à toutes les personnes, le verbe: ''repartir'', au passé composé de l'indicatif.
V7: numération | W7: =Variables!F146 -> Écris en chiffres arabes le nombre suivant (n'oublie pas de mettre les espaces pour séparer les classes) puis écris les en utilisant les chiffres romains: | X7: =Variables!F149 ->  | Y7: =Variables!O149 -> 816140000719 | Z7: =Variables!F150 -> Écris en chiffres arabes le nombre suivant (n'oublie pas de mettre les espaces pour séparer les classes) puis écris les en utilisant les chiffres romains: | AA7: =Variables!F153 -> sept cent vingt milliards quatre cent neuf millions trois cent trente mille et six cent seize millièmes | AB7: =Variables!O153 -> 720409330000 | AC7: =Variables!F154 -> Écris en chiffres arabes le nombre suivant (n'oublie pas de mettre les espaces pour séparer les classes) puis écris les en utilisant les chiffres romains: | AD7: =Variables!F157 -> quatre-vingt-dix milliards sept cents millions treize mille six cent quatre-vingt-cinq et sept cent cinquante-sept millièmes | AE7: =Variables!O157 -> 90700013685 | AF7: =Variables!F158 -> Écris en chiffres arabes le nombre suivant (n'oublie pas de mettre les espaces pour séparer les classes) puis écris les en utilisant les chiffres romains: | AG7: =Variables!F161 -> cinq cent quatre-vingt-dix milliards six cent dix-sept mille quarante-quatre et cent dix-sept millièmes | AH7: =Variables!O161 -> 590000617044
V8: opérations | W8: =Variables!F179 -> Pose et effectue l'addition suivante: | X8: =Variables!F182 ->  | Y8: =Variables!O182 ->  | Z8: =Variables!F183 -> Pose et effectue la multiplication suivante. | AA8: =Variables!F186 -> 627x91 | AB8: =Variables!O186 -> 57057 | AC8: =Variables!F187 -> Pose et effectue la soustraction suivante: Vérifie ton résultat en faisant l'addition correspondante: | AD8: =Variables!F190 -> 7697267-241086 | AE8: =Variables!O190 -> 7456181 | AF8: =Variables!F191 -> Pose et effectue la division suivante. | AG8: =Variables!F194 -> 47359÷5= | AH8: =Variables!O194 -> q= 9471 r= 4
V9: conversions | W9: =Variables!F205 -> En t'aidant d'un tableau de conversion, convertis les deux mesures suivantes dans l'unité demandée: | X9: =Variables!F208 -> 106659,27 km (en m) - 867767,87 dg (en g) | Y9: =Variables!O208 -> 106659270 m - 86776,787 g | Z9: =Variables!F209 -> En t'aidant d'un tableau de conversion, convertis les deux mesures suivantes dans l'unité demandée: | AA9: =Variables!F212 -> 541203,743 m³ (en dal) - 131576,776 hm (en m) | AB9: =Variables!O212 -> 54120374,3 dal - 13157677,6 m | AC9: =Variables!F213 -> En t'aidant d'un tableau de conversion, convertis les deux mesures suivantes dans l'unité demandée: | AD9: =Variables!F216 -> 318769,31 mg (en dg) - 4935,908 dg (en g) | AE9: =Variables!O216 -> 3187,6931 dg - 493,5908 g | AF9: =Variables!F217 -> En t'aidant d'un tableau de conversion, convertis les deux mesures suivantes dans l'unité demandée: | AG9: =Variables!F220 -> 399876,6 dm (en m) - 774931,87 dl (en ml) | AH9: =Variables!O220 -> 39987,66 m - 77493187 ml
V10: fractions | W10: =Variables!F235 -> Dessine la fraction suivante: | X10: =Variables!F238 ->  | Y10: =Variables!O238 -> 2+8/10 | Z10: =Variables!F239 -> Dessine la fraction suivante: | AA10: =Variables!F242 -> 11/3 | AB10: =Variables!O242 -> 3+2/3 | AC10: =Variables!F243 -> Dessine la fraction suivante: | AD10: =Variables!F246 -> 13/8 | AE10: =Variables!O246 -> 1+5/8 | AF10: =Variables!F247 -> Dessine la fraction suivante: | AG10: =Variables!F250 -> 13/6 | AH10: =Variables!O250 -> 2+1/6
V11: problèmes | W11: =Variables!F294 -> Résouds le problème suivant: | X11: =Variables!F295 -> Un salon de jardin comportant 8 chaises et une table est vendu au prix de 211€. La table vaut 101€. Quel est le prix d'une chaise? | Z11: =Variables!F298 -> Résouds le problème suivant: | AA11: =Variables!F299 -> Un pull est vendu au prix de 54€50 après une réduction de 24€75. Quel était le prix de ce pull avant la réduction? | AC11: =Variables!F302 -> Résouds le problème suivant: | AD11: =Variables!F303 -> Pour ses plateaux-repas d'un jour, une compagnie aérienne commande 3452 quarts de quiches. Combien est-ce de quiches? | AF11: =Variables!F306 -> Résouds le problème suivant: | AG11: =Variables!F307 -> On a agrandi un stade pour y mettre 3546 places suplémentaires. Maintenant, il y a 100000 places. Combien y avait-il de places avant les travaux?
AG12: ="" -> 
B14: Niveau | E14: semaine
B15: =Variables!F3 -> CM2 | E15: 32
A17: Exercices
A18: Lundi | B18: =Variables!D10 -> 
A19: =Variables!C9 -> FALSE | B19: =Variables!D9 ->  | E19: =IF(A19=TRUE,CONCATENATE(UPPER($B$15)," pour "),"") ->  | F19: =B19 ->  | I19: =E19 ->  | J19: =F19 ->  | M19: =CONCATENATE(UPPER($B$17)," pour ") -> pour | N19: =J19 -> 
A20: =Devoirs!A20 -> Orthographe | B20: =IF(AND(A19=TRUE,A20<>"vide"),CONCATENATE("● ",VLOOKUP(A20,$V$2:$AG$12,2,FALSE)),"") ->  | E20: =CONCATENATE($B20," ",$B21) ->  | I20: =E20 ->  | M20: =I20 ->  | Q20: =CONCATENATE("Dictée de mots: ",Y2) -> 
B21: =IF(AND(A19=TRUE,A20<>"vide"),'Réponses devoirs'!X2,"") -> 
A23: =Devoirs!A23 -> Conjugaison | B23: =IF(AND(A19=TRUE,A23<>"vide"),CONCATENATE("● ",VLOOKUP(A23,$V$2:$AG$12,2,FALSE)," ",VLOOKUP(A23,$V$2:$AG$12,3,FALSE)),"") ->  | E23: =CONCATENATE($B23," ",$B24) ->  | I23: =E23 ->  | M23: =I23 ->  | Q23: =IF(AND(A19=TRUE,A23<>"vide"),VLOOKUP(A23,$V$2:$AG$12,4,FALSE),"") -> 
A26: =Devoirs!A26 -> Grammaire | B26: =IF(AND(A19=TRUE,A26<>"vide"),CONCATENATE("● ",VLOOKUP(A26,$V$2:$AG$12,2,FALSE)," ",VLOOKUP(A26,$V$2:$AG$12,3,FALSE)),"") ->  | E26: =CONCATENATE($B26," ",$B27) ->  | I26: =E26 ->  | M26: =I26 ->  | Q26: =IF(AND(A19=TRUE,A26<>"vide"),VLOOKUP(A26,$V$2:$AG$12,4,FALSE),"") -> 
A29: =Devoirs!A29 -> Opérations | B29: =IF(AND(A19=TRUE,A29<>"vide"),CONCATENATE("● ",VLOOKUP(A29,$V$2:$AG$12,2,FALSE)),"") ->  | E29: =CONCATENATE($B29," ",$B30) ->  | I29: =E29 ->  | M29: =I29 ->  | Q29: =IF(AND(A19=TRUE,A29<>"vide"),VLOOKUP(A29,$V$2:$AG$12,4,FALSE),"") -> 
B30: =IF(AND(A19=TRUE,A29<>"vide"),VLOOKUP(A29,$V$2:$AG$12,3,FALSE),"") -> 
A32: =Devoirs!A32 -> Fractions | B32: =IF(AND(A19=TRUE,A32<>"vide"),CONCATENATE("● ",VLOOKUP(A32,$V$2:$AG$12,2,FALSE)),"") ->  | E32: =CONCATENATE($B32," ",$B33) ->  | I32: =E32 ->  | M32: =I32 ->  | Q32: =IF(AND(A19=TRUE,A32<>"vide"),VLOOKUP(A32,$V$2:$AG$12,4,FALSE),"") -> 
B33: =IF(AND(A19=TRUE,A32<>"vide"),VLOOKUP(A32,$V$2:$AG$12,3,FALSE),"") -> 
A35: =Devoirs!A35 -> Vide | B35: =IF(AND(A19=TRUE,A35<>"vide"),CONCATENATE("● ",VLOOKUP(A35,$V$2:$AG$12,2,FALSE)),"") ->  | E35: =CONCATENATE($B35," ",$B36) ->  | I35: =E35 ->  | M35: =I35 ->  | Q35: =IF(AND(A19=TRUE,35<>"vide"),VLOOKUP(A35,$V$2:$AG$12,4,FALSE),"") -> 
B36: =IF(A19=TRUE,VLOOKUP(A35,$V$2:$AG$12,3,FALSE),"") -> 
A38: Mardi | B38: =Variables!D14 -> 112
A39: =Variables!C13 -> TRUE | B39: =Variables!D13 -> 2015-06-02 | E39: =IF(A39=TRUE,CONCATENATE(UPPER($B$15)," pour "),"") -> CM2 pour | F39: =B39 -> 2015-06-02 | I39: =E39 -> CM2 pour | J39: =F39 -> 2015-06-02 | M39: =CONCATENATE(UPPER($B$17)," pour ") -> pour | N39: =J39 -> 2015-06-02
A40: =Devoirs!A40 -> Orthographe | B40: =IF(AND(A39=TRUE,A40<>"vide"),CONCATENATE("● ",Z2),"") -> ● Revois l'orthographe de tous les mots de la colonne 2 de la page 9. Écris dans ton carnet de mots, sans erreur, les mots qui suivent. Apprends à les écrire sans erreur. Recherche le(s) sens des mots que tu ne connais pas. Crée une phrase avec chacun de ces nouveaux mots. | E40: =CONCATENATE($B40," ",$B41) -> ● Revois l'orthographe de tous les mots de la colonne 2 de la page 9. Écris dans ton carnet de mots, sans erreur, les mots qui suivent. Apprends à les écrire sans erreur. Recherche le(s) sens des mots que tu ne connais pas. Crée une phrase avec chacun de ces nouveaux mots. 1854:quitter 131:auprès 1709:plutôt 2117:silencieux; silencieuse; silencieux; silencieuses 825:une erreur; des erreurs 500:un cordonnier; des cordonniers 1778:presser | I40: =E40 -> ● Revois l'orthographe de tous les mots de la colonne 2 de la page 9. Écris dans ton carnet de mots, sans erreur, les mots qui suivent. Apprends à les écrire sans erreur. Recherche le(s) sens des mots que tu ne connais pas. Crée une phrase avec chacun de ces nouveaux mots. 1854:quitter 131:auprès 1709:plutôt 2117:silencieux; silencieuse; silencieux; silencieuses 825:une erreur; des erreurs 500:un cordonnier; des cordonniers 1778:presser | M40: =I40 -> ● Revois l'orthographe de tous les mots de la colonne 2 de la page 9. Écris dans ton carnet de mots, sans erreur, les mots qui suivent. Apprends à les écrire sans erreur. Recherche le(s) sens des mots que tu ne connais pas. Crée une phrase avec chacun de ces nouveaux mots. 1854:quitter 131:auprès 1709:plutôt 2117:silencieux; silencieuse; silencieux; silencieuses 825:une erreur; des erreurs 500:un cordonnier; des cordonniers 1778:presser | Q40: =CONCATENATE("Dictée de mots: ",AB2) -> Dictée de mots: 1854:quitter 131:auprès 1709:plutôt 2117:silencieux; silencieuse; silencieux; silencieuses 825:une erreur; des erreurs 500:un cordonnier; des cordonniers 1778:presser; la chair; les chairs; celui-là; celle-là; ceux-là; celles-là; cela.
B41: =IF(AND(A39=TRUE,A40<>"vide"),AA2,"") -> 1854:quitter 131:auprès 1709:plutôt 2117:silencieux; silencieuse; silencieux; silencieuses 825:une erreur; des erreurs 500:un cordonnier; des cordonniers 1778:presser
A43: =Devoirs!A43 -> Conjugaison | B43: =IF(AND(A39=TRUE,A43<>"vide"),CONCATENATE("● ",VLOOKUP(A43,$V$2:$AG$12,5,FALSE)," ",VLOOKUP(A43,$V$2:$AG$12,6,FALSE)),"") -> ● Conjugue à toutes les personnes, le verbe: ''conseiller'', au futur simple de l'indicatif. | E43: =CONCATENATE($B43," ",$B44) -> ● Conjugue à toutes les personnes, le verbe: ''conseiller'', au futur simple de l'indicatif. | I43: =E43 -> ● Conjugue à toutes les personnes, le verbe: ''conseiller'', au futur simple de l'indicatif. | M43: =I43 -> ● Conjugue à toutes les personnes, le verbe: ''conseiller'', au futur simple de l'indicatif. | Q43: =IF(AND(A39=TRUE,A43<>"vide"),VLOOKUP(A43,$V$2:$AG$12,7,FALSE),"") -> 0
A46: =Devoirs!A46 -> Grammaire | B46: =IF(AND(A39=TRUE,A46<>"vide"),CONCATENATE("● ",VLOOKUP(A46,$V$2:$AG$12,5,FALSE)," ",VLOOKUP(A46,$V$2:$AG$12,6,FALSE)),"") -> ● En t'aidant du carnet de mots, construis une phrase ayant la forme grammaticale suivante: GS masculin singulier + V présent+ COD pluriel | E46: =CONCATENATE($B46," ",$B47) -> ● En t'aidant du carnet de mots, construis une phrase ayant la forme grammaticale suivante: GS masculin singulier + V présent+ COD pluriel | I46: =E46 -> ● En t'aidant du carnet de mots, construis une phrase ayant la forme grammaticale suivante: GS masculin singulier + V présent+ COD pluriel | M46: =I46 -> ● En t'aidant du carnet de mots, construis une phrase ayant la forme grammaticale suivante: GS masculin singulier + V présent+ COD pluriel | Q46: =IF(AND(A39=TRUE,A46<>"vide"),VLOOKUP(A46,$V$2:$AG$12,7,FALSE),"") -> 0
A49: =Devoirs!A49 -> Opérations | B49: =IF(AND(A39=TRUE,A49<>"vide"),CONCATENATE("● ",VLOOKUP(A49,$V$2:$AG$12,5,FALSE)),"") -> ● Pose et effectue la multiplication suivante. | E49: =CONCATENATE($B49," ",$B50) -> ● Pose et effectue la multiplication suivante. 627x91 | I49: =E49 -> ● Pose et effectue la multiplication suivante. 627x91 | M49: =I49 -> ● Pose et effectue la multiplication suivante. 627x91 | Q49: =IF(AND(A39=TRUE,A49<>"vide"),VLOOKUP(A49,$V$2:$AG$12,7,FALSE),"") -> 57057
B50: =IF(AND(A39=TRUE,A49<>"vide"),VLOOKUP(A49,$V$2:$AG$12,6,FALSE),"") -> 627x91
A52: =Devoirs!A52 -> Conversions | B52: =IF(AND(A39=TRUE,A52<>"vide"),CONCATENATE("● ",VLOOKUP(A52,$V$2:$AG$12,5,FALSE)),"") -> ● En t'aidant d'un tableau de conversion, convertis les deux mesures suivantes dans l'unité demandée: | E52: =CONCATENATE($B52," ",$B53) -> ● En t'aidant d'un tableau de conversion, convertis les deux mesures suivantes dans l'unité demandée: 541203,743 m³ (en dal) - 131576,776 hm (en m) | I52: =E52 -> ● En t'aidant d'un tableau de conversion, convertis les deux mesures suivantes dans l'unité demandée: 541203,743 m³ (en dal) - 131576,776 hm (en m) | M52: =I52 -> ● En t'aidant d'un tableau de conversion, convertis les deux mesures suivantes dans l'unité demandée: 541203,743 m³ (en dal) - 131576,776 hm (en m) | Q52: =IF(AND(A39=TRUE,A52<>"vide"),VLOOKUP(A52,$V$2:$AG$12,7,FALSE),"") -> 54120374,3 dal - 13157677,6 m
B53: =IF(AND(A39=TRUE,A52<>"vide"),VLOOKUP(A52,$V$2:$AG$12,6,FALSE),"") -> 541203,743 m³ (en dal) - 131576,776 hm (en m)
A55: =Devoirs!A55 -> Vide | B55: =IF(AND(A39=TRUE,A55<>"vide"),CONCATENATE("● ",VLOOKUP(A55,$V$2:$AG$12,5,FALSE)),"") ->  | E55: =CONCATENATE($B55," ",$B56) ->  | I55: =E55 ->  | M55: =I55 ->  | Q55: =IF(AND(A39=TRUE,35<>"vide"),VLOOKUP(A55,$V$2:$AG$12,7,FALSE),"") -> 0
B56: =IF(A39=TRUE,VLOOKUP(A55,$V$2:$AG$12,6,FALSE),"") -> 
A58: Jeudi | B58: =Variables!D18 -> 113
A59: =Variables!C17 -> TRUE | B59: =Variables!D17 -> 2015-06-04 | E59: =IF(A59=TRUE,CONCATENATE(UPPER($B$15)," pour "),"") -> CM2 pour | F59: =B59 -> 2015-06-04 | I59: =E59 -> CM2 pour | J59: =F59 -> 2015-06-04 | M59: =CONCATENATE(UPPER($B$17)," pour ") -> pour | N59: =J59 -> 2015-06-04
A60: =Devoirs!A60 -> Orthographe | B60: =IF(AND(A59=TRUE,A60<>"vide"),CONCATENATE("● ",AC2),"") -> ● Revois l'orthographe de tous les mots de la colonne 1 de la page 10. Écris dans ton carnet de mots, sans erreur, les mots qui suivent. Apprends à les écrire sans erreur. Recherche le(s) sens des mots que tu ne connais pas. Crée une phrase avec chacun de ces nouveaux mots. | E60: =CONCATENATE($B60," ",$B61) -> ● Revois l'orthographe de tous les mots de la colonne 1 de la page 10. Écris dans ton carnet de mots, sans erreur, les mots qui suivent. Apprends à les écrire sans erreur. Recherche le(s) sens des mots que tu ne connais pas. Crée une phrase avec chacun de ces nouveaux mots. 1117:ignorer 767:encadrer 1845:quatorze 670:une disparition; des disparitions 1111:une humidité; des humidités 76:ancien; ancienne; anciens; anciennes 2303:trembler | I60: =E60 -> ● Revois l'orthographe de tous les mots de la colonne 1 de la page 10. Écris dans ton carnet de mots, sans erreur, les mots qui suivent. Apprends à les écrire sans erreur. Recherche le(s) sens des mots que tu ne connais pas. Crée une phrase avec chacun de ces nouveaux mots. 1117:ignorer 767:encadrer 1845:quatorze 670:une disparition; des disparitions 1111:une humidité; des humidités 76:ancien; ancienne; anciens; anciennes 2303:trembler | M60: =I60 -> ● Revois l'orthographe de tous les mots de la colonne 1 de la page 10. Écris dans ton carnet de mots, sans erreur, les mots qui suivent. Apprends à les écrire sans erreur. Recherche le(s) sens des mots que tu ne connais pas. Crée une phrase avec chacun de ces nouveaux mots. 1117:ignorer 767:encadrer 1845:quatorze 670:une disparition; des disparitions 1111:une humidité; des humidités 76:ancien; ancienne; anciens; anciennes 2303:trembler | Q60: =CONCATENATE("Dictée de mots: ",AE2) -> Dictée de mots: 1117:ignorer 767:encadrer 1845:quatorze 670:une disparition; des disparitions 1111:une humidité; des humidités 76:ancien; ancienne; anciens; anciennes 2303:trembler; charmer; un changement; des changements; chasser.
B61: =IF(AND(A59=TRUE,A60<>"vide"),AD2,"") -> 1117:ignorer 767:encadrer 1845:quatorze 670:une disparition; des disparitions 1111:une humidité; des humidités 76:ancien; ancienne; anciens; anciennes 2303:trembler
A63: =Devoirs!A63 -> Conjugaison | B63: =IF(AND(A59=TRUE,A63<>"vide"),CONCATENATE("● ",VLOOKUP(A63,$V$2:$AG$12,8,FALSE)," ",VLOOKUP(A63,$V$2:$AG$12,9,FALSE)),"") -> ● Conjugue à toutes les personnes, le verbe: ''pouvoir'', au passé simple de l'indicatif. | E63: =CONCATENATE($B63," ",$B64) -> ● Conjugue à toutes les personnes, le verbe: ''pouvoir'', au passé simple de l'indicatif. | I63: =E63 -> ● Conjugue à toutes les personnes, le verbe: ''pouvoir'', au passé simple de l'indicatif. | M63: =I63 -> ● Conjugue à toutes les personnes, le verbe: ''pouvoir'', au passé simple de l'indicatif. | Q63: =IF(AND(A59=TRUE,A63<>"vide"),VLOOKUP(A63,$V$2:$AG$12,10,FALSE),"") -> 0
A66: =Devoirs!A66 -> Grammaire | B66: =IF(AND(A59=TRUE,A66<>"vide"),CONCATENATE("● ",VLOOKUP(A66,$V$2:$AG$12,8,FALSE)," ",VLOOKUP(A66,$V$2:$AG$12,9,FALSE)),"") -> ● En t'aidant du carnet de mots, construis une phrase ayant la forme grammaticale suivante: GS masculin pluriel + V présent+ COD singulier | E66: =CONCATENATE($B66," ",$B67) -> ● En t'aidant du carnet de mots, construis une phrase ayant la forme grammaticale suivante: GS masculin pluriel + V présent+ COD singulier | I66: =E66 -> ● En t'aidant du carnet de mots, construis une phrase ayant la forme grammaticale suivante: GS masculin pluriel + V présent+ COD singulier | M66: =I66 -> ● En t'aidant du carnet de mots, construis une phrase ayant la forme grammaticale suivante: GS masculin pluriel + V présent+ COD singulier | Q66: =IF(AND(A59=TRUE,A66<>"vide"),VLOOKUP(A66,$V$2:$AG$12,10,FALSE),"") -> 0
A69: =Devoirs!A69 -> Opérations | B69: =IF(A59=TRUE,CONCATENATE("● ",VLOOKUP(A69,$V$2:$AG$12,8,FALSE)),"") -> ● Pose et effectue la soustraction suivante: Vérifie ton résultat en faisant l'addition correspondante: | E69: =CONCATENATE($B69," ",$B70) -> ● Pose et effectue la soustraction suivante: Vérifie ton résultat en faisant l'addition correspondante: 7697267-241086 | I69: =E69 -> ● Pose et effectue la soustraction suivante: Vérifie ton résultat en faisant l'addition correspondante: 7697267-241086 | M69: =I69 -> ● Pose et effectue la soustraction suivante: Vérifie ton résultat en faisant l'addition correspondante: 7697267-241086 | Q69: =IF(AND(A59=TRUE,A69<>"vide"),VLOOKUP(A69,$V$2:$AG$12,10,FALSE),"") -> 7456181
B70: =IF(A59=TRUE,VLOOKUP(A69,$V$2:$AG$12,9,FALSE),"") -> 7697267-241086
A72: =Devoirs!A72 -> Fractions | B72: =IF(AND(A59=TRUE,A72<>"vide"),CONCATENATE("● ",VLOOKUP(A72,$V$2:$AG$12,8,FALSE)),"") -> ● Dessine la fraction suivante: | E72: =CONCATENATE($B72," ",$B73) -> ● Dessine la fraction suivante: 13/8 | I72: =E72 -> ● Dessine la fraction suivante: 13/8 | M72: =I72 -> ● Dessine la fraction suivante: 13/8 | Q72: =IF(AND(A59=TRUE,A72<>"vide"),VLOOKUP(A72,$V$2:$AG$12,10,FALSE),"") -> 1+5/8
B73: =IF(AND(A59=TRUE,A72<>"vide"),VLOOKUP(A72,$V$2:$AG$12,9,FALSE),"") -> 13/8
A75: =Devoirs!A75 -> Vide | B75: =IF(AND(A59=TRUE,A75<>"vide"),CONCATENATE("● ",VLOOKUP(A75,$V$2:$AG$12,8,FALSE)),"") ->  | E75: =CONCATENATE($B75," ",$B76) ->  | I75: =E75 ->  | M75: =I75 ->  | Q75: =IF(AND(A59=TRUE,35<>"vide"),VLOOKUP(A75,$V$2:$AG$12,10,FALSE),"") -> 0
B76: =IF(A59=TRUE,VLOOKUP(A75,$V$2:$AG$12,9,FALSE),"") -> 
A78: Vendredi | B78: =Variables!D22 -> 114
A79: =Variables!C21 -> TRUE | B79: =Variables!D21 -> 2015-06-05 | E79: =IF(A79=TRUE,CONCATENATE(UPPER($B$15)," pour "),"") -> CM2 pour | F79: =B79 -> 2015-06-05 | I79: =E79 -> CM2 pour | J79: =F79 -> 2015-06-05 | M79: =CONCATENATE(UPPER($B$17)," pour ") -> pour | N79: =J79 -> 2015-06-05
A80: Orthographe | B80: =IF(AND(A79=TRUE,A80<>"vide"),CONCATENATE("● ",AF2),"") -> ● Revois l'orthographe de tous les mots de la colonne 2 de la page 10. Écris dans ton carnet de mots, sans erreur, les mots qui suivent. Apprends à les écrire sans erreur. Recherche le(s) sens des mots que tu ne connais pas. Crée une phrase avec chacun de ces nouveaux mots. | E80: =CONCATENATE($B80," ",$B81) -> ● Revois l'orthographe de tous les mots de la colonne 2 de la page 10. Écris dans ton carnet de mots, sans erreur, les mots qui suivent. Apprends à les écrire sans erreur. Recherche le(s) sens des mots que tu ne connais pas. Crée une phrase avec chacun de ces nouveaux mots. 1959:résister 1180:une invention; des inventions 1382:la mélancolie; les mélancolies 319:une carrière; des carrières 1811:une proie; des proies 1328:la majesté; les majestés 431:un coffret; des coffrets | I80: =E80 -> ● Revois l'orthographe de tous les mots de la colonne 2 de la page 10. Écris dans ton carnet de mots, sans erreur, les mots qui suivent. Apprends à les écrire sans erreur. Recherche le(s) sens des mots que tu ne connais pas. Crée une phrase avec chacun de ces nouveaux mots. 1959:résister 1180:une invention; des inventions 1382:la mélancolie; les mélancolies 319:une carrière; des carrières 1811:une proie; des proies 1328:la majesté; les majestés 431:un coffret; des coffrets | M80: =I80 -> ● Revois l'orthographe de tous les mots de la colonne 2 de la page 10. Écris dans ton carnet de mots, sans erreur, les mots qui suivent. Apprends à les écrire sans erreur. Recherche le(s) sens des mots que tu ne connais pas. Crée une phrase avec chacun de ces nouveaux mots. 1959:résister 1180:une invention; des inventions 1382:la mélancolie; les mélancolies 319:une carrière; des carrières 1811:une proie; des proies 1328:la majesté; les majestés 431:un coffret; des coffrets | Q80: =CONCATENATE("Dictée de mots: ",AH2) -> Dictée de mots: 1959:résister 1180:une invention; des inventions 1382:la mélancolie; les mélancolies 319:une carrière; des carrières 1811:une proie; des proies 1328:la majesté; les majestés 431:un coffret; des coffrets; la chaussée; les chaussées; un cheval; des chevaux; un chiffre; des chiffres.
B81: =IF(AND(A79=TRUE,A80<>"vide"),AG2,"") -> 1959:résister 1180:une invention; des inventions 1382:la mélancolie; les mélancolies 319:une carrière; des carrières 1811:une proie; des proies 1328:la majesté; les majestés 431:un coffret; des coffrets
A83: Conjugaison | B83: =IF(AND(A79=TRUE,A83<>"vide"),CONCATENATE("● ",VLOOKUP(A83,$V$2:$AG$12,11,FALSE)," ",VLOOKUP(A83,$V$2:$AG$12,12,FALSE)),"") -> ● Conjugue à toutes les personnes, le verbe: ''repartir'', au passé composé de l'indicatif. | E83: =CONCATENATE($B83," ",$B84) -> ● Conjugue à toutes les personnes, le verbe: ''repartir'', au passé composé de l'indicatif. | I83: =E83 -> ● Conjugue à toutes les personnes, le verbe: ''repartir'', au passé composé de l'indicatif. | M83: =I83 -> ● Conjugue à toutes les personnes, le verbe: ''repartir'', au passé composé de l'indicatif. | Q83: =IF(AND(A79=TRUE,A83<>"vide"),VLOOKUP(A83,$V$2:$AH$12,13,FALSE),"") -> 0
A86: Numération | B86: =IF(AND(A79=TRUE,A86<>"vide"),CONCATENATE("● ",VLOOKUP(A86,$V$2:$AG$12,11,FALSE)," ",VLOOKUP(A86,$V$2:$AG$12,12,FALSE)),"") -> ● Écris en chiffres arabes le nombre suivant (n'oublie pas de mettre les espaces pour séparer les classes) puis écris les en utilisant les chiffres romains: cinq cent quatre-vingt-dix milliards six cent dix-sept mille quarante-quatre et cent dix-sept millièmes | E86: =CONCATENATE($B86," ",$B87) -> ● Écris en chiffres arabes le nombre suivant (n'oublie pas de mettre les espaces pour séparer les classes) puis écris les en utilisant les chiffres romains: cinq cent quatre-vingt-dix milliards six cent dix-sept mille quarante-quatre et cent dix-sept millièmes | I86: =E86 -> ● Écris en chiffres arabes le nombre suivant (n'oublie pas de mettre les espaces pour séparer les classes) puis écris les en utilisant les chiffres romains: cinq cent quatre-vingt-dix milliards six cent dix-sept mille quarante-quatre et cent dix-sept millièmes | M86: =I86 -> ● Écris en chiffres arabes le nombre suivant (n'oublie pas de mettre les espaces pour séparer les classes) puis écris les en utilisant les chiffres romains: cinq cent quatre-vingt-dix milliards six cent dix-sept mille quarante-quatre et cent dix-sept millièmes | Q86: =IF(AND(A79=TRUE,A86<>"vide"),VLOOKUP(A86,$V$2:$AH$12,13,FALSE),"") -> 590000617044
A89: Opérations | B89: =IF(AND(A79=TRUE,A89<>"vide"),CONCATENATE("● ",VLOOKUP(A89,$V$2:$AG$12,11,FALSE)),"") -> ● Pose et effectue la division suivante. | E89: =CONCATENATE($B89," ",$B90) -> ● Pose et effectue la division suivante. 47359÷5= | I89: =E89 -> ● Pose et effectue la division suivante. 47359÷5= | M89: =I89 -> ● Pose et effectue la division suivante. 47359÷5= | Q89: =IF(AND(A79=TRUE,A89<>"vide"),VLOOKUP(A89,$V$2:$AH$12,13,FALSE),"") -> q= 9471 r= 4
B90: =IF(AND(A79=TRUE,A89<>"vide"),VLOOKUP(A89,$V$2:$AG$12,12,FALSE),"") -> 47359÷5=
A92: Vide | B92: =IF(AND(A79=TRUE,A92<>"vide"),CONCATENATE("● ",VLOOKUP(A92,$V$2:$AG$12,11,FALSE)),"") ->  | E92: =CONCATENATE($B92," ",$B93) ->  | I92: =E92 ->  | M92: =I92 ->  | Q92: =IF(AND(A79=TRUE,A92<>"vide"),VLOOKUP(A92,$V$2:$AH$12,13,FALSE),"") -> 
B93: =IF(AND(A79=TRUE,A92<>"vide"),VLOOKUP(A92,$V$2:$AG$12,12,FALSE),"") -> 
A95: Vide | B95: =IF(AND(A79=TRUE,A95<>"vide"),CONCATENATE("● ",VLOOKUP(A95,$V$2:$AG$12,11,FALSE)),"") ->  | E95: =CONCATENATE($B95," ",$B96) ->  | I95: =E95 ->  | M95: =I95 ->  | Q95: =IF(AND(A79=TRUE,35<>"vide"),VLOOKUP(A95,$V$2:$AH$12,13,FALSE),"") -> 0
B96: =IF(A79=TRUE,VLOOKUP(A95,$V$2:$AG$12,12,FALSE),"") -> 

Sheet dictée de mots
A1: Dictée de mots CM2 | E1: Dictée de mots CM2
B3: Date: | C3: =Variables!D9 ->  | F3: Date: | G3: =Variables!D17 -> 2015-06-04
B7: Mot 1: | C7: =VLOOKUP(Variables!D10,Orthographe!C3:FR200,5,TRUE) ->  | F7: Mot 1: | G7: =VLOOKUP(Variables!D18,Orthographe!C3:FR200,5,TRUE) -> 1117:ignorer
B9: Mot 2: | C9: =VLOOKUP(Variables!D10,Orthographe!C3:FR200,6,TRUE) ->  | F9: Mot 2: | G9: =VLOOKUP(Variables!D18,Orthographe!C3:FR200,6,TRUE) -> 767:encadrer
B11: Mot 3: | C11: =VLOOKUP(Variables!D10,Orthographe!C3:FR200,7,TRUE) ->  | F11: Mot 3: | G11: =VLOOKUP(Variables!D18,Orthographe!C3:FR200,7,TRUE) -> 1845:quatorze
B13: Mot 4: | C13: =VLOOKUP(Variables!D10,Orthographe!C3:FR200,8,TRUE) ->  | F13: Mot 4: | G13: =VLOOKUP(Variables!D18,Orthographe!C3:FR200,8,TRUE) -> 670:une disparition; des disparitions
B15: Mot 5: | C15: =VLOOKUP(Variables!D10,Orthographe!C3:FR200,9,TRUE) ->  | F15: Mot 5: | G15: =VLOOKUP(Variables!D18,Orthographe!C3:FR200,9,TRUE) -> 1111:une humidité; des humidités
B17: Mot 6: | C17: =VLOOKUP(Variables!D10,Orthographe!C3:FR200,10,FALSE) ->  | F17: Mot 6: | G17: =VLOOKUP(Variables!D18,Orthographe!C3:FR200,10,TRUE) -> 76:ancien; ancienne; anciens; anciennes
B19: Mot 7: | C19: =VLOOKUP(Variables!D10,Orthographe!C3:FR200,11,FALSE) ->  | F19: Mot 7: | G19: =VLOOKUP(Variables!D18,Orthographe!C3:FR200,11,TRUE) -> 2303:trembler
B21: Mot 8: | C21: =VLOOKUP(Variables!D10,Orthographe!C3:FR200,153,FALSE) ->  | F21: Mot 8: | G21: =VLOOKUP(Variables!D18,Orthographe!C3:FR200,153,TRUE) -> chasser
B23: Mot 9: | C23: =VLOOKUP(Variables!D10,Orthographe!C3:FR200,152,FALSE) ->  | F23: Mot 9: | G23: =VLOOKUP(Variables!D18,Orthographe!C3:FR200,152,TRUE) -> un changement; des changements
B25: Mot 10: | C25: =VLOOKUP(Variables!D10,Orthographe!C3:FR200,151,FALSE) ->  | F25: Mot 10: | G25: =VLOOKUP(Variables!D18,Orthographe!C3:FR200,151,TRUE) -> charmer
A28: Dictée de mots CM2 | E28: Dictée de mots CM2
B30: Date: | C30: =Variables!D13 -> 2015-06-02 | F30: Date: | G30: =Variables!D21 -> 2015-06-05
B34: Mot 1: | C34: =VLOOKUP(Variables!D14,Orthographe!C3:FR200,5,TRUE) -> 1854:quitter | F34: Mot 1: | G34: =VLOOKUP(Variables!D22,Orthographe!C3:FR200,5,TRUE) -> 1959:résister
B36: Mot 2: | C36: =VLOOKUP(Variables!D14,Orthographe!C3:FR200,6,TRUE) -> 131:auprès | F36: Mot 2: | G36: =VLOOKUP(Variables!D22,Orthographe!C3:FR200,6,TRUE) -> 1180:une invention; des inventions
B38: Mot 3: | C38: =VLOOKUP(Variables!D14,Orthographe!C3:FR200,7,TRUE) -> 1709:plutôt | F38: Mot 3: | G38: =VLOOKUP(Variables!D22,Orthographe!C3:FR200,7,TRUE) -> 1382:la mélancolie; les mélancolies
B40: Mot 4: | C40: =VLOOKUP(Variables!D14,Orthographe!C3:FR200,8,TRUE) -> 2117:silencieux; silencieuse; silencieux; silencieuses | F40: Mot 4: | G40: =VLOOKUP(Variables!D22,Orthographe!C3:FR200,8,TRUE) -> 319:une carrière; des carrières
B42: Mot 5: | C42: =VLOOKUP(Variables!D14,Orthographe!C3:FR200,9,TRUE) -> 825:une erreur; des erreurs | F42: Mot 5: | G42: =VLOOKUP(Variables!D22,Orthographe!C3:FR200,9,TRUE) -> 1811:une proie; des proies
B44: Mot 6: | C44: =VLOOKUP(Variables!D14,Orthographe!C3:FR200,10,TRUE) -> 500:un cordonnier; des cordonniers | F44: Mot 6: | G44: =VLOOKUP(Variables!D22,Orthographe!C3:FR200,10,TRUE) -> 1328:la majesté; les majestés
B46: Mot 7: | C46: =VLOOKUP(Variables!D14,Orthographe!C3:FR200,11,TRUE) -> 1778:presser | F46: Mot 7: | G46: =VLOOKUP(Variables!D22,Orthographe!C3:FR200,11,TRUE) -> 431:un coffret; des coffrets
B48: Mot 8: | C48: =VLOOKUP(Variables!D14,Orthographe!C3:FR200,153,TRUE) -> cela | F48: Mot 8: | G48: =VLOOKUP(Variables!D22,Orthographe!C3:FR200,153,TRUE) -> un chiffre; des chiffres
B50: Mot 9: | C50: =VLOOKUP(Variables!D14,Orthographe!C3:FR200,152,TRUE) -> celui-là; celle-là; ceux-là; celles-là | F50: Mot 9: | G50: =VLOOKUP(Variables!D22,Orthographe!C3:FR200,152,TRUE) -> un cheval; des chevaux
B52: Mot 10: | C52: =VLOOKUP(Variables!D14,Orthographe!C3:FR200,151,TRUE) -> la chair; les chairs | F52: Mot 10: | G52: =VLOOKUP(Variables!D22,Orthographe!C3:FR200,151,TRUE) -> la chaussée; les chaussées

Sheet Orthographe (hidden)
B1: Classe | D1: =Variables!G5 -> 7 | E1: nombre de mots par jour | R1: 51.5 | T1: =VLOOKUP($B$2,$BA$6:$BE$10,2,FALSE) -> 5 | AN1: singulier | AO1: singulier + pluriel | AP1: classe: | AQ1: =B2 -> CM2 | AR1: affichage | AS1: 2 | FI1: nombre de mots par jour: | FJ1: =Variables!G5 -> 7 | FL1: mots manquants: | FM1: =10-FJ1 -> 3
B2: =Variables!F3 -> CM2 | D2: =Variables!K5 -> 1460 | E2: numéro du premier mot | S2: valide | T2: =IF($D$1>=1,TRUE,FALSE) -> TRUE | U2: Mot 1 | V2: =IF($D$1>=2,TRUE,FALSE) -> TRUE | W2: Mot 2 | X2: =IF($D$1>=3,TRUE,FALSE) -> TRUE | Y2: Mot 3 | Z2: =IF($D$1>=4,TRUE,FALSE) -> TRUE | AA2: Mot 4 | AB2: =IF($D$1>=5,TRUE,FALSE) -> TRUE | AC2: Mot 5 | AD2: =IF($D$1>=6,TRUE,FALSE) -> TRUE | AE2: Mot 6 | AF2: =IF($D$1>=7,TRUE,FALSE) -> TRUE | AG2: Mot 7 | AH2: =IF($D$1>=8,TRUE,FALSE) -> FALSE | AI2: Mot 8 | AJ2: =IF($D$1>=9,TRUE,FALSE) -> FALSE | AK2: Mot 9 | AL2: =IF($D$1>=10,TRUE,FALSE) -> FALSE | AM2: Mot 10 | DN2: ordre | FG2: Mots supplémentaires
C3: jour | E3: Mots à apprendre | Q3: Page à revoir | T3: Mots | AP3: ordre | AQ3: place | AR3: Mots | AT3: CP | AU3: CE1 | AV3: CE2 | AW3: CM1 | AX3: CM2 | AY3: ordre | BA3: Classe | BC3: Nb mots | BD3: Nombre de mots par jour | BE3: Dernier mot année précédente | BF3: Nombre de pages | BG3: Nombre mots dictés | BI3: page | BJ3: jour | BK3: date | BN3: 1 | BO3: 2 | BP3: 3 | BQ3: 4 | BR3: 5 | BS3: 6 | BT3: 7 | BU3: 8 | BV3: 9 | BW3: 10 | BX3: 11 | BY3: 12 | BZ3: 13 | CA3: 14 | CB3: 15 | CC3: 16 | CD3: 17 | CE3: 18 | CF3: 19 | CG3: 20 | CH3: 21 | CI3: 22 | CJ3: 23 | CK3: 24 | CL3: 25 | CO3: 1 | CP3: 2 | CQ3: 3 | CR3: 4 | CS3: 5 | CT3: 6 | CU3: 7 | CV3: 8 | CW3: 9 | CX3: 10 | CY3: 11 | CZ3: 12 | DA3: 13 | DB3: 14 | DC3: 15 | DD3: 16 | DE3: 17 | DF3: 18 | DG3: 19 | DH3: 20 | DI3: 21 | DJ3: 22 | DK3: 23 | DL3: 24 | DM3: 25 | DN3: 1 | DO3: 2 | DP3: 3 | DQ3: 4 | DR3: 5 | DS3: 6 | DT3: 7 | DU3: 8 | DV3: 9 | DW3: 10 | DX3: 11 | DY3: 12 | DZ3: 13 | EA3: 14 | EB3: 15 | EC3: 16 | ED3: 17 | EE3: 18 | EF3: 19 | EG3: 20 | EH3: 21 | EI3: 22 | EJ3: 23 | EK3: 24 | EL3: 25 | EM3: 1 | EN3: 2 | EO3: 3 | EP3: 4 | EQ3: 5 | ER3: 6 | ES3: 7 | ET3: 8 | EU3: 9 | EV3: 10 | EW3: 1 | EX3: 2 | EY3: 3 | EZ3: 4 | FA3: 5 | FB3: 6 | FC3: 7 | FD3: 8 | FE3: 9 | FF3: 10 | FG3: 1 | FH3: 2 | FI3: 3 | FJ3: 4 | FK3: 5 | FL3: 6 | FM3: 7 | FN3: 8 | FO3: 9 | FP3: 10
A4: =C4 -> 1 | B4: =D2 -> 1460 | C4: 1 | D4: =VLOOKUP(C4,Calendrier!C$96:D$430,2,TRUE) -> 2014-09-04 | E4: =IF(S4=TRUE,CONCATENATE(G4,H4,I4,J4,K4,L4,M4,N4,O4,P4),"") -> 580:décider 1591:par 693:donner 1110:humide; humides 375:un château; des châteaux 2216:une tâche; des tâches 433:la coiffure; les coiffures | F4: =FQ4 -> ; une abeille; des abeilles; aboutir; un acheteur; des acheteurs. | G4: =IF(AND(ISERROR(T4)=FALSE,U4<>""),CONCATENATE(" ",T4,":",U4),"") -> 580:décider | H4: =IF(AND(ISERROR(V4)=FALSE,W4<>""),CONCATENATE(" ",V4,":",W4),"") -> 1591:par | I4: =IF(AND(ISERROR(X4)=FALSE,Y4<>""),CONCATENATE(" ",X4,":",Y4),"") -> 693:donner | J4: =IF(AND(ISERROR(Z4)=FALSE,AA4<>""),CONCATENATE(" ",Z4,":",AA4),"") -> 1110:humide; humides | K4: =IF(AND(ISERROR(AB4)=FALSE,AC4<>""),CONCATENATE(" ",AB4,":",AC4),"") -> 375:un château; des châteaux | L4: =IF(AND(ISERROR(AD4)=FALSE,AE4<>""),CONCATENATE(" ",AD4,":",AE4),"") -> 2216:une tâche; des tâches | M4: =IF(AND(ISERROR(AF4)=FALSE,AG4<>""),CONCATENATE(" ",AF4,":",AG4),"") -> 433:la coiffure; les coiffures | N4: =IF(AND(ISERROR(AH4)=FALSE,AI4<>""),CONCATENATE(" ",AH4,":",AI4),"") ->  | O4: =IF(AND(ISERROR(AJ4)=FALSE,AK4<>""),CONCATENATE(" ",AJ4,":",AK4),"") ->  | P4: =IF(AND(ISERROR(AL4)=FALSE,AM4<>""),CONCATENATE(" ",AL4,":",AM4),"") ->  | Q4: 3 | R4: =C4/(R$1*2) -> 0.009708737864 | S4: =IF(ISERROR(T4)=FALSE,TRUE,FALSE) -> TRUE | T4: =IF($T$2=TRUE,VLOOKUP($B4,$AP$4:$AX$2436,VLOOKUP($B$2,$BA$6:$BE$10,2,FALSE)+4,FALSE),"") -> 580 | U4: =IF(AND($T$2=TRUE,ISERROR(T4)=FALSE),VLOOKUP($B4,$AP$4:$AX$2436,3),"") -> décider | V4: =IF($V$2=TRUE,VLOOKUP($B4+1,$AP$4:$AX$2436,VLOOKUP($B$2,$BA$6:$BE$10,2,FALSE)+4,FALSE),"") -> 1591 | W4: =IF(AND($V$2=TRUE,ISERROR(V4)=FALSE),VLOOKUP($B4+1,$AP$4:$AX$2436,3),"") -> par | X4: =IF($X$2=TRUE,VLOOKUP($B4+2,$AP$4:$AX$2436,VLOOKUP($B$2,$BA$6:$BE$10,2,FALSE)+4,FALSE),"") -> 693 | Y4: =IF(AND($X$2=TRUE,ISERROR(X4)=FALSE),VLOOKUP($B4+2,$AP$4:$AX$2436,3),"") -> donner | Z4: =IF($Z$2=TRUE,VLOOKUP($B4+3,$AP$4:$AX$2436,VLOOKUP($B$2,$BA$6:$BE$10,2,FALSE)+4,FALSE),"") -> 1110 | AA4: =IF(AND($Z$2=TRUE,ISERROR(Z4)=FALSE),VLOOKUP($B4+3,$AP$4:$AX$2436,3),"") -> humide; humides | AB4: =IF($AB$2=TRUE,VLOOKUP($B4+4,$AP$4:$AX$2436,VLOOKUP($B$2,$BA$6:$BE$10,2,FALSE)+4,FALSE),"") -> 375 | AC4: =IF(AND($AB$2=TRUE,ISERROR(AB4)=FALSE),VLOOKUP($B4+4,$AP$4:$AX$2436,3),"") -> un château; des châteaux | AD4: =IF($AD$2=TRUE,VLOOKUP($B4+5,$AP$4:$AX$2436,VLOOKUP($B$2,$BA$6:$BE$10,2,FALSE)+4,FALSE),"") -> 2216 | AE4: =IF(AND($AD$2=TRUE,ISERROR(AD4)=FALSE),VLOOKUP($B4+5,$AP$4:$AX$2436,3),"") -> une tâche; des tâches | AF4: =IF($AF$2=TRUE,VLOOKUP($B4+6,$AP$4:$AX$2436,VLOOKUP($B$2,$BA$6:$BE$10,2,FALSE)+4,FALSE),"") -> 433 | AG4: =IF(AND($AF$2=TRUE,ISERROR(AF4)=FALSE),VLOOKUP($B4+6,$AP$4:$AX$2436,3),"") -> la coiffure; les coiffures | AH4: =IF($AH$2=TRUE,VLOOKUP($B4+7,$AP$4:$AX$2436,VLOOKUP($B$2,$BA$6:$BE$10,2,FALSE)+4,FALSE),"") ->  | AI4: =IF(AND($AH$2=TRUE,ISERROR(AH4)=FALSE),VLOOKUP($B4+7,$AP$4:$AX$2436,3),"") ->  | AJ4: =IF($AJ$2=TRUE,VLOOKUP($B4+8,$AP$4:$AX$2436,VLOOKUP($B$2,$BA$6:$BE$10,2,FALSE)+4,FALSE),"") ->  | AK4: =IF(AND($AJ$2=TRUE,ISERROR(AJ4)=FALSE),VLOOKUP($B4+8,$AP$4:$AX$2436,3),"") ->  | AL4: =IF($AL$2=TRUE,VLOOKUP($B4+9,$AP$4:$AX$2436,VLOOKUP($B$2,$BA$6:$BE$10,2,FALSE)+4,FALSE),"") ->  | AM4: =IF(AND($AL$2=TRUE,ISERROR(AL4)=FALSE),VLOOKUP($B4+9,$AP$4:$AX$2436,3),"") ->  | AN4: un papa | AO4: un papa; des papas | AP4: 1 | AQ4: =OFFSET(AS4,0,VLOOKUP($AQ$1,$BA$6:$BB$10,2,FALSE)) -> 1587 | AR4: =IF($AS$1=2,AO4,AN4) -> un papa; des papas | AS4: CP | AT4: 75 | AU4: 178 | AV4: 476 | AW4: 926 | AX4: 1587 | AY4: =AP4 -> 1 | BI4: =Q4 -> 3 | BJ4: =C4 -> 1 | BK4: =D4 -> 2014-09-04 | BL4: =B4 -> 1460 | BM4: 0 | BN4: =IF(VLOOKUP($BM4+BN$3,$AQ$4:$AY$2436,9,FALSE)<=$BL4,VLOOKUP($BM4+BN$3,$AQ$4:$AR$2436,2,FALSE),"") -> [son nom de famille] | BO4: =IF(VLOOKUP($BM4+BO$3,$AQ$4:$AY$2436,9,FALSE)<=$BL4,VLOOKUP($BM4+BO$3,$AQ$4:$AR$2436,2,FALSE),"") -> [son prénom] | BP4: à | BR4: une abeille; des abeilles | BT4: aboutir | CC4: un achat; des achats | CD4: acheter | CE4: un acheteur; des acheteurs | CF4: une acheteuse; des acheteuses | CI4: une action; des actions | CM4: 1 | CN4: =25-COUNTBLANK(BN4:CL4) -> 10 | CO4: =IF(BN4<>"",RAND(),"") -> 0.8791765689 | CP4: 0.959229414 | CQ4: 0.6164103424 | CS4: 0.01649530198 | CU4: 0.02785175368 | DD4: 0.4898600453 | DE4: 0.9219970709 | DF4: 0.4031875038 | DG4: 0.7173229321 | DJ4: 0.9016977365 | DN4: =IF(CO4<>"",RANK(CO4,$CO4:$DM4,1),"") -> 7 | DO4: 10 | DP4: 5 | DR4: 1 | DT4: 2 | EC4: 4 | ED4: 9 | EE4: 3 | EF4: 6 | EI4: 8 | EM4: =IF($CN4>=EM$3,HLOOKUP(EM$3,$DN4:$EL154,151,FALSE),"") -> 5 | EN4: 7 | EO4: 18 | EP4: 16 | EQ4: 3 | ER4: 19 | ES4: 1 | ET4: 22 | EU4: 17 | EV4: 2 | EW4: =IF(EW$3<=$FM$1,OFFSET($BM4,0,EM4),"") -> une abeille; des abeilles | EX4: aboutir | EY4: un acheteur; des acheteurs | FG4: =IF(FG$3<=$FM$1,CONCATENATE("; ",OFFSET($BM4,0,EM4)),"") -> ; une abeille; des abeilles | FH4: =IF(FH$3<=$FM$1,CONCATENATE("; ",OFFSET($BM4,0,EN4)),"") -> ; aboutir | FI4: =IF(FI$3<=$FM$1,CONCATENATE("; ",OFFSET($BM4,0,EO4)),"") -> ; un acheteur; des acheteurs | FJ4: =IF(FJ$3<=$FM$1,CONCATENATE("; ",OFFSET($BM4,0,EP4)),"") ->  | FK4: =IF(FK$3<=$FM$1,CONCATENATE("; ",OFFSET($BM4,0,EQ4)),"") ->  | FL4: =IF(FL$3<=$FM$1,CONCATENATE("; ",OFFSET($BM4,0,ER4)),"") ->  | FM4: =IF(FM$3<=$FM$1,CONCATENATE("; ",OFFSET($BM4,0,ES4)),"") ->  | FN4: =IF(FN$3<=$FM$1,CONCATENATE("; ",OFFSET($BM4,0,ET4)),"") ->  | FO4: =IF(FO$3<=$FM$1,CONCATENATE("; ",OFFSET($BM4,0,EU4)),"") ->  | FP4: =IF(FP$3<=$FM$1,CONCATENATE("; ",OFFSET($BM4,0,EV4)),"") ->  | FQ4: =CONCATENATE(FG4,FH4,FI4,FJ4,FK4,FL4,FM4,FN4,FO4,FP4,".") -> ; une abeille; des abeilles; aboutir; un acheteur; des acheteurs.
A5: =C5 -> 2 | B5: =$D$2+C4*$D$1 -> 1467 | C5: =C4+1 -> 2 | D5: =VLOOKUP(C5,Calendrier!C$96:D$430,2,TRUE) -> 2014-09-05 | E5: 1881:recevoir 687:un doigt; des doigts 1519:la nourriture; les nourritures 172:un ballon; des ballons 1466:mou, mol; molle; moux; molles 718:durer 1390:un mendiant; des mendiants | F5: =FQ5 -> ; un âge; des âges; affaiblir; admirable; admirables. | G5: 1881:recevoir | H5: 687:un doigt; des doigts | I5: 1519:la nourriture; les nourritures | J5: 172:un ballon; des ballons | K5: 1466:mou, mol; molle; moux; molles | L5: 718:durer | M5: 1390:un mendiant; des mendiants | Q5: =IF(Q4<$R$1,Q4+0.5,3) -> 3.5 | R5: 0.01941747573 | S5: TRUE | T5: =IF($T$2=TRUE,VLOOKUP($B5,$AP$4:$AX$2436,VLOOKUP($B$2,$BA$6:$BE$10,2,FALSE)+4,FALSE),"") -> 1881 | U5: =IF(AND($T$2=TRUE,ISERROR(T5)=FALSE),VLOOKUP($B5,$AP$4:$AX$2436,3),"") -> recevoir | V5: =IF($V$2=TRUE,VLOOKUP($B5+1,$AP$4:$AX$2436,VLOOKUP($B$2,$BA$6:$BE$10,2,FALSE)+4,FALSE),"") -> 687 | W5: =IF(AND($V$2=TRUE,ISERROR(V5)=FALSE),VLOOKUP($B5+1,$AP$4:$AX$2436,3),"") -> un doigt; des doigts | X5: =IF($X$2=TRUE,VLOOKUP($B5+2,$AP$4:$AX$2436,VLOOKUP($B$2,$BA$6:$BE$10,2,FALSE)+4,FALSE),"") -> 1519 | Y5: =IF(AND($X$2=TRUE,ISERROR(X5)=FALSE),VLOOKUP($B5+2,$AP$4:$AX$2436,3),"") -> la nourriture; les nourritures | Z5: =IF($Z$2=TRUE,VLOOKUP($B5+3,$AP$4:$AX$2436,VLOOKUP($B$2,$BA$6:$BE$10,2,FALSE)+4,FALSE),"") -> 172 | AA5: =IF(AND($Z$2=TRUE,ISERROR(Z5)=FALSE),VLOOKUP($B5+3,$AP$4:$AX$2436,3),"") -> un ballon; des ballons | AB5: =IF($AB$2=TRUE,VLOOKUP($B5+4,$AP$4:$AX$2436,VLOOKUP($B$2,$BA$6:$BE$10,2,FALSE)+4,FALSE),"") -> 1466 | AC5: =IF(AND($AB$2=TRUE,ISERROR(AB5)=FALSE),VLOOKUP($B5+4,$AP$4:$AX$2436,3),"") -> mou, mol; molle; moux; molles | AD5: =IF($AD$2=TRUE,VLOOKUP($B5+5,$AP$4:$AX$2436,VLOOKUP($B$2,$BA$6:$BE$10,2,FALSE)+4,FALSE),"") -> 718 | AE5: =IF(AND($AD$2=TRUE,ISERROR(AD5)=FALSE),VLOOKUP($B5+5,$AP$4:$AX$2436,3),"") -> durer | AF5: =IF($AF$2=TRUE,VLOOKUP($B5+6,$AP$4:$AX$2436,VLOOKUP($B$2,$BA$6:$BE$10,2,FALSE)+4,FALSE),"") -> 1390 | AG5: =IF(AND($AF$2=TRUE,ISERROR(AF5)=FALSE),VLOOKUP($B5+6,$AP$4:$AX$2436,3),"") -> un mendiant; des mendiants | AH5: =IF($AH$2=TRUE,VLOOKUP($B5+7,$AP$4:$AX$2436,VLOOKUP($B$2,$BA$6:$BE$10,2,FALSE)+4,FALSE),"") ->  | AI5: =IF(AND($AH$2=TRUE,ISERROR(AH5)=FALSE),VLOOKUP($B5+7,$AP$4:$AX$2436,3),"") ->  | AJ5: =IF($AJ$2=TRUE,VLOOKUP($B5+8,$AP$4:$AX$2436,VLOOKUP($B$2,$BA$6:$BE$10,2,FALSE)+4,FALSE),"") ->  | AK5: =IF(AND($AJ$2=TRUE,ISERROR(AJ5)=FALSE),VLOOKUP($B5+8,$AP$4:$AX$2436,3),"") ->  | AL5: =IF($AL$2=TRUE,VLOOKUP($B5+9,$AP$4:$AX$2436,VLOOKUP($B$2,$BA$6:$BE$10,2,FALSE)+4,FALSE),"") ->  | AM5: =IF(AND($AL$2=TRUE,ISERROR(AL5)=FALSE),VLOOKUP($B5+9,$AP$4:$AX$2436,3),"") ->  | AN5: une maman | AO5: une maman; des mamans | AP5: 2 | AQ5: =OFFSET(AS5,0,VLOOKUP($AQ$1,$BA$6:$BB$10,2,FALSE)) -> 1337 | AR5: =IF($AS$1=2,AO5,AN5) -> une maman; des mamans | AS5: CP | AT5: 60 | AU5: 140 | AV5: 389 | AW5: 752 | AX5: 1337 | AY5: =AP5 -> 2 | BI5: 3.5 | BJ5: 2 | BK5: 2014-09-05 | BL5: =B5 -> 1467 | BM5: =BM4+25 -> 25 | BN5: =IF(VLOOKUP($BM5+BN$3,$AQ$4:$AY$2436,9,FALSE)<=$BL5,VLOOKUP($BM5+BN$3,$AQ$4:$AR$2436,2,FALSE),"") ->  | BP5: admirable; admirables | BV5: adroit; adroite; adroits; adroites | BY5: affaiblir | CF5: un âge; des âges | CG5: agile; agiles | CJ5: agréable; agréables | CK5: agréablement | CM5: 2 | CN5: =25-COUNTBLANK(BN5:CL5) -> 7 | CO5: =IF(BN5<>"",RAND(),"") ->  | CP5: =IF(BO5<>"",RAND(),"") ->  | CQ5: =IF(BP5<>"",RAND(),"") -> 0.4253581684 | CR5: =IF(BQ5<>"",RAND(),"") ->  | CS5: =IF(BR5<>"",RAND(),"") ->  | CT5: =IF(BS5<>"",RAND(),"") ->  | CU5: =IF(BT5<>"",RAND(),"") ->  | CV5: =IF(BU5<>"",RAND(),"") ->  | CW5: =IF(BV5<>"",RAND(),"") -> 0.589117174 | CX5: =IF(BW5<>"",RAND(),"") ->  | CY5: =IF(BX5<>"",RAND(),"") ->  | CZ5: =IF(BY5<>"",RAND(),"") -> 0.1960595297 | DA5: =IF(BZ5<>"",RAND(),"") ->  | DB5: =IF(CA5<>"",RAND(),"") ->  | DC5: =IF(CB5<>"",RAND(),"") ->  | DD5: =IF(CC5<>"",RAND(),"") ->  | DE5: =IF(CD5<>"",RAND(),"") ->  | DF5: =IF(CE5<>"",RAND(),"") ->  | DG5: =IF(CF5<>"",RAND(),"") -> 0.04463239052 | DH5: =IF(CG5<>"",RAND(),"") -> 0.6610819156 | DI5: =IF(CH5<>"",RAND(),"") ->  | DJ5: =IF(CI5<>"",RAND(),"") ->  | DK5: =IF(CJ5<>"",RAND(),"") -> 0.9318683502 | DL5: =IF(CK5<>"",RAND(),"") -> 0.8868363839 | DM5: =IF(CL5<>"",RAND(),"") ->  | DN5: =IF(CO5<>"",RANK(CO5,$CO5:$DM5,1),"") ->  | DO5: =IF(CP5<>"",RANK(CP5,$CO5:$DM5,1),"") ->  | DP5: =IF(CQ5<>"",RANK(CQ5,$CO5:$DM5,1),"") -> 3 | DQ5: =IF(CR5<>"",RANK(CR5,$CO5:$DM5,1),"") ->  | DR5: =IF(CS5<>"",RANK(CS5,$CO5:$DM5,1),"") ->  | DS5: =IF(CT5<>"",RANK(CT5,$CO5:$DM5,1),"") ->  | DT5: =IF(CU5<>"",RANK(CU5,$CO5:$DM5,1),"") ->  | DU5: =IF(CV5<>"",RANK(CV5,$CO5:$DM5,1),"") ->  | DV5: =IF(CW5<>"",RANK(CW5,$CO5:$DM5,1),"") -> 4 | DW5: =IF(CX5<>"",RANK(CX5,$CO5:$DM5,1),"") ->  | DX5: =IF(CY5<>"",RANK(CY5,$CO5:$DM5,1),"") ->  | DY5: =IF(CZ5<>"",RANK(CZ5,$CO5:$DM5,1),"") -> 2 | DZ5: =IF(DA5<>"",RANK(DA5,$CO5:$DM5,1),"") ->  | EA5: =IF(DB5<>"",RANK(DB5,$CO5:$DM5,1),"") ->  | EB5: =IF(DC5<>"",RANK(DC5,$CO5:$DM5,1),"") ->  | EC5: =IF(DD5<>"",RANK(DD5,$CO5:$DM5,1),"") ->  | ED5: =IF(DE5<>"",RANK(DE5,$CO5:$DM5,1),"") ->  | EE5: =IF(DF5<>"",RANK(DF5,$CO5:$DM5,1),"") ->  | EF5: =IF(DG5<>"",RANK(DG5,$CO5:$DM5,1),"") -> 1 | EG5: =IF(DH5<>"",RANK(DH5,$CO5:$DM5,1),"") -> 5 | EH5: =IF(DI5<>"",RANK(DI5,$CO5:$DM5,1),"") ->  | EI5: =IF(DJ5<>"",RANK(DJ5,$CO5:$DM5,1),"") ->  | EJ5: =IF(DK5<>"",RANK(DK5,$CO5:$DM5,1),"") -> 7 | EK5: =IF(DL5<>"",RANK(DL5,$CO5:$DM5,1),"") -> 6 | EL5: =IF(DM5<>"",RANK(DM5,$CO5:$DM5,1),"") ->  | EM5: =IF($CN5>=EM$3,HLOOKUP(EM$3,$DN5:$EL155,151,FALSE),"") -> 19 | EN5: 12 | EO5: 3 | EP5: 9 | EQ5: 20 | ER5: 24 | ES5: 23 | EW5: =IF(EW$3<=$FM$1,OFFSET($BM5,0,EM5),"") -> un âge; des âges | EX5: =IF(EX$3<=$FM$1,OFFSET($BM5,0,EN5),"") -> affaiblir | EY5: =IF(EY$3<=$FM$1,OFFSET($BM5,0,EO5),"") -> admirable; admirables | EZ5: =IF(EZ$3<=$FM$1,OFFSET($BM5,0,EP5),"") ->  | FA5: =IF(FA$3<=$FM$1,OFFSET($BM5,0,EQ5),"") ->  | FB5: =IF(FB$3<=$FM$1,OFFSET($BM5,0,ER5),"") ->  | FC5: =IF(FC$3<=$FM$1,OFFSET($BM5,0,ES5),"") ->  | FD5: =IF(FD$3<=$FM$1,OFFSET($BM5,0,ET5),"") ->  | FE5: =IF(FE$3<=$FM$1,OFFSET($BM5,0,EU5),"") ->  | FF5: =IF(FF$3<=$FM$1,OFFSET($BM5,0,EV5),"") ->  | FG5: =IF(FG$3<=$FM$1,CONCATENATE("; ",OFFSET($BM5,0,EM5)),"") -> ; un âge; des âges | FH5: =IF(FH$3<=$FM$1,CONCATENATE("; ",OFFSET($BM5,0,EN5)),"") -> ; affaiblir | FI5: =IF(FI$3<=$FM$1,CONCATENATE("; ",OFFSET($BM5,0,EO5)),"") -> ; admirable; admirables | FJ5: =IF(FJ$3<=$FM$1,CONCATENATE("; ",OFFSET($BM5,0,EP5)),"") ->  | FK5: =IF(FK$3<=$FM$1,CONCATENATE("; ",OFFSET($BM5,0,EQ5)),"") ->  | FL5: =IF(FL$3<=$FM$1,CONCATENATE("; ",OFFSET($BM5,0,ER5)),"") ->  | FM5: =IF(FM$3<=$FM$1,CONCATENATE("; ",OFFSET($BM5,0,ES5)),"") ->  | FN5: =IF(FN$3<=$FM$1,CONCATENATE("; ",OFFSET($BM5,0,ET5)),"") ->  | FO5: =IF(FO$3<=$FM$1,CONCATENATE("; ",OFFSET($BM5,0,EU5)),"") ->  | FP5: =IF(FP$3<=$FM$1,CONCATENATE("; ",OFFSET($BM5,0,EV5)),"") ->  | FQ5: =CONCATENATE(FG5,FH5,FI5,FJ5,FK5,FL5,FM5,FN5,FO5,FP5,".") -> ; un âge; des âges; affaiblir; admirable; admirables.
A6: 3 | B6: 1474 | C6: =C5+1 -> 3 | D6: =VLOOKUP(C6,Calendrier!C$96:D$430,2,TRUE) -> 2014-09-08 | E6: 1391:une mendiante; des mendiantes 189:un bâton; des bâtons 440:un combat; des combats 1361:un marin; des marins 712:drôle; drôles 1755:pousser 367:charmant; charmante; charmants; charmantes | F6: ; un amour; des amours; un an; les ans; amicalement. | G6: 1391:une mendiante; des mendiantes | H6: 189:un bâton; des bâtons | I6: 440:un combat; des combats | J6: 1361:un marin; des marins | K6: 712:drôle; drôles | L6: 1755:pousser | M6: 367:charmant; charmante; charmants; charmantes | Q6: =IF(Q5<$R$1,Q5+0.5,3) -> 4 | R6: 0.02912621359 | S6: TRUE | T6: 1391 | U6: une mendiante; des mendiantes | V6: 189 | W6: un bâton; des bâtons | X6: 440 | Y6: un combat; des combats | Z6: 1361 | AA6: un marin; des marins | AB6: 712 | AC6: drôle; drôles | AD6: 1755 | AE6: pousser | AF6: 367 | AG6: charmant; charmante; charmants; charmantes | AN6: c'est | AO6: c'est | AP6: 3 | AQ6: 343 | AR6: c'est | AS6: CP | AT6: 12 | AU6: 32 | AV6: 90 | AW6: 187 | AX6: 343 | AY6: 3 | BA6: CP | BB6: 1 | BC6: 109 | BD6: 1 | BE6: 0 | BF6: 3 | BG6: 3 | BI6: 4 | BJ6: 3 | BK6: 2014-09-08 | BL6: 1474 | BM6: =BM5+25 -> 50 | BN6: une aide; des aides | BQ6: une aile; des ailes | BR6: aimable; aimables | BS6: aimer | BT6: un air; des airs | BU6: ajouter | BV6: un aliment; des aliments | BW6: une allée; des allées | BX6: aller | CF6: un ami; une amie; des amis; des amies | CH6: amicalement | CI6: un amour; des amours | CK6: un amusement; des amusements | CL6: un an; les ans | CM6: 3 | CN6: 14 | CO6: 0.7976570231 | CR6: 0.6636254767 | CS6: 0.4400800322 | CT6: 0.7218408899 | CU6: 0.3875153879 | CV6: 0.4045582418 | CW6: 0.6617437572 | CX6: 0.4826781056 | CY6: 0.8454275874 | DG6: 0.776842011 | DI6: 0.07377882162 | DJ6: 0.006037796386 | DL6: 0.4858194252 | DM6: 0.05708606424 | DN6: 13 | DQ6: 10 | DR6: 6 | DS6: 11 | DT6: 4 | DU6: 5 | DV6: 9 | DW6: 7 | DX6: 14 | EF6: 12 | EH6: 3 | EI6: 1 | EK6: 8 | EL6: 2 | EM6: =IF($CN6>=EM$3,HLOOKUP(EM$3,$DN6:$EL156,151,FALSE),"") -> 22 | EN6: 25 | EO6: 21 | EP6: 7 | EQ6: 8 | ER6: 5 | ES6: 10 | ET6: 24 | EU6: 9 | EV6: 4 | EW6: un amour; des amours | EX6: un an; les ans | EY6: amicalement | FG6: ; un amour; des amours | FH6: ; un an; les ans | FI6: ; amicalement | FQ6: ; un amour; des amours; un an; les ans; amicalement.
A7: 4 | B7: 1481 | C7: 4 | D7: =VLOOKUP(C7,Calendrier!C$96:D$430,2,TRUE) -> 2014-09-09 | E7: 107:une arrivée; des arrivées 2082:un sentier; des sentiers 1469:mourir 336:le centre; les centres 176:un bandit; des bandits 1664:peupler 1266:libérer | F7: ; un arbuste; des arbustes; après; un argent. | G7: 107:une arrivée; des arrivées | H7: 2082:un sentier; des sentiers | I7: 1469:mourir | J7: 336:le centre; les centres | K7: 176:un bandit; des bandits | L7: 1664:peupler | M7: 1266:libérer | Q7: 4.5 | R7: 0.03883495146 | S7: TRUE | T7: 107 | U7: une arrivée; des arrivées | V7: 2082 | W7: un sentier; des sentiers | X7: 1469 | Y7: mourir | Z7: 336 | AA7: le centre; les centres | AB7: 176 | AC7: un bandit; des bandits | AD7: 1664 | AE7: peupler | AF7: 1266 | AG7: libérer | AN7: [son prénom] | AO7: [son prénom] | AP7: 4 | AQ7: 2 | AR7: [son prénom] | AS7: CP | AT7: 1 | AU7: 2 | AV7: 2 | AW7: 2 | AX7: 2 | AY7: 4 | BA7: CE1 | BB7: 2 | BC7: 247 | BD7: 1 | BE7: 110 | BF7: 5 | BG7: 5 | BI7: 4.5 | BJ7: 4 | BK7: 2014-09-09 | BL7: 1481 | BM7: 75 | BO7: un âne; des ânes | BP7: une ânesse; des ânesses | BR7: un angle; des angles | BS7: un animal; des animaux | BU7: une année; des années | CC7: apprendre | CE7: approcher | CF7: après | CI7: un arbitre; des arbitres | CJ7: un arbre; des arbres | CK7: un arbuste; des arbustes | CL7: un argent | CM7: 4 | CN7: 12 | CP7: 0.4780635725 | CQ7: 0.8595985296 | CS7: 0.9104122224 | CT7: 0.6091283471 | CV7: 0.6128467313 | DD7: 0.4665517689 | DF7: 0.9654855852 | DG7: 0.3446635561 | DJ7: 0.9616798317 | DK7: 0.885003528 | DL7: 0.2098327509 | DM7: 0.4165575308 | DO7: 5 | DP7: 8 | DR7: 10 | DS7: 6 | DU7: 7 | EC7: 4 | EE7: 12 | EF7: 2 | EI7: 11 | EJ7: 9 | EK7: =IF(DL7<>"",RANK(DL7,$CO7:$DM7,1),"") -> 1 | EL7: =IF(DM7<>"",RANK(DM7,$CO7:$DM7,1),"") -> 3 | EM7: =IF($CN7>=EM$3,HLOOKUP(EM$3,$DN7:$EL157,151,FALSE),"") -> 24 | EN7: 19 | EO7: 25 | EP7: 16 | EQ7: 2 | ER7: 6 | ES7: 8 | ET7: 3 | EU7: 23 | EV7: 5 | EW7: un arbuste; des arbustes | EX7: après | EY7: un argent | FG7: ; un arbuste; des arbustes | FH7: ; après | FI7: ; un argent | FQ7: ; un arbuste; des arbustes; après; un argent.
A8: 5 | B8: 1488 | C8: 5 | D8: =VLOOKUP(C8,Calendrier!C$96:D$430,2,TRUE) -> 2014-09-11 | E8: 125:attirer 642:un détail; des détails 1203:jeter 1332:malgré 1616:un passage; des passages 82:une animation; des animations 2265:la toilette; les toilettes | F8: ; un article; des articles; une arrivée; des arrivées; un artiste; une artiste; des artistes. | G8: 125:attirer | H8: 642:un détail; des détails | I8: 1203:jeter | J8: 1332:malgré | K8: 1616:un passage; des passages | L8: 82:une animation; des animations | M8: 2265:la toilette; les toilettes | Q8: 5 | R8: 0.04854368932 | S8: TRUE | T8: 125 | U8: attirer | V8: 642 | W8: un détail; des détails | X8: 1203 | Y8: jeter | Z8: 1332 | AA8: malgré | AB8: 1616 | AC8: un passage; des passages | AD8: 82 | AE8: une animation; des animations | AF8: 2265 | AG8: la toilette; les toilettes | AN8: avec | AO8: avec | AP8: 5 | AQ8: 151 | AR8: avec | AS8: CP | AT8: 6 | AU8: 15 | AV8: 25 | AW8: 62 | AX8: 151 | AY8: 5 | BA8: CE2 | BB8: 3 | BC8: 750 | BD8: 4 | BE8: 253 | BF8: 14 | BG8: 10 | BI8: 5 | BJ8: 5 | BK8: 2014-09-11 | BL8: 1488 | BM8: 100 | BN8: une armée; des armées | BP8: une armoire; des armoires | BQ8: arracher | BT8: une arrivée; des arrivées | BX8: un article; des articles | BY8: un artiste; une artiste; des artistes | CF8: une attaque; des attaques | CL8: attirer | CM8: 5 | CN8: 8 | CO8: 0.9534226883 | CQ8: 0.8905686308 | CR8: 0.5714284756 | CU8: 0.1316074671 | CY8: 0.04932031173 | CZ8: 0.1948496869 | DG8: 0.6174787518 | DM8: 0.9953527806 | DN8: 7 | DP8: 6 | DQ8: 4 | DT8: 2 | DX8: 1 | DY8: 3 | EF8: 5 | EL8: 8 | EM8: =IF($CN8>=EM$3,HLOOKUP(EM$3,$DN8:$EL158,151,FALSE),"") -> 11 | EN8: 7 | EO8: 12 | EP8: 4 | EQ8: 19 | ER8: 3 | ES8: 1 | ET8: 25 | EW8: un article; des articles | EX8: une arrivée; des arrivées | EY8: un artiste; une artiste; des artistes | FG8: ; un article; des articles | FH8: ; une arrivée; des arrivées | FI8: ; un artiste; une artiste; des artistes | FQ8: ; un article; des articles; une arrivée; des arrivées; un artiste; une artiste; des artistes.
A9: 6 | B9: 1495 | C9: 6 | D9: =VLOOKUP(C9,Calendrier!C$96:D$430,2,TRUE) -> 2014-09-12 | E9: 1020:le gaz; les gaz 1873:raser 1844:un quart; des quarts 608:démolir 1769:préparer 283:un but; des buts 1222:juger | F9: ; autrefois; autrement; avant. | G9: 1020:le gaz; les gaz | H9: 1873:raser | I9: 1844:un quart; des quarts | J9: 608:démolir | K9: 1769:préparer | L9: 283:un but; des buts | M9: 1222:juger | Q9: 5.5 | R9: 0.05825242718 | S9: TRUE | T9: 1020 | U9: le gaz; les gaz | V9: 1873 | W9: raser | X9: 1844 | Y9: un quart; des quarts | Z9: 608 | AA9: démolir | AB9: 1769 | AC9: préparer | AD9: 283 | AE9: un but; des buts | AF9: 1222 | AG9: juger | AN9: une maison | AO9: une maison ; des maisons | AP9: 6 | AQ9: 1325 | AR9: une maison ; des maisons | AS9: CP | AT9: 58 | AU9: 136 | AV9: 382 | AW9: 744 | AX9: 1325 | AY9: 6 | BA9: CM1 | BB9: 4 | BC9: 1420 | BD9: 5 | BE9: 729 | BF9: 29 | BG9: 10 | BI9: 5.5 | BJ9: 6 | BK9: 2014-09-12 | BL9: 1495 | BM9: 125 | BO9: au | BP9: une aube; des aubes | BQ9: aucun | BV9: aussi | CA9: une automobile; des automobiles | CD9: autour | CE9: un autre; une autre; des autres | CF9: autrefois | CG9: autrement | CI9: avaler | CK9: avant | CL9: un avantage; des avantages | CM9: 6 | CN9: 12 | CP9: 0.4470371428 | CQ9: 0.7538894052 | CR9: 0.5624346175 | CW9: 0.4355393898 | DB9: 0.5024791395 | DE9: 0.6853787214 | DF9: 0.7906488508 | DG9: 0.2033591877 | DH9: 0.3689303708 | DJ9: 0.7631489737 | DL9: 0.4269808403 | DM9: 0.7050188199 | DO9: 5 | DP9: 10 | DQ9: 7 | DV9: 4 | EA9: 6 | ED9: 8 | EE9: 12 | EF9: 1 | EG9: 2 | EI9: 11 | EK9: =IF(DL9<>"",RANK(DL9,$CO9:$DM9,1),"") -> 3 | EL9: =IF(DM9<>"",RANK(DM9,$CO9:$DM9,1),"") -> 9 | EM9: =IF($CN9>=EM$3,HLOOKUP(EM$3,$DN9:$EL159,151,FALSE),"") -> 19 | EN9: 20 | EO9: 24 | EP9: 9 | EQ9: 2 | ER9: 14 | ES9: 4 | ET9: 17 | EU9: 25 | EV9: 3 | EW9: autrefois | EX9: autrement | EY9: avant | FG9: ; autrefois | FH9: ; autrement | FI9: ; avant | FQ9: ; autrefois; autrement; avant.
A10: 7 | B10: 1502 | C10: 7 | D10: =VLOOKUP(C10,Calendrier!C$96:D$430,2,TRUE) -> 2014-09-15 | E10: 538:un couvert; des couverts 1668:un pic; des pics 1992:rider 121:attendre 1424:le milieu; les milieux 1859:raconter 1757:un poussin; des poussins | F10: ; un bagage; des bagages; un avenir; des avenirs; un aviateur; des aviateurs. | G10: 538:un couvert; des couverts | H10: 1668:un pic; des pics | I10: 1992:rider | J10: 121:attendre | K10: 1424:le milieu; les milieux | L10: 1859:raconter | M10: 1757:un poussin; des poussins | Q10: 6 | R10: 0.06796116505 | S10: TRUE | T10: 538 | U10: un couvert; des couverts | V10: 1668 | W10: un pic; des pics | X10: 1992 | Y10: rider | Z10: 121 | AA10: attendre | AB10: 1424 | AC10: le milieu; les milieux | AD10: 1859 | AE10: raconter | AF10: 1757 | AG10: un poussin; des poussins | AN10: un bébé | AO10: un bébé ; des bébés | AP10: 7 | AQ10: 196 | AR10: un bébé ; des bébés | AS10: CP | AT10: 8 | AU10: 21 | AV10: 43 | AW10: 92 | AX10: 196 | AY10: 7 | BA10: CM2 | BB10: 5 | BC10: 2385 | BD10: 8 | BE10: 1459 | BF10: 48 | BG10: 10 | BI10: 6 | BJ10: 7 | BK10: 2014-09-15 | BL10: 1502 | BM10: 150 | BN10: avec | BO10: un avenir; des avenirs | BP10: une aventure; des aventures | BQ10: une avenue; des avenues | BR10: une averse; des averses | BS10: un aveugle; des aveugles | BT10: un aviateur; des aviateurs | BU10: une aviatrice; des aviatrices | BV10: un avion; des avions | BW10: un avis; des avis | BY10: avoir | BZ10: avouer | CA10: avril | CB10: un bagage; des bagages | CD10: le bain; les bains | CG10: un balcon; des balcons | CH10: une balle; des balles | CI10: un ballon; des ballons | CK10: un banc; des bancs | CL10: une bande; des bandes | CM10: 7 | CN10: 20 | CO10: 0.6636975396 | CP10: 0.02921845229 | CQ10: 0.2967419514 | CR10: 0.3191629604 | CS10: 0.5204052008 | CT10: 0.3490907603 | CU10: 0.2459724476 | CV10: 0.4841118323 | CW10: 0.720044029 | CX10: 0.8599875975 | CZ10: 0.3985593741 | DA10: 0.4961209764 | DB10: 0.7152474045 | DC10: 0.008390854684 | DE10: 0.9591172834 | DH10: 0.7584395611 | DI10: 0.8788356076 | DJ10: 0.7688942404 | DL10: 0.4908069259 | DM10: 0.6677640887 | DN10: 12 | DO10: 2 | DP10: 4 | DQ10: 5 | DR10: 11 | DS10: 6 | DT10: 3 | DU10: 8 | DV10: 15 | DW10: 18 | DY10: 7 | DZ10: 10 | EA10: 14 | EB10: 1 | ED10: 20 | EG10: 16 | EH10: 19 | EI10: 17 | EK10: 9 | EL10: 13 | EM10: =IF($CN10>=EM$3,HLOOKUP(EM$3,$DN10:$EL160,151,FALSE),"") -> 15 | EN10: 2 | EO10: 7 | EP10: 3 | EQ10: 4 | ER10: 6 | ES10: 12 | ET10: 8 | EU10: 24 | EV10: 13 | EW10: un bagage; des bagages | EX10: un avenir; des avenirs | EY10: un aviateur; des aviateurs | FG10: ; un bagage; des bagages | FH10: ; un avenir; des avenirs | FI10: ; un aviateur; des aviateurs | FQ10: ; un bagage; des bagages; un avenir; des avenirs; un aviateur; des aviateurs.
A11: 8 | B11: 1509 | C11: 8 | D11: =VLOOKUP(C11,Calendrier!C$96:D$430,2,TRUE) -> 2014-09-16 | E11: 1913:une règle; des règles 114:aspirer 742:un écrit; des écrits 257:un bout; des bouts 1851:une question; des questions 1347:un manteau; des manteaux 889:une façon; des façons | F11: ; belge; belges; beau; belle; beaux; belles; bas; basse; bas; basses. | G11: 1913:une règle; des règles | H11: 114:aspirer | I11: 742:un écrit; des écrits | J11: 257:un bout; des bouts | K11: 1851:une question; des questions | L11: 1347:un manteau; des manteaux | M11: 889:une façon; des façons | Q11: 6.5 | R11: 0.07766990291 | S11: TRUE | T11: 1913 | U11: une règle; des règles | V11: 114 | W11: aspirer | X11: 742 | Y11: un écrit; des écrits | Z11: 257 | AA11: un bout; des bouts | AB11: 1851 | AC11: une question; des questions | AD11: 1347 | AE11: un manteau; des manteaux | AF11: 889 | AG11: une façon; des façons | AN11: un père | AO11: un père ; des pères | AP11: 8 | AQ11: 1649 | AR11: un père ; des pères | AS11: CP | AT11: 76 | AU11: 181 | AV11: 490 | AW11: 969 | AX11: 1649 | AY11: 8 | BI11: 6.5 | BJ11: 8 | BK11: 2014-09-16 | BL11: 1509 | BM11: 175 | BN11: un bandit; des bandits | BO11: une banque; des banques | BR11: une barbe; des barbes | BS11: une barque; des barques | BV11: bas; basse; bas; basses | BW11: un bassin; des bassins | BX11: une bataille; des batailles | CA11: un bâton; des bâtons | CB11: battre | CC11: bavarder | CD11: un bazar; des bazars | CE11: beau; belle; beaux; belles | CF11: beaucoup | CH11: un bébé ; des bébés | CI11: un bec; des becs | CJ11: belge; belges | CM11: 8 | CN11: 16 | CO11: 0.9940472169 | CP11: 0.9457658896 | CS11: 0.2724964375 | CT11: 0.2860398369 | CW11: 0.06423259469 | CX11: 0.8159653413 | CY11: 0.1131567401 | DB11: 0.8719879096 | DC11: 0.1743592586 | DD11: 0.6907473802 | DE11: 0.4701343559 | DF11: 0.03837311616 | DG11: 0.1309530055 | DI11: 0.2137426403 | DJ11: 0.2400471758 | DK11: 0.01261287763 | DN11: 16 | DO11: 15 | DR11: 9 | DS11: 10 | DV11: 3 | DW11: 13 | DX11: 4 | EA11: 14 | EB11: 6 | EC11: 12 | ED11: 11 | EE11: 2 | EF11: 5 | EH11: 7 | EI11: 8 | EJ11: 1 | EM11: =IF($CN11>=EM$3,HLOOKUP(EM$3,$DN11:$EL161,151,FALSE),"") -> 23 | EN11: 18 | EO11: 9 | EP11: 11 | EQ11: 19 | ER11: 15 | ES11: 21 | ET11: 22 | EU11: 5 | EV11: 6 | EW11: belge; belges | EX11: beau; belle; beaux; belles | EY11: bas; basse; bas; basses | FG11: ; belge; belges | FH11: ; beau; belle; beaux; belles | FI11: ; bas; basse; bas; basses | FQ11: ; belge; belges; beau; belle; beaux; belles; bas; basse; bas; basses.
A12: 9 | B12: 1516 | C12: 9 | D12: =VLOOKUP(C12,Calendrier!C$96:D$430,2,TRUE) -> 2014-09-18 | E12: 1292:un loisir; des loisirs 199:le bénéfice; les bénéfices 235:un bonnet; des bonnets 2173:souriant; souriante; souriants; souriantes 1348:un manuel; des manuels 2016:un rouleau; des rouleaux 246:bouder | F12: ; le blé; les blés; un besoin; des besoins; une bête; des bêtes. | G12: 1292:un loisir; des loisirs | H12: 199:le bénéfice; les bénéfices | I12: 235:un bonnet; des bonnets | J12: 2173:souriant; souriante; souriants; souriantes | K12: 1348:un manuel; des manuels | L12: 2016:un rouleau; des rouleaux | M12: 246:bouder | Q12: 7 | R12: 0.08737864078 | S12: TRUE | T12: 1292 | U12: un loisir; des loisirs | V12: 199 | W12: le bénéfice; les bénéfices | X12: 235 | Y12: un bonnet; des bonnets | Z12: 2173 | AA12: souriant; souriante; souriants; souriantes | AB12: 1348 | AC12: un manuel; des manuels | AD12: 2016 | AE12: un rouleau; des rouleaux | AF12: 246 | AG12: bouder | AN12: une mère | AO12: une mère; des mères | AP12: 9 | AQ12: 1405 | AR12: une mère; des mères | AS12: CP | AT12: 64 | AU12: 148 | AV12: 411 | AW12: 794 | AX12: 1405 | AY12: 9 | BI12: 7 | BJ12: 9 | BK12: 2014-09-18 | BL12: 1516 | BM12: 200 | BN12: un berger; des bergers | BO12: une bergère; des bergères | BP12: un besoin; des besoins | BR12: une bête; des bêtes | BS12: le beurre; les beurres | BT12: bien | BU12: un bienfaiteur; des bienfaiteurs | BV12: une bienfaitrice; des bienfaitrices | BW12: bientôt | BY12: une bille; des billes | BZ12: un billet; des billets | CA12: une bise; des bises | CB12: blanc; blanche; blancs; blanches | CC12: la blancheur; les blancheurs | CD12: le blé; les blés | CF12: bleu; bleue; bleus; bleues | CG12: un bloc; des blocs | CI12: une blouse; des blouses | CJ12: un bœuf; des bœufs | CK12: boire | CL12: un bois; des bois | CM12: 9 | CN12: 21 | CO12: 0.2787335183 | CP12: 0.5540621551 | CQ12: 0.1280306538 | CS12: 0.154960965 | CT12: 0.2662990836 | CU12: 0.3616662505 | CV12: 0.5164052144 | CW12: 0.651961431 | CX12: 0.7786206042 | CZ12: 0.9057749948 | DA12: 0.7154948675 | DB12: 0.7618958424 | DC12: 0.8121902127 | DD12: 0.3070993991 | DE12: 0.06281681019 | DG12: 0.2033455367 | DH12: 0.7309711946 | DJ12: 0.6279986465 | DK12: 0.5317982579 | DL12: 0.640624469 | DM12: 0.672318474 | DN12: 6 | DO12: 11 | DP12: 2 | DR12: 3 | DS12: 5 | DT12: 8 | DU12: 9 | DV12: 14 | DW12: 19 | DY12: 21 | DZ12: 16 | EA12: 18 | EB12: 20 | EC12: 7 | ED12: 1 | EF12: 4 | EG12: 17 | EI12: 12 | EJ12: 10 | EK12: 13 | EL12: 15 | EM12: =IF($CN12>=EM$3,HLOOKUP(EM$3,$DN12:$EL162,151,FALSE),"") -> 17 | EN12: 3 | EO12: 5 | EP12: 19 | EQ12: 6 | ER12: 1 | ES12: 16 | ET12: 7 | EU12: 8 | EV12: 23 | EW12: le blé; les blés | EX12: un besoin; des besoins | EY12: une bête; des bêtes | FG12: ; le blé; les blés | FH12: ; un besoin; des besoins | FI12: ; une bête; des bêtes | FQ12: ; le blé; les blés; un besoin; des besoins; une bête; des bêtes.
A13: 10 | B13: 1523 | C13: 10 | D13: =VLOOKUP(C13,Calendrier!C$96:D$430,2,TRUE) -> 2014-09-19 | E13: 944:une flaque; des flaques 1031:les gens 2159:souffrir 326:causer 315:le caractère; les caractères 2006:rond; ronde; ronds; rondes 2228:tarder | F13: ; une botte; des bottes; une boisson; des boissons; bon; bonne; bons; bonnes. | G13: 944:une flaque; des flaques | H13: 1031:les gens | I13: 2159:souffrir | J13: 326:causer | K13: 315:le caractère; les caractères | L13: 2006:rond; ronde; ronds; rondes | M13: 2228:tarder | Q13: 7.5 | R13: 0.09708737864 | S13: TRUE | T13: 944 | U13: une flaque; des flaques | V13: 1031 | W13: les gens | X13: 2159 | Y13: souffrir | Z13: 326 | AA13: causer | AB13: 315 | AC13: le caractère; les caractères | AD13: 2006 | AE13: rond; ronde; ronds; rondes | AF13: 2228 | AG13: tarder | AN13: et | AO13: et | AP13: 10 | AQ13: 834 | AR13: et | AS13: CP | AT13: 29 | AU13: 75 | AV13: 224 | AW13: 464 | AX13: 834 | AY13: 10 | BI13: 7.5 | BJ13: 10 | BK13: 2014-09-19 | BL13: 1523 | BM13: 225 | BN13: une boisson; des boissons | BP13: bon; bonne; bons; bonnes | BQ13: un bonbon; des bonbons | BS13: bondir | BT13: le bonheur; les bonheurs | BV13: un bonjour; des bonjours | BW13: un bonnet; des bonnets | BX13: un bonsoir; des bonsoirs | BY13: le bord; les bords | CA13: une bordure; des bordures | CB13: une borne; des bornes | CC13: une botte; des bottes | CD13: la bouche; les bouches | CE13: un boucher; des bouchers | CF13: une boucle; des boucles | CH13: bouder | CI13: la boue; les boues | CL13: une bougie; des bougies | CM13: 10 | CN13: 18 | CO13: 0.1684841231 | CQ13: 0.1855042595 | CR13: 0.3694066647 | CT13: 0.5172629576 | CU13: 0.8361222316 | CW13: 0.9968588664 | CX13: 0.2958645927 | CY13: 0.4664448057 | CZ13: 0.5173383372 | DB13: 0.6273474814 | DC13: 0.2068599363 | DD13: 0.09672846282 | DE13: 0.4936326232 | DF13: 0.9395859045 | DG13: 0.9552930932 | DI13: 0.8505324705 | DJ13: 0.2405472445 | DM13: 0.312095542 | DN13: 2 | DP13: 3 | DQ13: 8 | DS13: 11 | DT13: 14 | DV13: 18 | DW13: 6 | DX13: 9 | DY13: 12 | EA13: 13 | EB13: 4 | EC13: 1 | ED13: 10 | EE13: 16 | EF13: 17 | EH13: 15 | EI13: 5 | EL13: 7 | EM13: =IF($CN13>=EM$3,HLOOKUP(EM$3,$DN13:$EL163,151,FALSE),"") -> 16 | EN13: 1 | EO13: 3 | EP13: 15 | EQ13: 22 | ER13: 10 | ES13: 25 | ET13: 4 | EU13: 11 | EV13: 17 | EW13: une botte; des bottes | EX13: une boisson; des boissons | EY13: bon; bonne; bons; bonnes | FG13: ; une botte; des bottes | FH13: ; une boisson; des boissons | FI13: ; bon; bonne; bons; bonnes | FQ13: ; une botte; des bottes; une boisson; des boissons; bon; bonne; bons; bonnes.
A14: 11 | B14: 1530 | C14: 11 | D14: =VLOOKUP(C14,Calendrier!C$96:D$430,2,TRUE) -> 2014-09-22 | E14: 1440:une mission; des missions 1790:un prisonnier; des prisonniers 1791:une prisonnière; des prisonnières 117:un atelier; des ateliers 1673:un pigeon; des pigeons 1805:un profit; des profits 2287:un traitement; des traitements | F14: ; un bouquet; des bouquets; un bout; des bouts; bref; brève; brefs; brèves. | G14: 1440:une mission; des missions | H14: 1790:un prisonnier; des prisonniers | I14: 1791:une prisonnière; des prisonnières | J14: 117:un atelier; des ateliers | K14: 1673:un pigeon; des pigeons | L14: 1805:un profit; des profits | M14: 2287:un traitement; des traitements | Q14: 8 | R14: 0.1067961165 | S14: TRUE | T14: 1440 | U14: une mission; des missions | V14: 1790 | W14: un prisonnier; des prisonniers | X14: 1791 | Y14: une prisonnière; des prisonnières | Z14: 117 | AA14: un atelier; des ateliers | AB14: 1673 | AC14: un pigeon; des pigeons | AD14: 1805 | AE14: un profit; des profits | AF14: 2287 | AG14: un traitement; des traitements | AN14: à | AO14: à | AP14: 11 | AQ14: 3 | AR14: à | AS14: CP | AT14: 2 | AU14: 3 | AV14: 3 | AW14: 3 | AX14: 3 | AY14: 11 | BI14: 8 | BJ14: 11 | BK14: 2014-09-22 | BL14: 1530 | BM14: 250 | BN14: un boulanger; des boulangers | BO14: une boulangère; des boulangères | BP14: une boulangerie; des boulangeries | BQ14: un bouquet; des bouquets | BT14: un bout; des bouts | BU14: une bouteille; des bouteilles | BV14: une boutique; des boutiques | BW14: un bouton; des boutons | BX14: une branche; des branches | BY14: un bras; des bras | CA14: une brebis; des brebis | CB14: bref; brève; brefs; brèves | CE14: une brique; des briques | CF14: une brise; des brises | CG14: briser | CH14: une brochure; des brochures | CL14: broyer | CM14: 11 | CN14: 17 | CO14: 0.4417194126 | CP14: 0.8643457848 | CQ14: 0.3039934529 | CR14: 0.04977530088 | CU14: 0.1131891096 | CV14: 0.7648890661 | CW14: 0.1580141873 | CX14: 0.644421648 | CY14: 0.3789243364 | CZ14: 0.3724645011 | DB14: 0.5510177842 | DC14: 0.1184533133 | DF14: 0.9806909483 | DG14: 0.6234699481 | DH14: 0.8463156714 | DI14: 0.6530219366 | DM14: 0.1451946597 | DN14: 9 | DO14: 16 | DP14: 6 | DQ14: 1 | DT14: 2 | DU14: 14 | DV14: 5 | DW14: 12 | DX14: 8 | DY14: 7 | EA14: 10 | EB14: 3 | EE14: 17 | EF14: 11 | EG14: 15 | EH14: 13 | EL14: 4 | EM14: =IF($CN14>=EM$3,HLOOKUP(EM$3,$DN14:$EL164,151,FALSE),"") -> 4 | EN14: 7 | EO14: 15 | EP14: 25 | EQ14: 9 | ER14: 3 | ES14: 12 | ET14: 11 | EU14: 1 | EV14: 14 | EW14: un bouquet; des bouquets | EX14: un bout; des bouts | EY14: bref; brève; brefs; brèves | FG14: ; un bouquet; des bouquets | FH14: ; un bout; des bouts | FI14: ; bref; brève; brefs; brèves | FQ14: ; un bouquet; des bouquets; un bout; des bouts; bref; brève; brefs; brèves.
A15: 12 | B15: 1537 | C15: 12 | D15: =VLOOKUP(C15,Calendrier!C$96:D$430,2,TRUE) -> 2014-09-23 | E15: 1737:poser 917:fermer 1173:un intérieur; des intérieurs 447:le commerce; les commerces 339:une cerise; des cerises 1239:lamentable; lamentables 1632:la pêche; les pêches | F15: ; un cahier; des cahiers; le café; les cafés; un but; des buts. | G15: 1737:poser | H15: 917:fermer | I15: 1173:un intérieur; des intérieurs | J15: 447:le commerce; les commerces | K15: 339:une cerise; des cerises | L15: 1239:lamentable; lamentables | M15: 1632:la pêche; les pêches | Q15: 8.5 | R15: 0.1165048544 | S15: TRUE | T15: 1737 | U15: poser | V15: 917 | W15: fermer | X15: 1173 | Y15: un intérieur; des intérieurs | Z15: 447 | AA15: le commerce; les commerces | AB15: 339 | AC15: une cerise; des cerises | AD15: 1239 | AE15: lamentable; lamentables | AF15: 1632 | AG15: la pêche; les pêches | AN15: au | AO15: au | AP15: 12 | AQ15: 127 | AR15: au | AS15: CP | AT15: 5 | AU15: 11 | AV15: 19 | AW15: 50 | AX15: 127 | AY15: 12 | BD15: =Variables!$F$7 -> Revois l'orthographe de tous les mots de la colonne **colonne** de la page **page**. Écris dans ton carnet de mots, sans erreur, les mots qui suivent. Apprends à les écrire sans erreur. Recherche le(s) sens des mots que tu ne connais pas. Crée une phrase avec chacun de ces nouveaux mots. | BE15: =SUBSTITUTE(BD15,"**colonne**",Variables!F11) -> Revois l'orthographe de tous les mots de la colonne de la page **page**. Écris dans ton carnet de mots, sans erreur, les mots qui suivent. Apprends à les écrire sans erreur. Recherche le(s) sens des mots que tu ne connais pas. Crée une phrase avec chacun de ces nouveaux mots. | BF15: =SUBSTITUTE(BE15,"**page**",Variables!F12) -> Revois l'orthographe de tous les mots de la colonne de la page . Écris dans ton carnet de mots, sans erreur, les mots qui suivent. Apprends à les écrire sans erreur. Recherche le(s) sens des mots que tu ne connais pas. Crée une phrase avec chacun de ces nouveaux mots. | BI15: 8.5 | BJ15: 12 | BK15: 2014-09-23 | BL15: 1537 | BM15: 275 | BN15: un bruit; des bruits | BO15: la brume; les brumes | BP15: brun; brune; bruns; brunes | BQ15: brusquement | BR15: brutal; brutale; brutaux; brutales | BT15: un bureau; des bureaux | BU15: un but; des buts | BW15: une cabane; des cabanes | BX15: une cabine; des cabines | BZ15: cacher | CA15: un cadavre; des cadavres | CB15: un cadeau; des cadeaux | CD15: le café; les cafés | CE15: une cage; des cages | CF15: un cahier; des cahiers | CG15: une caisse; des caisses | CH15: un calcul; des calculs | CI15: calculer | CJ15: =IF(VLOOKUP($BM15+CJ$3,$AQ$4:$AY$2436,9,FALSE)<=$BL15,VLOOKUP($BM15+CJ$3,$AQ$4:$AR$2436,2,FALSE),"") ->  | CK15: calme; calmes | CM15: 12 | CN15: 19 | CO15: 0.6476618806 | CP15: 0.5162180839 | CQ15: 0.9390813851 | CR15: 0.9816524826 | CS15: 0.7327104045 | CU15: 0.4330078363 | CV15: 0.1203330485 | CX15: 0.1792857731 | CY15: 0.3094356124 | DA15: 0.2167460875 | DB15: 0.1356838707 | DC15: 0.3641644331 | DE15: 0.05181626386 | DF15: 0.9476762892 | DG15: 0.0355791875 | DH15: 0.8241039146 | DI15: 0.3204008692 | DJ15: 0.5038727412 | DL15: 0.9548741513 | DN15: 13 | DO15: 12 | DP15: 16 | DQ15: 19 | DR15: 14 | DT15: 10 | DU15: 3 | DW15: 5 | DX15: 7 | DZ15: 6 | EA15: 4 | EB15: 9 | ED15: 2 | EE15: 17 | EF15: 1 | EG15: 15 | EH15: 8 | EI15: 11 | EK15: 18 | EM15: =IF($CN15>=EM$3,HLOOKUP(EM$3,$DN15:$EL165,151,FALSE),"") -> 19 | EN15: 17 | EO15: 8 | EP15: 14 | EQ15: 10 | ER15: 13 | ES15: 11 | ET15: 21 | EU15: 15 | EV15: 7 | EW15: un cahier; des cahiers | EX15: le café; les cafés | EY15: un but; des buts | FG15: ; un cahier; des cahiers | FH15: ; le café; les cafés | FI15: ; un but; des buts | FQ15: ; un cahier; des cahiers; le café; les cafés; un but; des buts.
A16: 13 | B16: 1544 | C16: 13 | D16: =VLOOKUP(C16,Calendrier!C$96:D$430,2,TRUE) -> 2014-09-25 | E16: 2246:terminer 415:clair; claire; clairs; claires 2390:vingt 195:la beauté; les beautés 73:amusant; amusante; amusants; amusantes 1726:un pommier; des pommiers 886:facilement | F16: ; un carré; des carrés; la campagne; les campagnes; le caractère; les caractères. | G16: 2246:terminer | H16: 415:clair; claire; clairs; claires | I16: 2390:vingt | J16: 195:la beauté; les beautés | K16: 73:amusant; amusante; amusants; amusantes | L16: 1726:un pommier; des pommiers | M16: 886:facilement | Q16: 9 | R16: 0.1262135922 | S16: TRUE | T16: 2246 | U16: terminer | V16: 415 | W16: clair; claire; clairs; claires | X16: 2390 | Y16: vingt | Z16: 195 | AA16: la beauté; les beautés | AB16: 73 | AC16: amusant; amusante; amusants; amusantes | AD16: 1726 | AE16: un pommier; des pommiers | AF16: 886 | AG16: facilement | AN16: ou | AO16: ou | AP16: 13 | AQ16: 1568 | AR16: ou | AS16: CP | AT16: 74 | AU16: 176 | AV16: 469 | AW16: 910 | AX16: 1568 | AY16: 13 | BD16: =Variables!$F$7 -> Revois l'orthographe de tous les mots de la colonne **colonne** de la page **page**. Écris dans ton carnet de mots, sans erreur, les mots qui suivent. Apprends à les écrire sans erreur. Recherche le(s) sens des mots que tu ne connais pas. Crée une phrase avec chacun de ces nouveaux mots. | BE16: =SUBSTITUTE(BD16,"**colonne**",Variables!F15) -> Revois l'orthographe de tous les mots de la colonne 2 de la page **page**. Écris dans ton carnet de mots, sans erreur, les mots qui suivent. Apprends à les écrire sans erreur. Recherche le(s) sens des mots que tu ne connais pas. Crée une phrase avec chacun de ces nouveaux mots. | BF16: =SUBSTITUTE(BE16,"**page**",Variables!F16) -> Revois l'orthographe de tous les mots de la colonne 2 de la page 9. Écris dans ton carnet de mots, sans erreur, les mots qui suivent. Apprends à les écrire sans erreur. Recherche le(s) sens des mots que tu ne connais pas. Crée une phrase avec chacun de ces nouveaux mots. | BI16: 9 | BJ16: 13 | BK16: 2014-09-25 | BL16: 1544 | BM16: 300 | BO16: un camion; des camions | BQ16: la campagne; les campagnes | BR16: un canal; des canaux | BS16: un canard; des canards | BT16: une cane; des canes | BV16: un canon; des canons | BW16: capable; capables | BX16: un capitaine; des capitaines | BY16: le capital; les capitaux | CA16: un car; des cars | CB16: le caractère; les caractères | CD16: =IF(VLOOKUP($BM16+CD$3,$AQ$4:$AY$2436,9,FALSE)<=$BL16,VLOOKUP($BM16+CD$3,$AQ$4:$AR$2436,2,FALSE),"") -> un carré; des carrés | CG16: un cartable; des cartables | CH16: une carte; des cartes | CI16: un carton; des cartons | CM16: 13 | CN16: 15 | CP16: 0.138151406 | CR16: 0.07651152267 | CS16: 0.7435067276 | CT16: 0.4942495316 | CU16: 0.3633032811 | CW16: 0.8440880468 | CX16: 0.4568227039 | CY16: 0.54687684 | CZ16: 0.4003161906 | DB16: 0.2679465629 | DC16: 0.1058450758 | DE16: 0.00904907001 | DH16: 0.4731138698 | DI16: 0.9305848499 | DJ16: 0.2383793653 | DO16: 4 | DQ16: 2 | DR16: 13 | DS16: 11 | DT16: 7 | DV16: 14 | DW16: 9 | DX16: 12 | DY16: 8 | EA16: 6 | EB16: 3 | ED16: 1 | EG16: 10 | EH16: 15 | EI16: 5 | EM16: =IF($CN16>=EM$3,HLOOKUP(EM$3,$DN16:$EL166,151,FALSE),"") -> 17 | EN16: 4 | EO16: 15 | EP16: 2 | EQ16: 22 | ER16: 14 | ES16: 7 | ET16: 12 | EU16: 10 | EV16: 20 | EW16: un carré; des carrés | EX16: la campagne; les campagnes | EY16: le caractère; les caractères | FG16: ; un carré; des carrés | FH16: ; la campagne; les campagnes | FI16: ; le caractère; les caractères | FQ16: ; un carré; des carrés; la campagne; les campagnes; le caractère; les caractères.
A17: 14 | B17: 1551 | C17: 14 | D17: =VLOOKUP(C17,Calendrier!C$96:D$430,2,TRUE) -> 2014-09-26 | E17: 925:février 813:une épée; des épées 401:un choc; des chocs 11:abuser 1062:griffer 2028:un ruisseau; des ruisseaux 1258:lentement | F17: ; celui; celle; ceux; celles; une caverne; des cavernes; une chaise; des chaises. | G17: 925:février | H17: 813:une épée; des épées | I17: 401:un choc; des chocs | J17: 11:abuser | K17: 1062:griffer | L17: 2028:un ruisseau; des ruisseaux | M17: 1258:lentement | Q17: 9.5 | R17: 0.1359223301 | S17: TRUE | T17: 925 | U17: février | V17: 813 | W17: une épée; des épées | X17: 401 | Y17: un choc; des chocs | Z17: 11 | AA17: abuser | AB17: 1062 | AC17: griffer | AD17: 2028 | AE17: un ruisseau; des ruisseaux | AF17: 1258 | AG17: lentement | AN17: dans | AO17: dans | AP17: 14 | AQ17: 567 | AR17: dans | AS17: CP | AT17: 19 | AU17: 56 | AV17: 165 | AW17: 332 | AX17: 567 | AY17: 14 | BD17: =Variables!$F$7 -> Revois l'orthographe de tous les mots de la colonne **colonne** de la page **page**. Écris dans ton carnet de mots, sans erreur, les mots qui suivent. Apprends à les écrire sans erreur. Recherche le(s) sens des mots que tu ne connais pas. Crée une phrase avec chacun de ces nouveaux mots. | BE17: =SUBSTITUTE(BD17,"**colonne**",Variables!F19) -> Revois l'orthographe de tous les mots de la colonne 1 de la page **page**. Écris dans ton carnet de mots, sans erreur, les mots qui suivent. Apprends à les écrire sans erreur. Recherche le(s) sens des mots que tu ne connais pas. Crée une phrase avec chacun de ces nouveaux mots. | BF17: =SUBSTITUTE(BE17,"**page**",Variables!F20) -> Revois l'orthographe de tous les mots de la colonne 1 de la page 10. Écris dans ton carnet de mots, sans erreur, les mots qui suivent. Apprends à les écrire sans erreur. Recherche le(s) sens des mots que tu ne connais pas. Crée une phrase avec chacun de ces nouveaux mots. | BI17: 9.5 | BJ17: 14 | BK17: 2014-09-26 | BL17: 1551 | BM17: 325 | BN17: causer | BO17: une cave; des caves | BP17: une caverne; des cavernes | BS17: celui-ci; celle-ci; ceux-ci; celles-ci | BT17: celui-là; celle-là; ceux-là; celles-là | BU17: cent; cents | BX17: le centre; les centres | BY17: un cercle; des cercles | CA17: une cerise; des cerises | CB17: un cerisier; des cerisiers | CE17: c'est | CF17: celui; celle; ceux; celles | CG17: chacun; chacune; chacuns; chacunes | CH17: un chagrin; des chagrins | CJ17: une chaise; des chaises | CK17: la chaleur; les chaleurs | CL17: une chambre; des chambres | CM17: 14 | CN17: 17 | CO17: 0.7841929346 | CP17: 0.4449751232 | CQ17: 0.1940427551 | CT17: 0.4291482834 | CU17: 0.2743884129 | CV17: 0.4695740289 | CY17: 0.8599902595 | CZ17: 0.4197815616 | DB17: 0.5485225294 | DC17: 0.5874962294 | DF17: 0.9668743049 | DG17: 0.1504119558 | DH17: 0.354083834 | DI17: 0.9116005007 | DK17: 0.2653044804 | DL17: 0.8850353161 | DM17: 0.8716267116 | DN17: 12 | DO17: 8 | DP17: 2 | DS17: 7 | DT17: 4 | DU17: 9 | DX17: 13 | DY17: 6 | EA17: 10 | EB17: 11 | EE17: 17 | EF17: 1 | EG17: 5 | EH17: 16 | EJ17: 3 | EK17: 15 | EL17: 14 | EM17: =IF($CN17>=EM$3,HLOOKUP(EM$3,$DN17:$EL167,151,FALSE),"") -> 19 | EN17: 3 | EO17: 23 | EP17: 7 | EQ17: 20 | ER17: 12 | ES17: 6 | ET17: 2 | EU17: 8 | EV17: 14 | EW17: celui; celle; ceux; celles | EX17: une caverne; des cavernes | EY17: une chaise; des chaises | FG17: ; celui; celle; ceux; celles | FH17: ; une caverne; des cavernes | FI17: ; une chaise; des chaises | FQ17: ; celui; celle; ceux; celles; une caverne; des cavernes; une chaise; des chaises.
A18: 15 | B18: 1558 | C18: 15 | D18: =VLOOKUP(C18,Calendrier!C$96:D$430,2,TRUE) -> 2014-09-29 | E18: 1135:important; importante; importants; importantes 8:abriter 1718:un poirier; des poiriers 593:un degré; des degrés 2042:un salaire; des salaires 631:désobéir 1038:glissant; glissante; glissants; glissantes | F18: ; un chanteur; des chanteurs; le charbon; les charbons; un chasseur; des chasseurs. | G18: 1135:important; importante; importants; importantes | H18: 8:abriter | I18: 1718:un poirier; des poiriers | J18: 593:un degré; des degrés | K18: 2042:un salaire; des salaires | L18: 631:désobéir | M18: 1038:glissant; glissante; glissants; glissantes | Q18: 10 | R18: 0.145631068 | S18: TRUE | T18: 1135 | U18: important; importante; importants; importantes | V18: 8 | W18: abriter | X18: 1718 | Y18: un poirier; des poiriers | Z18: 593 | AA18: un degré; des degrés | AB18: 2042 | AC18: un salaire; des salaires | AD18: 631 | AE18: désobéir | AF18: 1038 | AG18: glissant; glissante; glissants; glissantes | AN18: sur | AO18: sur | AP18: 15 | AQ18: 2202 | AR18: sur | AS18: CP | AT18: 101 | AU18: 233 | AV18: 641 | AW18: 1297 | AX18: 2202 | AY18: 15 | BD18: =Variables!$F$7 -> Revois l'orthographe de tous les mots de la colonne **colonne** de la page **page**. Écris dans ton carnet de mots, sans erreur, les mots qui suivent. Apprends à les écrire sans erreur. Recherche le(s) sens des mots que tu ne connais pas. Crée une phrase avec chacun de ces nouveaux mots. | BE18: =SUBSTITUTE(BD18,"**colonne**",Variables!F23) -> Revois l'orthographe de tous les mots de la colonne 2 de la page **page**. Écris dans ton carnet de mots, sans erreur, les mots qui suivent. Apprends à les écrire sans erreur. Recherche le(s) sens des mots que tu ne connais pas. Crée une phrase avec chacun de ces nouveaux mots. | BF18: =SUBSTITUTE(BE18,"**page**",Variables!F24) -> Revois l'orthographe de tous les mots de la colonne 2 de la page 10. Écris dans ton carnet de mots, sans erreur, les mots qui suivent. Apprends à les écrire sans erreur. Recherche le(s) sens des mots que tu ne connais pas. Crée une phrase avec chacun de ces nouveaux mots. | BI18: 10 | BJ18: 15 | BK18: 2014-09-29 | BL18: 1558 | BM18: 350 | BN18: un chameau; des chameaux | BO18: une chamelle; des chamelles | BR18: un changement; des changements | BT18: une chanson; des chansons | BU18: un chant; des chants | BV18: un chanteur; des chanteurs | BW18: une chanteuse; des chanteuses | BX18: un chapeau; des chapeaux | BY18: un chapitre; des chapitres | BZ18: chaque | CA18: le charbon; les charbons | CB18: une charge; des charges | CD18: charmant; charmante; charmants; charmantes | CE18: le charme; les charmes | CF18: charmer | CG18: la chasse; les chasses | CI18: un chasseur; des chasseurs | CJ18: un chat; des chats | CK18: une chatte; des chattes | CL18: un château; des châteaux | CM18: 15 | CN18: 20 | CO18: 0.6667597333 | CP18: 0.5597832978 | CS18: 0.4488863044 | CU18: 0.9012350244 | CV18: 0.8066538882 | CW18: 0.02181372 | CX18: 0.3713047209 | CY18: 0.3051110838 | CZ18: 0.9850221926 | DA18: 0.2843104682 | DB18: 0.02873815416 | DC18: 0.8143406427 | DE18: 0.5542481819 | DF18: 0.4527273609 | DG18: 0.2590750533 | DH18: 0.366034347 | DJ18: 0.1588600045 | DK18: 0.3588525254 | DL18: 0.5471815392 | DM18: 0.9543416052 | DN18: 15 | DO18: 14 | DR18: 10 | DT18: 18 | DU18: 16 | DV18: 1 | DW18: 9 | DX18: 6 | DY18: 20 | DZ18: 5 | EA18: 2 | EB18: 17 | ED18: 13 | EE18: 11 | EF18: 4 | EG18: 8 | EI18: 3 | EJ18: 7 | EK18: 12 | EL18: 19 | EM18: =IF($CN18>=EM$3,HLOOKUP(EM$3,$DN18:$EL168,151,FALSE),"") -> 9 | EN18: 14 | EO18: 22 | EP18: 19 | EQ18: 13 | ER18: 11 | ES18: 23 | ET18: 20 | EU18: 10 | EV18: 5 | EW18: un chanteur; des chanteurs | EX18: le charbon; les charbons | EY18: un chasseur; des chasseurs | FG18: ; un chanteur; des chanteurs | FH18: ; le charbon; les charbons | FI18: ; un chasseur; des chasseurs | FQ18: ; un chanteur; des chanteurs; le charbon; les charbons; un chasseur; des chasseurs.
A19: 16 | B19: 1565 | C19: 16 | D19: =VLOOKUP(C19,Calendrier!C$96:D$430,2,TRUE) -> 2014-09-30 | E19: 1788:le printemps; les printemps 1976:retourner 2370:un verre; des verres 354:la chance; les chances 1109:une humeur; des humeurs 1257:lent; lente; lents; lentes 979:fragile; fragiles | F19: ; chaud; chaude; chauds; chaudes; cher; chère; chers; chères; une chaussure; des chaussures. | G19: 1788:le printemps; les printemps | H19: 1976:retourner | I19: 2370:un verre; des verres | J19: 354:la chance; les chances | K19: 1109:une humeur; des humeurs | L19: 1257:lent; lente; lents; lentes | M19: 979:fragile; fragiles | Q19: 10.5 | R19: 0.1553398058 | S19: TRUE | T19: 1788 | U19: le printemps; les printemps | V19: 1976 | W19: retourner | X19: 2370 | Y19: un verre; des verres | Z19: 354 | AA19: la chance; les chances | AB19: 1109 | AC19: une humeur; des humeurs | AD19: 1257 | AE19: lent; lente; lents; lentes | AF19: 979 | AG19: fragile; fragiles | AN19: une fille | AO19: une fille; des filles | AP19: 16 | AQ19: 934 | AR19: une fille; des filles | AS19: CP | AT19: 33 | AU19: 85 | AV19: 251 | AW19: 514 | AX19: 934 | AY19: 16 | BI19: 10.5 | BJ19: 16 | BK19: 2014-09-30 | BL19: 1565 | BM19: 375 | BN19: chaud; chaude; chauds; chaudes | BO19: chaudement | BR19: un chauffeur; des chauffeurs | BS19: la chaussée; les chaussées | BU19: une chaussure; des chaussures | BV19: un chef; des chefs | BW19: un chemin; des chemins | BX19: une cheminée; des cheminées | BY19: une chemise; des chemises | CA19: cher; chère; chers; chères | CB19: chercher | CD19: un cheval; des chevaux | CE19: un chevalier; des chevaliers | CF19: la chevelure; les chevelures | CI19: un chien; des chiens | CJ19: une chienne; des chiennes | CM19: 16 | CN19: 16 | CO19: 0.02769451339 | CP19: 0.7064738478 | CS19: 0.2433164196 | CT19: 0.3156483605 | CV19: 0.2393275553 | CW19: 0.327657501 | CX19: 0.9366359158 | CY19: 0.314433845 | CZ19: 0.8805912236 | DB19: 0.2092671804 | DC19: 0.5072926683 | DE19: 0.4588874111 | DF19: 0.9211216222 | DG19: 0.551564824 | DJ19: 0.3311540128 | DK19: 0.5185164112 | DN19: 1 | DO19: 13 | DR19: 4 | DS19: 6 | DU19: 3 | DV19: 7 | DW19: 16 | DX19: 5 | DY19: 14 | EA19: 2 | EB19: 10 | ED19: 9 | EE19: 15 | EF19: 12 | EI19: 8 | EJ19: 11 | EM19: =IF($CN19>=EM$3,HLOOKUP(EM$3,$DN19:$EL169,151,FALSE),"") -> 1 | EN19: 14 | EO19: 8 | EP19: 5 | EQ19: 11 | ER19: 6 | ES19: 9 | ET19: 22 | EU19: 17 | EV19: 15 | EW19: chaud; chaude; chauds; chaudes | EX19: cher; chère; chers; chères | EY19: une chaussure; des chaussures | FG19: ; chaud; chaude; chauds; chaudes | FH19: ; cher; chère; chers; chères | FI19: ; une chaussure; des chaussures | FQ19: ; chaud; chaude; chauds; chaudes; cher; chère; chers; chères; une chaussure; des chaussures.
A20: 17 | B20: 1572 | C20: 17 | D20: =VLOOKUP(C20,Calendrier!C$96:D$430,2,TRUE) -> 2014-10-02 | E20: 1338:un manche; des manches 516:un couloir; des couloirs 1233:labourer 1863:ralentir 126:attribuer 614:déplacer 1549:offrir | F20: ; le cirque; les cirques; une classe ; des classes; la circulation; les circulations. | G20: 1338:un manche; des manches | H20: 516:un couloir; des couloirs | I20: 1233:labourer | J20: 1863:ralentir | K20: 126:attribuer | L20: 614:déplacer | M20: 1549:offrir | Q20: 11 | R20: 0.1650485437 | S20: TRUE | T20: 1338 | U20: un manche; des manches | V20: 516 | W20: un couloir; des couloirs | X20: 1233 | Y20: labourer | Z20: 1863 | AA20: ralentir | AB20: 126 | AC20: attribuer | AD20: 614 | AE20: déplacer | AF20: 1549 | AG20: offrir | AN20: un garçon | AO20: un garçon; des garçons | AP20: 17 | AQ20: 1011 | AR20: un garçon; des garçons | AS20: CP | AT20: 35 | AU20: 92 | AV20: 278 | AW20: 554 | AX20: 1011 | AY20: 17 | BI20: 11 | BJ20: 17 | BK20: 2014-10-02 | BL20: 1572 | BM20: 400 | BN20: un choc; des chocs | BO20: le chocolat; les chocolats | BP20: choisir | BR20: une chose; des choses | BS20: le ciel; les cieux | BT20: une cigarette; des cigarettes | BV20: un cinéma; des cinémas | BW20: cinq | BX20: cinquante | BY20: la circulation; les circulations | BZ20: le cirque; les cirques | CB20: clair; claire; clairs; claires | CE20: une classe ; des classes | CF20: classique; classiques | CH20: un client; une cliente; des clients; des clientes | CJ20: une cloche; des cloches | CK20: un clocher; des clochers | CL20: un clou; des clous | CM20: 17 | CN20: 18 | CO20: 0.8046337962 | CP20: 0.9483625234 | CQ20: 0.5378206791 | CS20: 0.1437462042 | CT20: 0.2961894629 | CU20: 0.9495118428 | CW20: 0.7569804628 | CX20: 0.7777741001 | CY20: 0.5441653498 | CZ20: 0.118430118 | DA20: 0.08186103724 | DC20: 0.222473293 | DF20: 0.09175970959 | DG20: 0.746873943 | DI20: 0.8754355517 | DK20: 0.2448776025 | DL20: 0.9440615603 | DM20: 0.2819577909 | DN20: 14 | DO20: 17 | DP20: 9 | DR20: 4 | DS20: 8 | DT20: 18 | DV20: 12 | DW20: 13 | DX20: 10 | DY20: 3 | DZ20: 1 | EB20: 5 | EE20: 2 | EF20: 11 | EH20: 15 | EJ20: 6 | EK20: 16 | EL20: 7 | EM20: =IF($CN20>=EM$3,HLOOKUP(EM$3,$DN20:$EL170,151,FALSE),"") -> 13 | EN20: 18 | EO20: 12 | EP20: 5 | EQ20: 15 | ER20: 23 | ES20: 25 | ET20: 6 | EU20: 3 | EV20: 11 | EW20: le cirque; les cirques | EX20: une classe ; des classes | EY20: la circulation; les circulations | FG20: ; le cirque; les cirques | FH20: ; une classe ; des classes | FI20: ; la circulation; les circulations | FQ20: ; le cirque; les cirques; une classe ; des classes; la circulation; les circulations.
A21: 18 | B21: 1579 | C21: 18 | D21: =VLOOKUP(C21,Calendrier!C$96:D$430,2,TRUE) -> 2014-10-03 | E21: 356:changer 699:doucement 588:un défaut; des défauts 1775:un président; des présidents 1776:une présidente; des présidentes 933:un filet; des filets 92:une approche; des approches | F21: ; un coin; des coins; un cochon; des cochons; un cœur; des cœurs. | G21: 356:changer | H21: 699:doucement | I21: 588:un défaut; des défauts | J21: 1775:un président; des présidents | K21: 1776:une présidente; des présidentes | L21: 933:un filet; des filets | M21: 92:une approche; des approches | Q21: 11.5 | R21: 0.1747572816 | S21: TRUE | T21: 356 | U21: changer | V21: 699 | W21: doucement | X21: 588 | Y21: un défaut; des défauts | Z21: 1775 | AA21: un président; des présidents | AB21: 1776 | AC21: une présidente; des présidentes | AD21: 933 | AE21: un filet; des filets | AF21: 92 | AG21: une approche; des approches | AN21: un lapin | AO21: un lapin; des lapins | AP21: 18 | AQ21: 1244 | AR21: un lapin; des lapins | AS21: CP | AT21: 51 | AU21: 120 | AV21: 342 | AW21: 684 | AX21: 1244 | AY21: 18 | BI21: 11.5 | BJ21: 18 | BK21: 2014-10-03 | BL21: 1579 | BM21: 425 | BN21: =IF(VLOOKUP($BM21+BN$3,$AQ$4:$AY$2436,9,FALSE)<=$BL21,VLOOKUP($BM21+BN$3,$AQ$4:$AR$2436,2,FALSE),"") ->  | BO21: un cochon; des cochons | BP21: une cochonne; des cochonnes | BQ21: un cœur; des cœurs | BU21: la coiffure; les coiffures | BV21: un coin; des coins | CA21: colorer | CB21: un combat; des combats | CC21: combien | CE21: comme | CH21: comment | CI21: le commerce; les commerces | CJ21: commun; commune; communs; communes | CK21: une compagnie; des compagnies | CL21: un compagnon; des compagnons | CM21: 18 | CN21: 14 | CP21: 0.0727792751 | CQ21: 0.2219694932 | CR21: 0.1537474837 | CV21: 0.5848183919 | CW21: 0.06171970794 | DB21: 0.7454757399 | DC21: 0.8974460724 | DD21: 0.2860133069 | DF21: 0.2562069966 | DI21: 0.6799732012 | DJ21: 0.8565262543 | DK21: 0.2698773242 | DL21: 0.2975594085 | DM21: 0.9801781166 | DO21: 2 | DP21: 4 | DQ21: 3 | DU21: 9 | DV21: 1 | EA21: 11 | EB21: 13 | EC21: 7 | EE21: 5 | EH21: 10 | EI21: 12 | EJ21: 6 | EK21: 8 | EL21: 14 | EM21: =IF($CN21>=EM$3,HLOOKUP(EM$3,$DN21:$EL171,151,FALSE),"") -> 9 | EN21: 2 | EO21: 4 | EP21: 3 | EQ21: 18 | ER21: 23 | ES21: 16 | ET21: 24 | EU21: 8 | EV21: 21 | EW21: un coin; des coins | EX21: un cochon; des cochons | EY21: un cœur; des cœurs | FG21: ; un coin; des coins | FH21: ; un cochon; des cochons | FI21: ; un cœur; des cœurs | FQ21: ; un coin; des coins; un cochon; des cochons; un cœur; des cœurs.
A22: 19 | B22: 1586 | C22: 19 | D22: =VLOOKUP(C22,Calendrier!C$96:D$430,2,TRUE) -> 2014-10-06 | E22: 173:une banane; des bananes 1513:nombreux; nombreuse; nombreux; nombreuses 1107:un humain; des humains 1026:un gendarme; des gendarmes 2020:royal; royale; royaux; royales 942:un flacon; des flacons 266:un brin; des brins | F22: ; un conducteur; des conducteurs; un congé; des congés; un compliment; des compliments. | G22: 173:une banane; des bananes | H22: 1513:nombreux; nombreuse; nombreux; nombreuses | I22: 1107:un humain; des humains | J22: 1026:un gendarme; des gendarmes | K22: 2020:royal; royale; royaux; royales | L22: 942:un flacon; des flacons | M22: 266:un brin; des brins | Q22: 12 | R22: 0.1844660194 | S22: TRUE | T22: 173 | U22: une banane; des bananes | V22: 1513 | W22: nombreux; nombreuse; nombreux; nombreuses | X22: 1107 | Y22: un humain; des humains | Z22: 1026 | AA22: un gendarme; des gendarmes | AB22: 2020 | AC22: royal; royale; royaux; royales | AD22: 942 | AE22: un flacon; des flacons | AF22: 266 | AG22: un brin; des brins | AN22: une lapine | AO22: une lapine; des lapines | AP22: 19 | AQ22: 1245 | AR22: une lapine; des lapines | AS22: CP | AT22: 52 | AU22: 121 | AV22: 343 | AW22: 685 | AX22: 1245 | AY22: 19 | BI22: 12 | BJ22: 19 | BK22: 2014-10-06 | BL22: 1586 | BM22: 450 | BO22: comparer | BP22: complet; complète; complets; complètes | BR22: un compliment; des compliments | BT22: comprendre | BV22: un conducteur; des conducteurs | BW22: une conductrice; des conductrices | BX22: conduire | CB22: la confiture; les confitures | CC22: confondre | CD22: un congé; des congés | CG22: considérable; considérables | CH22: consoler | CJ22: constater | CL22: une construction; des constructions | CM22: 19 | CN22: 14 | CP22: 0.7338856981 | CQ22: 0.9013408006 | CS22: 0.1247660464 | CU22: 0.7472697808 | CW22: 0.01710507656 | CX22: 0.6982498685 | CY22: 0.5709606677 | DC22: 0.6339944269 | DD22: 0.1960906147 | DE22: 0.0857332163 | DH22: 0.9080801713 | DI22: 0.1711562208 | DK22: 0.4025841259 | DM22: 0.2104802615 | DO22: 11 | DP22: 13 | DR22: 3 | DT22: 12 | DV22: 1 | DW22: 10 | DX22: 8 | EB22: 9 | EC22: 5 | ED22: 2 | EG22: 14 | EH22: 4 | EJ22: 7 | EL22: 6 | EM22: =IF($CN22>=EM$3,HLOOKUP(EM$3,$DN22:$EL172,151,FALSE),"") -> 9 | EN22: 17 | EO22: 5 | EP22: 21 | EQ22: 16 | ER22: 25 | ES22: 23 | ET22: 11 | EU22: 15 | EV22: 10 | EW22: un conducteur; des conducteurs | EX22: un congé; des congés | EY22: un compliment; des compliments | FG22: ; un conducteur; des conducteurs | FH22: ; un congé; des congés | FI22: ; un compliment; des compliments | FQ22: ; un conducteur; des conducteurs; un congé; des congés; un compliment; des compliments.
A23: 20 | B23: 1593 | C23: 20 | D23: =VLOOKUP(C23,Calendrier!C$96:D$430,2,TRUE) -> 2014-10-07 | E23: 653:deviner 1822:un propriétaire; des propriétaires 1269:un lien; des liens 1071:une grotte; des grottes 2064:savourer 1927:remercier 844:étendre | F23: ; une conversation; des conversations; le contraire; les contraires; contre. | G23: 653:deviner | H23: 1822:un propriétaire; des propriétaires | I23: 1269:un lien; des liens | J23: 1071:une grotte; des grottes | K23: 2064:savourer | L23: 1927:remercier | M23: 844:étendre | Q23: 12.5 | R23: 0.1941747573 | S23: TRUE | T23: 653 | U23: deviner | V23: 1822 | W23: un propriétaire; des propriétaires | X23: 1269 | Y23: un lien; des liens | Z23: 1071 | AA23: une grotte; des grottes | AB23: 2064 | AC23: savourer | AD23: 1927 | AE23: remercier | AF23: 844 | AG23: étendre | AN23: une tête | AO23: une tête; des têtes | AP23: 20 | AQ23: 2254 | AR23: une tête; des têtes | AS23: CP | AT23: 105 | AU23: 240 | AV23: 653 | AW23: 1329 | AX23: 2254 | AY23: 20 | BD23: =VLOOKUP(AQ1,BA6:BB10,2,FALSE) -> 5 | BI23: 12.5 | BJ23: 20 | BK23: 2014-10-07 | BL23: 1593 | BM23: 475 | BO23: un conte; des contes | BP23: content; contente; contents; contentes | BR23: un contenu; des contenus | BS23: continuellement | BT23: continuer | BU23: le contraire; les contraires | BW23: contre | BX23: convenable; convenables | BY23: convenir | BZ23: une conversation; des conversations | CA23: une conviction; des convictions | CB23: un copain; des copains | CC23: copier | CD23: une copine; des copines | CE23: un coq; des coqs | CG23: un corbeau; des corbeaux | CH23: une corbeille; des corbeilles | CI23: une corde; des cordes | CM23: 20 | CN23: 18 | CP23: 0.7122581586 | CQ23: 0.4104182381 | CS23: 0.2868683643 | CT23: 0.6724853619 | CU23: 0.215141666 | CV23: 0.05634107691 | CX23: 0.08099005077 | CY23: 0.6603511346 | CZ23: 0.1059818668 | DA23: 0.03903322865 | DB23: 0.5006630398 | DC23: 0.957608831 | DD23: 0.2852887152 | DE23: 0.9956628997 | DF23: 0.7635086276 | DH23: 0.5880044449 | DI23: 0.8669139933 | DJ23: 0.7155455782 | DO23: 13 | DP23: 8 | DR23: 7 | DS23: 12 | DT23: 5 | DU23: 2 | DW23: 3 | DX23: 11 | DY23: 4 | DZ23: 1 | EA23: 9 | EB23: 17 | EC23: 6 | ED23: 18 | EE23: 15 | EG23: 10 | EH23: 16 | EI23: 14 | EM23: =IF($CN23>=EM$3,HLOOKUP(EM$3,$DN23:$EL173,151,FALSE),"") -> 13 | EN23: 8 | EO23: 10 | EP23: 12 | EQ23: 7 | ER23: 16 | ES23: 5 | ET23: 3 | EU23: 14 | EV23: 20 | EW23: une conversation; des conversations | EX23: le contraire; les contraires | EY23: contre | FG23: ; une conversation; des conversations | FH23: ; le contraire; les contraires | FI23: ; contre | FQ23: ; une conversation; des conversations; le contraire; les contraires; contre.
A24: 21 | B24: 1600 | C24: 21 | D24: =VLOOKUP(C24,Calendrier!C$96:D$430,2,TRUE) -> 2014-10-09 | E24: 2238:une température; des températures 2367:vérifier 846:une éternité; des éternités 1890:recouvrir 281:un buisson; des buissons 1675:piquer 678:distribuer | F24: ; un costume; des costumes; coupable; coupables; un côté; des côtés. | G24: 2238:une température; des températures | H24: 2367:vérifier | I24: 846:une éternité; des éternités | J24: 1890:recouvrir | K24: 281:un buisson; des buissons | L24: 1675:piquer | M24: 678:distribuer | Q24: 13 | R24: 0.2038834951 | S24: TRUE | T24: 2238 | U24: une température; des températures | V24: 2367 | W24: vérifier | X24: 846 | Y24: une éternité; des éternités | Z24: 1890 | AA24: recouvrir | AB24: 281 | AC24: un buisson; des buissons | AD24: 1675 | AE24: piquer | AF24: 678 | AG24: distribuer | AN24: un sac | AO24: un sac ; des sacs | AP24: 21 | AQ24: 2034 | AR24: un sac ; des sacs | AS24: CP | AT24: 91 | AU24: 216 | AV24: 595 | AW24: 1192 | AX24: 2034 | AY24: 21 | BI24: 13 | BJ24: 21 | BK24: 2014-10-09 | BL24: 1600 | BM24: 500 | BN24: une corniche; des corniches | BS24: un costume; des costumes | BT24: une côte; des côtes | BU24: un côté; des côtés | BV24: le coton; les cotons | BW24: le cou; les cous | BX24: une couche; des couches | BY24: coucher | BZ24: le coude; les coudes | CA24: couler | CB24: une couleur; des couleurs | CC24: un couloir; des couloirs | CD24: un coup; des coups | CE24: coupable; coupables | CF24: une coupe; des coupes | CG24: couper | CH24: une cour; des cours | CI24: le courage; les courages | CL24: un coureur; des coureurs | CM24: 21 | CN24: 19 | CO24: 0.382222456 | CT24: 0.02263527277 | CU24: 0.8302493967 | CV24: 0.07682410087 | CW24: 0.5248721315 | CX24: 0.3596666688 | CY24: 0.7400672721 | CZ24: 0.9654090696 | DA24: 0.9660046066 | DB24: 0.4067476824 | DC24: 0.9223157669 | DD24: 0.8185584248 | DE24: 0.5259194504 | DF24: 0.03622848676 | DG24: 0.7585953882 | DH24: 0.9000033732 | DI24: 0.9412380902 | DJ24: 0.8082437193 | DM24: 0.3568457919 | DN24: 6 | DS24: 1 | DT24: 14 | DU24: 3 | DV24: 8 | DW24: 5 | DX24: 10 | DY24: 18 | DZ24: 19 | EA24: 7 | EB24: 16 | EC24: 13 | ED24: 9 | EE24: 2 | EF24: 11 | EG24: 15 | EH24: 17 | EI24: 12 | EL24: 4 | EM24: =IF($CN24>=EM$3,HLOOKUP(EM$3,$DN24:$EL174,151,FALSE),"") -> 6 | EN24: 18 | EO24: 8 | EP24: 25 | EQ24: 10 | ER24: 1 | ES24: 14 | ET24: 9 | EU24: 17 | EV24: 11 | EW24: un costume; des costumes | EX24: coupable; coupables | EY24: un côté; des côtés | FG24: ; un costume; des costumes | FH24: ; coupable; coupables | FI24: ; un côté; des côtés | FQ24: ; un costume; des costumes; coupable; coupables; un côté; des côtés.
A25: 22 | B25: 1607 | C25: 22 | D25: =VLOOKUP(C25,Calendrier!C$96:D$430,2,TRUE) -> 2014-10-10 | E25: 324:une casquette; des casquettes 47:une agitation; des agitations 763:un empereur; des empereurs 1132:une impératrice; des impératrices 822:un équilibre; des équilibres 2352:un végétal; des végétaux 1960:une résolution; des résolutions | F25: ; une coutume ; des coutumes; un couvercle; des couvercles; une course; des courses. | G25: 324:une casquette; des casquettes | H25: 47:une agitation; des agitations | I25: 763:un empereur; des empereurs | J25: 1132:une impératrice; des impératrices | K25: 822:un équilibre; des équilibres | L25: 2352:un végétal; des végétaux | M25: 1960:une résolution; des résolutions | Q25: 13.5 | R25: 0.213592233 | S25: TRUE | T25: 324 | U25: une casquette; des casquettes | V25: 47 | W25: une agitation; des agitations | X25: 763 | Y25: un empereur; des empereurs | Z25: 1132 | AA25: une impératrice; des impératrices | AB25: 822 | AC25: un équilibre; des équilibres | AD25: 2352 | AE25: un végétal; des végétaux | AF25: 1960 | AG25: une résolution; des résolutions | AN25: petit; petite | AO25: petit; petite; petits; petites | AP25: 22 | AQ25: 1661 | AR25: petit; petite; petits; petites | AS25: CP | AT25: 77 | AU25: 182 | AV25: 494 | AW25: 975 | AX25: 1661 | AY25: 22 | BI25: 13.5 | BJ25: 22 | BK25: 2014-10-10 | BL25: 1607 | BM25: 525 | BN25: courir | BQ25: une course; des courses | BS25: un cousin; des cousins | BT25: une cousine; des cousines | BV25: un couteau; des couteaux | BW25: une coutume ; des coutumes | BY25: un couvercle; des couvercles | BZ25: un couvert; des couverts | CA25: une couverture ; des couvertures | CB25: couvrir | CD25: une crainte; des craintes | CE25: un craquement; des craquements | CH25: une créature; des créatures | CM25: 22 | CN25: 13 | CO25: =IF(BN25<>"",RAND(),"") -> 0.4223865141 | CP25: =IF(BO25<>"",RAND(),"") ->  | CQ25: =IF(BP25<>"",RAND(),"") ->  | CR25: =IF(BQ25<>"",RAND(),"") -> 0.1451216728 | CS25: =IF(BR25<>"",RAND(),"") ->  | CT25: =IF(BS25<>"",RAND(),"") -> 0.8016291879 | CU25: =IF(BT25<>"",RAND(),"") -> 0.6080113652 | CV25: =IF(BU25<>"",RAND(),"") ->  | CW25: =IF(BV25<>"",RAND(),"") -> 0.5457916456 | CX25: =IF(BW25<>"",RAND(),"") -> 0.05254664313 | CY25: =IF(BX25<>"",RAND(),"") ->  | CZ25: =IF(BY25<>"",RAND(),"") -> 0.0960161649 | DA25: =IF(BZ25<>"",RAND(),"") -> 0.7358740728 | DB25: =IF(CA25<>"",RAND(),"") -> 0.7121199492 | DC25: =IF(CB25<>"",RAND(),"") -> 0.5935494336 | DD25: =IF(CC25<>"",RAND(),"") ->  | DE25: =IF(CD25<>"",RAND(),"") -> 0.6166185613 | DF25: =IF(CE25<>"",RAND(),"") -> 0.6490440318 | DG25: =IF(CF25<>"",RAND(),"") ->  | DH25: =IF(CG25<>"",RAND(),"") ->  | DI25: =IF(CH25<>"",RAND(),"") -> 0.7513385063 | DJ25: =IF(CI25<>"",RAND(),"") ->  | DK25: =IF(CJ25<>"",RAND(),"") ->  | DL25: =IF(CK25<>"",RAND(),"") ->  | DM25: =IF(CL25<>"",RAND(),"") ->  | DN25: =IF(CO25<>"",RANK(CO25,$CO25:$DM25,1),"") -> 4 | DO25: =IF(CP25<>"",RANK(CP25,$CO25:$DM25,1),"") ->  | DP25: =IF(CQ25<>"",RANK(CQ25,$CO25:$DM25,1),"") ->  | DQ25: =IF(CR25<>"",RANK(CR25,$CO25:$DM25,1),"") -> 3 | DR25: =IF(CS25<>"",RANK(CS25,$CO25:$DM25,1),"") ->  | DS25: =IF(CT25<>"",RANK(CT25,$CO25:$DM25,1),"") -> 13 | DT25: =IF(CU25<>"",RANK(CU25,$CO25:$DM25,1),"") -> 7 | DU25: =IF(CV25<>"",RANK(CV25,$CO25:$DM25,1),"") ->  | DV25: =IF(CW25<>"",RANK(CW25,$CO25:$DM25,1),"") -> 5 | DW25: =IF(CX25<>"",RANK(CX25,$CO25:$DM25,1),"") -> 1 | DX25: =IF(CY25<>"",RANK(CY25,$CO25:$DM25,1),"") ->  | DY25: =IF(CZ25<>"",RANK(CZ25,$CO25:$DM25,1),"") -> 2 | DZ25: =IF(DA25<>"",RANK(DA25,$CO25:$DM25,1),"") -> 11 | EA25: =IF(DB25<>"",RANK(DB25,$CO25:$DM25,1),"") -> 10 | EB25: =IF(DC25<>"",RANK(DC25,$CO25:$DM25,1),"") -> 6 | EC25: =IF(DD25<>"",RANK(DD25,$CO25:$DM25,1),"") ->  | ED25: =IF(DE25<>"",RANK(DE25,$CO25:$DM25,1),"") -> 8 | EE25: =IF(DF25<>"",RANK(DF25,$CO25:$DM25,1),"") -> 9 | EF25: =IF(DG25<>"",RANK(DG25,$CO25:$DM25,1),"") ->  | EG25: =IF(DH25<>"",RANK(DH25,$CO25:$DM25,1),"") ->  | EH25: =IF(DI25<>"",RANK(DI25,$CO25:$DM25,1),"") -> 12 | EI25: =IF(DJ25<>"",RANK(DJ25,$CO25:$DM25,1),"") ->  | EJ25: =IF(DK25<>"",RANK(DK25,$CO25:$DM25,1),"") ->  | EK25: =IF(DL25<>"",RANK(DL25,$CO25:$DM25,1),"") ->  | EL25: =IF(DM25<>"",RANK(DM25,$CO25:$DM25,1),"") ->  | EM25: =IF($CN25>=EM$3,HLOOKUP(EM$3,$DN25:$EL175,151,FALSE),"") -> 10 | EN25: 12 | EO25: 4 | EP25: 1 | EQ25: 9 | ER25: 15 | ES25: 7 | ET25: 17 | EU25: 18 | EV25: 14 | EW25: une coutume ; des coutumes | EX25: un couvercle; des couvercles | EY25: une course; des courses | FG25: ; une coutume ; des coutumes | FH25: ; un couvercle; des couvercles | FI25: ; une course; des courses | FQ25: ; une coutume ; des coutumes; un couvercle; des couvercles; une course; des courses.
A26: 23 | B26: 1614 | C26: 23 | D26: =VLOOKUP(C26,Calendrier!C$96:D$430,2,TRUE) -> 2014-10-13 | E26: 967:un fossé; des fossés 29:une admiration; des admirations 1888:reconduire 1389:une ménagère; des ménagères 2054:satisfaire 2295:un transport; des transports 970:un fouet; des fouets | F26: ; une dame; des dames; déborder; un cuisinier; des cuisiniers. | G26: 967:un fossé; des fossés | H26: 29:une admiration; des admirations | I26: 1888:reconduire | J26: 1389:une ménagère; des ménagères | K26: 2054:satisfaire | L26: 2295:un transport; des transports | M26: 970:un fouet; des fouets | Q26: 14 | R26: 0.2233009709 | S26: TRUE | T26: 967 | U26: un fossé; des fossés | V26: 29 | W26: une admiration; des admirations | X26: 1888 | Y26: reconduire | Z26: 1389 | AA26: une ménagère; des ménagères | AB26: 2054 | AC26: satisfaire | AD26: 2295 | AE26: un transport; des transports | AF26: 970 | AG26: un fouet; des fouets | AN26: malade | AO26: malade ; malades | AP26: 23 | AQ26: 1330 | AR26: malade ; malades | AS26: CP | AT26: 59 | AU26: 138 | AV26: 386 | AW26: 748 | AX26: 1330 | AY26: 23 | BI26: 14 | BJ26: 23 | BK26: 2014-10-13 | BL26: 1614 | BM26: 550 | BN26: crier | BO26: un crime; des crimes | BP26: une crise; des crises | BQ26: le cristal; les cristaux | BR26: croire | BT26: cuire | BU26: une cuisine; des cuisines | BV26: un cuisinier; des cuisiniers | BW26: une cuisinière; des cuisinières | BX26: le cuivre; les cuivres | BY26: cultiver | BZ26: un curieux; des curieux | CA26: une dame; des dames | CB26: un danger; des dangers | CC26: dangereux; dangereuse; dangereux; dangereuses | CD26: dans | CE26: une danse; des danses | CG26: une date; des dates | CI26: déborder | CL26: un début; des débuts | CM26: 23 | CN26: 20 | CO26: 0.151836169 | CP26: 0.9851150083 | CQ26: 0.3487298527 | CR26: 0.5513942314 | CS26: 0.1012892461 | CU26: 0.9986768929 | CV26: 0.0325103775 | CW26: 0.01913255071 | CX26: 0.7801370248 | CY26: 0.2132800392 | CZ26: 0.4478823885 | DA26: 0.3545810143 | DB26: 0.013961689 | DC26: 0.3093466505 | DD26: 0.2384285305 | DE26: 0.8507418055 | DF26: 0.3780170424 | DH26: 0.3876771348 | DJ26: 0.01749520085 | DM26: 0.6360962121 | DN26: 6 | DO26: 19 | DP26: 10 | DQ26: 15 | DR26: 5 | DT26: 20 | DU26: 4 | DV26: 3 | DW26: 17 | DX26: 7 | DY26: 14 | DZ26: 11 | EA26: 1 | EB26: 9 | EC26: 8 | ED26: 18 | EE26: 12 | EG26: 13 | EI26: 2 | EL26: 16 | EM26: =IF($CN26>=EM$3,HLOOKUP(EM$3,$DN26:$EL176,151,FALSE),"") -> 14 | EN26: 22 | EO26: 9 | EP26: 8 | EQ26: 5 | ER26: 1 | ES26: 11 | ET26: 16 | EU26: 15 | EV26: 3 | EW26: une dame; des dames | EX26: déborder | EY26: un cuisinier; des cuisiniers | FG26: ; une dame; des dames | FH26: ; déborder | FI26: ; un cuisinier; des cuisiniers | FQ26: ; une dame; des dames; déborder; un cuisinier; des cuisiniers.
A27: 24 | B27: 1621 | C27: 24 | D27: =VLOOKUP(C27,Calendrier!C$96:D$430,2,TRUE) -> 2014-10-14 | E27: 468:un conseil; des conseils 2291:tranquille; tranquilles 621:dérober 788:enrichir 200:un berceau; des berceaux 745:une éducation; des éducations 685:docile; dociles | F27: ; délicat; délicate; délicats; délicates; une découverte; des découvertes; délivrer. | G27: 468:un conseil; des conseils | H27: 2291:tranquille; tranquilles | I27: 621:dérober | J27: 788:enrichir | K27: 200:un berceau; des berceaux | L27: 745:une éducation; des éducations | M27: 685:docile; dociles | Q27: 14.5 | R27: 0.2330097087 | S27: TRUE | T27: 468 | U27: un conseil; des conseils | V27: 2291 | W27: tranquille; tranquilles | X27: 621 | Y27: dérober | Z27: 788 | AA27: enrichir | AB27: 200 | AC27: un berceau; des berceaux | AD27: 745 | AE27: une éducation; des éducations | AF27: 685 | AG27: docile; dociles | AN27: un os | AO27: un os; des os | AP27: 24 | AQ27: 1567 | AR27: un os; des os | AS27: CP | AT27: 73 | AU27: 175 | AV27: 468 | AW27: 909 | AX27: 1567 | AY27: 24 | BI27: 14.5 | BJ27: 24 | BK27: 2014-10-14 | BL27: 1621 | BM27: 575 | BO27: décembre | BR27: décider | BV27: une découverte; des découvertes | BW27: découvrir | BX27: dedans | BZ27: un défaut; des défauts | CC27: un défenseur; des défenseurs | CE27: un degré; des degrés | CI27: délicat; délicate; délicats; délicates | CL27: délivrer | CM27: 24 | CN27: 10 | CP27: 0.9609413822 | CS27: 0.8972364574 | CW27: 0.2325321467 | CX27: 0.4367463802 | CY27: 0.7053882571 | DA27: 0.3462672228 | DD27: 0.8117665795 | DF27: 0.6422291956 | DJ27: 0.1471969044 | DM27: 0.2837353634 | DO27: 10 | DR27: 9 | DV27: 2 | DW27: 5 | DX27: 7 | DZ27: 4 | EC27: 8 | EE27: 6 | EI27: 1 | EL27: 3 | EM27: =IF($CN27>=EM$3,HLOOKUP(EM$3,$DN27:$EL177,151,FALSE),"") -> 22 | EN27: 9 | EO27: 25 | EP27: 13 | EQ27: 10 | ER27: 18 | ES27: 11 | ET27: 16 | EU27: 5 | EV27: 2 | EW27: délicat; délicate; délicats; délicates | EX27: une découverte; des découvertes | EY27: délivrer | FG27: ; délicat; délicate; délicats; délicates | FH27: ; une découverte; des découvertes | FI27: ; délivrer | FQ27: ; délicat; délicate; délicats; délicates; une découverte; des découvertes; délivrer.
A28: 25 | B28: 1628 | C28: 25 | D28: =VLOOKUP(C28,Calendrier!C$96:D$430,2,TRUE) -> 2014-10-16 | E28: 1164:un instant; des instants 676:distraire 161:une avoine; des avoines 706:une douzaine; des douzaines 589:défendre 1316:un magasin; des magasins 476:construire | F28: ; dernier; dernière; derniers; dernières; des; déplacer. | G28: 1164:un instant; des instants | H28: 676:distraire | I28: 161:une avoine; des avoines | J28: 706:une douzaine; des douzaines | K28: 589:défendre | L28: 1316:un magasin; des magasins | M28: 476:construire | Q28: 15 | R28: 0.2427184466 | S28: TRUE | T28: 1164 | U28: un instant; des instants | V28: 676 | W28: distraire | X28: 161 | Y28: une avoine; des avoines | Z28: 706 | AA28: une douzaine; des douzaines | AB28: 589 | AC28: défendre | AD28: 1316 | AE28: un magasin; des magasins | AF28: 476 | AG28: construire | AN28: ma | AO28: ma | AP28: 25 | AQ28: 1312 | AR28: ma | AS28: CP | AT28: 56 | AU28: 133 | AV28: 375 | AW28: 733 | AX28: 1312 | AY28: 25 | BI28: 15 | BJ28: 25 | BK28: 2014-10-16 | BL28: 1628 | BM28: 600 | BN28: demain | BO28: une demande; des demandes | BQ28: une démarche; des démarches | BS28: demi; demie; demis; demies | BT28: une demoiselle; des demoiselles | BU28: démolir | BV28: une dent; des dents | BW28: dénudé; dénudée; dénudés; dénudées | BY28: dépendre | BZ28: dépenser | CA28: déplacer | CB28: déplaire | CD28: depuis | CF28: dernier; dernière; derniers; dernières | CH28: dérober | CI28: des | CK28: désagréable; désagréables | CM28: 25 | CN28: 17 | CO28: 0.6079426001 | CP28: 0.9297585093 | CR28: 0.1678033795 | CT28: 0.467585843 | CU28: 0.296714395 | CV28: 0.4104337905 | CW28: 0.9454971559 | CX28: 0.3234121608 | CZ28: 0.1833805002 | DA28: 0.8879816043 | DB28: 0.07809834938 | DC28: 0.2365358434 | DE28: 0.8283748199 | DG28: 0.02589850788 | DI28: 0.1772230343 | DJ28: 0.04688957799 | DL28: 0.9579792322 | DN28: 12 | DO28: 15 | DQ28: 4 | DS28: 11 | DT28: 8 | DU28: 10 | DV28: 16 | DW28: 9 | DY28: 6 | DZ28: 14 | EA28: 3 | EB28: 7 | ED28: 13 | EF28: 1 | EH28: 5 | EI28: 2 | EK28: 17 | EM28: =IF($CN28>=EM$3,HLOOKUP(EM$3,$DN28:$EL178,151,FALSE),"") -> 19 | EN28: 22 | EO28: 14 | EP28: 4 | EQ28: 21 | ER28: 12 | ES28: 15 | ET28: 7 | EU28: 10 | EV28: 8 | EW28: dernier; dernière; derniers; dernières | EX28: des | EY28: déplacer | FG28: ; dernier; dernière; derniers; dernières | FH28: ; des | FI28: ; déplacer | FQ28: ; dernier; dernière; derniers; dernières; des; déplacer.
A29: 26 | B29: 1635 | C29: 26 | D29: =VLOOKUP(C29,Calendrier!C$96:D$430,2,TRUE) -> 2014-10-17 | E29: 1167:instruire 824:une équipe; des équipes 1178:introduire 301:un camarade; une camarade; des camarades 33:une adresse; des adresses 1000:fruitier; fruitière; fruitiers; fruitière 790:enseigner | F29: ; un dessin; des dessins; désireux; désireuse; désireux; désireuses; un détour; des détours. | G29: 1167:instruire | H29: 824:une équipe; des équipes | I29: 1178:introduire | J29: 301:un camarade; une camarade; des camarades | K29: 33:une adresse; des adresses | L29: 1000:fruitier; fruitière; fruitiers; fruitière | M29: 790:enseigner | Q29: 15.5 | R29: 0.2524271845 | S29: TRUE | T29: 1167 | U29: instruire | V29: 824 | W29: une équipe; des équipes | X29: 1178 | Y29: introduire | Z29: 301 | AA29: un camarade; une camarade; des camarades | AB29: 33 | AC29: une adresse; des adresses | AD29: 1000 | AE29: fruitier; fruitière; fruitiers; fruitière | AF29: 790 | AG29: enseigner | AN29: le monde | AO29: le monde; les mondes | AP29: 26 | AQ29: 1450 | AR29: le monde; les mondes | AS29: CP | AT29: 70 | AU29: 154 | AV29: 425 | AW29: 827 | AX29: 1450 | AY29: 26 | BI29: 15.5 | BJ29: 26 | BK29: 2014-10-17 | BL29: 1635 | BM29: 625 | BO29: désigner | BR29: désireux; désireuse; désireux; désireuses | BS29: désobéir | BT29: la désolation; les désolations | BV29: un désordre; des désordres | BX29: un dessin; des dessins | CB29: une destination; des destinations | CD29: un détail; des détails | CF29: détester | CG29: un détour; des détours | CI29: détruire | CK29: deux | CM29: 26 | CN29: 12 | CP29: 0.1665276496 | CS29: 0.04557449739 | CT29: 0.521450509 | CU29: 0.814855535 | CW29: 0.3326150948 | CY29: 0.01529021056 | DC29: 0.1232035987 | DE29: 0.8764987568 | DG29: 0.212744734 | DH29: 0.06036935822 | DJ29: 0.3448787418 | DL29: 0.2169717123 | DO29: 5 | DR29: 2 | DS29: 10 | DT29: 11 | DV29: 8 | DX29: 1 | EB29: 4 | ED29: 12 | EF29: 6 | EG29: 3 | EI29: 9 | EK29: 7 | EM29: =IF($CN29>=EM$3,HLOOKUP(EM$3,$DN29:$EL179,151,FALSE),"") -> 11 | EN29: 5 | EO29: 20 | EP29: 15 | EQ29: 2 | ER29: 19 | ES29: 24 | ET29: 9 | EU29: 22 | EV29: 6 | EW29: un dessin; des dessins | EX29: désireux; désireuse; désireux; désireuses | EY29: un détour; des détours | FG29: ; un dessin; des dessins | FH29: ; désireux; désireuse; désireux; désireuses | FI29: ; un détour; des détours | FQ29: ; un dessin; des dessins; désireux; désireuse; désireux; désireuses; un détour; des détours.
A30: 27 | B30: 1642 | C30: 27 | D30: =VLOOKUP(C30,Calendrier!C$96:D$430,2,TRUE) -> 2014-11-03 | E30: 985:franchement 2209:surveiller 484:contrarier 2210:suspendre 334:une centaine; des centaines 987:la franchise; les franchises 674:une distinction; des distinctions | F30: ; devoir; digne; dignes; diriger. | G30: 985:franchement | H30: 2209:surveiller | I30: 484:contrarier | J30: 2210:suspendre | K30: 334:une centaine; des centaines | L30: 987:la franchise; les franchises | M30: 674:une distinction; des distinctions | Q30: 16 | R30: 0.2621359223 | S30: TRUE | T30: 985 | U30: franchement | V30: 2209 | W30: surveiller | X30: 484 | Y30: contrarier | Z30: 2210 | AA30: suspendre | AB30: 334 | AC30: une centaine; des centaines | AD30: 987 | AE30: la franchise; les franchises | AF30: 674 | AG30: une distinction; des distinctions | AN30: mon | AO30: mon | AP30: 27 | AQ30: 1449 | AR30: mon | AS30: CP | AT30: 69 | AU30: 153 | AV30: 424 | AW30: 826 | AX30: 1449 | AY30: 27 | BI30: 16 | BJ30: 27 | BK30: 2014-11-03 | BL30: 1642 | BM30: 650 | BN30: devant | BO30: devenir | BP30: deviner | BQ30: devoir | BS30: une dictée; des dictées | BV30: digne; dignes | BW30: le dimanche ; les dimanches | BZ30: dire | CA30: directement | CB30: un directeur; des directeurs | CC30: une direction; des directions | CD30: une directrice; des directrices | CE30: diriger | CI30: une disposition; des dispositions | CL30: une distraction; des distractions | CM30: 27 | CN30: 15 | CO30: 0.8756201932 | CP30: 0.680144498 | CQ30: 0.7589022075 | CR30: 0.1391961699 | CT30: 0.8941561131 | CW30: 0.1513554048 | CX30: 0.4007979872 | DA30: 0.4746162896 | DB30: 0.7533127789 | DC30: 0.5237404955 | DD30: 0.6011906673 | DE30: 0.464662427 | DF30: 0.2426016883 | DJ30: 0.3685750132 | DM30: 0.8467924129 | DN30: 14 | DO30: 10 | DP30: 12 | DQ30: 1 | DS30: 15 | DV30: 2 | DW30: 5 | DZ30: 7 | EA30: 11 | EB30: 8 | EC30: 9 | ED30: 6 | EE30: 3 | EI30: 4 | EL30: 13 | EM30: =IF($CN30>=EM$3,HLOOKUP(EM$3,$DN30:$EL180,151,FALSE),"") -> 4 | EN30: 9 | EO30: 18 | EP30: 22 | EQ30: 10 | ER30: 17 | ES30: 13 | ET30: 15 | EU30: 16 | EV30: 2 | EW30: devoir | EX30: digne; dignes | EY30: diriger | FG30: ; devoir | FH30: ; digne; dignes | FI30: ; diriger | FQ30: ; devoir; digne; dignes; diriger.
A31: 28 | B31: 1649 | C31: 28 | D31: =VLOOKUP(C31,Calendrier!C$96:D$430,2,TRUE) -> 2014-11-04 | E31: 2249:terrestre; terrestres 420:une clé / une clef; des clés / des clefs 1897:réellement 1918:rejoindre 924:un feuillage; des feuillages 458:conclure 545:un crayon; des crayons | F31: ; dormir; donc; donner. | G31: 2249:terrestre; terrestres | H31: 420:une clé / une clef; des clés / des clefs | I31: 1897:réellement | J31: 1918:rejoindre | K31: 924:un feuillage; des feuillages | L31: 458:conclure | M31: 545:un crayon; des crayons | Q31: 16.5 | R31: 0.2718446602 | S31: TRUE | T31: 2249 | U31: terrestre; terrestres | V31: 420 | W31: une clé / une clef; des clés / des clefs | X31: 1897 | Y31: réellement | Z31: 1918 | AA31: rejoindre | AB31: 924 | AC31: un feuillage; des feuillages | AD31: 458 | AE31: conclure | AF31: 545 | AG31: un crayon; des crayons | AN31: un élève; une élève | AO31: un élève; une élève; des élèves | AP31: 28 | AQ31: 757 | AR31: un élève; une élève; des élèves | AS31: CP | AT31: 24 | AU31: 69 | AV31: 205 | AW31: 429 | AX31: 757 | AY31: 28 | BI31: 16.5 | BJ31: 28 | BK31: 2014-11-04 | BL31: 1649 | BM31: 675 | BN31: distraire | BO31: distrait; distraite; distraits; distraites | BP31: distribuer | BQ31: une distribution; des distributions | BS31: diviser | BT31: une division; des divisions | BU31: dix | BW31: docile; dociles | BX31: un docteur; des docteurs | BY31: un doigt; des doigts | BZ31: un domestique; des domestiques | CA31: le domicile; les domiciles; les domiciles | CD31: donc | CE31: donner | CF31: dont | CG31: dormir | CH31: le dos; les dos | CI31: double; doubles | CK31: doucement | CL31: la douceur; les douceurs | CM31: 28 | CN31: 20 | CO31: 0.8606960008 | CP31: 0.7917115798 | CQ31: 0.8329665921 | CR31: 0.4525082762 | CT31: 0.5591038099 | CU31: 0.7662092503 | CV31: 0.8053152768 | CX31: 0.989134081 | CY31: 0.7784462617 | CZ31: 0.5573487295 | DA31: 0.5182985194 | DB31: 0.8123543673 | DE31: 0.04643317622 | DF31: 0.1584706975 | DG31: 0.5868438213 | DH31: 0.01616612439 | DI31: 0.6682789334 | DJ31: 0.6098060854 | DL31: 0.4370366806 | DM31: 0.5221820883 | DN31: 19 | DO31: 15 | DP31: 18 | DQ31: 5 | DS31: 9 | DT31: 13 | DU31: 16 | DW31: 20 | DX31: 14 | DY31: 8 | DZ31: 6 | EA31: 17 | ED31: 2 | EE31: 3 | EF31: 10 | EG31: 1 | EH31: 12 | EI31: 11 | EK31: 4 | EL31: 7 | EM31: =IF($CN31>=EM$3,HLOOKUP(EM$3,$DN31:$EL181,151,FALSE),"") -> 20 | EN31: 17 | EO31: 18 | EP31: 24 | EQ31: 4 | ER31: 13 | ES31: 25 | ET31: 12 | EU31: 6 | EV31: 19 | EW31: dormir | EX31: donc | EY31: donner | FG31: ; dormir | FH31: ; donc | FI31: ; donner | FQ31: ; dormir; donc; donner.
A32: 29 | B32: 1656 | C32: 29 | D32: =VLOOKUP(C32,Calendrier!C$96:D$430,2,TRUE) -> 2014-11-06 | E32: 26:actuellement 1786:principalement 1263:leur; leurs 2155:un sou; des sous 550:un cri; des cris 2043:sale; sales 2019:roux; rousse; roux; rousses | F32: ; une douleur; des douleurs; un duvet; des duvets; drôle; drôles. | G32: 26:actuellement | H32: 1786:principalement | I32: 1263:leur; leurs | J32: 2155:un sou; des sous | K32: 550:un cri; des cris | L32: 2043:sale; sales | M32: 2019:roux; rousse; roux; rousses | Q32: 17 | R32: 0.2815533981 | S32: TRUE | T32: 26 | U32: actuellement | V32: 1786 | W32: principalement | X32: 1263 | Y32: leur; leurs | Z32: 2155 | AA32: un sou; des sous | AB32: 550 | AC32: un cri; des cris | AD32: 2043 | AE32: sale; sales | AF32: 2019 | AG32: roux; rousse; roux; rousses | AN32: une vache | AO32: une vache; des vaches | AP32: 29 | AQ32: 2341 | AR32: une vache; des vaches | AS32: CP | AT32: 107 | AU32: 248 | AV32: 683 | AW32: 1388 | AX32: 2341 | AY32: 29 | BI32: 17 | BJ32: 29 | BK32: 2014-11-06 | BL32: 1656 | BM32: 700 | BN32: une douleur; des douleurs | BO32: douloureux; douloureuse; douloureuses | BP32: un doute; des doutes | BQ32: douter | BR32: doux; douce; doux; douces | BS32: une douzaine; des douzaines | BT32: douze | BU32: un drap; des draps | BV32: un drapeau; des drapeaux | BW32: droit; droite; droits; droites | BX32: une droite; des droites | BY32: drôle; drôles | BZ32: un duc; des ducs | CA32: une duchesse; des duchesses | CD32: une durée; des durées | CE32: durer | CF32: un duvet; des duvets | CG32: une eau; des eaux | CH32: éblouir | CK32: échapper | CL32: une écharpe; des écharpes | CM32: 29 | CN32: 21 | CO32: 0.029206697 | CP32: 0.4454252348 | CQ32: 0.4231166603 | CR32: 0.3361932248 | CS32: 0.8430537058 | CT32: 0.5404454963 | CU32: 0.2915139749 | CV32: 0.7116237179 | CW32: 0.9274858398 | CX32: 0.2396801153 | CY32: 0.7345354356 | CZ32: 0.1607349779 | DA32: 0.1643433335 | DB32: 0.4053145048 | DE32: 0.2051363121 | DF32: 0.9941444926 | DG32: 0.09545108007 | DH32: 0.5759664849 | DI32: 0.9883968547 | DL32: 0.7189529577 | DM32: 0.7575163885 | DN32: 1 | DO32: 11 | DP32: 10 | DQ32: 8 | DR32: 18 | DS32: 12 | DT32: 7 | DU32: 14 | DV32: 19 | DW32: 6 | DX32: 16 | DY32: 3 | DZ32: 4 | EA32: 9 | ED32: 5 | EE32: 21 | EF32: 2 | EG32: 13 | EH32: 20 | EK32: 15 | EL32: 17 | EM32: =IF($CN32>=EM$3,HLOOKUP(EM$3,$DN32:$EL182,151,FALSE),"") -> 1 | EN32: 19 | EO32: 12 | EP32: 13 | EQ32: 17 | ER32: 10 | ES32: 7 | ET32: 4 | EU32: 14 | EV32: 3 | EW32: une douleur; des douleurs | EX32: un duvet; des duvets | EY32: drôle; drôles | FG32: ; une douleur; des douleurs | FH32: ; un duvet; des duvets | FI32: ; drôle; drôles | FQ32: ; une douleur; des douleurs; un duvet; des duvets; drôle; drôles.
A33: 30 | B33: 1663 | C33: 30 | D33: =VLOOKUP(C33,Calendrier!C$96:D$430,2,TRUE) -> 2014-11-07 | E33: 932:une file; des files 950:un foie; des foies 1504:ni 931:un fil; des fils 437:une colline; des collines 715:dur; dure; durs; dures 2285:une trace; des traces | F33: ; une économie; des économies; écrire; une écolière; des écolières. | G33: 932:une file; des files | H33: 950:un foie; des foies | I33: 1504:ni | J33: 931:un fil; des fils | K33: 437:une colline; des collines | L33: 715:dur; dure; durs; dures | M33: 2285:une trace; des traces | Q33: 17.5 | R33: 0.2912621359 | S33: TRUE | T33: 932 | U33: une file; des files | V33: 950 | W33: un foie; des foies | X33: 1504 | Y33: ni | Z33: 931 | AA33: un fil; des fils | AB33: 437 | AC33: une colline; des collines | AD33: 715 | AE33: dur; dure; durs; dures | AF33: 2285 | AG33: une trace; des traces | AN33: un cheval | AO33: un cheval; des chevaux | AP33: 30 | AQ33: 392 | AR33: un cheval; des chevaux | AS33: CP | AT33: 16 | AU33: 43 | AV33: 113 | AW33: 223 | AX33: 392 | AY33: 30 | BI33: 17.5 | BJ33: 30 | BK33: 2014-11-07 | BL33: 1663 | BM33: 725 | BN33: une échelle; des échelles | BR33: un éclat; des éclats | BT33: éclater | BV33: une écluse; des écluses | BW33: une école; des écoles | BX33: un écolier; des écoliers | BY33: une écolière; des écolières | BZ33: une économie; des économies | CB33: écouter | CC33: écrire | CD33: =IF(VLOOKUP($BM33+CD$3,$AQ$4:$AY$2436,9,FALSE)<=$BL33,VLOOKUP($BM33+CD$3,$AQ$4:$AR$2436,2,FALSE),"") -> un écrit; des écrits | CE33: une écriture; des écritures | CF33: une écurie; des écuries | CG33: une éducation; des éducations | CK33: également | CM33: 30 | CN33: 15 | CO33: 0.9302996225 | CS33: 0.3363090206 | CU33: 0.4666534066 | CW33: 0.615402625 | CX33: 0.9708838733 | CY33: 0.5686105027 | CZ33: 0.2515928029 | DA33: 0.09120823589 | DC33: 0.8820858683 | DD33: 0.1906129895 | DE33: 0.9796903248 | DF33: 0.895857324 | DG33: 0.2737090366 | DH33: 0.8413707022 | DL33: 0.4625972355 | DN33: 13 | DR33: 5 | DT33: 7 | DV33: 9 | DW33: 14 | DX33: 8 | DY33: 3 | DZ33: 1 | EB33: 11 | EC33: 2 | ED33: 15 | EE33: 12 | EF33: 4 | EG33: 10 | EK33: 6 | EM33: =IF($CN33>=EM$3,HLOOKUP(EM$3,$DN33:$EL183,151,FALSE),"") -> 13 | EN33: 16 | EO33: 12 | EP33: 19 | EQ33: 5 | ER33: 24 | ES33: 7 | ET33: 11 | EU33: 9 | EV33: 20 | EW33: une économie; des économies | EX33: écrire | EY33: une écolière; des écolières | FG33: ; une économie; des économies | FH33: ; écrire | FI33: ; une écolière; des écolières | FQ33: ; une économie; des économies; écrire; une écolière; des écolières.
A34: 31 | B34: 1670 | C34: 31 | D34: =VLOOKUP(C34,Calendrier!C$96:D$430,2,TRUE) -> 2014-11-11 | E34: 1333:un malheur; des malheurs 921:fêter 832:estimer 1122:une île ; des îles 598:un délice ; des délices 2148:un son; des sons 182:une barre; des barres | F34: ; elle est; élégant; élégante; élégants; élégantes; électrique; électriques. | G34: 1333:un malheur; des malheurs | H34: 921:fêter | I34: 832:estimer | J34: 1122:une île ; des îles | K34: 598:un délice ; des délices | L34: 2148:un son; des sons | M34: 182:une barre; des barres | Q34: 18 | R34: 0.3009708738 | S34: TRUE | T34: 1333 | U34: un malheur; des malheurs | V34: 921 | W34: fêter | X34: 832 | Y34: estimer | Z34: 1122 | AA34: une île ; des îles | AB34: 598 | AC34: un délice ; des délices | AD34: 2148 | AE34: un son; des sons | AF34: 182 | AG34: une barre; des barres | AN34: un mouton | AO34: un mouton; des moutons | AP34: 31 | AQ34: 1472 | AR34: un mouton; des moutons | AS34: CP | AT34: 71 | AU34: 158 | AV34: 433 | AW34: 845 | AX34: 1472 | AY34: 31 | BI34: 18 | BJ34: 31 | BK34: 2014-11-11 | BL34: 1670 | BM34: 750 | BQ34: électrique; électriques | BR34: élégant; élégante; élégants; élégantes | BT34: un élève; une élève; des élèves | BV34: elle est | BW34: elle a | BZ34: un empereur; des empereurs | CC34: en | CF34: encore | CH34: une encre; des encres | CI34: endormir | CJ34: un endroit; des endroits | CK34: une énergie; des énergies | CM34: 31 | CN34: 12 | CR34: 0.2214383469 | CS34: 0.0104299118 | CU34: 0.8340384849 | CW34: 0.007924542784 | CX34: 0.7843749063 | DA34: 0.2899579242 | DD34: 0.9190363528 | DG34: 0.2669523187 | DI34: 0.4087169662 | DJ34: 0.8380890947 | DK34: 0.2582166469 | DL34: 0.504030502 | DQ34: 3 | DR34: 2 | DT34: 10 | DV34: 1 | DW34: 9 | DZ34: 6 | EC34: 12 | EF34: 5 | EH34: 7 | EI34: 11 | EJ34: 4 | EK34: 8 | EM34: =IF($CN34>=EM$3,HLOOKUP(EM$3,$DN34:$EL184,151,FALSE),"") -> 9 | EN34: 5 | EO34: 4 | EP34: 23 | EQ34: 19 | ER34: 13 | ES34: 21 | ET34: 24 | EU34: 10 | EV34: 7 | EW34: elle est | EX34: élégant; élégante; élégants; élégantes | EY34: électrique; électriques | FG34: ; elle est | FH34: ; élégant; élégante; élégants; élégantes | FI34: ; électrique; électriques | FQ34: ; elle est; élégant; élégante; élégants; élégantes; électrique; électriques.
A35: 32 | B35: 1677 | C35: 32 | D35: =VLOOKUP(C35,Calendrier!C$96:D$430,2,TRUE) -> 2014-11-13 | E35: 556:le cuir; les cuirs 330:cela 894:la faim; les faims 1970:un retard; des retards 1608:un parti; des partis 2227:tard 524:le courant; les courants | F35: ; engager; enfin; énorme; énormes. | G35: 556:le cuir; les cuirs | H35: 330:cela | I35: 894:la faim; les faims | J35: 1970:un retard; des retards | K35: 1608:un parti; des partis | L35: 2227:tard | M35: 524:le courant; les courants | Q35: 18.5 | R35: 0.3106796117 | S35: TRUE | T35: 556 | U35: le cuir; les cuirs | V35: 330 | W35: cela | X35: 894 | Y35: la faim; les faims | Z35: 1970 | AA35: un retard; des retards | AB35: 1608 | AC35: un parti; des partis | AD35: 2227 | AE35: tard | AF35: 524 | AG35: le courant; les courants | AN35: une porte | AO35: une porte; des portes | AP35: 32 | AQ35: 1733 | AR35: une porte; des portes | AS35: CP | AT35: 81 | AU35: 189 | AV35: 518 | AW35: 1022 | AX35: 1733 | AY35: 32 | BI35: 18.5 | BJ35: 32 | BK35: 2014-11-13 | BL35: 1677 | BM35: 775 | BN35: une enfance; des enfances | BO35: un enfant; une enfant; des enfants | BP35: enfermer | BQ35: enfin | BT35: engager | BX35: énorme; énormes | BZ35: enrichir | CB35: enseigner | CD35: ensuite | CE35: ensuite | CF35: entendre | CH35: entier; entière; entiers; entières | CK35: entre | CL35: une entrée; des entrées | CM35: 32 | CN35: 14 | CO35: 0.1834315799 | CP35: 0.9707040388 | CQ35: 0.1951317995 | CR35: 0.1196780266 | CU35: 0.06366143263 | CY35: 0.1301768835 | DA35: 0.2866353237 | DC35: 0.9844291066 | DE35: 0.1999800911 | DF35: 0.5292236827 | DG35: 0.3911303391 | DI35: 0.4316095307 | DL35: 0.4588385322 | DM35: 0.5536186553 | DN35: 4 | DO35: 13 | DP35: 5 | DQ35: 2 | DT35: 1 | DX35: 3 | DZ35: 7 | EB35: 14 | ED35: 6 | EE35: 11 | EF35: 8 | EH35: 9 | EK35: 10 | EL35: 12 | EM35: =IF($CN35>=EM$3,HLOOKUP(EM$3,$DN35:$EL185,151,FALSE),"") -> 7 | EN35: 4 | EO35: 11 | EP35: 1 | EQ35: 3 | ER35: 17 | ES35: 13 | ET35: 19 | EU35: 21 | EV35: 24 | EW35: engager | EX35: enfin | EY35: énorme; énormes | FG35: ; engager | FH35: ; enfin | FI35: ; énorme; énormes | FQ35: ; engager; enfin; énorme; énormes.
A36: 33 | B36: 1684 | C36: 33 | D36: =VLOOKUP(C36,Calendrier!C$96:D$430,2,TRUE) -> 2014-11-14 | E36: 1027:un général; des généraux 2305:très 108:arriver 66:alors 1078:un habit; des habits 884:une face; des faces 1360:marier | F36: ; un équilibre; des équilibres; entreprendre; une épaule; des épaules. | G36: 1027:un général; des généraux | H36: 2305:très | I36: 108:arriver | J36: 66:alors | K36: 1078:un habit; des habits | L36: 884:une face; des faces | M36: 1360:marier | Q36: 19 | R36: 0.3203883495 | S36: TRUE | T36: 1027 | U36: un général; des généraux | V36: 2305 | W36: très | X36: 108 | Y36: arriver | Z36: 66 | AA36: alors | AB36: 1078 | AC36: un habit; des habits | AD36: 884 | AE36: une face; des faces | AF36: 1360 | AG36: marier | AN36: une balle | AO36: une balle; des balles | AP36: 33 | AQ36: 171 | AR36: une balle; des balles | AS36: CP | AT36: 7 | AU36: 19 | AV36: 33 | AW36: 78 | AX36: 171 | AY36: 33 | BI36: =Q36 -> 19 | BJ36: =C36 -> 33 | BK36: =D36 -> 2014-11-14 | BL36: 1684 | BM36: 800 | BN36: entreprendre | BP36: entretenir | BR36: une envie; des envies | BT36: environ | BU36: s’envoler | BX36: une épaule; des épaules | BZ36: une épée; des épées | CA36: une épine; des épines | CB36: une époque; des époques | CC36: =IF(VLOOKUP($BM36+CC$3,$AQ$4:$AY$2436,9,FALSE)<=$BL36,VLOOKUP($BM36+CC$3,$AQ$4:$AR$2436,2,FALSE),"") ->  | CF36: une épreuve; des épreuves | CI36: un équilibre; des équilibres | CJ36: un équipage; des équipages | CK36: une équipe; des équipes | CM36: 33 | CN36: 13 | CO36: 0.06128631359 | CQ36: 0.8254476494 | CS36: 0.6242129114 | CU36: 0.8468399727 | CV36: 0.6582700104 | CY36: 0.07168415303 | DA36: 0.8839462057 | DB36: 0.3009168413 | DC36: 0.3619046077 | DG36: 0.487495571 | DJ36: 0.0004531317973 | DK36: 0.6360503564 | DL36: 0.9784063188 | DN36: 2 | DP36: 10 | DR36: 7 | DT36: 11 | DU36: 9 | DX36: 3 | DZ36: 12 | EA36: 4 | EB36: 5 | EF36: 6 | EI36: 1 | EJ36: 8 | EK36: 13 | EM36: =IF($CN36>=EM$3,HLOOKUP(EM$3,$DN36:$EL186,151,FALSE),"") -> 22 | EN36: 1 | EO36: 11 | EP36: 14 | EQ36: 15 | ER36: 19 | ES36: 5 | ET36: 23 | EU36: 8 | EV36: 3 | EW36: un équilibre; des équilibres | EX36: entreprendre | EY36: une épaule; des épaules | FG36: ; un équilibre; des équilibres | FH36: ; entreprendre | FI36: ; une épaule; des épaules | FQ36: ; un équilibre; des équilibres; entreprendre; une épaule; des épaules.
A37: 34 | B37: 1691 | C37: 34 | D37: =VLOOKUP(C37,Calendrier!C$96:D$430,2,TRUE) -> 2014-11-17 | E37: 2002:un rôle; des rôles 1634:un pêcheur; des pêcheurs 1366:une masse; des masses 1619:passer 2128:situer 527:une couronne; des couronnes 400:un chiffre; des chiffres | F37: ; une étoffe; des étoffes; établir; un escalier; des escaliers. | G37: 2002:un rôle; des rôles | H37: 1634:un pêcheur; des pêcheurs | I37: 1366:une masse; des masses | J37: 1619:passer | K37: 2128:situer | L37: 527:une couronne; des couronnes | M37: 400:un chiffre; des chiffres | Q37: 19.5 | R37: 0.3300970874 | S37: TRUE | T37: 2002 | U37: un rôle; des rôles | V37: 1634 | W37: un pêcheur; des pêcheurs | X37: 1366 | Y37: une masse; des masses | Z37: 1619 | AA37: passer | AB37: 2128 | AC37: situer | AD37: 527 | AE37: une couronne; des couronnes | AF37: 400 | AG37: un chiffre; des chiffres | AN37: une image | AO37: une image; des images | AP37: 34 | AQ37: 1126 | AR37: une image; des images | AS37: CP | AT37: 41 | AU37: 105 | AV37: 304 | AW37: 617 | AX37: 1126 | AY37: 34 | BI37: 19.5 | BJ37: 34 | BK37: 2014-11-17 | BL37: 1691 | BM37: 825 | BN37: =IF(VLOOKUP($BM37+BN$3,$AQ$4:$AY$2436,9,FALSE)<=$BL37,VLOOKUP($BM37+BN$3,$AQ$4:$AR$2436,2,FALSE),"") -> escalader | BO37: un escalier; des escaliers | BP37: un esclave; une esclave; des esclaves | BS37: un espoir; des espoirs | BT37: estimer | BV37: et | BW37: une étable; des étables | BX37: établir | BY37: un étage; des étages | CA37: un étalage; des étalages | CD37: un état; des états | CE37: un été ; des étés | CF37: étendre | CG37: une étendue; des étendues | CH37: une éternité; des éternités | CK37: une étoffe; des étoffes | CL37: une étoile; des étoiles | CM37: 34 | CN37: 17 | CO37: 0.9917554845 | CP37: 0.3332570427 | CQ37: 0.9433937284 | CT37: 0.799651132 | CU37: 0.9186399817 | CW37: 0.6624278561 | CX37: 0.849109712 | CY37: 0.3249219079 | CZ37: 0.5427624447 | DB37: 0.3849300926 | DE37: 0.8428973197 | DF37: 0.4929749809 | DG37: 0.534117843 | DH37: 0.9852258875 | DI37: 0.3563309159 | DL37: 0.006198870143 | DM37: 0.8064318856 | DN37: 17 | DO37: 3 | DP37: 15 | DS37: 10 | DT37: 14 | DV37: 9 | DW37: 13 | DX37: 2 | DY37: 8 | EA37: 5 | ED37: 12 | EE37: 6 | EF37: 7 | EG37: 16 | EH37: 4 | EK37: 1 | EL37: 11 | EM37: =IF($CN37>=EM$3,HLOOKUP(EM$3,$DN37:$EL187,151,FALSE),"") -> 24 | EN37: 11 | EO37: 2 | EP37: 21 | EQ37: 14 | ER37: 18 | ES37: 19 | ET37: 12 | EU37: 9 | EV37: 6 | EW37: une étoffe; des étoffes | EX37: établir | EY37: un escalier; des escaliers | FG37: ; une étoffe; des étoffes | FH37: =IF(FH$3<=$FM$1,CONCATENATE("; ",OFFSET($BM37,0,EN37)),"") -> ; établir | FI37: ; un escalier; des escaliers | FQ37: ; une étoffe; des étoffes; établir; un escalier; des escaliers.
A38: 35 | B38: 1698 | C38: 35 | D38: =VLOOKUP(C38,Calendrier!C$96:D$430,2,TRUE) -> 2014-11-18 | E38: 533:un coussin; des coussins 1422:mieux 623:dès 2357:un vélo; des vélos 371:chasser 1024:geler 1660:un pétale; des pétales | F38: ; étroit; étroite; étroits; étroites; étrange; étranges; une étudiante; des étudiantes. | G38: 533:un coussin; des coussins | H38: 1422:mieux | I38: 623:dès | J38: 2357:un vélo; des vélos | K38: 371:chasser | L38: 1024:geler | M38: 1660:un pétale; des pétales | Q38: 20 | R38: 0.3398058252 | S38: TRUE | T38: 533 | U38: un coussin; des coussins | V38: 1422 | W38: mieux | X38: 623 | Y38: dès | Z38: 2357 | AA38: un vélo; des vélos | AB38: 371 | AC38: chasser | AD38: 1024 | AE38: geler | AF38: 1660 | AG38: un pétale; des pétales | AN38: sage | AO38: sage ; sages | AP38: 35 | AQ38: 2036 | AR38: sage ; sages | AS38: CP | AT38: 92 | AU38: 217 | AV38: 596 | AW38: 1194 | AX38: 2036 | AY38: 35 | BI38: 20 | BJ38: 35 | BK38: 2014-11-18 | BL38: 1698 | BM38: 850 | BQ38: étrange; étranges | BT38: être | BU38: étroit; étroite; étroits; étroites | BV38: un étudiant; des étudiants | BW38: une étudiante; des étudiantes | BX38: étudier | BZ38: s’évanouir | CI38: une explication; des explications | CL38: une exposition; des expositions | CM38: 35 | CN38: 9 | CR38: 0.2961045569 | CU38: 0.4652725818 | CV38: 0.1935103384 | CW38: 0.3765285281 | CX38: 0.3109514325 | CY38: 0.8663963522 | DA38: 0.6258400039 | DJ38: 0.5648863292 | DM38: 0.9503961109 | DQ38: 2 | DT38: 5 | DU38: 1 | DV38: 4 | DW38: 3 | DX38: 8 | DZ38: 7 | EI38: 6 | EL38: 9 | EM38: =IF($CN38>=EM$3,HLOOKUP(EM$3,$DN38:$EL188,151,FALSE),"") -> 8 | EN38: 4 | EO38: 10 | EP38: 9 | EQ38: 7 | ER38: 22 | ES38: 13 | ET38: 11 | EU38: 25 | EW38: étroit; étroite; étroits; étroites | EX38: étrange; étranges | EY38: une étudiante; des étudiantes | FG38: ; étroit; étroite; étroits; étroites | FH38: ; étrange; étranges | FI38: ; une étudiante; des étudiantes | FQ38: ; étroit; étroite; étroits; étroites; étrange; étranges; une étudiante; des étudiantes.
A39: 36 | B39: 1705 | C39: 36 | D39: =VLOOKUP(C39,Calendrier!C$96:D$430,2,TRUE) -> 2014-11-20 | E39: 1914:régler 1955:représenter 852:étonner 188:bâtir 943:une flamme; des flammes 404:un choix; des choix 347:la chair; les chairs | F39: ; faible; faibles; une face; des faces; une façon; des façons. | G39: 1914:régler | H39: 1955:représenter | I39: 852:étonner | J39: 188:bâtir | K39: 943:une flamme; des flammes | L39: 404:un choix; des choix | M39: 347:la chair; les chairs | Q39: 20.5 | R39: 0.3495145631 | S39: TRUE | T39: 1914 | U39: régler | V39: 1955 | W39: représenter | X39: 852 | Y39: étonner | Z39: 188 | AA39: bâtir | AB39: 943 | AC39: une flamme; des flammes | AD39: 404 | AE39: un choix; des choix | AF39: 347 | AG39: la chair; les chairs | AN39: son | AO39: son | AP39: 36 | AQ39: 2147 | AR39: son | AS39: CP | AT39: 98 | AU39: 228 | AV39: 623 | AW39: 1259 | AX39: 2147 | AY39: 36 | BI39: 20.5 | BJ39: 36 | BK39: 2014-11-20 | BL39: 1705 | BM39: 875 | BO39: exprimer | BT39: une fabrique; des fabriques | BU39: fabriquer | BV39: une face; des faces | BW39: facile; faciles | BX39: facilement | CA39: une façon; des façons | CB39: un facteur; des facteurs | CC39: une factrice; des factrices | CD39: faible; faibles | CF39: la faim; les faims | CG39: faire | CJ39: la famille; les familles | CK39: la farine; les farines | CL39: farouche; farouches | CM39: 36 | CN39: 15 | CP39: 0.9305939307 | CU39: 0.9324535903 | CV39: 0.6430722849 | CW39: 0.05562702635 | CX39: 0.4435368255 | CY39: 0.3483103703 | DB39: 0.2126537614 | DC39: 0.4077211836 | DD39: 0.3219193966 | DE39: 0.01157907839 | DG39: 0.9307838356 | DH39: 0.8008620473 | DK39: 0.9355518165 | DL39: 0.5536035512 | DM39: 0.7721241137 | DO39: 12 | DT39: 14 | DU39: 9 | DV39: 2 | DW39: 7 | DX39: 5 | EA39: 3 | EB39: 6 | EC39: 4 | ED39: 1 | EF39: 13 | EG39: 11 | EJ39: 15 | EK39: 8 | EL39: 10 | EM39: =IF($CN39>=EM$3,HLOOKUP(EM$3,$DN39:$EL189,151,FALSE),"") -> 17 | EN39: 9 | EO39: 14 | EP39: 16 | EQ39: 11 | ER39: 15 | ES39: 10 | ET39: 24 | EU39: 8 | EV39: 25 | EW39: faible; faibles | EX39: une face; des faces | EY39: une façon; des façons | FG39: ; faible; faibles | FH39: ; une face; des faces | FI39: ; une façon; des façons | FQ39: ; faible; faibles; une face; des faces; une façon; des façons.
A40: 37 | B40: 1712 | C40: 37 | D40: =VLOOKUP(C40,Calendrier!C$96:D$430,2,TRUE) -> 2014-11-21 | E40: 462:une conférence; des conférences 1367:massif; massive; massifs; massives 865:éviter 1798:procurer 1806:profiter 1701:plier 1054:une grappe; des grappes | F40: ; une feuille ; des feuilles; une fée; des fées; un feu; des feux. | G40: 462:une conférence; des conférences | H40: 1367:massif; massive; massifs; massives | I40: 865:éviter | J40: 1798:procurer | K40: 1806:profiter | L40: 1701:plier | M40: 1054:une grappe; des grappes | Q40: 21 | R40: 0.359223301 | S40: TRUE | T40: 462 | U40: une conférence; des conférences | V40: 1367 | W40: massif; massive; massifs; massives | X40: 865 | Y40: éviter | Z40: 1798 | AA40: procurer | AB40: 1806 | AC40: profiter | AD40: 1701 | AE40: plier | AF40: 1054 | AG40: une grappe; des grappes | AN40: une cave | AO40: une cave; des caves | AP40: 37 | AQ40: 327 | AR40: une cave; des caves | AS40: CP | AT40: 11 | AU40: 31 | AV40: 88 | AW40: 180 | AX40: 327 | AY40: 37 | BI40: 21 | BJ40: 37 | BK40: 2014-11-21 | BL40: 1712 | BM40: 900 | BO40: la fatigue; les fatigues | BP40: fatiguer | BQ40: une faute; des fautes | BS40: un fauve; des fauves | BT40: une faveur; des faveurs | BU40: favorable; favorables | BW40: une fée; des fées | BX40: une femelle; des femelles | BY40: une femme; des femmes | BZ40: fendre | CA40: une fenêtre; des fenêtres | CB40: le fer; les fers | CC40: une ferme; des fermes | CD40: fermer | CE40: fermier; fermière; fermiers; fermières | CG40: une fête ; des fêtes | CH40: fêter | CI40: un feu; des feux | CJ40: une feuille ; des feuilles | CK40: un feuillage; des feuillages | CL40: février | CM40: 37 | CN40: 21 | CP40: 0.979893646 | CQ40: 0.5852090658 | CR40: 0.9893928673 | CT40: 0.2022083419 | CU40: 0.6308600599 | CV40: 0.3762886378 | CX40: 0.09423302816 | CY40: 0.3063385463 | CZ40: 0.9116709686 | DA40: 0.7648263659 | DB40: 0.5706994459 | DC40: 0.7585379002 | DD40: 0.2710730432 | DE40: 0.7711075886 | DF40: 0.5655122357 | DH40: 0.724204013 | DI40: 0.5808365408 | DJ40: 0.1643453184 | DK40: 0.01892125814 | DL40: 0.2686197115 | DM40: 0.7889546508 | DO40: 20 | DP40: 12 | DQ40: 21 | DS40: 4 | DT40: 13 | DU40: 8 | DW40: 2 | DX40: 7 | DY40: 19 | DZ40: 16 | EA40: 10 | EB40: 15 | EC40: 6 | ED40: 17 | EE40: 9 | EG40: 14 | EH40: 11 | EI40: 3 | EJ40: 1 | EK40: 5 | EL40: 18 | EM40: =IF($CN40>=EM$3,HLOOKUP(EM$3,$DN40:$EL190,151,FALSE),"") -> 23 | EN40: 10 | EO40: 22 | EP40: 6 | EQ40: 24 | ER40: 16 | ES40: 11 | ET40: 8 | EU40: 18 | EV40: 14 | EW40: une feuille ; des feuilles | EX40: une fée; des fées | EY40: un feu; des feux | FG40: ; une feuille ; des feuilles | FH40: ; une fée; des fées | FI40: ; un feu; des feux | FQ40: ; une feuille ; des feuilles; une fée; des fées; un feu; des feux.
A41: 38 | B41: 1719 | C41: 38 | D41: =VLOOKUP(C41,Calendrier!C$96:D$430,2,TRUE) -> 2014-11-24 | E41: 474:constituer 812:épauler 853:étourdi; étourdie; étourdis; étourdies 862:eux 784:enlever 628:un désir; des désirs 46:agir | F41: ; une flamme; des flammes; un fleuve; des fleuves; un foie; des foies. | G41: 474:constituer | H41: 812:épauler | I41: 853:étourdi; étourdie; étourdis; étourdies | J41: 862:eux | K41: 784:enlever | L41: 628:un désir; des désirs | M41: 46:agir | Q41: 21.5 | R41: 0.3689320388 | S41: TRUE | T41: 474 | U41: constituer | V41: 812 | W41: épauler | X41: 853 | Y41: étourdi; étourdie; étourdis; étourdies | Z41: 862 | AA41: eux | AB41: 784 | AC41: enlever | AD41: 628 | AE41: un désir; des désirs | AF41: 46 | AG41: agir | AN41: un chapeau | AO41: un chapeau; des chapeaux | AP41: 38 | AQ41: 361 | AR41: un chapeau; des chapeaux | AS41: CP | AT41: 13 | AU41: 36 | AV41: 97 | AW41: 201 | AX41: 361 | AY41: 38 | BI41: 21.5 | BJ41: 38 | BK41: 2014-11-24 | BL41: 1719 | BM41: 925 | BN41: fidèle; fidèles | BO41: fier; fière; fiers; fières | BQ41: une figure; des figures | BS41: un fil; des fils | BT41: une file; des files | BU41: un filet; des filets | BV41: une fille; des filles | BX41: un fils; des fils | BY41: fin; fine; fins; fines | BZ41: finalement | CA41: finir | CB41: fixe; fixes | CD41: un flacon; des flacons | CE41: une flamme; des flammes | CF41: une flaque; des flaques | CH41: une fleur; des fleurs | CI41: un fleuve; des fleuves | CL41: un foie; des foies | CM41: 38 | CN41: 18 | CO41: 0.3837321499 | CP41: 0.7308710864 | CR41: 0.8714654902 | CT41: 0.1608680134 | CU41: 0.4687470004 | CV41: 0.6507734323 | CW41: 0.5626878922 | CY41: 0.1782650896 | CZ41: 0.3438083891 | DA41: 0.5576268464 | DB41: 0.6488497589 | DC41: 0.5148987039 | DE41: 0.4040793797 | DF41: 0.01604315687 | DG41: 0.4671187641 | DI41: 0.5517739624 | DJ41: 0.03406339989 | DM41: 0.139343831 | DN41: 7 | DO41: 17 | DQ41: 18 | DS41: 4 | DT41: 10 | DU41: 16 | DV41: 14 | DX41: 5 | DY41: 6 | DZ41: 13 | EA41: 15 | EB41: 11 | ED41: 8 | EE41: 1 | EF41: 9 | EH41: 12 | EI41: 2 | EL41: 3 | EM41: =IF($CN41>=EM$3,HLOOKUP(EM$3,$DN41:$EL191,151,FALSE),"") -> 18 | EN41: 22 | EO41: 25 | EP41: 6 | EQ41: 11 | ER41: 12 | ES41: 1 | ET41: 17 | EU41: 19 | EV41: 7 | EW41: une flamme; des flammes | EX41: un fleuve; des fleuves | EY41: un foie; des foies | FG41: ; une flamme; des flammes | FH41: ; un fleuve; des fleuves | FI41: ; un foie; des foies | FQ41: ; une flamme; des flammes; un fleuve; des fleuves; un foie; des foies.
A42: 39 | B42: 1726 | C42: 39 | D42: =VLOOKUP(C42,Calendrier!C$96:D$430,2,TRUE) -> 2014-11-25 | E42: 1929:remplacer 590:une défense; des défenses 536:couver 981:frais; fraîche; frais; fraîches 2296:transporter 87:appartenir 1547:un officier; des officiers | F42: ; un four; des fours; fournir; fort; forte; forts; fortes. | G42: 1929:remplacer | H42: 590:une défense; des défenses | I42: 536:couver | J42: 981:frais; fraîche; frais; fraîches | K42: 2296:transporter | L42: 87:appartenir | M42: 1547:un officier; des officiers | Q42: 22 | R42: 0.3786407767 | S42: TRUE | T42: 1929 | U42: remplacer | V42: 590 | W42: une défense; des défenses | X42: 536 | Y42: couver | Z42: 981 | AA42: frais; fraîche; frais; fraîches | AB42: 2296 | AC42: transporter | AD42: 87 | AE42: appartenir | AF42: 1547 | AG42: un officier; des officiers | AN42: sa | AO42: sa | AP42: 39 | AQ42: 2031 | AR42: sa | AS42: CP | AT42: 90 | AU42: 214 | AV42: 592 | AW42: 1189 | AX42: 2031 | AY42: 39 | BI42: 22 | BJ42: 39 | BK42: 2014-11-25 | BL42: 1726 | BM42: 950 | BN42: le foin; les foins | BO42: une foire; des foires | BP42: une fois; des fois | BR42: fondre | BS42: une fontaine; des fontaines | BT42: la force; les forces | BW42: une forge; des forges | BX42: un forgeron; des forgerons | BY42: une forme; des formes | BZ42: formidable; formidables | CA42: fort; forte; forts; fortes | CB42: fortement | CC42: la fortune; les fortunes | CD42: un fossé; des fossés | CE42: fou, fol; folle; fous; folles | CF42: la foudre; les foudres | CG42: un fouet; des fouets | CI42: la foule; les foules | CJ42: un four; des fours | CL42: fournir | CM42: 39 | CN42: 20 | CO42: 0.2945328773 | CP42: 0.3633443373 | CQ42: 0.9770499591 | CS42: 0.2124881349 | CT42: 0.6787902169 | CU42: 0.4762685679 | CX42: 0.488132505 | CY42: 0.471573771 | CZ42: 0.3211108539 | DA42: 0.4445477946 | DB42: 0.0828934518 | DC42: 0.3208632227 | DD42: 0.635291703 | DE42: 0.1092836336 | DF42: 0.6271482883 | DG42: 0.4279980969 | DH42: 0.2576821099 | DJ42: 0.7158301695 | DK42: 0.004026791707 | DM42: 0.07849090501 | DN42: 7 | DO42: 10 | DP42: 20 | DR42: 5 | DS42: 18 | DT42: 14 | DW42: 15 | DX42: 13 | DY42: 9 | DZ42: 12 | EA42: 3 | EB42: 8 | EC42: 17 | ED42: 4 | EE42: 16 | EF42: 11 | EG42: 6 | EI42: 19 | EJ42: 1 | EL42: 2 | EM42: =IF($CN42>=EM$3,HLOOKUP(EM$3,$DN42:$EL192,151,FALSE),"") -> 23 | EN42: 25 | EO42: 14 | EP42: 17 | EQ42: 5 | ER42: 20 | ES42: 1 | ET42: 15 | EU42: 12 | EV42: 2 | EW42: un four; des fours | EX42: fournir | EY42: fort; forte; forts; fortes | FG42: ; un four; des fours | FH42: ; fournir | FI42: ; fort; forte; forts; fortes | FQ42: ; un four; des fours; fournir; fort; forte; forts; fortes.
A43: 40 | B43: 1733 | C43: 40 | D43: =VLOOKUP(C43,Calendrier!C$96:D$430,2,TRUE) -> 2014-11-27 | E43: 2392:violent; violente; violents; violentes 1932:remuer 2108:sien; sienne; siens; siennes 582:décorer 1712:un poil; des poils 2322:troubler 329:ceci | F43: ; le fromage; les fromages; un fruit; des fruits; la France. | G43: 2392:violent; violente; violents; violentes | H43: 1932:remuer | I43: 2108:sien; sienne; siens; siennes | J43: 582:décorer | K43: 1712:un poil; des poils | L43: 2322:troubler | M43: 329:ceci | Q43: 22.5 | R43: 0.3883495146 | S43: TRUE | T43: 2392 | U43: violent; violente; violents; violentes | V43: 1932 | W43: remuer | X43: 2108 | Y43: sien; sienne; siens; siennes | Z43: 582 | AA43: décorer | AB43: 1712 | AC43: un poil; des poils | AD43: 2322 | AE43: troubler | AF43: 329 | AG43: ceci | AN43: une classe | AO43: une classe ; des classes | AP43: 40 | AQ43: 418 | AR43: une classe ; des classes | AS43: CP | AT43: 17 | AU43: 47 | AV43: 121 | AW43: 238 | AX43: 418 | AY43: 40 | BI43: 22.5 | BJ43: 40 | BK43: 2014-11-27 | BL43: 1733 | BM43: 975 | BN43: une fourniture; des fournitures | BQ43: fragile; fragiles | BS43: frais; fraîche; frais; fraîches | BU43: franc; franche; francs; franches | BV43: la France | BW43: franchement | BY43: la franchise; les franchises | CC43: un frère; des frères | CD43: une friandise; des friandises | CE43: froid; froide; froids; froides | CG43: le fromage; les fromages | CK43: un fruit; des fruits | CL43: fruitier; fruitière; fruitiers; fruitière | CM43: 40 | CN43: 13 | CO43: 0.4535945762 | CR43: 0.8896354257 | CT43: 0.4917886398 | CV43: 0.3946457673 | CW43: 0.3059373556 | CX43: 0.5880365607 | CZ43: 0.4214733034 | DD43: 0.5869601569 | DE43: 0.8321259765 | DF43: 0.9273933537 | DH43: 0.08142859336 | DL43: 0.2335438127 | DM43: 0.8553034064 | DN43: 6 | DQ43: 12 | DS43: 7 | DU43: 4 | DV43: 3 | DW43: 9 | DY43: 5 | EC43: 8 | ED43: 10 | EE43: 13 | EG43: 1 | EK43: 2 | EL43: 11 | EM43: =IF($CN43>=EM$3,HLOOKUP(EM$3,$DN43:$EL193,151,FALSE),"") -> 20 | EN43: 24 | EO43: 9 | EP43: 8 | EQ43: 12 | ER43: 1 | ES43: 6 | ET43: 16 | EU43: 10 | EV43: 17 | EW43: le fromage; les fromages | EX43: un fruit; des fruits | EY43: la France | FG43: ; le fromage; les fromages | FH43: ; un fruit; des fruits | FI43: ; la France | FQ43: ; le fromage; les fromages; un fruit; des fruits; la France.
A44: 41 | B44: 1740 | C44: 41 | D44: =VLOOKUP(C44,Calendrier!C$96:D$430,2,TRUE) -> 2014-11-28 | E44: 137:un autel; des autels 1635:peindre 1035:un geste; des gestes 829:un espace; des espaces 1909:régaler 1886:récolter 1830:une provision; des provisions | F44: ; une fuite; des fuites; le gaz; les gaz; fuir. | G44: 137:un autel; des autels | H44: 1635:peindre | I44: 1035:un geste; des gestes | J44: 829:un espace; des espaces | K44: 1909:régaler | L44: 1886:récolter | M44: 1830:une provision; des provisions | Q44: 23 | R44: 0.3980582524 | S44: TRUE | T44: 137 | U44: un autel; des autels | V44: 1635 | W44: peindre | X44: 1035 | Y44: un geste; des gestes | Z44: 829 | AA44: un espace; des espaces | AB44: 1909 | AC44: régaler | AD44: 1886 | AE44: récolter | AF44: 1830 | AG44: une provision; des provisions | AN44: une école | AO44: une école; des écoles | AP44: 41 | AQ44: 735 | AR44: une école; des écoles | AS44: CP | AT44: 23 | AU44: 67 | AV44: 199 | AW44: 418 | AX44: 735 | AY44: 41 | BI44: 23 | BJ44: 41 | BK44: 2014-11-28 | BL44: 1740 | BM44: 1000 | BN44: fuir | BO44: une fuite; des fuites | BP44: la fumée; les fumées | BQ44: fumer | BS44: un fusil; des fusils | BT44: le futur; les futurs | BX44: un garçon; des garçons | BY44: un garde; des gardes | BZ44: garder | CA44: un gardien; des gardiens | CB44: une gardienne; des gardiennes | CC44: une gare ; des gares | CD44: garnir | CE44: un gâteau; des gâteaux | CF44: la gauche; les gauches | CG44: le gaz; les gaz | CH44: le gazon; les gazons | CJ44: la gelée; les gelées | CK44: geler | CM44: 41 | CN44: 19 | CO44: 0.1088120785 | CP44: 0.05285107354 | CQ44: 0.9140066781 | CR44: 0.683564946 | CT44: 0.6948780195 | CU44: 0.7042753705 | CY44: 0.3510905844 | CZ44: 0.9666752162 | DA44: 0.3201011258 | DB44: 0.6398779068 | DC44: 0.7759981407 | DD44: 0.1715744658 | DE44: 0.2239663472 | DF44: 0.7201617136 | DG44: 0.3600138997 | DH44: 0.0912309257 | DI44: 0.4246979177 | DK44: 0.6984811485 | DL44: 0.4995196507 | DN44: 3 | DO44: 1 | DP44: 18 | DQ44: 12 | DS44: 13 | DT44: 15 | DX44: 7 | DY44: 19 | DZ44: 6 | EA44: 11 | EB44: 17 | EC44: 4 | ED44: 5 | EE44: 16 | EF44: 8 | EG44: 2 | EH44: 9 | EJ44: 14 | EK44: 10 | EM44: =IF($CN44>=EM$3,HLOOKUP(EM$3,$DN44:$EL194,151,FALSE),"") -> 2 | EN44: 20 | EO44: 1 | EP44: 16 | EQ44: 17 | ER44: 13 | ES44: 11 | ET44: 19 | EU44: 21 | EV44: 24 | EW44: une fuite; des fuites | EX44: le gaz; les gaz | EY44: fuir | FG44: ; une fuite; des fuites | FH44: ; le gaz; les gaz | FI44: ; fuir | FQ44: ; une fuite; des fuites; le gaz; les gaz; fuir.
A45: 42 | B45: 1747 | C45: 42 | D45: =VLOOKUP(C45,Calendrier!C$96:D$430,2,TRUE) -> 2014-12-01 | E45: 638:dessous 1966:respirer 1129:imiter 24:une activité; des activités 313:un caprice; des caprices 1535:une obscurité; des obscurités 2221:un tambour; des tambours | F45: ; un général; des généraux; le genre; les genres; glissant; glissante; glissants; glissantes. | G45: 638:dessous | H45: 1966:respirer | I45: 1129:imiter | J45: 24:une activité; des activités | K45: 313:un caprice; des caprices | L45: 1535:une obscurité; des obscurités | M45: 2221:un tambour; des tambours | Q45: 23.5 | R45: 0.4077669903 | S45: TRUE | T45: 638 | U45: dessous | V45: 1966 | W45: respirer | X45: 1129 | Y45: imiter | Z45: 24 | AA45: une activité; des activités | AB45: 313 | AC45: un caprice; des caprices | AD45: 1535 | AE45: une obscurité; des obscurités | AF45: 2221 | AG45: un tambour; des tambours | AN45: un chat | AO45: un chat; des chats | AP45: 42 | AQ45: 373 | AR45: un chat; des chats | AS45: CP | AT45: 14 | AU45: 38 | AV45: 104 | AW45: 210 | AX45: 373 | AY45: 42 | BI45: 23.5 | BJ45: 42 | BK45: 2014-12-01 | BL45: 1747 | BM45: 1025 | BN45: un gendarme; des gendarmes | BO45: un général; des généraux | BP45: généralement | BQ45: généreux; généreuse; généreux; généreuses | BR45: le genre; les genres | BS45: les gens | BU45: la géographie; les géographies | BW45: un geste; des gestes | BY45: une glace; des glaces | BZ45: glissant; glissante; glissants; glissantes | CB45: une gorge; des gorges | CG45: un grain; des grains | CJ45: la grammaire; les grammaires | CK45: grand; grande; grands; grandes | CM45: 42 | CN45: 14 | CO45: 0.5576399004 | CP45: 0.1005904698 | CQ45: 0.6981584713 | CR45: 0.3372238178 | CS45: 0.14788884 | CT45: 0.6717995979 | CV45: 0.847894047 | CX45: 0.7862761893 | CZ45: 0.9337875432 | DA45: 0.2657707385 | DC45: 0.9035583795 | DH45: 0.6699722066 | DK45: 0.8767754496 | DL45: 0.6069663344 | DN45: 5 | DO45: 1 | DP45: 9 | DQ45: 4 | DR45: 2 | DS45: 8 | DU45: 11 | DW45: 10 | DY45: 14 | DZ45: 3 | EB45: 13 | EG45: 7 | EJ45: 12 | EK45: 6 | EM45: =IF($CN45>=EM$3,HLOOKUP(EM$3,$DN45:$EL195,151,FALSE),"") -> 2 | EN45: 5 | EO45: 13 | EP45: 4 | EQ45: 1 | ER45: 24 | ES45: 20 | ET45: 6 | EU45: 3 | EV45: 10 | EW45: un général; des généraux | EX45: le genre; les genres | EY45: glissant; glissante; glissants; glissantes | FG45: ; un général; des généraux | FH45: ; le genre; les genres | FI45: ; glissant; glissante; glissants; glissantes | FQ45: ; un général; des généraux; le genre; les genres; glissant; glissante; glissants; glissantes.
A46: 43 | B46: 1754 | C46: 43 | D46: =VLOOKUP(C46,Calendrier!C$96:D$430,2,TRUE) -> 2014-12-02 | E46: 2330:une tuile; des tuiles 1305:lui-même; elle-même; eux-mêmes; elles-mêmes 366:charger 1008:gagner 596:un déjeuner; des déjeuners 2427:voyager 2069:une seconde; des secondes | F46: ; une griffe; des griffes; une grue; des grues; grave; graves. | G46: 2330:une tuile; des tuiles | H46: 1305:lui-même; elle-même; eux-mêmes; elles-mêmes | I46: 366:charger | J46: 1008:gagner | K46: 596:un déjeuner; des déjeuners | L46: 2427:voyager | M46: 2069:une seconde; des secondes | Q46: 24 | R46: 0.4174757282 | S46: TRUE | T46: 2330 | U46: une tuile; des tuiles | V46: 1305 | W46: lui-même; elle-même; eux-mêmes; elles-mêmes | X46: 366 | Y46: charger | Z46: 1008 | AA46: gagner | AB46: 596 | AC46: un déjeuner; des déjeuners | AD46: 2427 | AE46: voyager | AF46: 2069 | AG46: une seconde; des secondes | AN46: une chatte | AO46: une chatte; des chattes | AP46: 43 | AQ46: 374 | AR46: une chatte; des chattes | AS46: CP | AT46: 15 | AU46: 39 | AV46: 105 | AW46: 211 | AX46: 374 | AY46: 43 | BI46: 24 | BJ46: 43 | BK46: 2014-12-02 | BL46: 1754 | BM46: 1050 | BN46: grandir | BP46: une grange; des granges | BQ46: une grappe; des grappes | BR46: gras; grasse; gras; grasses | BS46: grave; graves | BT46: gravement | BU46: gravir | BV46: un grenier; des greniers | BW46: une grenouille; des grenouilles | BX46: une griffe; des griffes | BY46: griffer | CC46: gris; grise; gris; grises | CD46: gronder | CE46: gros; grosse; gros; grosses | CG46: grossir | CH46: une grotte; des grottes | CI46: un groupe; des groupes | CJ46: une grue; des grues | CM46: 43 | CN46: 18 | CO46: 0.4983518472 | CQ46: 0.489529488 | CR46: 0.8857666778 | CS46: 0.5135469703 | CT46: 0.1929038083 | CU46: 0.413685833 | CV46: 0.854808329 | CW46: 0.6365897694 | CX46: 0.4491262005 | CY46: 0.03099020783 | CZ46: 0.6114658638 | DD46: 0.3857993539 | DE46: 0.7846650446 | DF46: 0.8343446654 | DH46: 0.2071202459 | DI46: 0.3603924827 | DJ46: 0.5210765508 | DK46: 0.05818143825 | DN46: 10 | DP46: 9 | DQ46: 18 | DR46: 11 | DS46: 3 | DT46: 7 | DU46: 17 | DV46: 14 | DW46: 8 | DX46: 1 | DY46: 13 | EC46: 6 | ED46: 15 | EE46: 16 | EG46: 4 | EH46: 5 | EI46: 12 | EJ46: 2 | EM46: =IF($CN46>=EM$3,HLOOKUP(EM$3,$DN46:$EL196,151,FALSE),"") -> 11 | EN46: 23 | EO46: 6 | EP46: 20 | EQ46: 21 | ER46: 16 | ES46: 7 | ET46: 10 | EU46: 3 | EV46: 1 | EW46: une griffe; des griffes | EX46: une grue; des grues | EY46: grave; graves | FG46: ; une griffe; des griffes | FH46: ; une grue; des grues | FI46: ; grave; graves | FQ46: ; une griffe; des griffes; une grue; des grues; grave; graves.
A47: 44 | B47: 1761 | C47: 44 | D47: =VLOOKUP(C47,Calendrier!C$96:D$430,2,TRUE) -> 2014-12-04 | E47: 1296:une longueur; des longueurs 124:attentivement 2274:tôt 408:un cimetière; des cimetières 62:allonger 1817:proposer 2090:sérieux; sérieuse; sérieux; sérieuses | F47: ; une heure; des heures; heureusement; une guerre; des guerres. | G47: 1296:une longueur; des longueurs | H47: 124:attentivement | I47: 2274:tôt | J47: 408:un cimetière; des cimetières | K47: 62:allonger | L47: 1817:proposer | M47: 2090:sérieux; sérieuse; sérieux; sérieuses | Q47: 24.5 | R47: 0.427184466 | S47: TRUE | T47: 1296 | U47: une longueur; des longueurs | V47: 124 | W47: attentivement | X47: 2274 | Y47: tôt | Z47: 408 | AA47: un cimetière; des cimetières | AB47: 62 | AC47: allonger | AD47: 1817 | AE47: proposer | AF47: 2090 | AG47: sérieux; sérieuse; sérieux; sérieuses | AN47: une salade | AO47: une salade; des salades | AP47: 44 | AQ47: 2041 | AR47: une salade; des salades | AS47: CP | AT47: 93 | AU47: 218 | AV47: 597 | AW47: 1197 | AX47: 2041 | AY47: 44 | BI47: 24.5 | BJ47: 44 | BK47: 2014-12-04 | BL47: 1761 | BM47: 1075 | BN47: une guerre; des guerres | BO47: un guide; des guides | BP47: un habit; des habits | BQ47: une habitation; des habitations | BT47: une hache; des haches | BU47: une haie; des haies | BX47: haut; haute; hauts; hautes | BY47: la hauteur; les hauteurs | CA47: une herbe; des herbes | CD47: une heure; des heures | CE47: heureusement | CF47: heureux; heureuse; heureux; heureuses | CG47: hier | CH47: une hirondelle; des hirondelles | CI47: une histoire; des histoires | CJ47: un hiver; des hivers | CK47: un homme; des hommes | CM47: 44 | CN47: 17 | CO47: 0.1692457998 | CP47: 0.6448455524 | CQ47: 0.1985939937 | CR47: 0.6756132707 | CU47: 0.9408851006 | CV47: 0.7606638003 | CY47: 0.3330329551 | CZ47: 0.8232150802 | DB47: 0.763120031 | DE47: 0.1037462563 | DF47: 0.1047492282 | DG47: 0.2993941839 | DH47: 0.2647699396 | DI47: 0.7294478878 | DJ47: 0.9540556544 | DK47: 0.4344145757 | DL47: 0.5373616107 | DN47: 3 | DO47: 10 | DP47: 4 | DQ47: 11 | DT47: 16 | DU47: 13 | DX47: 7 | DY47: 15 | EA47: 14 | ED47: 1 | EE47: 2 | EF47: 6 | EG47: 5 | EH47: 12 | EI47: 17 | EJ47: 8 | EK47: 9 | EM47: =IF($CN47>=EM$3,HLOOKUP(EM$3,$DN47:$EL197,151,FALSE),"") -> 17 | EN47: 18 | EO47: 1 | EP47: 3 | EQ47: 20 | ER47: 19 | ES47: 11 | ET47: 23 | EU47: 24 | EV47: 2 | EW47: une heure; des heures | EX47: heureusement | EY47: une guerre; des guerres | FG47: ; une heure; des heures | FH47: ; heureusement | FI47: ; une guerre; des guerres | FQ47: ; une heure; des heures; heureusement; une guerre; des guerres.
A48: 45 | B48: 1768 | C48: 45 | D48: =VLOOKUP(C48,Calendrier!C$96:D$430,2,TRUE) -> 2014-12-05 | E48: 1974:retomber 1460:moquer 1572:un outil; des outils 382:chausser 141:une autorité; des autorités 583:décourager 1140:imprudent; imprudente; imprudents; imprudentes | F48: ; une idée; des idées; un humain; des humains; ici. | G48: 1974:retomber | H48: 1460:moquer | I48: 1572:un outil; des outils | J48: 382:chausser | K48: 141:une autorité; des autorités | L48: 583:décourager | M48: 1140:imprudent; imprudente; imprudents; imprudentes | Q48: 25 | R48: 0.4368932039 | S48: TRUE | T48: 1974 | U48: retomber | V48: 1460 | W48: moquer | X48: 1572 | Y48: un outil; des outils | Z48: 382 | AA48: chausser | AB48: 141 | AC48: une autorité; des autorités | AD48: 583 | AE48: décourager | AF48: 1140 | AG48: imprudent; imprudente; imprudents; imprudentes | AN48: une rue | AO48: une rue ; des rues | AP48: 45 | AQ48: 2024 | AR48: une rue ; des rues | AS48: CP | AT48: 89 | AU48: 213 | AV48: 590 | AW48: 1185 | AX48: 2024 | AY48: 45 | BI48: 25 | BJ48: 45 | BK48: 2014-12-05 | BL48: 1768 | BM48: 1100 | BO48: la honte; les hontes | BQ48: une horloge; des horloges | BR48: une huile; des huiles | BS48: huit | BT48: un humain; des humains | BV48: une humeur; des humeurs | BW48: humide; humides | BZ48: ici | CB48: une idée; des idées | CE48: il a | CF48: il est | CG48: il y a | CH48: il y avait | CI48: une île ; des îles | CK48: ils ont; elles ont | CL48: ils sont; elles sont | CM48: 45 | CN48: 16 | CP48: 0.4609343585 | CR48: 0.718794306 | CS48: 0.1724220415 | CT48: 0.5305933592 | CU48: 0.06938987419 | CW48: 0.1332098535 | CX48: 0.7045382752 | DA48: 0.1248372814 | DC48: 0.02656279481 | DF48: 0.9488746553 | DG48: 0.7728665061 | DH48: 0.3118165224 | DI48: 0.5218482731 | DJ48: 0.225349985 | DL48: 0.7673131063 | DM48: 0.5202497793 | DO48: 8 | DQ48: 13 | DR48: 5 | DS48: 11 | DT48: 2 | DV48: 4 | DW48: 12 | DZ48: 3 | EB48: 1 | EE48: 16 | EF48: 15 | EG48: 7 | EH48: 10 | EI48: 6 | EK48: 14 | EL48: 9 | EM48: =IF($CN48>=EM$3,HLOOKUP(EM$3,$DN48:$EL198,151,FALSE),"") -> 15 | EN48: 7 | EO48: 13 | EP48: 9 | EQ48: 5 | ER48: 22 | ES48: 20 | ET48: 2 | EU48: 25 | EV48: 21 | EW48: une idée; des idées | EX48: un humain; des humains | EY48: ici | FG48: ; une idée; des idées | FH48: ; un humain; des humains | FI48: ; ici | FQ48: ; une idée; des idées; un humain; des humains; ici.
A49: 46 | B49: 1775 | C49: 46 | D49: =VLOOKUP(C49,Calendrier!C$96:D$430,2,TRUE) -> 2014-12-08 | E49: 1783:primaire; primaires 43:afin 300:calmer 1728:un pompier; des pompiers 218:une blessure; des blessures 1127:une imagination; des imaginations 2391:la violence; les violences | F49: ; imiter; une industrie; des industries; inférieur; inférieure; inférieurs; inférieures. | G49: 1783:primaire; primaires | H49: 43:afin | I49: 300:calmer | J49: 1728:un pompier; des pompiers | K49: 218:une blessure; des blessures | L49: 1127:une imagination; des imaginations | M49: 2391:la violence; les violences | Q49: 25.5 | R49: 0.4466019417 | S49: TRUE | T49: 1783 | U49: primaire; primaires | V49: 43 | W49: afin | X49: 300 | Y49: calmer | Z49: 1728 | AA49: un pompier; des pompiers | AB49: 218 | AC49: une blessure; des blessures | AD49: 1127 | AE49: une imagination; des imaginations | AF49: 2391 | AG49: la violence; les violences | AN49: une voiture | AO49: une voiture; des voitures | AP49: 46 | AQ49: 2414 | AR49: une voiture; des voitures | AS49: CP | AT49: 110 | AU49: 251 | AV49: 721 | AW49: 1443 | AX49: 2414 | AY49: 46 | BI49: 25.5 | BJ49: 46 | BK49: 2014-12-08 | BL49: 1775 | BM49: 1125 | BN49: une image; des images | BQ49: imiter | BT49: une impératrice; des impératrices | BW49: important; importante; importants; importantes | CB49: imprudent; imprudente; imprudents; imprudentes | CD49: inconnu; inconnue; inconnus; inconnues | CE49: une indication; des indications | CF49: indigne; indignes | CI49: une industrie; des industries | CL49: inférieur; inférieure; inférieurs; inférieures | CM49: 46 | CN49: 10 | CO49: 0.215862724 | CR49: 0.04769091577 | CU49: 0.377858201 | CX49: 0.7292054845 | DC49: 0.5355847101 | DE49: 0.5930453362 | DF49: 0.6825575693 | DG49: 0.8255206429 | DJ49: 0.1406002164 | DM49: 0.1939430179 | DN49: 4 | DQ49: 1 | DT49: 5 | DW49: 9 | EB49: 6 | ED49: 7 | EE49: 8 | EF49: 10 | EI49: 2 | EL49: 3 | EM49: =IF($CN49>=EM$3,HLOOKUP(EM$3,$DN49:$EL199,151,FALSE),"") -> 4 | EN49: 22 | EO49: 25 | EP49: 1 | EQ49: 7 | ER49: 15 | ES49: 17 | ET49: 18 | EU49: 10 | EV49: 19 | EW49: imiter | EX49: une industrie; des industries | EY49: inférieur; inférieure; inférieurs; inférieures | FG49: ; imiter | FH49: ; une industrie; des industries | FI49: ; inférieur; inférieure; inférieurs; inférieures | FQ49: ; imiter; une industrie; des industries; inférieur; inférieure; inférieurs; inférieures.
A50: 47 | B50: 1782 | C50: 47 | D50: =VLOOKUP(C50,Calendrier!C$96:D$430,2,TRUE) -> 2014-12-09 | E50: 1253:léger; légère; légers; légères 1538:obtenir 1948:répéter 1420:mien; mienne; miens; miennes 548:creux 2142:solitaire; solitaires 291:un cadran; des cadrans | F50: ; un intérieur; des intérieurs; un insecte; des insectes; intervenir. | G50: 1253:léger; légère; légers; légères | H50: 1538:obtenir | I50: 1948:répéter | J50: 1420:mien; mienne; miens; miennes | K50: 548:creux | L50: 2142:solitaire; solitaires | M50: 291:un cadran; des cadrans | Q50: 26 | R50: 0.4563106796 | S50: TRUE | T50: 1253 | U50: léger; légère; légers; légères | V50: 1538 | W50: obtenir | X50: 1948 | Y50: répéter | Z50: 1420 | AA50: mien; mienne; miens; miennes | AB50: 548 | AC50: creux | AD50: 2142 | AE50: solitaire; solitaires | AF50: 291 | AG50: un cadran; des cadrans | AN50: une robe | AO50: une robe ; des robes | AP50: 47 | AQ50: 2000 | AR50: une robe ; des robes | AS50: CP | AT50: 86 | AU50: 209 | AV50: 581 | AW50: 1170 | AX50: 2000 | AY50: 47 | BI50: 26 | BJ50: 47 | BK50: 2014-12-09 | BL50: 1782 | BM50: 1150 | BN50: infini; infinie; infinis; infinies | BS50: une injure; des injures | BV50: inscrire | BW50: un insecte; des insectes | BX50: un inspecteur; des inspecteurs | BY50: une inspectrice; des inspectrices | CA50: un instant; des instants | CB50: instructif; instructive; instructifs; instructives | CC50: une instruction; des instructions | CD50: instruire | CE50: un instrument ; des instruments | CJ50: un intérieur; des intérieurs | CL50: intervenir | CM50: 47 | CN50: 13 | CO50: 0.2852069889 | CT50: 0.7398787903 | CW50: 0.5863534512 | CX50: 0.02514588235 | CY50: 0.4508175726 | CZ50: 0.4364002249 | DB50: 0.8377493525 | DC50: 0.3643427623 | DD50: 0.9861289608 | DE50: 0.8384399434 | DF50: 0.1682413313 | DK50: 0.02418957671 | DM50: 0.06568897683 | DN50: 5 | DS50: 10 | DV50: 9 | DW50: 2 | DX50: 8 | DY50: 7 | EA50: 11 | EB50: 6 | EC50: 13 | ED50: 12 | EE50: 4 | EJ50: 1 | EL50: 3 | EM50: =IF($CN50>=EM$3,HLOOKUP(EM$3,$DN50:$EL200,151,FALSE),"") -> 23 | EN50: 10 | EO50: 25 | EP50: 18 | EQ50: 1 | ER50: 15 | ES50: 12 | ET50: 11 | EU50: 9 | EV50: 6 | EW50: un intérieur; des intérieurs | EX50: un insecte; des insectes | EY50: intervenir | FG50: ; un intérieur; des intérieurs | FH50: ; un insecte; des insectes | FI50: ; intervenir | FQ50: ; un intérieur; des intérieurs; un insecte; des insectes; intervenir.
A51: 48 | B51: 1789 | C51: 48 | D51: =VLOOKUP(C51,Calendrier!C$96:D$430,2,TRUE) -> 2014-12-11 | E51: 646:détourner 2340:les vacances 2158:la souffrance; les souffrances 133:une aurore; des aurores 2126:sitôt 1052:une grand-mère; des grands-mères 2371:verser | F51: ; une jambe; des jambes; invisible; invisibles; un jardinier; des jardiniers. | G51: 646:détourner | H51: 2340:les vacances | I51: 2158:la souffrance; les souffrances | J51: 133:une aurore; des aurores | K51: 2126:sitôt | L51: 1052:une grand-mère; des grands-mères | M51: 2371:verser | Q51: 26.5 | R51: 0.4660194175 | S51: TRUE | T51: 646 | U51: détourner | V51: 2340 | W51: les vacances | X51: 2158 | Y51: la souffrance; les souffrances | Z51: 133 | AA51: une aurore; des aurores | AB51: 2126 | AC51: sitôt | AD51: 1052 | AE51: une grand-mère; des grands-mères | AF51: 2371 | AG51: verser | AN51: un été | AO51: un été ; des étés | AP51: 48 | AQ51: 843 | AR51: un été ; des étés | AS51: CP | AT51: 30 | AU51: 76 | AV51: 228 | AW51: 470 | AX51: 843 | AY51: 48 | BI51: 26.5 | BJ51: 48 | BK51: 2014-12-11 | BL51: 1789 | BM51: 1175 | BN51: intime; intimes | BO51: une introduction; des intoductions | BP51: introduire | BQ51: inutile; inutiles | BS51: invisible; invisibles | BT51: une invitation; des invitations | BW51: ivre; ivres | BX51: j'ai | BY51: j'ai fait | BZ51: j'ai regardé | CA51: j'ai vu | CB51: jamais | CC51: une jambe; des jambes | CD51: un jambon; des jambons | CE51: janvier | CF51: un jardin; des jardins | CG51: le jardinage; les jardinages | CH51: un jardinier; des jardiniers | CI51: jaune; jaunes | CJ51: jaunir | CK51: je dessine | CL51: je suis | CM51: 48 | CN51: 22 | CO51: 0.7620384812 | CP51: 0.3593203004 | CQ51: 0.5857651711 | CR51: 0.1370920545 | CT51: 0.05235927248 | CU51: 0.7350821024 | CX51: 0.93363666 | CY51: 0.05943963821 | CZ51: 0.3915207303 | DA51: 0.7792278433 | DB51: 0.3205158646 | DC51: 0.2235543515 | DD51: 0.04932424401 | DE51: 0.1369646878 | DF51: 0.8921121957 | DG51: 0.6286089997 | DH51: 0.3280908696 | DI51: 0.05870956535 | DJ51: 0.07842093197 | DK51: 0.8281006613 | DL51: 0.1266968751 | DM51: 0.4649576445 | DN51: 18 | DO51: 12 | DP51: 15 | DQ51: 8 | DS51: 2 | DT51: 17 | DW51: 22 | DX51: 4 | DY51: 13 | DZ51: 19 | EA51: 10 | EB51: 9 | EC51: 1 | ED51: 7 | EE51: 21 | EF51: 16 | EG51: 11 | EH51: 3 | EI51: 5 | EJ51: 20 | EK51: 6 | EL51: 14 | EM51: =IF($CN51>=EM$3,HLOOKUP(EM$3,$DN51:$EL201,151,FALSE),"") -> 16 | EN51: 6 | EO51: 21 | EP51: 11 | EQ51: 22 | ER51: 24 | ES51: 17 | ET51: 4 | EU51: 15 | EV51: 14 | EW51: une jambe; des jambes | EX51: invisible; invisibles | EY51: un jardinier; des jardiniers | FG51: ; une jambe; des jambes | FH51: ; invisible; invisibles | FI51: ; un jardinier; des jardiniers | FQ51: ; une jambe; des jambes; invisible; invisibles; un jardinier; des jardiniers.
A52: 49 | B52: 1796 | C52: 49 | D52: =VLOOKUP(C52,Calendrier!C$96:D$430,2,TRUE) -> 2014-12-12 | E52: 86:un appartement; des appartements 1139:une imprudence; des imprudences 1451:monotone; monotones 2113:signer 1867:ranimer 1813:promener 2102:seulement | F52: ; juin; joueur; joueuse; joueurs; joueuses; un juge; des juges. | G52: 86:un appartement; des appartements | H52: 1139:une imprudence; des imprudences | I52: 1451:monotone; monotones | J52: 2113:signer | K52: 1867:ranimer | L52: 1813:promener | M52: 2102:seulement | Q52: 27 | R52: 0.4757281553 | S52: TRUE | T52: 86 | U52: un appartement; des appartements | V52: 1139 | W52: une imprudence; des imprudences | X52: 1451 | Y52: monotone; monotones | Z52: 2113 | AA52: signer | AB52: 1867 | AC52: ranimer | AD52: 1813 | AE52: promener | AF52: 2102 | AG52: seulement | AN52: un matin | AO52: un matin; des matins | AP52: 49 | AQ52: 1371 | AR52: un matin; des matins | AS52: CP | AT52: 62 | AU52: 145 | AV52: 400 | AW52: 770 | AX52: 1371 | AY52: 49 | BI52: 27 | BJ52: 49 | BK52: 2014-12-12 | BL52: 1796 | BM52: 1200 | BN52: je suis allé | BO52: je suis allée | BP52: jeter | BQ52: un jeu; des jeux | BR52: le jeudi ; les jeudis | BS52: jeune; jeunes | BT52: la jeunesse; les jeunesses | BU52: la joie; les joies | BW52: joli; jolie; jolis; jolies | BX52: une joue; des joues | BY52: jouer | BZ52: un jouet; des jouets | CA52: joueur; joueuse; joueurs; joueuses | CB52: un jour; des jours | CC52: =IF(VLOOKUP($BM52+CC$3,$AQ$4:$AY$2436,9,FALSE)<=$BL52,VLOOKUP($BM52+CC$3,$AQ$4:$AR$2436,2,FALSE),"") -> un journal; des journaux | CD52: une journée; des journées | CF52: joyeux; joyeuse; joyeux; joyeuses | CG52: un juge; des juges | CH52: un jugement; des jugements | CI52: juger | CJ52: juillet | CK52: juin | CL52: jurer | CM52: 49 | CN52: 23 | CO52: 0.3027488519 | CP52: 0.9838418825 | CQ52: 0.6874700858 | CR52: 0.1431376136 | CS52: 0.9557643628 | CT52: 0.6360291643 | CU52: 0.7238870103 | CV52: 0.7319867123 | CX52: 0.7352697042 | CY52: 0.3542379905 | CZ52: 0.2176835889 | DA52: 0.4670124828 | DB52: 0.05803331432 | DC52: 0.3082246997 | DD52: 0.2697613474 | DE52: 0.7366225273 | DG52: 0.1073008606 | DH52: 0.08768530501 | DI52: 0.5698670887 | DJ52: 0.4784688773 | DK52: 0.2062348212 | DL52: 0.04813469652 | DM52: 0.2636825328 | DN52: 10 | DO52: 23 | DP52: 17 | DQ52: 5 | DR52: 22 | DS52: 16 | DT52: 18 | DU52: 19 | DW52: 20 | DX52: 12 | DY52: 7 | DZ52: 13 | EA52: 2 | EB52: 11 | EC52: 9 | ED52: 21 | EF52: 4 | EG52: 3 | EH52: 15 | EI52: 14 | EJ52: 6 | EK52: 1 | EL52: 8 | EM52: =IF($CN52>=EM$3,HLOOKUP(EM$3,$DN52:$EL202,151,FALSE),"") -> 24 | EN52: 14 | EO52: 20 | EP52: 19 | EQ52: 4 | ER52: 23 | ES52: 12 | ET52: 25 | EU52: 16 | EV52: 1 | EW52: juin | EX52: joueur; joueuse; joueurs; joueuses | EY52: un juge; des juges | FG52: ; juin | FH52: ; joueur; joueuse; joueurs; joueuses | FI52: ; un juge; des juges | FQ52: ; juin; joueur; joueuse; joueurs; joueuses; un juge; des juges.
A53: 50 | B53: 1803 | C53: 50 | D53: =VLOOKUP(C53,Calendrier!C$96:D$430,2,TRUE) -> 2014-12-15 | E53: 1700:pleuvoir 820:éprouver 855:un étranger; des étrangers 856:une étrangère; des étrangères 435:la colère; les colères 756:un éléphant; des éléphants 1046:une graine; des graines | F53: ; une lampe; des lampes; une lapine; des lapines; lécher. | G53: 1700:pleuvoir | H53: 820:éprouver | I53: 855:un étranger; des étrangers | J53: 856:une étrangère; des étrangères | K53: 435:la colère; les colères | L53: 756:un éléphant; des éléphants | M53: 1046:une graine; des graines | Q53: 27.5 | R53: 0.4854368932 | S53: TRUE | T53: 1700 | U53: pleuvoir | V53: 820 | W53: éprouver | X53: 855 | Y53: un étranger; des étrangers | Z53: 856 | AA53: une étrangère; des étrangères | AB53: 435 | AC53: la colère; les colères | AD53: 756 | AE53: un éléphant; des éléphants | AF53: 1046 | AG53: une graine; des graines | AN53: le midi | AO53: le midi ; les midis | AP53: 50 | AQ53: 1418 | AR53: le midi ; les midis | AS53: CP | AT53: 66 | AU53: 150 | AV53: 415 | AW53: 804 | AX53: 1418 | AY53: 50 | BI53: 27.5 | BJ53: 50 | BK53: 2014-12-15 | BL53: 1803 | BM53: 1225 | BN53: jusque, jusqu' | BO53: justement | BP53: la justice; les justices | BU53: labourer | BV53: un lac; des lacs | BX53: la laine; les laines | BY53: le lait ; les laits | BZ53: laitier; laitière; laitiers; laitières | CA53: lamentable; lamentables | CB53: une lampe; des lampes | CD53: une langue; des langues | CF53: un lapin; des lapins | CG53: une lapine; des lapines | CH53: large; larges | CI53: largement | CJ53: une larme; des larmes | CK53: laver | CL53: lécher | CM53: 50 | CN53: 18 | CO53: 0.6297798154 | CP53: 0.8033190834 | CQ53: 0.8384383524 | CV53: 0.3354760124 | CW53: 0.9496881114 | CY53: 0.5950456754 | CZ53: 0.6727806128 | DA53: 0.8148703166 | DB53: 0.6232614607 | DC53: 0.06976794331 | DE53: 0.6747265412 | DG53: 0.9108166918 | DH53: 0.2420847027 | DI53: 0.4370192819 | DJ53: 0.7247064705 | DK53: 0.6263590364 | DL53: 0.6877075696 | DM53: 0.3228459796 | DN53: 9 | DO53: 14 | DP53: 16 | DU53: 4 | DV53: 18 | DX53: 6 | DY53: 10 | DZ53: 15 | EA53: 7 | EB53: 1 | ED53: 11 | EF53: 17 | EG53: 2 | EH53: 5 | EI53: 13 | EJ53: 8 | EK53: 12 | EL53: 3 | EM53: =IF($CN53>=EM$3,HLOOKUP(EM$3,$DN53:$EL203,151,FALSE),"") -> 15 | EN53: 20 | EO53: 25 | EP53: 8 | EQ53: 21 | ER53: 11 | ES53: 14 | ET53: 23 | EU53: 1 | EV53: 12 | EW53: une lampe; des lampes | EX53: une lapine; des lapines | EY53: lécher | FG53: ; une lampe; des lampes | FH53: ; une lapine; des lapines | FI53: ; lécher | FQ53: ; une lampe; des lampes; une lapine; des lapines; lécher.
A54: 51 | B54: 1810 | C54: 51 | D54: =VLOOKUP(C54,Calendrier!C$96:D$430,2,TRUE) -> 2014-12-16 | E54: 1141:un incendie; des incendies 2103:la sève; les sèves 2256:tiède; tièdes 298:un calendrier; des calendriers 1322:maintenant 959:la forêt; les forêts 541:craindre | F54: ; les; un lien; des liens; la liberté; les libertés. | G54: 1141:un incendie; des incendies | H54: 2103:la sève; les sèves | I54: 2256:tiède; tièdes | J54: 298:un calendrier; des calendriers | K54: 1322:maintenant | L54: 959:la forêt; les forêts | M54: 541:craindre | Q54: 28 | R54: 0.4951456311 | S54: TRUE | T54: 1141 | U54: un incendie; des incendies | V54: 2103 | W54: la sève; les sèves | X54: 2256 | Y54: tiède; tièdes | Z54: 298 | AA54: un calendrier; des calendriers | AB54: 1322 | AC54: maintenant | AD54: 959 | AE54: la forêt; les forêts | AF54: 541 | AG54: craindre | AN54: le soir | AO54: le soir ; les soirs | AP54: 51 | AQ54: 2136 | AR54: le soir ; les soirs | AS54: CP | AT54: 97 | AU54: 225 | AV54: 617 | AW54: 1250 | AX54: 2136 | AY54: 51 | BI54: 28 | BJ54: 51 | BK54: 2014-12-16 | BL54: 1810 | BM54: 1250 | BN54: une leçon; des leçons | BO54: la lecture; les lectures | BP54: léger; légère; légers; légères | BR54: un légume; des légumes | BS54: le lendemain; les lendemains | BT54: lent; lente; lents; lentes | BU54: lentement | BX54: les | BY54: une lettre; des lettres | BZ54: leur; leurs | CA54: lever | CB54: une lèvre; des lèvres | CC54: libérer | CD54: la liberté; les libertés | CE54: libre; libres | CF54: un lien; des liens | CG54: lier | CH54: un lieu; des lieux | CI54: un lièvre; des lièvres | CJ54: une ligne; des lignes | CK54: une ligue; des ligues | CL54: le lilas; les lilas | CM54: 51 | CN54: 22 | CO54: 0.8623730943 | CP54: 0.7694746508 | CQ54: 0.9962071549 | CS54: 0.8535900908 | CT54: 0.3285174358 | CU54: 0.5495480658 | CV54: 0.4957120691 | CY54: 0.2126215846 | CZ54: 0.3143321186 | DA54: 0.6469157103 | DB54: 0.5298945949 | DC54: 0.9135448275 | DD54: 0.5751419282 | DE54: 0.2574766548 | DF54: 0.7446750871 | DG54: 0.2295468532 | DH54: 0.5597127116 | DI54: 0.8722172832 | DJ54: 0.4960526288 | DK54: 0.8592338318 | DL54: 0.9083310278 | DM54: 0.8008592632 | DN54: 18 | DO54: 14 | DP54: 22 | DR54: 16 | DS54: 5 | DT54: 9 | DU54: 6 | DX54: 1 | DY54: 4 | DZ54: 12 | EA54: 8 | EB54: 21 | EC54: 11 | ED54: 3 | EE54: 13 | EF54: 2 | EG54: 10 | EH54: 19 | EI54: 7 | EJ54: 17 | EK54: 20 | EL54: 15 | EM54: =IF($CN54>=EM$3,HLOOKUP(EM$3,$DN54:$EL204,151,FALSE),"") -> 11 | EN54: 19 | EO54: 17 | EP54: 12 | EQ54: 6 | ER54: 8 | ES54: 22 | ET54: 14 | EU54: 7 | EV54: 20 | EW54: les | EX54: un lien; des liens | EY54: la liberté; les libertés | FG54: ; les | FH54: ; un lien; des liens | FI54: ; la liberté; les libertés | FQ54: ; les; un lien; des liens; la liberté; les libertés.
A55: 52 | B55: 1817 | C55: 52 | D55: =VLOOKUP(C55,Calendrier!C$96:D$430,2,TRUE) -> 2014-12-18 | E55: 1209:joindre 1651:une période; des périodes 233:un bonhomme; des bonshommes 1163:inspirer 1833:prudent; prudente; prudents; prudentes 2079:semblable; semblables 948:un flot; des flots | F55: ; une longueur; des longueurs; une liste; des listes; lire. | G55: 1209:joindre | H55: 1651:une période; des périodes | I55: 233:un bonhomme; des bonshommes | J55: 1163:inspirer | K55: 1833:prudent; prudente; prudents; prudentes | L55: 2079:semblable; semblables | M55: 948:un flot; des flots | Q55: 28.5 | R55: 0.5048543689 | S55: TRUE | T55: 1209 | U55: joindre | V55: 1651 | W55: une période; des périodes | X55: 233 | Y55: un bonhomme; des bonshommes | Z55: 1163 | AA55: inspirer | AB55: 1833 | AC55: prudent; prudente; prudents; prudentes | AD55: 2079 | AE55: semblable; semblables | AF55: 948 | AG55: un flot; des flots | AN55: une fête | AO55: une fête ; des fêtes | AP55: 52 | AQ55: 920 | AR55: une fête ; des fêtes | AS55: CP | AT55: 32 | AU55: 83 | AV55: 246 | AW55: 508 | AX55: 920 | AY55: 52 | BI55: 28.5 | BJ55: 52 | BK55: 2014-12-18 | BL55: 1817 | BM55: 1275 | BN55: une limite; des limites | BO55: le lin | BP55: le linge; les linges | BQ55: un lion; des lions | BR55: une lionne; des lionnes | BS55: un liquide; des liquides | BT55: lire | BV55: lisse ; lisses | BW55: une liste; des listes | BX55: un lit ; des lits | BY55: un livre; des livres | BZ55: une locomotive; des locomotives | CA55: la loi; les lois | CB55: loin | CD55: un loisir; des loisirs | CE55: long; longue; longs; longues | CH55: une longueur; des longueurs | CJ55: lorsque, lorsqu' | CK55: louer | CL55: un loup; des loups | CM55: 52 | CN55: 20 | CO55: 0.6686315367 | CP55: 0.2079438043 | CQ55: 0.6528836286 | CR55: 0.1611867544 | CS55: 0.4474161822 | CT55: 0.5809260108 | CU55: 0.1491235205 | CW55: 0.496233013 | CX55: 0.0828460116 | CY55: 0.2999170922 | CZ55: 0.3045239565 | DA55: 0.9343112575 | DB55: 0.6320181563 | DC55: 0.2203487732 | DE55: 0.3714684705 | DF55: 0.150654321 | DI55: 0.008568531736 | DK55: 0.2677864236 | DL55: 0.8238430914 | DM55: 0.5961861445 | DN55: 18 | DO55: 6 | DP55: 17 | DQ55: 5 | DR55: 12 | DS55: 14 | DT55: 3 | DV55: 13 | DW55: 2 | DX55: 9 | DY55: 10 | DZ55: 20 | EA55: 16 | EB55: 7 | ED55: 11 | EE55: 4 | EH55: 1 | EJ55: 8 | EK55: 19 | EL55: 15 | EM55: =IF($CN55>=EM$3,HLOOKUP(EM$3,$DN55:$EL205,151,FALSE),"") -> 21 | EN55: 10 | EO55: 7 | EP55: 18 | EQ55: 4 | ER55: 2 | ES55: 15 | ET55: 23 | EU55: 11 | EV55: 12 | EW55: une longueur; des longueurs | EX55: une liste; des listes | EY55: lire | FG55: ; une longueur; des longueurs | FH55: ; une liste; des listes | FI55: ; lire | FQ55: ; une longueur; des longueurs; une liste; des listes; lire.
A56: 53 | B56: 1824 | C56: 53 | D56: =VLOOKUP(C56,Calendrier!C$96:D$430,2,TRUE) -> 2014-12-19 | E56: 1866:ranger 391:chérir 245:boucler 1034:germer 1036:une giboulée; des giboulées 256:un bourgeon; des bourgeons 1022:un géant; des géants | F56: ; le lundi ; les lundis; magnifique; magnifiques; mais. | G56: 1866:ranger | H56: 391:chérir | I56: 245:boucler | J56: 1034:germer | K56: 1036:une giboulée; des giboulées | L56: 256:un bourgeon; des bourgeons | M56: 1022:un géant; des géants | Q56: 29 | R56: 0.5145631068 | S56: TRUE | T56: 1866 | U56: ranger | V56: 391 | W56: chérir | X56: 245 | Y56: boucler | Z56: 1034 | AA56: germer | AB56: 1036 | AC56: une giboulée; des giboulées | AD56: 256 | AE56: un bourgeon; des bourgeons | AF56: 1022 | AG56: un géant; des géants | AN56: une route | AO56: une route; des routes | AP56: 53 | AQ56: 2018 | AR56: une route; des routes | AS56: CP | AT56: 88 | AU56: 212 | AV56: 588 | AW56: 1181 | AX56: 2018 | AY56: 53 | BI56: 29 | BJ56: 53 | BK56: 2014-12-19 | BL56: 1824 | BM56: 1300 | BN56: une louve; des louves | BO56: lourd; lourde; lourds; lourdes | BP56: une lueur; des lueurs | BQ56: lui | BR56: lui-même; elle-même; eux-mêmes; elles-mêmes | BS56: la lumière; les lumières | BU56: le lundi ; les lundis | BV56: la lune; les lunes | BW56: une lunette; des lunettes | BY56: ma | BZ56: une machine; des machines | CA56: madame; mesdames | CB56: mademoiselle; mesdemoiselles | CC56: un magasin; des magasins | CD56: magique; magiques | CE56: magnifique; magnifiques | CF56: mai | CG56: maigre; maigres | CH56: la main ; les mains | CI56: maintenant | CJ56: maintenir | CK56: mais | CL56: une maison ; des maisons | CM56: 53 | CN56: 23 | CO56: 0.3844247017 | CP56: 0.895934144 | CQ56: 0.2688979254 | CR56: 0.7242051371 | CS56: 0.6113998263 | CT56: 0.4746951286 | CV56: 0.05100376605 | CW56: 0.9895631936 | CX56: 0.5819888961 | CZ56: 0.7069647065 | DA56: 0.3148701703 | DB56: 0.6755668761 | DC56: 0.2789142927 | DD56: 0.9826217649 | DE56: 0.7873220918 | DF56: 0.1080113065 | DG56: 0.8912430263 | DH56: 0.3846177803 | DI56: 0.9146376212 | DJ56: 0.9916070331 | DK56: 0.6018147177 | DL56: 0.2008622572 | DM56: 0.6511191628 | DN56: 7 | DO56: 19 | DP56: 4 | DQ56: 16 | DR56: 12 | DS56: 9 | DU56: 1 | DV56: 22 | DW56: 10 | DY56: 15 | DZ56: 6 | EA56: 14 | EB56: 5 | EC56: 21 | ED56: 17 | EE56: 2 | EF56: 18 | EG56: 8 | EH56: 20 | EI56: 23 | EJ56: 11 | EK56: 3 | EL56: 13 | EM56: =IF($CN56>=EM$3,HLOOKUP(EM$3,$DN56:$EL206,151,FALSE),"") -> 8 | EN56: 18 | EO56: 24 | EP56: 3 | EQ56: 15 | ER56: 13 | ES56: 1 | ET56: 20 | EU56: 6 | EV56: 10 | EW56: le lundi ; les lundis | EX56: magnifique; magnifiques | EY56: mais | FG56: ; le lundi ; les lundis | FH56: ; magnifique; magnifiques | FI56: ; mais | FQ56: ; le lundi ; les lundis; magnifique; magnifiques; mais.
A57: 54 | B57: 1831 | C57: 54 | D57: =VLOOKUP(C57,Calendrier!C$96:D$430,2,TRUE) -> 2015-01-05 | E57: 2235:un téléphone; des téléphones 417:claquer 971:une fougère; des fougères 287:un cache-cache 935:une fillette; des fillettes 1774:préserver 867:une excuse; des excuses | F57: ; manger; une maîtresse; des maîtresses; un maître; des maîtres. | G57: 2235:un téléphone; des téléphones | H57: 417:claquer | I57: 971:une fougère; des fougères | J57: 287:un cache-cache | K57: 935:une fillette; des fillettes | L57: 1774:préserver | M57: 867:une excuse; des excuses | Q57: 29.5 | R57: 0.5242718447 | S57: TRUE | T57: 2235 | U57: un téléphone; des téléphones | V57: 417 | W57: claquer | X57: 971 | Y57: une fougère; des fougères | Z57: 287 | AA57: un cache-cache | AB57: 935 | AC57: une fillette; des fillettes | AD57: 1774 | AE57: préserver | AF57: 867 | AG57: une excuse; des excuses | AN57: noir; noire | AO57: noir; noire; noirs; noires | AP57: 54 | AQ57: 1508 | AR57: noir; noire; noirs; noires | AS57: CP | AT57: 72 | AU57: 166 | AV57: 449 | AW57: 872 | AX57: 1508 | AY57: 54 | BI57: 29.5 | BJ57: 54 | BK57: 2015-01-05 | BL57: 1831 | BM57: 1325 | BN57: un maître; des maîtres | BO57: une maîtresse; des maîtresses | BQ57: mal | BR57: malade ; malades | BS57: la maladie; les maladies | BT57: malgré | BU57: un malheur; des malheurs | BW57: malheureux; malheureuse; malheureuses | BX57: malin; maligne; malins; malignes | BY57: une maman; des mamans | BZ57: un manche; des manches | CA57: manger | CG57: un manque; des manques | CI57: un manteau; des manteaux | CJ57: un manuel; des manuels | CK57: le marchand; les marchands | CL57: la marchande; les marchandes | CM57: 54 | CN57: 17 | CO57: 0.1922742291 | CP57: 0.133236803 | CR57: 0.3639613505 | CS57: 0.7151205682 | CT57: 0.4001741859 | CU57: 0.3595838672 | CV57: 0.6231558087 | CX57: 0.8275263475 | CY57: 0.9475489284 | CZ57: 0.899039691 | DA57: 0.7487564231 | DB57: 0.04885649562 | DH57: 0.5114375986 | DJ57: 0.7488087 | DK57: 0.5838011341 | DL57: 0.3913028534 | DM57: 0.4326258672 | DN57: 3 | DO57: 2 | DQ57: 5 | DR57: 12 | DS57: 7 | DT57: 4 | DU57: 11 | DW57: 15 | DX57: 17 | DY57: 16 | DZ57: 13 | EA57: 1 | EG57: 9 | EI57: 14 | EJ57: 10 | EK57: 6 | EL57: 8 | EM57: =IF($CN57>=EM$3,HLOOKUP(EM$3,$DN57:$EL207,151,FALSE),"") -> 14 | EN57: 2 | EO57: 1 | EP57: 7 | EQ57: 4 | ER57: 24 | ES57: 6 | ET57: 25 | EU57: 20 | EV57: 23 | EW57: manger | EX57: une maîtresse; des maîtresses | EY57: un maître; des maîtres | FG57: ; manger | FH57: ; une maîtresse; des maîtresses | FI57: ; un maître; des maîtres | FQ57: ; manger; une maîtresse; des maîtresses; un maître; des maîtres.
A58: 55 | B58: 1838 | C58: 55 | D58: =VLOOKUP(C58,Calendrier!C$96:D$430,2,TRUE) -> 2015-01-06 | E58: 1342:manifester 2236:témoigner 986:franchir 982:une fraise; des fraises 178:un banquier; des banquiers 179:une banquière; des banquières 1541:un océan; des océans | F58: ; marier; un marché; des marchés; un marin; des marins. | G58: 1342:manifester | H58: 2236:témoigner | I58: 986:franchir | J58: 982:une fraise; des fraises | K58: 178:un banquier; des banquiers | L58: 179:une banquière; des banquières | M58: 1541:un océan; des océans | Q58: 30 | R58: 0.5339805825 | S58: TRUE | T58: 1342 | U58: manifester | V58: 2236 | W58: témoigner | X58: 986 | Y58: franchir | Z58: 982 | AA58: une fraise; des fraises | AB58: 178 | AC58: un banquier; des banquiers | AD58: 179 | AE58: une banquière; des banquières | AF58: 1541 | AG58: un océan; des océans | AN58: moi | AO58: moi | AP58: 55 | AQ58: 1444 | AR58: moi | AS58: CP | AT58: 67 | AU58: 151 | AV58: 422 | AW58: 821 | AX58: 1444 | AY58: 55 | BI58: 30 | BJ58: 55 | BK58: 2015-01-06 | BL58: 1838 | BM58: 1350 | BO58: la marchandise; les marchandises | BP58: une marche; des marches | BQ58: un marché; des marchés | BR58: marcher | BS58: le mardi; les mardis | BU58: un mari; des maris | BV58: le mariage; les mariages | BW58: marier | BX58: un marin; des marins | BY58: une marque; des marques | BZ58: marquer | CA58: mars | CB58: un marteau; des marteaux | CC58: une masse; des masses | CD58: massif; massive; massifs; massives | CF58: maternel; maternelle; maternels; maternelles | CG58: la matière; les matières | CH58: un matin; des matins | CI58: matinal; matinale; matinaux; matinales | CJ58: une matinée; des matinées | CK58: mauvais; mauvaise; mauvais; mauvaises | CL58: mauve; mauves | CM58: 55 | CN58: 22 | CP58: 0.307106744 | CQ58: 0.442231978 | CR58: 0.2630170483 | CS58: 0.5149966676 | CT58: 0.6638476274 | CV58: 0.8728606207 | CW58: 0.9299270322 | CX58: 0.07500762395 | CY58: 0.2976348436 | CZ58: 0.9017843831 | DA58: 0.4891993926 | DB58: 0.3037784861 | DC58: 0.7388320575 | DD58: 0.7596163742 | DE58: 0.648155109 | DG58: 0.8426280846 | DH58: 0.9041425331 | DI58: 0.3328696959 | DJ58: 0.5244984327 | DK58: 0.4227894958 | DL58: 0.9059768224 | DM58: 0.7507183733 | DO58: 5 | DP58: 8 | DQ58: 2 | DR58: 10 | DS58: 13 | DU58: 18 | DV58: 22 | DW58: 1 | DX58: 3 | DY58: 19 | DZ58: 9 | EA58: 4 | EB58: 14 | EC58: 16 | ED58: 12 | EF58: 17 | EG58: 20 | EH58: 6 | EI58: 11 | EJ58: 7 | EK58: 21 | EL58: 15 | EM58: =IF($CN58>=EM$3,HLOOKUP(EM$3,$DN58:$EL208,151,FALSE),"") -> 10 | EN58: 4 | EO58: 11 | EP58: 14 | EQ58: 2 | ER58: 21 | ES58: 23 | ET58: 3 | EU58: 13 | EV58: 5 | EW58: marier | EX58: un marché; des marchés | EY58: un marin; des marins | FG58: ; marier | FH58: ; un marché; des marchés | FI58: ; un marin; des marins | FQ58: ; marier; un marché; des marchés; un marin; des marins.
A59: 56 | B59: 1845 | C59: 56 | D59: =VLOOKUP(C59,Calendrier!C$96:D$430,2,TRUE) -> 2015-01-08 | E59: 1044:gouverner 958:forestier; forestière; forestiers; forestières 1904:refroidir 523:courageux; courageuse; courageux; courageuses 637:dessiner 787:énormément 1679:placer | F59: ; même; un mendiant; des mendiants; mélanger. | G59: 1044:gouverner | H59: 958:forestier; forestière; forestiers; forestières | I59: 1904:refroidir | J59: 523:courageux; courageuse; courageux; courageuses | K59: 637:dessiner | L59: 787:énormément | M59: 1679:placer | Q59: 30.5 | R59: 0.5436893204 | S59: TRUE | T59: 1044 | U59: gouverner | V59: 958 | W59: forestier; forestière; forestiers; forestières | X59: 1904 | Y59: refroidir | Z59: 523 | AA59: courageux; courageuse; courageux; courageuses | AB59: 637 | AC59: dessiner | AD59: 787 | AE59: énormément | AF59: 1679 | AG59: placer | AN59: ton | AO59: ton | AP59: 56 | AQ59: 2270 | AR59: ton | AS59: CP | AT59: 106 | AU59: 242 | AV59: 662 | AW59: 1342 | AX59: 2270 | AY59: 56 | BI59: 30.5 | BJ59: 56 | BK59: 2015-01-08 | BL59: 1845 | BM59: 1375 | BN59: la mécanique; les mécaniques | BO59: méchant; méchante; méchants; méchantes | BQ59: une médaille; des médailles | BR59: un médecin; des médecins | BU59: un mélange; des mélanges | BV59: mélanger | BX59: même | BY59: la mémoire; les mémoires | BZ59: le ménage; les ménages | CA59: une ménagère; des ménagères | CB59: un mendiant; des mendiants | CC59: une mendiante; des mendiantes | CE59: mener | CG59: un menteur; des menteurs | CH59: une menteuse; des menteuses | CI59: mentir | CK59: un menu; des menus | CL59: un menuisier; des menuisiers | CM59: 56 | CN59: 18 | CO59: 0.8715465402 | CP59: 0.8395964892 | CR59: 0.4982421391 | CS59: 0.5385948997 | CV59: 0.8134930617 | CW59: 0.2019062659 | CY59: 0.1720397362 | CZ59: 0.865841746 | DA59: 0.2851355527 | DB59: 0.3404855875 | DC59: 0.1840519782 | DD59: 0.5754394729 | DF59: 0.2491567423 | DH59: 0.3418835296 | DI59: 0.7045651321 | DJ59: 0.8704472707 | DL59: 0.4474228036 | DM59: 0.6859735942 | DN59: 18 | DO59: 15 | DQ59: 9 | DR59: 10 | DU59: 14 | DV59: 3 | DX59: 1 | DY59: 16 | DZ59: 5 | EA59: 6 | EB59: 2 | EC59: 11 | EE59: 4 | EG59: 7 | EH59: 13 | EI59: 17 | EK59: 8 | EL59: 12 | EM59: =IF($CN59>=EM$3,HLOOKUP(EM$3,$DN59:$EL209,151,FALSE),"") -> 11 | EN59: 15 | EO59: 9 | EP59: 18 | EQ59: 13 | ER59: 14 | ES59: 20 | ET59: 24 | EU59: 4 | EV59: 5 | EW59: même | EX59: un mendiant; des mendiants | EY59: mélanger | FG59: ; même | FH59: ; un mendiant; des mendiants | FI59: ; mélanger | FQ59: ; même; un mendiant; des mendiants; mélanger.
A60: 57 | B60: 1852 | C60: 57 | D60: =VLOOKUP(C60,Calendrier!C$96:D$430,2,TRUE) -> 2015-01-09 | E60: 1334:malheureusement 1133:un imperméable; des imperméables 1283:la lisière; les lisières 909:favoriser 1800:prodigieux; prodigieuse; prodigieux; prodigieuses 1827:protéger 579:déchirer | F60: ; une merveille; des merveilles; une miette; des miettes; une mère; des mères. | G60: 1334:malheureusement | H60: 1133:un imperméable; des imperméables | I60: 1283:la lisière; les lisières | J60: 909:favoriser | K60: 1800:prodigieux; prodigieuse; prodigieux; prodigieuses | L60: 1827:protéger | M60: 579:déchirer | Q60: 31 | R60: 0.5533980583 | S60: TRUE | T60: 1334 | U60: malheureusement | V60: 1133 | W60: un imperméable; des imperméables | X60: 1283 | Y60: la lisière; les lisières | Z60: 909 | AA60: favoriser | AB60: 1800 | AC60: prodigieux; prodigieuse; prodigieux; prodigieuses | AD60: 1827 | AE60: protéger | AF60: 579 | AG60: déchirer | AN60: ta | AO60: ta | AP60: 57 | AQ60: 2211 | AR60: ta | AS60: CP | AT60: 102 | AU60: 234 | AV60: 643 | AW60: 1301 | AX60: 2211 | AY60: 57 | BI60: 31 | BJ60: 57 | BK60: 2015-01-09 | BL60: 1852 | BM60: 1400 | BN60: une menuisière; des menuisières | BO60: la mer; les mers | BP60: un merci; des mercis | BQ60: le mercredi ; les mercredis | BR60: une mère; des mères | BT60: un merle; des merles | BU60: une merveille; des merveilles | BX60: mes | BY60: une mesure; des mesures | BZ60: le métal; les métaux | CA60: un métier; des métiers | CB60: un mètre; des mètres | CC60: mettre | CD60: un meuble; des meubles | CE60: le midi ; les midis | CF60: le miel; les miels | CG60: mien; mienne; miens; miennes | CH60: une miette; des miettes | CI60: mieux | CK60: le milieu; les milieux | CL60: un militaire; des militaires | CM60: 57 | CN60: 21 | CO60: 0.8601842795 | CP60: 0.566938632 | CQ60: 0.3497889086 | CR60: 0.5387501549 | CS60: 0.2115459844 | CU60: 0.869636873 | CV60: 0.06143516831 | CY60: 0.8175784557 | CZ60: 0.2713591366 | DA60: 0.9005080036 | DB60: 0.338878999 | DC60: 0.5483910635 | DD60: 0.9183119486 | DE60: 0.2669639776 | DF60: 0.7643155696 | DG60: 0.792715256 | DH60: 0.8515031756 | DI60: 0.1843233947 | DJ60: 0.6317993064 | DL60: 0.9532564284 | DM60: 0.8789986541 | DN60: 16 | DO60: 10 | DP60: 7 | DQ60: 8 | DR60: 3 | DT60: 17 | DU60: 1 | DX60: 14 | DY60: 5 | DZ60: 19 | EA60: 6 | EB60: 9 | EC60: 20 | ED60: 4 | EE60: 12 | EF60: 13 | EG60: 15 | EH60: 2 | EI60: 11 | EK60: 21 | EL60: 18 | EM60: =IF($CN60>=EM$3,HLOOKUP(EM$3,$DN60:$EL210,151,FALSE),"") -> 8 | EN60: 21 | EO60: 5 | EP60: 17 | EQ60: 12 | ER60: 14 | ES60: 3 | ET60: 4 | EU60: 15 | EV60: 2 | EW60: une merveille; des merveilles | EX60: une miette; des miettes | EY60: une mère; des mères | FG60: ; une merveille; des merveilles | FH60: ; une miette; des miettes | FI60: ; une mère; des mères | FQ60: ; une merveille; des merveilles; une miette; des miettes; une mère; des mères.
